Workbook

Sheet Home

Sheet Aviso
C6: SISTEMA DE PONTO DE VENDA - DK ESQUADRIAS
C10: OLÁ, LEIA COM ATENÇÃO:
C12: Para utilizar o sistema é necessário fazer algumas configurações, caso não se sinta a vontade para fazer
C13: ligue para a Survival BR Tecnologia e fale com o Fernando, pelo Celular/WhatsApp: (51) 99657-3572, ou
C14: entre em contato pelo Skype: fernandobley ou e-mail: survivalbrtecnologia@hotmail.com.
C15: Para um melhor atendimento poderá ser usado o suporte remoto através do Team Viewer.
C17: USUÁRIOS AVANÇADOS:
C20: AVISO IMPORTANTE:
C21: PARA USAR ESTE SISTEMA É OBRIGATÓRIO ESTAR EM UM LOCAL CONFIÁVEL.
C22: CASO NÃO SAIBA COMO FAZER ISSO, SIGA ESTES PASSOS:
C24: REQUISITOS MINÍMOS RECOMENDADOS: | G24: CONEXÃO COM A INTERNET AO ABRIR O SISTEMA
G25: MICROSOFT EXCEL 2007 SERVICE PACK 3
G26: MICROSOFT WINDOWS 7 X86 OU X64
G27: PROCESSADOR COM 2 NÚCLEOS
G28: 2 GIGAS DE MEMÓRIA RAM
G29: MONITOR WIDESCREEN 1360X768
C31: IMPRIMA ESTES PASSOS E FECHE O SISTEMA
C32: 01 - CRIE UMA NOVA PASTA COM O NOME "DK" NO C:\
C33: 02 - COPIE E COLE O ARQUIVO DESTE SISTEMA DENTRO DA PASTA CRIADA
C34: 04 - ABRA O MICROSOFT EXCEL (NÃO O SISTEMA DA DK)
C35: 05 - PRESSIONE JUNTO AS TECLAS ALT+A+O, VAI ABRIR AS OPÇÕES DO EXCEL
C36: 06 - CLIQUE EM "CENTRAL DE CONFIABILIDADE" NO MENU LATERAL ESQUERDO
C37: 07 - CLIQUE NO BOTÃO "CONFIGURAÇÃO DA CENTRAL DE CONFIABILIDADE"
C38: 08 - CLIQUE EM "CONFIGURAÇÕES DE MACRO" NO MENU LATERAL ESQUERDO
C39: 09 - MARQUE A OPÇÃO "CONFIAR NO ACESSO AO MODELO DE OBJETO DO PROJETO VBA"
C40: 10 - CLIQUE EM "LOCAIS CONFIÁVEIS" NO MENU LATERAL ESQUERDO
C41: 11 - CLIQUE EM "ADICIONAR UM NOVO LOCAL"
C42: 12 - CLIQUE EM "PROCURAR" E ENCONTRE E SELECIONE A PASTA C:\DK\ | P42: =Orçamento!AZ6 -> 
C43: 13 - CLIQUE EM OK
C44: 14 - MARQUE A OPÇÃO "AS SUBPASTAS DESTE LOCAL TAMBÉM SÃO CONFIÁVEIS"
C45: 15 - CLIQUE EM OK ATÉ FECHAR TODAS AS JANELAS DO EXCEL
C46: 16 - FECHE O EXCEL
C47: 17 - AGORA ENTRE NO ARQUIVO QUE ESTÁ NA PASTA C:\DK\
C48: 18 - SIGA OS PASSOS QUE SERÃO SOLICITADOS AO ABRIR O ARQUIVO
C49: 19 - APÓS ISSO O SISTEMA IRÁ CRIAR UM ATALHO NA ÁREA DE TRABALHO
C50: 20 - PRONTO - UTILIZE SEMPRE ESSE ATALHO PARA ACESSAR O SISTEMA

Sheet Close
B4: =IF(Definições!U147="CONFIGURADA",Orçamento!AX15 & ", APENAS AGUARDE O ENCERRAMENTO DO SISTEMA ...","APENAS AGUARDE O ENCERRAMENTO DO SISTEMA ...") -> APENAS AGUARDE O ENCERRAMENTO DO SISTEMA ...

Sheet Metro
B2: DK ESQUADRIAS IND E COM LTDA | K2: =IF(Definições!$Y$17="SIM","CF","RV") -> RV | L2: MODO | O2: =Definições!AP6 -> REPRESENTANTE | X2: =IF(Representantes!H23<>2,IF(Definições!S9="","",Definições!S9),"") ->  | AH2: =IF(Representantes!H23<>2,IF(Definições!S10="","","FONE:"),"") ->  | AJ2: =IF(Representantes!H23<>2,IF(Definições!S10="","",Definições!S10),"") -> 
M5: =IF($O$2="REPRESENTANTE",IF('Atualização Mural'!B25="NÃO","",'Atualização Mural'!B25),IF('Atualização Mural'!B1="NÃO","",'Atualização Mural'!B1)) -> INFORMAÇÕES ONLINE DA DK ESQUADRIAS
M6: =IF(Metro!$O$33="OFFLINE","",IF($O$2="REPRESENTANTE",IF('Atualização Mural'!B26="NÃO","",'Atualização Mural'!B26),IF('Atualização Mural'!B2="NÃO","",'Atualização Mural'!B2))) -> 
M7: =IF(Metro!$O$33="OFFLINE","",IF($O$2="REPRESENTANTE",IF('Atualização Mural'!B27="NÃO","",'Atualização Mural'!B27),IF('Atualização Mural'!B3="NÃO","",'Atualização Mural'!B3))) -> Comunicamos que as solicitações de suporte técnico ao Sistema PDV devem
M8: =IF(Metro!$O$33="OFFLINE","",IF($O$2="REPRESENTANTE",IF('Atualização Mural'!B28="NÃO","",'Atualização Mural'!B28),IF('Atualização Mural'!B4="NÃO","",'Atualização Mural'!B4))) -> ser feitas diretamente para a DK Esquadrias, via os canais:
M9: =IF(Metro!$O$33="OFFLINE","",IF($O$2="REPRESENTANTE",IF('Atualização Mural'!B29="NÃO","",'Atualização Mural'!B29),IF('Atualização Mural'!B5="NÃO","",'Atualização Mural'!B5))) -> Fone: (51) 3547-5002 - Whats: (51) 99974-8493 - E-mail: contato@dkesquadrias.net.br
M10: =IF(Metro!$O$33="OFFLINE","",IF($O$2="REPRESENTANTE",IF('Atualização Mural'!B30="NÃO","",'Atualização Mural'!B30),IF('Atualização Mural'!B6="NÃO","",'Atualização Mural'!B6))) -> Direcionadas para Lidiana ou Glaucia.
M11: =IF(Metro!$O$33="OFFLINE","",IF($O$2="REPRESENTANTE",IF('Atualização Mural'!B31="NÃO","",'Atualização Mural'!B31),IF('Atualização Mural'!B7="NÃO","",'Atualização Mural'!B7))) -> 
M12: =IF(Metro!$O$33="OFFLINE","",IF($O$2="REPRESENTANTE",IF('Atualização Mural'!B32="NÃO","",'Atualização Mural'!B32),IF('Atualização Mural'!B8="NÃO","",'Atualização Mural'!B8))) -> 
M13: =IF(Metro!$O$33="OFFLINE","",IF($O$2="REPRESENTANTE",IF('Atualização Mural'!B33="NÃO","",'Atualização Mural'!B33),IF('Atualização Mural'!B9="NÃO","",'Atualização Mural'!B9))) -> 
M14: =IF(Metro!$O$33="OFFLINE","",IF($O$2="REPRESENTANTE",IF('Atualização Mural'!B34="NÃO","",'Atualização Mural'!B34),IF('Atualização Mural'!B10="NÃO","",'Atualização Mural'!B10))) -> 
M15: =IF(Metro!$O$33="OFFLINE","",IF($O$2="REPRESENTANTE",IF('Atualização Mural'!B35="NÃO","",'Atualização Mural'!B35),IF('Atualização Mural'!B11="NÃO","",'Atualização Mural'!B11))) -> 
M16: =IF(Metro!$O$33="OFFLINE","",IF($O$2="REPRESENTANTE",IF('Atualização Mural'!B36="NÃO","",'Atualização Mural'!B36),IF('Atualização Mural'!B12="NÃO","",'Atualização Mural'!B12))) -> AVISO: A NÃO PINTURA DAS ESQUADRIAS OCASIONA A PERDA DA GARANTIA.
M17: =IF(Metro!$O$33="OFFLINE","",IF($O$2="REPRESENTANTE",IF('Atualização Mural'!B37="NÃO","",'Atualização Mural'!B37),IF('Atualização Mural'!B13="NÃO","",'Atualização Mural'!B13))) -> Os termos da garantia acompanham o pedido via e-mail e também são encontrados
M18: =IF(Metro!$O$33="OFFLINE","",IF($O$2="REPRESENTANTE",IF('Atualização Mural'!B38="NÃO","",'Atualização Mural'!B38),IF('Atualização Mural'!B14="NÃO","",'Atualização Mural'!B14))) -> no adesivo colado no marco da esquadria.
M19: =IF(Metro!$O$33="OFFLINE","",IF($O$2="REPRESENTANTE",IF('Atualização Mural'!B39="NÃO","",'Atualização Mural'!B39),IF('Atualização Mural'!B15="NÃO","",'Atualização Mural'!B15))) -> 
M21: DK PONTO DE VENDA clique
M23: VERSÃO: | O23: =Definições!$S$4 -> 1003.10 | P23: REV.: | Q23: =Definições!S5 -> 00312
M24: DATA: | O24: =Definições!$T$4 -> 11/10/2024
A25: =IF(Orçamento!AX15="","",Orçamento!AX15) -> JAQUES | M25: SITUAÇÃO: | O25: =IF(Definições!$S$4=Definições!$X$5,"ATUALIZADA","DESATUALIZADA") -> ATUALIZADA
M26: ATUALIZAR: | O26: BAIXE AQUI
M27: LISTA IMPRESSA: | O27: =Descontos!$V$2 -> 1003.11
M28: TABELA DE VALORES clique
M30: TABELA: | O30: =Definições!$I$51 -> 119
M31: DATA: | O31: =Definições!$M$51 -> 2024-06-24
M32: ATUALIZAÇÃO: | O32: AUTOMÁTICA
M33: AGORA: | O33: =IF('Atualização Geral'!C11="ONLINE","ONLINE","OFFLINE") -> ONLINE

Sheet Menu Metro
B2: DK ESQUADRIAS IND E COM LTDA | K2: =IF(Definições!$Y$17="SIM","CF","RV") -> RV | L2: MODO | O2: =Definições!AP6 -> REPRESENTANTE
E4: =Orçamento!$P$37 & ", qual esquadria você está procurando?" -> JAQUES, qual esquadria você está procurando?
AD44: IR
J45: Digite a referência desejada para encontrar:
A47: FINAL | B47: FINAL | C47: FINAL | D47: FINAL | E47: FINAL | F47: FINAL | G47: FINAL | H47: FINAL | I47: FINAL | J47: FINAL | K47: FINAL | L47: FINAL | M47: FINAL | N47: FINAL | O47: FINAL | P47: FINAL | Q47: FINAL | R47: FINAL | S47: FINAL | T47: FINAL | U47: FINAL | V47: FINAL | W47: FINAL | X47: FINAL | Y47: FINAL | Z47: FINAL | AA47: FINAL | AB47: FINAL | AC47: FINAL | AD47: FINAL

Sheet Menu Metro J
B2: DK ESQUADRIAS IND E COM LTDA | K2: =IF(Definições!$Y$17="SIM","CF","RV") -> RV | L2: MODO | O2: =Definições!AP6 -> REPRESENTANTE
E4: =Orçamento!$P$37 & ", agora escolha o tipo da janela:" -> JAQUES, agora escolha o tipo da janela:
AD44: IR
J45: Digite a referência desejada para encontrar:
A47: FINAL | B47: FINAL | C47: FINAL | D47: FINAL | E47: FINAL | F47: FINAL | G47: FINAL | H47: FINAL | I47: FINAL | J47: FINAL | K47: FINAL | L47: FINAL | M47: FINAL | N47: FINAL | O47: FINAL | P47: FINAL | Q47: FINAL | R47: FINAL | S47: FINAL | T47: FINAL | U47: FINAL | V47: FINAL | W47: FINAL | X47: FINAL | Y47: FINAL | Z47: FINAL | AA47: FINAL | AB47: FINAL | AC47: FINAL | AD47: FINAL

Sheet Menu Metro PA
B2: DK ESQUADRIAS IND E COM LTDA | K2: =IF(Definições!$Y$17="SIM","CF","RV") -> RV | L2: MODO | O2: =Definições!AP6 -> REPRESENTANTE
E4: =Orçamento!$P$37 & ", agora escolha o tipo e a linha da porta de abrir:" -> JAQUES, agora escolha o tipo e a linha da porta de abrir:
AD44: IR
J45: Digite a referência desejada para encontrar:
A47: FINAL | B47: FINAL | C47: FINAL | D47: FINAL | E47: FINAL | F47: FINAL | G47: FINAL | H47: FINAL | I47: FINAL | J47: FINAL | K47: FINAL | L47: FINAL | M47: FINAL | N47: FINAL | O47: FINAL | P47: FINAL | Q47: FINAL | R47: FINAL | S47: FINAL | T47: FINAL | U47: FINAL | V47: FINAL | W47: FINAL | X47: FINAL | Y47: FINAL | Z47: FINAL | AA47: FINAL | AB47: FINAL | AC47: FINAL | AD47: FINAL

Sheet Menu Metro PP
B2: DK ESQUADRIAS IND E COM LTDA | K2: =IF(Definições!$Y$17="SIM","CF","RV") -> RV | L2: MODO | O2: =Definições!AP6 -> REPRESENTANTE
E4: =Orçamento!$P$37 & ", agora escolha a linha da porta pivotante:" -> JAQUES, agora escolha a linha da porta pivotante:
AD44: IR
J45: Digite a referência desejada para encontrar:
A47: FINAL | B47: FINAL | C47: FINAL | D47: FINAL | E47: FINAL | F47: FINAL | G47: FINAL | H47: FINAL | I47: FINAL | J47: FINAL | K47: FINAL | L47: FINAL | M47: FINAL | N47: FINAL | O47: FINAL | P47: FINAL | Q47: FINAL | R47: FINAL | S47: FINAL | T47: FINAL | U47: FINAL | V47: FINAL | W47: FINAL | X47: FINAL | Y47: FINAL | Z47: FINAL | AA47: FINAL | AB47: FINAL | AC47: FINAL | AD47: FINAL

Sheet Menu Metro PI
B2: DK ESQUADRIAS IND E COM LTDA | K2: =IF(Definições!$Y$17="SIM","CF","RV") -> RV | L2: MODO | O2: =Definições!AP6 -> REPRESENTANTE
E4: =Orçamento!$P$37 & ", agora escolha o tipo da porta interna:" -> JAQUES, agora escolha o tipo da porta interna:
AD44: IR
J45: Digite a referência desejada para encontrar:
A47: FINAL | B47: FINAL | C47: FINAL | D47: FINAL | E47: FINAL | F47: FINAL | G47: FINAL | H47: FINAL | I47: FINAL | J47: FINAL | K47: FINAL | L47: FINAL | M47: FINAL | N47: FINAL | O47: FINAL | P47: FINAL | Q47: FINAL | R47: FINAL | S47: FINAL | T47: FINAL | U47: FINAL | V47: FINAL | W47: FINAL | X47: FINAL | Y47: FINAL | Z47: FINAL | AA47: FINAL | AB47: FINAL | AC47: FINAL | AD47: FINAL

Sheet Menu Metro PS
B2: DK ESQUADRIAS IND E COM LTDA | K2: =IF(Definições!$Y$17="SIM","CF","RV") -> RV | L2: MODO | O2: =Definições!AP6 -> REPRESENTANTE
E4: =Orçamento!$P$37 & ", agora escolha o tipo da porta de sacada:" -> JAQUES, agora escolha o tipo da porta de sacada:
AD44: IR
J45: Digite a referência desejada para encontrar:
A47: FINAL | B47: FINAL | C47: FINAL | D47: FINAL | E47: FINAL | F47: FINAL | G47: FINAL | H47: FINAL | I47: FINAL | J47: FINAL | K47: FINAL | L47: FINAL | M47: FINAL | N47: FINAL | O47: FINAL | P47: FINAL | Q47: FINAL | R47: FINAL | S47: FINAL | T47: FINAL | U47: FINAL | V47: FINAL | W47: FINAL | X47: FINAL | Y47: FINAL | Z47: FINAL | AA47: FINAL | AB47: FINAL | AC47: FINAL | AD47: FINAL

Sheet Menu Metro MV
B2: DK ESQUADRIAS IND E COM LTDA | K2: =IF(Definições!$Y$17="SIM","CF","RV") -> RV | L2: MODO | O2: =Definições!AP6 -> REPRESENTANTE
E4: =Orçamento!$P$37 & ", agora escolha o tipo e se é sem ou com ferro de proteção:" -> JAQUES, agora escolha o tipo e se é sem ou com ferro de proteção:
AD44: IR
J45: Digite a referência desejada para encontrar:
A47: FINAL | B47: FINAL | C47: FINAL | D47: FINAL | E47: FINAL | F47: FINAL | G47: FINAL | H47: FINAL | I47: FINAL | J47: FINAL | K47: FINAL | L47: FINAL | M47: FINAL | N47: FINAL | O47: FINAL | P47: FINAL | Q47: FINAL | R47: FINAL | S47: FINAL | T47: FINAL | U47: FINAL | V47: FINAL | W47: FINAL | X47: FINAL | Y47: FINAL | Z47: FINAL | AA47: FINAL | AB47: FINAL | AC47: FINAL | AD47: FINAL

Sheet Metro JP
AS1: FINAL
B2: DK ESQUADRIAS IND E COM LTDA | K2: =IF(Definições!$Y$17="SIM","CF","RV") -> RV | L2: MODO | O2: =Definições!AP6 -> REPRESENTANTE
AS3: FINAL
E4: =Orçamento!$P$37 & ", escolha a linha desejada:" -> JAQUES, escolha a linha desejada: | AS4: FINAL
AS5: FINAL
AS6: FINAL
AS7: FINAL
AS8: FINAL
AS9: FINAL
AS10: FINAL
AS11: FINAL
AS12: FINAL
AS13: FINAL
AS14: FINAL
AS15: FINAL
AS16: FINAL
AS17: FINAL
AS18: FINAL
AS19: FINAL
AS20: FINAL
AS21: FINAL
AS22: FINAL
AS23: FINAL
AS24: FINAL
AS25: FINAL
AS26: FINAL
AS27: FINAL
AS28: FINAL
AS29: FINAL
AS30: FINAL
AS31: FINAL
AS32: FINAL
AS33: FINAL
AS34: FINAL
AS35: FINAL
AS36: FINAL
AS37: FINAL
AS38: FINAL
AS39: FINAL
AS40: FINAL
AS41: FINAL
AS42: FINAL
AS43: FINAL
AS44: FINAL
AS45: FINAL
A47: FINAL | B47: FINAL | C47: FINAL | D47: FINAL | E47: FINAL | F47: FINAL | G47: FINAL | H47: FINAL | I47: FINAL | J47: FINAL | K47: FINAL | L47: FINAL | M47: FINAL | N47: FINAL | O47: FINAL | P47: FINAL | Q47: FINAL | R47: FINAL | S47: FINAL | T47: FINAL | U47: FINAL | V47: FINAL | W47: FINAL | X47: FINAL | Y47: FINAL | Z47: FINAL | AA47: FINAL | AB47: FINAL | AC47: FINAL | AD47: FINAL

Sheet Metro Fácil JP
B2: DK ESQUADRIAS IND E COM LTDA | K2: =IF(Definições!$Y$17="SIM","CF","RV") -> RV | L2: MODO | O2: =Definições!AP6 -> REPRESENTANTE
E3: =Orçamento!$P$37 & ", selecione o tamanho, marco, madeira e modelo do caixilho:" -> JAQUES, selecione o tamanho, marco, madeira e modelo do caixilho:
H6: =IF(Definições!AA122=131,"JANELA REF " & Definições!AA122 & " VENEZIANA PANTOGRÁFICA caixilho pantográfico",IF(Definições!AA122="161","JANELA REF " & Definições!AA122 & " VENEZIANA PANTOGRÁFICA caixilho pantográfico",IF(Definições!AA122=181,"JANELA REF " & Definições!AA122 & " VENEZIANA PANTOGRÁFICA caixilho pantográfico","JANELA REF " & Definições!AA122 & " VENEZIANA PANTOGRÁFICA caixilho de correr"))) -> JANELA REF 101 VENEZIANA PANTOGRÁFICA caixilho de correr
AH7: LINHA | AI7: COLUNA | AJ7: CÉLULA | AK7: DESCRIÇÃO
H8: =AK8 -> Janela com veneziana pantográfica e caixilhos de correr, trilho de alumínio nas venezianas e nos caixilhos, todos caixilhos móveis, ferragem preta, | AH8: 17 | AI8: F | AJ8: ="$"& AI8 & "$" &AH8 -> $F$17 | AK8: Janela com veneziana pantográfica e caixilhos de correr, trilho de alumínio nas venezianas e nos caixilhos, todos caixilhos móveis, ferragem preta,
H9: =AK9 -> pino de pressão, baguete, acabamento Supreme, guarnição tradicional de 6,5cm para o lado interno. | AK9: pino de pressão, baguete, acabamento Supreme, guarnição tradicional de 6,5cm para o lado interno.
H11: Selecione o tamanho padrão: | N11: Para tamanho sobmedida digite abaixo: | AA11: Escolha o modelo do caixilho: | AH11: VALOR DO ITEM | AJ11: SEU ITEM
AH12: 776.228544 | AJ12: =H6 & " " & AI28 & " - Tamanho: " & Q40 & "X" & X24 & "CM - Marco: " & J32 & "CM - Madeira: " & AI25 & IF(AJ13<>""," - Opcionais: " & AJ13,"") -> JANELA REF 101 VENEZIANA PANTOGRÁFICA caixilho de correr LISO - Tamanho: 120X100CM - Marco: 14CM - Madeira: Eucalipto
H13: Largura | I13: X | J13: Altura | K13: (cm) | AH13: 447.98589
AH14: CAIXILHO
H15: 120 | I15: X | J15: 100 | K15: cm | AA15: =IF(AI15="S","Liso","") -> Liso | AC15: =IF(AI16="S","Quadriculado","") -> Quadriculado | AH15: LISO | AI15: S
AH16: QUADRICULADO | AI16: S
H17: 120 | I17: X | J17: 120 | K17: cm | AH17: ITALIANO | AI17: S
H19: 140 | I19: X | J19: 120 | K19: cm | AH19: MADEIRA 1 | AI19: S
AH20: MADEIRA 2 | AI20: S
H21: 150 | I21: X | J21: 120 | K21: cm | AH21: MADEIRA 3 | AI21: S
AA22: =IF(AI17="S","Italiano","") -> Italiano | AH22: MADEIRA 4 | AI22: S
H23: 160 | I23: X | J23: 120 | K23: cm
X24: 100 | Z24: cm | AH24: MADEIRA
H25: 180 | I25: X | J25: 120 | K25: cm | AH25: M01 | AI25: =IF(AH25="M01",Definições!$T$113,"")&IF(AH25="M02",Definições!$U$113,"")&IF(AH25="M03",Definições!$V$113,"")&IF(AH25="M04",Definições!$W$113,"")&IF(AH25="M05",Definições!$T$113,"")&IF(AH25="M06",Definições!$U$113,"")&IF(AH25="M07",Definições!$V$113,"")&IF(AH25="M08",Definições!$W$113,"") -> Eucalipto
H27: 200 | I27: X | J27: 120 | K27: cm | X27: ALTURA | AH27: CAIXILHO
AH28: C01 | AI28: =IF(AH28="C01","LISO","") & IF(AH28="C02","QUADRICULADO","") & IF(AH28="C03","ITALIANO","") -> LISO
H30: Informe a largura do marco: | AH30: ATUALIZA PREÇO
AH31: 1
H32: =AH34 -> Padrão: | J32: 14 | K32: cm | AA32: COMPARTILHAR
AH33: MARCO
AH34: Padrão:
H35: Selecione a madeira: | AA35: PERSONALIZAR ITEM MAIS INFORMAÇÕES SOBRE A REFERÊNCIA
H38: =IF(AI19="S",IF(Definições!$T$113="","",Definições!$T$113),"") -> Eucalipto | AA38: INCLUIR NO ORÇAMENTO
Q40: 120 | S40: cm
V41: VALOR DO ITEM | AA41: R$ | AB41: =AH12 -> 776.228544
Q43: LARGURA
H45: Seu item conforme suas escolhas:
H46: =AJ12 -> JANELA REF 101 VENEZIANA PANTOGRÁFICA caixilho de correr LISO - Tamanho: 120X100CM - Marco: 14CM - Madeira: Eucalipto
A47: FINAL | B47: FINAL | C47: FINAL | D47: FINAL | E47: FINAL | F47: FINAL | G47: FINAL
H50: COMPRE COM A DK ESQUADRIAS E TENHA A CERTEZA DE UM BOM NEGÓCIO - DESDE 1960 SATISFAZENDO SEUS CLIENTES
H52: =IF(Definições!$AP$6="REPRESENTANTE","Representante: " & Definições!$D$94 & " - " & IF((Orçamento!$AX$13 & Orçamento!$AX$14)<>"","Fone: " & Orçamento!$AX$13 & " - E-mail: " & Orçamento!$AX$14,"Fone: " & Definições!$D$95 & " - E-mail: " & Definições!$D$96 ) & " - Vendedor: " & Orçamento!$AX$15,"") & IF(Definições!$AP$6="REVENDEDOR SEM MARGEM DE LUCRO","Parceiro: " & Orçamento!$Y$8 & " - " & IF((Orçamento!$AX$13 & Orçamento!$AX$14)<>"","Fone: " & Orçamento!$AX$13 & " - E-mail: " & Orçamento!$AX$14,"Fone: " & Orçamento!$Y$14 & " - E-mail: " & Orçamento!$P$14 ) & " - Vendedor: " & Orçamento!$AX$15,"") & IF(Definições!$AP$6="CONSTRUTORA / INCORPORADORA","Parceiro: " & Orçamento!$Y$8 & " - " & IF((Orçamento!$AX$13 & Orçamento!$AX$14)<>"","Fone: " & Orçamento!$AX$13 & " - E-mail: " & Orçamento!$AX$14,"Fone: " & Orçamento!$Y$14 & " - E-mail: " & Orçamento!$P$14 ) & " - Vendedor: " & Orçamento!$AX$15,"") & IF(Definições!$AP$6="REVENDEDOR COM MARGEM DE LUCRO","Parceiro: " & DK!$Y$8 & " - " & IF((Orçamento!$AX$13 & Orçamento!$AX$14)<>"","Fone: " & Orçamento!$AX$13 & " - E-mail: " & Orçamento!$AX$14,"Fone: " & DK!$Y$14 & " - E-mail: " & DK!$P$14 ) & " - Vendedor: " & Orçamento!$AX$15,"") -> Representante: DK ESQUADRIAS IND E COM LTDA - Fone: (51) 3547-5002 - E-mail: vendas@dkesquadrias.net.br - Vendedor: JAQUES
H53: =" MODO " & Definições!$AP$6 -> MODO REPRESENTANTE | U53: =NOW() -> 2024-10-11T08:32:00.600 | AC53: =NOW() -> 45576.35556
H54: TODAS AS FOTOS ILUSTRATIVAS SÃO DE ESQUADRIAS NA MADEIRA DE EUCALIPTO. REPRESENTAM AS ESQUADRIAS PADRÃO, SEM OPCIONAIS. A QUANTIDADE DE CAIXILHOS E VENEZIANAS PODE VARIAR
H55: DE ACORDO COM A MEDIDA ESCOLHIDA. O CAIXILHO NA FOTO ILUSTRATIVA SEMPRE É O LISO E A VENEZIANA É A TRADICIONAL. NÃO ACOMPANHA COLOCAÇÃO, VIDROS E PINTURA.
AS57: FINAL

Sheet Metro JA
B2: DK ESQUADRIAS IND E COM LTDA | K2: =IF(Definições!$Y$17="SIM","CF","RV") -> RV | L2: MODO | O2: =Definições!AP6 -> REPRESENTANTE
E4: =Orçamento!$P$37 & ", escolha a linha desejada:" -> JAQUES, escolha a linha desejada:
A47: FINAL | B47: FINAL | C47: FINAL | D47: FINAL | E47: FINAL | F47: FINAL | G47: FINAL | H47: FINAL | I47: FINAL | J47: FINAL | K47: FINAL | L47: FINAL | M47: FINAL | N47: FINAL | O47: FINAL | P47: FINAL | Q47: FINAL | R47: FINAL | S47: FINAL | T47: FINAL | U47: FINAL | V47: FINAL | W47: FINAL | X47: FINAL | Y47: FINAL | Z47: FINAL | AA47: FINAL | AB47: FINAL | AC47: FINAL | AD47: FINAL

Sheet Metro Fácil JA
B2: DK ESQUADRIAS IND E COM LTDA | K2: =IF(Definições!$Y$17="SIM","CF","RV") -> RV | L2: MODO | O2: =Definições!AP6 -> REPRESENTANTE
E3: =Orçamento!$P$37 & ", selecione o tamanho, marco, madeira e modelo do caixilho:" -> JAQUES, selecione o tamanho, marco, madeira e modelo do caixilho:
H6: =IF(Definições!AA122=104,"JANELA REF " & Definições!AA122 & " VENEZIANA DE ABRIR caixilho guilhotina - chalé",IF(Definições!AA122=105,"JANELA REF " & Definições!AA122 & " VENEZIANA DE ABRIR caixilho guilhotina - alvenaria",IF(Definições!AA122=114,"JANELA REF " & Definições!AA122 & " VENEZIANA DE ABRIR caixilho guilhotina - chalé",IF(Definições!AA122=115,"JANELA REF " & Definições!AA122 & " VENEZIANA DE ABRIR caixilho guilhotina - alvenaria","JANELA REF " & Definições!AA122 & " VENEZIANA DE ABRIR caixilho de correr")))) -> JANELA REF 101 VENEZIANA DE ABRIR caixilho de correr
AH7: LINHA | AI7: COLUNA | AJ7: CÉLULA | AK7: DESCRIÇÃO
H8: =AK8 -> Janela com veneziana pantográfica e caixilhos de correr, trilho de alumínio nas venezianas e nos caixilhos, todos caixilhos móveis, ferragem preta, | AH8: 17 | AI8: F | AJ8: ="$"& AI8 & "$" &AH8 -> $F$17 | AK8: Janela com veneziana pantográfica e caixilhos de correr, trilho de alumínio nas venezianas e nos caixilhos, todos caixilhos móveis, ferragem preta,
H9: =AK9 -> pino de pressão, baguete, acabamento Supreme, guarnição tradicional de 6,5cm para o lado interno. | AK9: pino de pressão, baguete, acabamento Supreme, guarnição tradicional de 6,5cm para o lado interno.
H11: Selecione o tamanho padrão: | N11: Para tamanho sobmedida digite abaixo: | AA11: =IF(AI15="S","Escolha o modelo do caixilho:","") -> Escolha o modelo do caixilho: | AH11: VALOR DO ITEM | AJ11: SEU ITEM
AH12: 562.38795 | AJ12: =H6 & " " & AI28 & " - Tamanho: " & Q40 & "X" & X24 & "CM - Marco: " & J32 & "CM - Madeira: " & AI25 & IF(AJ13<>""," - Opcionais: " & AJ13,"") -> JANELA REF 101 VENEZIANA DE ABRIR caixilho de correr - Tamanho: 120X100CM - Marco: 14CM - Madeira: Eucalipto
H13: Largura | I13: X | J13: Altura | K13: (cm) | AH13: 184.6239117
AH14: CAIXILHO
H15: =IF(Definições!AA122=104,"080",IF(Definições!AA122=105,"080",IF(Definições!AA122=114,"080",IF(Definições!AA122=115,"080","120")))) -> 120 | I15: X | J15: 100 | K15: cm | AA15: =IF(AI15="S","Liso","") -> Liso | AC15: =IF(AI16="S","Quadriculado","") -> Quadriculado | AH15: LISO | AI15: S
AH16: QUADRICULADO | AI16: S
H17: =IF(Definições!AA122=104,"100",IF(Definições!AA122=105,"100",IF(Definições!AA122=114,"100",IF(Definições!AA122=115,"100","120")))) -> 120 | I17: X | J17: =IF(Definições!AA122=104,"100",IF(Definições!AA122=105,"100",IF(Definições!AA122=114,"100",IF(Definições!AA122=115,"100","120")))) -> 120 | K17: cm | AH17: ITALIANO | AI17: S
H19: =IF(Definições!AA122=104,"100",IF(Definições!AA122=105,"100",IF(Definições!AA122=114,"120",IF(Definições!AA122=115,"120","140")))) -> 140 | I19: X | J19: =IF(Definições!AA122=104,"120",IF(Definições!AA122=105,"120",IF(Definições!AA122=114,"100",IF(Definições!AA122=115,"100","120")))) -> 120 | K19: cm | AH19: MADEIRA 1 | AI19: S
AH20: MADEIRA 2 | AI20: S
H21: =IF(Definições!AA122=104,"120",IF(Definições!AA122=105,"120",IF(Definições!AA122=114,"120",IF(Definições!AA122=115,"120","150")))) -> 150 | I21: X | J21: =IF(Definições!AA122=104,"100",IF(Definições!AA122=105,"100",IF(Definições!AA122=114,"120",IF(Definições!AA122=115,"120","120")))) -> 120 | K21: cm | AH21: MADEIRA 3 | AI21: S
AA22: =IF(AI17="S","Italiano","") -> Italiano | AH22: MADEIRA 4 | AI22: S
H23: =IF(Definições!AA122=104,"120",IF(Definições!AA122=105,"120",IF(Definições!AA122=114,"",IF(Definições!AA122=115,"",IF(Definições!AA122=102,"",IF(Definições!AA122="122","",IF(Definições!AA122=112,"",IF(Definições!AA122=142,"","160")))))))) -> 160 | I23: =IF(Definições!AA122=114,"",IF(Definições!AA122=115,"",IF(Definições!AA122=102,"",IF(Definições!AA122="122","",IF(Definições!AA122=112,"",IF(Definições!AA122=142,"","X")))))) -> X | J23: =IF(Definições!AA122=104,"120",IF(Definições!AA122=105,"120",IF(Definições!AA122=114,"",IF(Definições!AA122=115,"",IF(Definições!AA122=102,"",IF(Definições!AA122="122","",IF(Definições!AA122=112,"",IF(Definições!AA122=142,"","120")))))))) -> 120 | K23: =IF(Definições!AA122=114,"",IF(Definições!AA122=115,"",IF(Definições!AA122=102,"",IF(Definições!AA122="122","",IF(Definições!AA122=112,"",IF(Definições!AA122=142,"","cm")))))) -> cm
X24: 100 | Z24: cm | AH24: MADEIRA
H25: =IF(Definições!AA122=104,"140",IF(Definições!AA122=105,"140",IF(Definições!AA122=114,"",IF(Definições!AA122=115,"",IF(Definições!AA122=102,"",IF(Definições!AA122="122","",IF(Definições!AA122=112,"",IF(Definições!AA122=142,"","180")))))))) -> 180 | I25: =IF(Definições!AA122=114,"",IF(Definições!AA122=115,"",IF(Definições!AA122=102,"",IF(Definições!AA122="122","",IF(Definições!AA122=112,"",IF(Definições!AA122=142,"","X")))))) -> X | J25: =IF(Definições!AA122=104,"120",IF(Definições!AA122=105,"120",IF(Definições!AA122=114,"",IF(Definições!AA122=115,"",IF(Definições!AA122=102,"",IF(Definições!AA122="122","",IF(Definições!AA122=112,"",IF(Definições!AA122=142,"","120")))))))) -> 120 | K25: =IF(Definições!AA122=114,"",IF(Definições!AA122=115,"",IF(Definições!AA122=102,"",IF(Definições!AA122="122","",IF(Definições!AA122=112,"",IF(Definições!AA122=142,"","cm")))))) -> cm | AH25: M01 | AI25: =IF(AH25="M01",Definições!$T$113,"")&IF(AH25="M02",Definições!$U$113,"")&IF(AH25="M03",Definições!$V$113,"")&IF(AH25="M04",Definições!$W$113,"")&IF(AH25="M05",Definições!$T$113,"")&IF(AH25="M06",Definições!$U$113,"")&IF(AH25="M07",Definições!$V$113,"")&IF(AH25="M08",Definições!$W$113,"") -> Eucalipto
H27: =IF(Definições!AA122=104,"150",IF(Definições!AA122=105,"150",IF(Definições!AA122=114,"",IF(Definições!AA122=115,"",IF(Definições!AA122=102,"",IF(Definições!AA122="122","",IF(Definições!AA122=112,"",IF(Definições!AA122=142,"","200")))))))) -> 200 | I27: =IF(Definições!AA122=114,"",IF(Definições!AA122=115,"",IF(Definições!AA122=102,"",IF(Definições!AA122="122","",IF(Definições!AA122=112,"",IF(Definições!AA122=142,"","X")))))) -> X | J27: =IF(Definições!AA122=104,"120",IF(Definições!AA122=105,"120",IF(Definições!AA122=114,"",IF(Definições!AA122=115,"",IF(Definições!AA122=102,"",IF(Definições!AA122="122","",IF(Definições!AA122=112,"",IF(Definições!AA122=142,"","120")))))))) -> 120 | K27: =IF(Definições!AA122=114,"",IF(Definições!AA122=115,"",IF(Definições!AA122=102,"",IF(Definições!AA122="122","",IF(Definições!AA122=112,"",IF(Definições!AA122=142,"","cm")))))) -> cm | X27: ALTURA | AH27: CAIXILHO
AH28: C01 | AI28: =IF(Definições!AA122=102,IF(AH28="C01","LISO","") & IF(AH28="C02","QUADRICULADO","") & IF(AH28="C03","ITALIANO",""),"") & IF(Definições!AA122=112,IF(AH28="C01","LISO","") & IF(AH28="C02","QUADRICULADO","") & IF(AH28="C03","ITALIANO",""),"") & IF(Definições!AA122="122",IF(AH28="C01","LISO","") & IF(AH28="C02","QUADRICULADO","") & IF(AH28="C03","ITALIANO",""),"") -> 
H30: Informe a largura do marco: | AH30: ATUALIZA PREÇO
AH31: 1
H32: =AH34 -> Sobmedida: | J32: 14 | K32: cm | AA32: COMPARTILHAR
AH33: MARCO
AH34: Sobmedida:
H35: Selecione a madeira: | AA35: PERSONALIZAR ITEM MAIS INFORMAÇÕES SOBRE A REFERÊNCIA
H38: =IF(AI19="S",IF(Definições!$T$113="","",Definições!$T$113),"") -> Eucalipto | AA38: INCLUIR NO ORÇAMENTO
Q40: 120 | S40: cm
V41: VALOR DO ITEM | AA41: R$ | AB41: =AH12 -> 562.38795
Q43: LARGURA
H45: Seu item conforme suas escolhas:
H46: =AJ12 -> JANELA REF 101 VENEZIANA DE ABRIR caixilho de correr - Tamanho: 120X100CM - Marco: 14CM - Madeira: Eucalipto
A47: FINAL | B47: FINAL | C47: FINAL | D47: FINAL | E47: FINAL | F47: FINAL | G47: FINAL
H50: COMPRE COM A DK ESQUADRIAS E TENHA A CERTEZA DE UM BOM NEGÓCIO - DESDE 1960 SATISFAZENDO SEUS CLIENTES
H52: =IF(Definições!$AP$6="REPRESENTANTE","Representante: " & Definições!$D$94 & " - " & IF((Orçamento!$AX$13 & Orçamento!$AX$14)<>"","Fone: " & Orçamento!$AX$13 & " - E-mail: " & Orçamento!$AX$14,"Fone: " & Definições!$D$95 & " - E-mail: " & Definições!$D$96 ) & " - Vendedor: " & Orçamento!$AX$15,"") & IF(Definições!$AP$6="REVENDEDOR SEM MARGEM DE LUCRO","Parceiro: " & Orçamento!$Y$8 & " - " & IF((Orçamento!$AX$13 & Orçamento!$AX$14)<>"","Fone: " & Orçamento!$AX$13 & " - E-mail: " & Orçamento!$AX$14,"Fone: " & Orçamento!$Y$14 & " - E-mail: " & Orçamento!$P$14 ) & " - Vendedor: " & Orçamento!$AX$15,"") & IF(Definições!$AP$6="CONSTRUTORA / INCORPORADORA","Parceiro: " & Orçamento!$Y$8 & " - " & IF((Orçamento!$AX$13 & Orçamento!$AX$14)<>"","Fone: " & Orçamento!$AX$13 & " - E-mail: " & Orçamento!$AX$14,"Fone: " & Orçamento!$Y$14 & " - E-mail: " & Orçamento!$P$14 ) & " - Vendedor: " & Orçamento!$AX$15,"") & IF(Definições!$AP$6="REVENDEDOR COM MARGEM DE LUCRO","Parceiro: " & DK!$Y$8 & " - " & IF((Orçamento!$AX$13 & Orçamento!$AX$14)<>"","Fone: " & Orçamento!$AX$13 & " - E-mail: " & Orçamento!$AX$14,"Fone: " & DK!$Y$14 & " - E-mail: " & DK!$P$14 ) & " - Vendedor: " & Orçamento!$AX$15,"") -> Representante: DK ESQUADRIAS IND E COM LTDA - Fone: (51) 3547-5002 - E-mail: vendas@dkesquadrias.net.br - Vendedor: JAQUES
H53: =" MODO " & Definições!$AP$6 -> MODO REPRESENTANTE | U53: =NOW() -> 2024-10-11T08:32:00.600 | AC53: =NOW() -> 45576.35556
H54: ='Metro Fácil JP'!$H$54:$AD$54 -> TODAS AS FOTOS ILUSTRATIVAS SÃO DE ESQUADRIAS NA MADEIRA DE EUCALIPTO. REPRESENTAM AS ESQUADRIAS PADRÃO, SEM OPCIONAIS. A QUANTIDADE DE CAIXILHOS E VENEZIANAS PODE VARIAR
H55: ='Metro Fácil JP'!$H$55:$AD$55 -> DE ACORDO COM A MEDIDA ESCOLHIDA. O CAIXILHO NA FOTO ILUSTRATIVA SEMPRE É O LISO E A VENEZIANA É A TRADICIONAL. NÃO ACOMPANHA COLOCAÇÃO, VIDROS E PINTURA.
AS57: FINAL

Sheet Metro JSV
B2: DK ESQUADRIAS IND E COM LTDA | K2: =IF(Definições!$Y$17="SIM","CF","RV") -> RV | L2: MODO | O2: =Definições!AP6 -> REPRESENTANTE
E4: =Orçamento!$P$37 & ", escolha a linha desejada:" -> JAQUES, escolha a linha desejada:
A47: FINAL | B47: FINAL | C47: FINAL | D47: FINAL | E47: FINAL | F47: FINAL | G47: FINAL | H47: FINAL | I47: FINAL | J47: FINAL | K47: FINAL | L47: FINAL | M47: FINAL | N47: FINAL | O47: FINAL | P47: FINAL | Q47: FINAL | R47: FINAL | S47: FINAL | T47: FINAL | U47: FINAL | V47: FINAL | W47: FINAL | X47: FINAL | Y47: FINAL | Z47: FINAL | AA47: FINAL | AB47: FINAL | AC47: FINAL | AD47: FINAL

Sheet Metro Fácil JSV
B2: DK ESQUADRIAS IND E COM LTDA | K2: =IF(Definições!$Y$17="SIM","CF","RV") -> RV | L2: MODO | O2: =Definições!AP6 -> REPRESENTANTE
E3: =Orçamento!$P$37 & ", selecione o tamanho, marco, madeira e modelo do caixilho:" -> JAQUES, selecione o tamanho, marco, madeira e modelo do caixilho:
H6: =IF(Definições!AA122=133,"JANELA REF " & Definições!AA122 & " SEM VENEZIANA caixilho pantográfico",IF(Definições!AA122="163","JANELA REF " & Definições!AA122 & " SEM VENEZIANA caixilho pantográfico",IF(Definições!AA122=183,"JANELA REF " & Definições!AA122 & " SEM VENEZIANA caixilho pantográfico","JANELA REF " & Definições!AA122 & " SEM VENEZIANA caixilho de correr"))) -> JANELA REF 101 SEM VENEZIANA caixilho de correr
AH7: LINHA | AI7: COLUNA | AJ7: CÉLULA | AK7: DESCRIÇÃO
H8: =AK8 -> Janela com veneziana pantográfica e caixilhos de correr, trilho de alumínio nas venezianas e nos caixilhos, todos caixilhos móveis, ferragem preta, | AH8: 17 | AI8: F | AJ8: ="$"& AI8 & "$" &AH8 -> $F$17 | AK8: Janela com veneziana pantográfica e caixilhos de correr, trilho de alumínio nas venezianas e nos caixilhos, todos caixilhos móveis, ferragem preta,
H9: =AK9 -> pino de pressão, baguete, acabamento Supreme, guarnição tradicional de 6,5cm para o lado interno. | AK9: pino de pressão, baguete, acabamento Supreme, guarnição tradicional de 6,5cm para o lado interno.
H11: Selecione o tamanho padrão: | N11: Para tamanho sobmedida digite abaixo: | AA11: Escolha o modelo do caixilho: | AH11: VALOR DO ITEM | AJ11: SEU ITEM
AH12: 384.80445 | AJ12: =H6 & " " & AI28 & " - Tamanho: " & Q40 & "X" & X24 & "CM - Marco: " & J32 & "CM - Madeira: " & AI25 & IF(AJ13<>""," - Opcionais: " & AJ13,"") -> JANELA REF 101 SEM VENEZIANA caixilho de correr LISO - Tamanho: 120X100CM - Marco: 10CM - Madeira: Eucalipto
H13: Largura | I13: X | J13: Altura | K13: (cm) | AH13: 215.9841566
AH14: CAIXILHO
H15: 120 | I15: X | J15: 100 | K15: cm | AA15: =IF(AI15="S","Liso","") -> Liso | AC15: =IF(AI16="S","Quadriculado","") -> Quadriculado | AH15: LISO | AI15: S
AH16: QUADRICULADO | AI16: S
H17: 120 | I17: X | J17: 120 | K17: cm | AH17: ITALIANO | AI17: S
H19: 140 | I19: X | J19: 120 | K19: cm | AH19: MADEIRA 1 | AI19: S
AH20: MADEIRA 2 | AI20: S
H21: 150 | I21: X | J21: 120 | K21: cm | AH21: MADEIRA 3 | AI21: S
AA22: =IF(AI17="S","Italiano","") -> Italiano | AH22: MADEIRA 4 | AI22: S
H23: =IF(Definições!AA122=143,"","160") -> 160 | I23: =IF(Definições!AA122=143,"","X") -> X | J23: =IF(Definições!AA122=143,"","120") -> 120 | K23: =IF(Definições!AA122=143,"","cm") -> cm
X24: 100 | Z24: cm | AH24: MADEIRA
H25: =IF(Definições!AA122=143,"","180") -> 180 | I25: =IF(Definições!AA122=143,"","X") -> X | J25: =IF(Definições!AA122=143,"","120") -> 120 | K25: =IF(Definições!AA122=143,"","cm") -> cm | AH25: M01 | AI25: =IF(AH25="M01",Definições!$T$113,"")&IF(AH25="M02",Definições!$U$113,"")&IF(AH25="M03",Definições!$V$113,"")&IF(AH25="M04",Definições!$W$113,"")&IF(AH25="M05",Definições!$T$113,"")&IF(AH25="M06",Definições!$U$113,"")&IF(AH25="M07",Definições!$V$113,"")&IF(AH25="M08",Definições!$W$113,"") -> Eucalipto
H27: =IF(Definições!AA122=143,"","200") -> 200 | I27: =IF(Definições!AA122=143,"","X") -> X | J27: =IF(Definições!AA122=143,"","120") -> 120 | K27: =IF(Definições!AA122=143,"","cm") -> cm | X27: ALTURA | AH27: CAIXILHO
AH28: C01 | AI28: =IF(AH28="C01","LISO","") & IF(AH28="C02","QUADRICULADO","") & IF(AH28="C03","ITALIANO","") -> LISO
H30: Informe a largura do marco: | AH30: ATUALIZA PREÇO
AH31: 1
H32: =AH34 -> Sobmedida: | J32: 10 | K32: cm | AA32: COMPARTILHAR
AH33: MARCO
AH34: Sobmedida:
H35: Selecione a madeira: | AA35: PERSONALIZAR ITEM MAIS INFORMAÇÕES SOBRE A REFERÊNCIA
H38: =IF(AI19="S",IF(Definições!$T$113="","",Definições!$T$113),"") -> Eucalipto | AA38: INCLUIR NO ORÇAMENTO
Q40: 120 | S40: cm
V41: VALOR DO ITEM | AA41: R$ | AB41: =AH12 -> 384.80445
Q43: LARGURA
H45: Seu item conforme suas escolhas:
H46: =AJ12 -> JANELA REF 101 SEM VENEZIANA caixilho de correr LISO - Tamanho: 120X100CM - Marco: 10CM - Madeira: Eucalipto
A47: FINAL | B47: FINAL | C47: FINAL | D47: FINAL | E47: FINAL | F47: FINAL | G47: FINAL
H50: COMPRE COM A DK ESQUADRIAS E TENHA A CERTEZA DE UM BOM NEGÓCIO - DESDE 1960 SATISFAZENDO SEUS CLIENTES
H52: =IF(Definições!$AP$6="REPRESENTANTE","Representante: " & Definições!$D$94 & " - " & IF((Orçamento!$AX$13 & Orçamento!$AX$14)<>"","Fone: " & Orçamento!$AX$13 & " - E-mail: " & Orçamento!$AX$14,"Fone: " & Definições!$D$95 & " - E-mail: " & Definições!$D$96 ) & " - Vendedor: " & Orçamento!$AX$15,"") & IF(Definições!$AP$6="REVENDEDOR SEM MARGEM DE LUCRO","Parceiro: " & Orçamento!$Y$8 & " - " & IF((Orçamento!$AX$13 & Orçamento!$AX$14)<>"","Fone: " & Orçamento!$AX$13 & " - E-mail: " & Orçamento!$AX$14,"Fone: " & Orçamento!$Y$14 & " - E-mail: " & Orçamento!$P$14 ) & " - Vendedor: " & Orçamento!$AX$15,"") & IF(Definições!$AP$6="CONSTRUTORA / INCORPORADORA","Parceiro: " & Orçamento!$Y$8 & " - " & IF((Orçamento!$AX$13 & Orçamento!$AX$14)<>"","Fone: " & Orçamento!$AX$13 & " - E-mail: " & Orçamento!$AX$14,"Fone: " & Orçamento!$Y$14 & " - E-mail: " & Orçamento!$P$14 ) & " - Vendedor: " & Orçamento!$AX$15,"") & IF(Definições!$AP$6="REVENDEDOR COM MARGEM DE LUCRO","Parceiro: " & DK!$Y$8 & " - " & IF((Orçamento!$AX$13 & Orçamento!$AX$14)<>"","Fone: " & Orçamento!$AX$13 & " - E-mail: " & Orçamento!$AX$14,"Fone: " & DK!$Y$14 & " - E-mail: " & DK!$P$14 ) & " - Vendedor: " & Orçamento!$AX$15,"") -> Representante: DK ESQUADRIAS IND E COM LTDA - Fone: (51) 3547-5002 - E-mail: vendas@dkesquadrias.net.br - Vendedor: JAQUES
H53: =" MODO " & Definições!$AP$6 -> MODO REPRESENTANTE | U53: =NOW() -> 2024-10-11T08:32:00.600 | AC53: =NOW() -> 45576.35556
H54: ='Metro Fácil JP'!$H$54:$AD$54 -> TODAS AS FOTOS ILUSTRATIVAS SÃO DE ESQUADRIAS NA MADEIRA DE EUCALIPTO. REPRESENTAM AS ESQUADRIAS PADRÃO, SEM OPCIONAIS. A QUANTIDADE DE CAIXILHOS E VENEZIANAS PODE VARIAR
H55: ='Metro Fácil JP'!$H$55:$AD$55 -> DE ACORDO COM A MEDIDA ESCOLHIDA. O CAIXILHO NA FOTO ILUSTRATIVA SEMPRE É O LISO E A VENEZIANA É A TRADICIONAL. NÃO ACOMPANHA COLOCAÇÃO, VIDROS E PINTURA.
AS57: FINAL

Sheet Metro JM
B2: DK ESQUADRIAS IND E COM LTDA | K2: =IF(Definições!$Y$17="SIM","CF","RV") -> RV | L2: MODO | O2: =Definições!AP6 -> REPRESENTANTE
E4: =Orçamento!$P$37 & ", selecione a referência:" -> JAQUES, selecione a referência:
A47: FINAL | B47: FINAL | C47: FINAL | D47: FINAL | E47: FINAL | F47: FINAL | G47: FINAL | H47: FINAL | I47: FINAL | J47: FINAL | K47: FINAL | L47: FINAL | M47: FINAL | N47: FINAL | O47: FINAL | P47: FINAL | Q47: FINAL | R47: FINAL | S47: FINAL | T47: FINAL | U47: FINAL | V47: FINAL | W47: FINAL | X47: FINAL | Y47: FINAL | Z47: FINAL | AA47: FINAL | AB47: FINAL | AC47: FINAL | AD47: FINAL

Sheet Metro Fácil JM
B2: DK ESQUADRIAS IND E COM LTDA | K2: =IF(Definições!$Y$17="SIM","CF","RV") -> RV | L2: MODO | O2: =Definições!AP6 -> REPRESENTANTE
E3: =Orçamento!$P$37 & IF(Definições!AA122=821,", selecione o tamanho, marco e madeira:",IF(Definições!AA122=822,", selecione o tamanho, marco e madeira:",IF(Definições!AA122=823,", selecione o tamanho, marco e madeira:",", selecione o tamanho, marco, madeira e modelo do caixilho:"))) -> JAQUES, selecione o tamanho, marco, madeira e modelo do caixilho:
H6: =IF(Definições!AA122=801,"MAXIAR REF " & Definições!AA122 & " sem ferro de proteção",IF(Definições!AA122="841","MAXIAR REF " & Definições!AA122 & " sem ferro de proteção",IF(Definições!AA122=851,"MAXIAR REF " & Definições!AA122 & " sem ferro de proteção",IF(Definições!AA122=821,"MAXIAR REF " & Definições!AA122 & " sem ferro de proteção",IF(Definições!AA122=802,"MAXIAR REF " & Definições!AA122 & " com ferro de proteção",IF(Definições!AA122="842","MAXIAR REF " & Definições!AA122 & " com ferro de proteção",IF(Definições!AA122=852,"MAXIAR REF " & Definições!AA122 & " com ferro de proteção",IF(Definições!AA122=803,"VITRÔ FIXO REF " & Definições!AA122 & " sem ferro de proteção",IF(Definições!AA122="843","VITRÔ FIXO REF " & Definições!AA122 & " sem ferro de proteção",IF(Definições!AA122=855,"PIVOTANTE REF " & Definições!AA122 & " sem ferro de proteção",IF(Definições!AA122=804,"VITRÔ FIXO REF " & Definições!AA122 & " com ferro de proteção",IF(Definições!AA122="844","VITRÔ FIXO REF " & Definições!AA122 & " com ferro de proteção",IF(Definições!AA122=854,"VITRÔ FIXO REF " & Definições!AA122 & " com ferro de proteção",IF(Definições!AA122=822,"PIVOTANTE REF " & Definições!AA122 & " sem ferro de proteção",IF(Definições!AA122=823,"BASCULANTE REF " & Definições!AA122 & " sem ferro de proteção","MAXIAR REF " & Definições!AA122 & " sem ferro de proteção"))))))))))))))) -> MAXIAR REF 101 sem ferro de proteção
AH7: LINHA | AI7: COLUNA | AJ7: CÉLULA | AK7: DESCRIÇÃO
H8: =AK8 -> Janela com veneziana pantográfica e caixilhos de correr, trilho de alumínio nas venezianas e nos caixilhos, todos caixilhos móveis, ferragem preta, | AH8: 15 | AI8: H | AJ8: ="$"& AI8 & "$" &AH8 -> $H$15 | AK8: Janela com veneziana pantográfica e caixilhos de correr, trilho de alumínio nas venezianas e nos caixilhos, todos caixilhos móveis, ferragem preta,
H9: =AK9 -> pino de pressão, baguete, acabamento Supreme, guarnição tradicional de 6,5cm para o lado interno. | AK9: pino de pressão, baguete, acabamento Supreme, guarnição tradicional de 6,5cm para o lado interno.
H11: =IF(Definições!AA122=851,"Selecione o tamanho padrão:",IF(Definições!AA122=852,"Selecione o tamanho padrão:",IF(Definições!AA122=855,"Selecione o tamanho padrão:",IF(Definições!AA122=821,"Selecione o tamanho padrão:",IF(Definições!AA122=822,"Selecione o tamanho padrão:",IF(Definições!AA122=823,"Selecione o tamanho padrão:","")))))) ->  | N11: =IF(Definições!AA122=821,"Disponível somente medidas padrões:",IF(Definições!AA122=822,"Disponível somente medidas padrões:",IF(Definições!AA122=823,"Disponível somente medidas padrões:","Digite o tamanho desejado abaixo:"))) -> Digite o tamanho desejado abaixo: | AA11: =IF(Definições!AA122=821,"",IF(Definições!AA122=822,"",IF(Definições!AA122=823,"","Escolha o modelo do caixilho:"))) -> Escolha o modelo do caixilho: | AH11: VALOR DO ITEM | AJ11: SEU ITEM
AJ12: =H6 & " " & AI28 & " - Tamanho: " & Q40 & "X" & X24 & "CM - Marco: " & J37 & "CM - Madeira: " & AI25 & IF(AJ13<>""," - Opcionais: " & AJ13,"") -> MAXIAR REF 101 sem ferro de proteção - Caixilho LISO - Tamanho: 30X80CM - Marco: 10CM - Madeira: Eucalipto
H13: =IF(Definições!AA122=851,"Largura",IF(Definições!AA122=852,"Largura",IF(Definições!AA122=855,"Largura",IF(Definições!AA122=821,"Largura",IF(Definições!AA122=822,"Largura",IF(Definições!AA122=823,"Largura","")))))) ->  | I13: =IF(Definições!AA122=851,"X",IF(Definições!AA122=852,"X",IF(Definições!AA122=855,"X",IF(Definições!AA122=821,"X",IF(Definições!AA122=822,"X",IF(Definições!AA122=823,"X","")))))) ->  | J13: =IF(Definições!AA122=851,"Altura",IF(Definições!AA122=852,"Altura",IF(Definições!AA122=855,"Altura",IF(Definições!AA122=821,"Altura",IF(Definições!AA122=822,"Altura",IF(Definições!AA122=823,"Altura","")))))) ->  | K13: =IF(Definições!AA122=851,"(cm)",IF(Definições!AA122=852,"(cm)",IF(Definições!AA122=855,"(cm)",IF(Definições!AA122=821,"(cm)",IF(Definições!AA122=822,"(cm)",IF(Definições!AA122=823,"(cm)","")))))) ->  | AH13: 635.0381856
AH14: CAIXILHO
H15: =IF(Definições!AA122=851,"050",IF(Definições!AA122=852,"050",IF(Definições!AA122=855,"030",IF(Definições!AA122=821,"030",IF(Definições!AA122=822,"030",IF(Definições!AA122=823,"050","")))))) ->  | I15: =IF(Definições!AA122=851,"X",IF(Definições!AA122=852,"X",IF(Definições!AA122=855,"X",IF(Definições!AA122=821,"X",IF(Definições!AA122=822,"X",IF(Definições!AA122=823,"X","")))))) ->  | J15: =IF(Definições!AA122=851,"050",IF(Definições!AA122=852,"050",IF(Definições!AA122=855,"080",IF(Definições!AA122=821,"080",IF(Definições!AA122=822,"080",IF(Definições!AA122=823,"050","")))))) ->  | K15: =IF(Definições!AA122=851,"cm",IF(Definições!AA122=852,"cm",IF(Definições!AA122=855,"cm",IF(Definições!AA122=821,"cm",IF(Definições!AA122=822,"cm",IF(Definições!AA122=823,"cm","")))))) ->  | L15: =IF(Definições!AA122=851,"um comando",IF(Definições!AA122=852,"um comando",IF(Definições!AA122=855,"",""))) ->  | AA15: =IF(AI15="S","Liso","") -> Liso | AC15: =IF(AI16="S","Quadriculado","") -> Quadriculado | AH15: LISO | AI15: S
AH16: QUADRICULADO | AI16: S
H17: =IF(Definições!AA122=851,"050",IF(Definições!AA122=852,"050",IF(Definições!AA122=855,"030",IF(Definições!AA122=821,"030",IF(Definições!AA122=822,"030",IF(Definições!AA122=823,"060","")))))) ->  | I17: =IF(Definições!AA122=851,"X",IF(Definições!AA122=852,"X",IF(Definições!AA122=855,"X",IF(Definições!AA122=821,"X",IF(Definições!AA122=822,"X",IF(Definições!AA122=823,"X","")))))) ->  | J17: =IF(Definições!AA122=851,"060",IF(Definições!AA122=852,"060",IF(Definições!AA122=855,"100",IF(Definições!AA122=821,"100",IF(Definições!AA122=822,"100",IF(Definições!AA122=823,"040","")))))) ->  | K17: =IF(Definições!AA122=851,"cm",IF(Definições!AA122=852,"cm",IF(Definições!AA122=855,"cm",IF(Definições!AA122=821,"cm",IF(Definições!AA122=822,"cm",IF(Definições!AA122=823,"cm","")))))) ->  | L17: =IF(Definições!AA122=851,"um comando",IF(Definições!AA122=852,"um comando",IF(Definições!AA122=855,"",""))) ->  | AH17: ITALIANO | AI17: N
H19: =IF(Definições!AA122=851,"060",IF(Definições!AA122=852,"060",IF(Definições!AA122=855,"030",IF(Definições!AA122=821,"030",IF(Definições!AA122=822,"030",IF(Definições!AA122=823,"060","")))))) ->  | I19: =IF(Definições!AA122=851,"X",IF(Definições!AA122=852,"X",IF(Definições!AA122=855,"X",IF(Definições!AA122=821,"X",IF(Definições!AA122=822,"X",IF(Definições!AA122=823,"X","")))))) ->  | J19: =IF(Definições!AA122=851,"060",IF(Definições!AA122=852,"060",IF(Definições!AA122=855,"120",IF(Definições!AA122=821,"120",IF(Definições!AA122=822,"120",IF(Definições!AA122=823,"060","")))))) ->  | K19: =IF(Definições!AA122=851,"cm",IF(Definições!AA122=852,"cm",IF(Definições!AA122=855,"cm",IF(Definições!AA122=821,"cm",IF(Definições!AA122=822,"cm",IF(Definições!AA122=823,"cm","")))))) ->  | L19: =IF(Definições!AA122=851,"um comando",IF(Definições!AA122=852,"um comando",IF(Definições!AA122=855,"",""))) ->  | AH19: MADEIRA 1 | AI19: S
AH20: MADEIRA 2 | AI20: N
H21: =IF(Definições!AA122=851,"080",IF(Definições!AA122=852,"080",IF(Definições!AA122=855,"040",IF(Definições!AA122=821,"050",IF(Definições!AA122=823,"080",""))))) ->  | I21: =IF(Definições!AA122=851,"X",IF(Definições!AA122=852,"X",IF(Definições!AA122=855,"X",IF(Definições!AA122=821,"X",IF(Definições!AA122=823,"X",""))))) ->  | J21: =IF(Definições!AA122=851,"060",IF(Definições!AA122=852,"060",IF(Definições!AA122=855,"080",IF(Definições!AA122=821,"050",IF(Definições!AA122=823,"060",""))))) ->  | K21: =IF(Definições!AA122=851,"cm",IF(Definições!AA122=852,"cm",IF(Definições!AA122=855,"cm",IF(Definições!AA122=821,"cm",IF(Definições!AA122=823,"cm",""))))) ->  | L21: =IF(Definições!AA122=851,"um comando",IF(Definições!AA122=852,"um comando",IF(Definições!AA122=855,"",""))) ->  | AH21: MADEIRA 3 | AI21: N
AA22: =IF(AI17="S","Italiano","") ->  | AH22: MADEIRA 4 | AI22: N
H23: =IF(Definições!AA122=851,"080",IF(Definições!AA122=852,"080",IF(Definições!AA122=855,"040",IF(Definições!AA122=821,"060","")))) ->  | I23: =IF(Definições!AA122=851,"X",IF(Definições!AA122=852,"X",IF(Definições!AA122=855,"X",IF(Definições!AA122=821,"X","")))) ->  | J23: =IF(Definições!AA122=851,"080",IF(Definições!AA122=852,"080",IF(Definições!AA122=855,"100",IF(Definições!AA122=821,"040","")))) ->  | K23: =IF(Definições!AA122=851,"cm",IF(Definições!AA122=852,"cm",IF(Definições!AA122=855,"cm",IF(Definições!AA122=821,"cm","")))) ->  | L23: =IF(Definições!AA122=851,"um comando",IF(Definições!AA122=852,"um comando",IF(Definições!AA122=855,"",""))) -> 
X24: 80 | Z24: cm | AH24: MADEIRA
H25: =IF(Definições!AA122=851,"100",IF(Definições!AA122=852,"100",IF(Definições!AA122=855,"040",IF(Definições!AA122=821,"060","")))) ->  | I25: =IF(Definições!AA122=851,"X",IF(Definições!AA122=852,"X",IF(Definições!AA122=855,"X",IF(Definições!AA122=821,"X","")))) ->  | J25: =IF(Definições!AA122=851,"100",IF(Definições!AA122=852,"100",IF(Definições!AA122=855,"120",IF(Definições!AA122=821,"060","")))) ->  | K25: =IF(Definições!AA122=851,"cm",IF(Definições!AA122=852,"cm",IF(Definições!AA122=855,"cm",IF(Definições!AA122=821,"cm","")))) ->  | L25: =IF(Definições!AA122=851,"dois comandos e inf fixo",IF(Definições!AA122=852,"dois comandos e inf fixo",IF(Definições!AA122=855,"",""))) ->  | AH25: M01 | AI25: =IF(AH25="M01",Definições!$T$113,"")&IF(AH25="M02",Definições!$U$113,"")&IF(AH25="M03",Definições!$V$113,"")&IF(AH25="M04",Definições!$W$113,"")&IF(AH25="M05",Definições!$T$113,"")&IF(AH25="M06",Definições!$U$113,"")&IF(AH25="M07",Definições!$V$113,"")&IF(AH25="M08",Definições!$W$113,"") -> Eucalipto
H27: =IF(Definições!AA122=851,"120",IF(Definições!AA122=852,"120",IF(Definições!AA122=855,"050",""))) ->  | I27: =IF(Definições!AA122=851,"X",IF(Definições!AA122=852,"X",IF(Definições!AA122=855,"X",""))) ->  | J27: =IF(Definições!AA122=851,"100",IF(Definições!AA122=852,"100",IF(Definições!AA122=855,"100",""))) ->  | K27: =IF(Definições!AA122=851,"cm",IF(Definições!AA122=852,"cm",IF(Definições!AA122=855,"cm",""))) ->  | L27: =IF(Definições!AA122=851,"dois comandos e inf fixo",IF(Definições!AA122=852,"dois comandos e inf fixo",IF(Definições!AA122=855,"",""))) ->  | X27: ALTURA | AH27: CAIXILHO
AH28: C01 | AI28: =IF(AH28="C01"," - Caixilho LISO","") & IF(AH28="C02"," - Caixilho QUADRICULADO","") & IF(AH28="C03"," - Caixilho ITALIANO","") -> - Caixilho LISO
H29: =IF(Definições!AA122=851,"100",IF(Definições!AA122=852,"100",IF(Definições!AA122=855,"050",""))) ->  | I29: =IF(Definições!AA122=851,"X",IF(Definições!AA122=852,"X",IF(Definições!AA122=855,"X",""))) ->  | J29: =IF(Definições!AA122=851,"120",IF(Definições!AA122=852,"120",IF(Definições!AA122=855,"120",""))) ->  | K29: =IF(Definições!AA122=851,"cm",IF(Definições!AA122=852,"cm",IF(Definições!AA122=855,"cm",""))) ->  | L29: =IF(Definições!AA122=851,"dois comandos e inf fixo",IF(Definições!AA122=852,"dois comandos e inf fixo",IF(Definições!AA122=855,"",""))) -> 
AH30: ATUALIZA PREÇO
H31: =IF(Definições!AA122=851,"100",IF(Definições!AA122=852,"100",IF(Definições!AA122=855,"",""))) ->  | I31: =IF(Definições!AA122=851,"X",IF(Definições!AA122=852,"X",IF(Definições!AA122=855,"",""))) ->  | J31: =IF(Definições!AA122=851,"050",IF(Definições!AA122=852,"050",IF(Definições!AA122=855,"",""))) ->  | K31: =IF(Definições!AA122=851,"cm",IF(Definições!AA122=852,"cm",IF(Definições!AA122=855,"",""))) ->  | L31: =IF(Definições!AA122=851,"dois comandos",IF(Definições!AA122=852,"dois comandos",IF(Definições!AA122=855,"",""))) ->  | AH31: 1
AA32: COMPARTILHAR
H33: =IF(Definições!AA122=851,"120",IF(Definições!AA122=852,"120",IF(Definições!AA122=855,"",""))) ->  | I33: =IF(Definições!AA122=851,"X",IF(Definições!AA122=852,"X",IF(Definições!AA122=855,"",""))) ->  | J33: =IF(Definições!AA122=851,"060",IF(Definições!AA122=852,"060",IF(Definições!AA122=855,"",""))) ->  | K33: =IF(Definições!AA122=851,"cm",IF(Definições!AA122=852,"cm",IF(Definições!AA122=855,"",""))) ->  | L33: =IF(Definições!AA122=851,"dois comandos",IF(Definições!AA122=852,"dois comandos",IF(Definições!AA122=855,"",""))) ->  | AH33: MARCO
AH34: Padrão:
H35: Informe a largura do marco: | AA35: PERSONALIZAR ITEM MAIS INFORMAÇÕES SOBRE A REFERÊNCIA
AH36: BLOQUEIA ALTERAÇÃO MEDIDAS
H37: =AH34 -> Padrão: | J37: 10 | K37: cm | AH37: =IF(Definições!AA122=821,1,0)+IF(Definições!AA122=822,1,0)+IF(Definições!AA122=823,1,0) -> 0
AA38: INCLUIR NO ORÇAMENTO
AH39: SEGUNDA COLUNA
H40: Selecione a madeira: | Q40: 30 | S40: cm | AH40: FALSE
V41: VALOR DO ITEM | AA41: R$ | AB41: =AH12 -> 0
H42: =IF(AI19="S",IF(Definições!$T$113="","",Definições!$T$113),"") -> Eucalipto
Q43: LARGURA
H45: Seu item conforme suas escolhas:
H46: =AJ12 -> MAXIAR REF 101 sem ferro de proteção - Caixilho LISO - Tamanho: 30X80CM - Marco: 10CM - Madeira: Eucalipto
A47: FINAL | B47: FINAL | C47: FINAL | D47: FINAL | E47: FINAL | F47: FINAL | G47: FINAL
H50: COMPRE COM A DK ESQUADRIAS E TENHA A CERTEZA DE UM BOM NEGÓCIO - DESDE 1960 SATISFAZENDO SEUS CLIENTES
H52: =IF(Definições!$AP$6="REPRESENTANTE","Representante: " & Definições!$D$94 & " - " & IF((Orçamento!$AX$13 & Orçamento!$AX$14)<>"","Fone: " & Orçamento!$AX$13 & " - E-mail: " & Orçamento!$AX$14,"Fone: " & Definições!$D$95 & " - E-mail: " & Definições!$D$96 ) & " - Vendedor: " & Orçamento!$AX$15,"") & IF(Definições!$AP$6="REVENDEDOR SEM MARGEM DE LUCRO","Parceiro: " & Orçamento!$Y$8 & " - " & IF((Orçamento!$AX$13 & Orçamento!$AX$14)<>"","Fone: " & Orçamento!$AX$13 & " - E-mail: " & Orçamento!$AX$14,"Fone: " & Orçamento!$Y$14 & " - E-mail: " & Orçamento!$P$14 ) & " - Vendedor: " & Orçamento!$AX$15,"") & IF(Definições!$AP$6="CONSTRUTORA / INCORPORADORA","Parceiro: " & Orçamento!$Y$8 & " - " & IF((Orçamento!$AX$13 & Orçamento!$AX$14)<>"","Fone: " & Orçamento!$AX$13 & " - E-mail: " & Orçamento!$AX$14,"Fone: " & Orçamento!$Y$14 & " - E-mail: " & Orçamento!$P$14 ) & " - Vendedor: " & Orçamento!$AX$15,"") & IF(Definições!$AP$6="REVENDEDOR COM MARGEM DE LUCRO","Parceiro: " & DK!$Y$8 & " - " & IF((Orçamento!$AX$13 & Orçamento!$AX$14)<>"","Fone: " & Orçamento!$AX$13 & " - E-mail: " & Orçamento!$AX$14,"Fone: " & DK!$Y$14 & " - E-mail: " & DK!$P$14 ) & " - Vendedor: " & Orçamento!$AX$15,"") -> Representante: DK ESQUADRIAS IND E COM LTDA - Fone: (51) 3547-5002 - E-mail: vendas@dkesquadrias.net.br - Vendedor: JAQUES
H53: =" MODO " & Definições!$AP$6 -> MODO REPRESENTANTE | U53: =NOW() -> 2024-10-11T08:32:00.600 | AC53: =NOW() -> 45576.35556
H54: ='Metro Fácil JP'!$H$54:$AD$54 -> TODAS AS FOTOS ILUSTRATIVAS SÃO DE ESQUADRIAS NA MADEIRA DE EUCALIPTO. REPRESENTAM AS ESQUADRIAS PADRÃO, SEM OPCIONAIS. A QUANTIDADE DE CAIXILHOS E VENEZIANAS PODE VARIAR
H55: ='Metro Fácil JP'!$H$55:$AD$55 -> DE ACORDO COM A MEDIDA ESCOLHIDA. O CAIXILHO NA FOTO ILUSTRATIVA SEMPRE É O LISO E A VENEZIANA É A TRADICIONAL. NÃO ACOMPANHA COLOCAÇÃO, VIDROS E PINTURA.
AS57: FINAL

Sheet Metro PAAB
B2: DK ESQUADRIAS IND E COM LTDA | K2: =IF(Definições!$Y$17="SIM","CF","RV") -> RV | L2: MODO | O2: =Definições!AP6 -> REPRESENTANTE
E4: =Orçamento!$P$37 & ", escolha a referência desejada:" -> JAQUES, escolha a referência desejada:
A47: FINAL | B47: FINAL | C47: FINAL | D47: FINAL | E47: FINAL | F47: FINAL | G47: FINAL | H47: FINAL | I47: FINAL | J47: FINAL | K47: FINAL | L47: FINAL | M47: FINAL | N47: FINAL | O47: FINAL | P47: FINAL | Q47: FINAL | R47: FINAL | S47: FINAL | T47: FINAL | U47: FINAL | V47: FINAL | W47: FINAL | X47: FINAL | Y47: FINAL | Z47: FINAL | AA47: FINAL | AB47: FINAL | AC47: FINAL | AD47: FINAL | AE47: FINAL | AF47: FINAL | AG47: FINAL | AH47: FINAL

Sheet Metro Fácil PAAB
B2: DK ESQUADRIAS IND E COM LTDA | K2: =IF(Definições!$Y$17="SIM","CF","RV") -> RV | L2: MODO | O2: =Definições!AP6 -> REPRESENTANTE
E3: =Orçamento!$P$37 & ", selecione o tamanho, marco e madeira:" -> JAQUES, selecione o tamanho, marco e madeira:
H6: =IF(Definições!AA122="571","PORTA DE ABRIR REF " & Definições!AA122 & " ALMOFADA BAIXA FRISADA",IF(Definições!AA122="572","PORTA DE ABRIR REF " & Definições!AA122 & " ALMOFADA BAIXA FRISADA","PORTA DE ABRIR REF " & Definições!AA122 & " ALMOFADA BAIXA")) -> PORTA DE ABRIR REF 101 ALMOFADA BAIXA
AH7: LINHA | AI7: COLUNA | AJ7: CÉLULA | AK7: DESCRIÇÃO
H8: =AK8 -> Janela com veneziana pantográfica e caixilhos de correr, trilho de alumínio nas venezianas e nos caixilhos, todos caixilhos móveis, ferragem preta, | AH8: 22 | AI8: F | AJ8: ="$"& AI8 & "$" &AH8 -> $F$22 | AK8: Janela com veneziana pantográfica e caixilhos de correr, trilho de alumínio nas venezianas e nos caixilhos, todos caixilhos móveis, ferragem preta,
H9: =AK9 -> pino de pressão, baguete, acabamento Supreme, guarnição tradicional de 6,5cm para o lado interno. | AK9: pino de pressão, baguete, acabamento Supreme, guarnição tradicional de 6,5cm para o lado interno.
H11: Selecione o tamanho padrão: | N11: Para tamanho sobmedida digite abaixo: | AA11: Selecione a madeira: | AH11: VALOR DO ITEM | AJ11: SEU ITEM
AH12: 615.7044104 | AJ12: =H6 & " - " & AH37 & " - Tamanho: " & Q40 & "X" & X24 & "CM - Marco: " &J39 & "CM - Madeira: " & AI25 & IF(AJ13<>""," - Opcionais: " & AJ13,"") -> PORTA DE ABRIR REF 101 ALMOFADA BAIXA - S/VITRO - Tamanho: 85X213CM - Marco: 9CM - Madeira: Eucalipto
H13: Largura | I13: X | J13: Altura | K13: (cm) | AA13: =IF(AI19="S",IF(Definições!$T$113="","",Definições!$T$113),"") -> Eucalipto | AH13: 312.9178361
H15: 065 | I15: X | J15: 213 | K15: cm s/vitro
AA16: =IF(AI20="S",IF(Definições!$U$113="","",Definições!$U$113),"") -> 
H17: 070 | I17: X | J17: 213 | K17: cm s/vitro
H19: 075 | I19: X | J19: 213 | K19: cm s/vitro | AA19: =IF(AI21="S",IF(Definições!$V$113="","",Definições!$V$113),"") ->  | AH19: MADEIRA 1 | AI19: S
AH20: MADEIRA 2 | AI20: N
H21: 080 | I21: X | J21: 213 | K21: cm s/vitro | AH21: MADEIRA 3 | AI21: N
AA22: =IF(AI22="S",IF(Definições!$W$113="","",Definições!$W$113),"") ->  | AH22: MADEIRA 4 | AI22: N
H23: 085 | I23: X | J23: 213 | K23: cm s/vitro
X24: 213 | Z24: cm | AH24: MADEIRA
H25: 090 | I25: X | J25: 213 | K25: cm s/vitro | AH25: M01 | AI25: =IF(AH25="M01",Definições!$T$113,"")&IF(AH25="M02",Definições!$U$113,"")&IF(AH25="M03",Definições!$V$113,"")&IF(AH25="M04",Definições!$W$113,"")&IF(AH25="M05",Definições!$T$113,"")&IF(AH25="M06",Definições!$U$113,"")&IF(AH25="M07",Definições!$V$113,"")&IF(AH25="M08",Definições!$W$113,"") -> Eucalipto
H27: 095 | I27: X | J27: 213 | K27: cm s/vitro | X27: ALTURA | AH27: PUXADOR | AI27: PULA PERGUNTA
AH28: Sem PUXADOR
H29: 115 | I29: X | J29: 213 | K29: cm c/1 vitro
AH30: ATUALIZA PREÇO
H31: 140 | I31: X | J31: 213 | K31: cm c/2 vitro | AH31: 1
AA32: COMPARTILHAR
H33: 150 | I33: X | J33: 213 | K33: cm c/2 vitro | AH33: MARCO
AH34: Padrão:
AA35: PERSONALIZAR ITEM MAIS INFORMAÇÕES SOBRE A REFERÊNCIA
AH36: VITRO
H37: Informe a largura do marco: | AH37: S/VITRO
AA38: INCLUIR NO ORÇAMENTO
H39: =AH34 -> Padrão: | J39: 9 | K39: cm
Q40: 85 | S40: cm
V41: VALOR DO ITEM | AA41: R$ | AB41: =AH12 -> 615.7044104
Q43: LARGURA
H45: Seu item conforme suas escolhas:
H46: =AJ12 -> PORTA DE ABRIR REF 101 ALMOFADA BAIXA - S/VITRO - Tamanho: 85X213CM - Marco: 9CM - Madeira: Eucalipto
A47: FINAL | B47: FINAL | C47: FINAL | D47: FINAL | E47: FINAL | F47: FINAL | G47: FINAL
H50: COMPRE COM A DK ESQUADRIAS E TENHA A CERTEZA DE UM BOM NEGÓCIO - DESDE 1960 SATISFAZENDO SEUS CLIENTES
H52: =IF(Definições!$AP$6="REPRESENTANTE","Representante: " & Definições!$D$94 & " - " & IF((Orçamento!$AX$13 & Orçamento!$AX$14)<>"","Fone: " & Orçamento!$AX$13 & " - E-mail: " & Orçamento!$AX$14,"Fone: " & Definições!$D$95 & " - E-mail: " & Definições!$D$96 ) & " - Vendedor: " & Orçamento!$AX$15,"") & IF(Definições!$AP$6="REVENDEDOR SEM MARGEM DE LUCRO","Parceiro: " & Orçamento!$Y$8 & " - " & IF((Orçamento!$AX$13 & Orçamento!$AX$14)<>"","Fone: " & Orçamento!$AX$13 & " - E-mail: " & Orçamento!$AX$14,"Fone: " & Orçamento!$Y$14 & " - E-mail: " & Orçamento!$P$14 ) & " - Vendedor: " & Orçamento!$AX$15,"") & IF(Definições!$AP$6="CONSTRUTORA / INCORPORADORA","Parceiro: " & Orçamento!$Y$8 & " - " & IF((Orçamento!$AX$13 & Orçamento!$AX$14)<>"","Fone: " & Orçamento!$AX$13 & " - E-mail: " & Orçamento!$AX$14,"Fone: " & Orçamento!$Y$14 & " - E-mail: " & Orçamento!$P$14 ) & " - Vendedor: " & Orçamento!$AX$15,"") & IF(Definições!$AP$6="REVENDEDOR COM MARGEM DE LUCRO","Parceiro: " & DK!$Y$8 & " - " & IF((Orçamento!$AX$13 & Orçamento!$AX$14)<>"","Fone: " & Orçamento!$AX$13 & " - E-mail: " & Orçamento!$AX$14,"Fone: " & DK!$Y$14 & " - E-mail: " & DK!$P$14 ) & " - Vendedor: " & Orçamento!$AX$15,"") -> Representante: DK ESQUADRIAS IND E COM LTDA - Fone: (51) 3547-5002 - E-mail: vendas@dkesquadrias.net.br - Vendedor: JAQUES
H53: =" MODO " & Definições!$AP$6 -> MODO REPRESENTANTE | U53: =NOW() -> 2024-10-11T08:32:00.600 | AC53: =NOW() -> 45576.35556
H54: ='Metro Fácil JP'!$H$54:$AD$54 -> TODAS AS FOTOS ILUSTRATIVAS SÃO DE ESQUADRIAS NA MADEIRA DE EUCALIPTO. REPRESENTAM AS ESQUADRIAS PADRÃO, SEM OPCIONAIS. A QUANTIDADE DE CAIXILHOS E VENEZIANAS PODE VARIAR
H55: ='Metro Fácil JP'!$H$55:$AD$55 -> DE ACORDO COM A MEDIDA ESCOLHIDA. O CAIXILHO NA FOTO ILUSTRATIVA SEMPRE É O LISO E A VENEZIANA É A TRADICIONAL. NÃO ACOMPANHA COLOCAÇÃO, VIDROS E PINTURA.
AS57: FINAL

Sheet Metro PAA
B2: DK ESQUADRIAS IND E COM LTDA | K2: =IF(Definições!$Y$17="SIM","CF","RV") -> RV | L2: MODO | O2: =Definições!AP6 -> REPRESENTANTE
E4: =Orçamento!$P$37 & ", escolha a referência desejada:" -> JAQUES, escolha a referência desejada:
A47: FINAL | B47: FINAL | C47: FINAL | D47: FINAL | E47: FINAL | F47: FINAL | G47: FINAL | H47: FINAL | I47: FINAL | J47: FINAL | K47: FINAL | L47: FINAL | M47: FINAL | N47: FINAL | O47: FINAL | P47: FINAL | Q47: FINAL | R47: FINAL | S47: FINAL | T47: FINAL | U47: FINAL | V47: FINAL | W47: FINAL | X47: FINAL | Y47: FINAL | Z47: FINAL | AA47: FINAL | AB47: FINAL | AC47: FINAL | AD47: FINAL | AE47: FINAL | AF47: FINAL | AG47: FINAL

Sheet Metro Fácil PAA
B2: DK ESQUADRIAS IND E COM LTDA | K2: =IF(Definições!$Y$17="SIM","CF","RV") -> RV | L2: MODO | O2: =Definições!AP6 -> REPRESENTANTE
E3: =Orçamento!$P$37 & ", selecione o tamanho, marco e madeira:" -> JAQUES, selecione o tamanho, marco e madeira:
H6: =IF(Definições!AA122="440","PORTA DE ABRIR REF " & Definições!AA122 & " ALMOFADÃO",IF(Definições!AA122="441","PORTA DE ABRIR REF " & Definições!AA122 & " ALMOFADÃO",IF(Definições!AA122="442","PORTA DE ABRIR REF " & Definições!AA122 & " ALMOFADÃO",IF(Definições!AA122="443","PORTA DE ABRIR REF " & Definições!AA122 & " ALMOFADÃO",IF(Definições!AA122="444","PORTA DE ABRIR REF " & Definições!AA122 & " ALMOFADÃO",IF(Definições!AA122="460","PORTA DE ABRIR REF " & Definições!AA122 & " ALMOFADÃO",IF(Definições!AA122="461","PORTA DE ABRIR REF " & Definições!AA122 & " ALMOFADÃO",IF(Definições!AA122="462","PORTA DE ABRIR REF " & Definições!AA122 & " ALMOFADÃO","PORTA DE ABRIR REF " & Definições!AA122 & " ALMOFADÃO FRISADA")))))))) -> PORTA DE ABRIR REF 101 ALMOFADÃO FRISADA
AH7: LINHA | AI7: COLUNA | AJ7: CÉLULA | AK7: DESCRIÇÃO
H8: =AK8 -> Janela com veneziana pantográfica e caixilhos de correr, trilho de alumínio nas venezianas e nos caixilhos, todos caixilhos móveis, ferragem preta, | AH8: 18 | AI8: F | AJ8: ="$"& AI8 & "$" &AH8 -> $F$18 | AK8: Janela com veneziana pantográfica e caixilhos de correr, trilho de alumínio nas venezianas e nos caixilhos, todos caixilhos móveis, ferragem preta,
H9: =AK9 -> pino de pressão, baguete, acabamento Supreme, guarnição tradicional de 6,5cm para o lado interno. | AK9: pino de pressão, baguete, acabamento Supreme, guarnição tradicional de 6,5cm para o lado interno.
H11: Selecione o tamanho padrão: | N11: Para tamanho sobmedida digite abaixo: | AA11: Selecione a madeira: | AH11: VALOR DO ITEM | AJ11: SEU ITEM
AH12: 1205.498318 | AJ12: =H6 & " - " & AH37 & " - Tamanho: " & Q40 & "X" & X24 & "CM - Marco: " &J39 & "CM - Madeira: " & AI25 & IF(AJ13<>""," - Opcionais: " & AJ13,"") -> PORTA DE ABRIR REF 101 ALMOFADÃO FRISADA - S/VITRO - Tamanho: 85X213CM - Marco: 9CM - Madeira: Eucalipto
H13: Largura | I13: X | J13: Altura | K13: (cm) | AA13: =IF(AI19="S",IF(Definições!$T$113="","",Definições!$T$113),"") -> Eucalipto | AH13: 1055.706069
H15: 085 | I15: X | J15: 213 | K15: cm s/vitro
H17: 090 | I17: X | J17: 213 | K17: cm s/vitro
H19: 095 | I19: X | J19: 213 | K19: cm s/vitro | AH19: MADEIRA 1 | AI19: S
AH20: MADEIRA 2 | AI20: S
H21: 120 | I21: X | J21: 213 | K21: cm c/1 vitro | AH21: MADEIRA 3 | AI21: S
AH22: MADEIRA 4 | AI22: S
H23: 150 | I23: X | J23: 213 | K23: cm c/2 vitro
X24: 213 | Z24: cm | AH24: MADEIRA
AH25: M01 | AI25: =IF(AH25="M01",Definições!$T$113,"")&IF(AH25="M02",Definições!$U$113,"")&IF(AH25="M03",Definições!$V$113,"")&IF(AH25="M04",Definições!$W$113,"")&IF(AH25="M05",Definições!$T$113,"")&IF(AH25="M06",Definições!$U$113,"")&IF(AH25="M07",Definições!$V$113,"")&IF(AH25="M08",Definições!$W$113,"") -> Eucalipto
X27: ALTURA | AH27: PUXADOR | AI27: PULA PERGUNTA
AH28: Sem PUXADOR
AH30: ATUALIZA PREÇO
AH31: 1
AA32: COMPARTILHAR
AH33: MARCO
AH34: Padrão:
AA35: PERSONALIZAR ITEM MAIS INFORMAÇÕES SOBRE A REFERÊNCIA
AH36: VITRO
H37: Informe a largura do marco: | AH37: S/VITRO
AA38: INCLUIR NO ORÇAMENTO
H39: =AH34 -> Padrão: | J39: 9 | K39: cm
Q40: 85 | S40: cm
V41: VALOR DO ITEM | AA41: R$ | AB41: =AH12 -> 1205.498318
Q43: LARGURA
H45: Seu item conforme suas escolhas:
H46: =AJ12 -> PORTA DE ABRIR REF 101 ALMOFADÃO FRISADA - S/VITRO - Tamanho: 85X213CM - Marco: 9CM - Madeira: Eucalipto
A47: FINAL | B47: FINAL | C47: FINAL | D47: FINAL | E47: FINAL | F47: FINAL | G47: FINAL
H50: COMPRE COM A DK ESQUADRIAS E TENHA A CERTEZA DE UM BOM NEGÓCIO - DESDE 1960 SATISFAZENDO SEUS CLIENTES
H52: =IF(Definições!$AP$6="REPRESENTANTE","Representante: " & Definições!$D$94 & " - " & IF((Orçamento!$AX$13 & Orçamento!$AX$14)<>"","Fone: " & Orçamento!$AX$13 & " - E-mail: " & Orçamento!$AX$14,"Fone: " & Definições!$D$95 & " - E-mail: " & Definições!$D$96 ) & " - Vendedor: " & Orçamento!$AX$15,"") & IF(Definições!$AP$6="REVENDEDOR SEM MARGEM DE LUCRO","Parceiro: " & Orçamento!$Y$8 & " - " & IF((Orçamento!$AX$13 & Orçamento!$AX$14)<>"","Fone: " & Orçamento!$AX$13 & " - E-mail: " & Orçamento!$AX$14,"Fone: " & Orçamento!$Y$14 & " - E-mail: " & Orçamento!$P$14 ) & " - Vendedor: " & Orçamento!$AX$15,"") & IF(Definições!$AP$6="CONSTRUTORA / INCORPORADORA","Parceiro: " & Orçamento!$Y$8 & " - " & IF((Orçamento!$AX$13 & Orçamento!$AX$14)<>"","Fone: " & Orçamento!$AX$13 & " - E-mail: " & Orçamento!$AX$14,"Fone: " & Orçamento!$Y$14 & " - E-mail: " & Orçamento!$P$14 ) & " - Vendedor: " & Orçamento!$AX$15,"") & IF(Definições!$AP$6="REVENDEDOR COM MARGEM DE LUCRO","Parceiro: " & DK!$Y$8 & " - " & IF((Orçamento!$AX$13 & Orçamento!$AX$14)<>"","Fone: " & Orçamento!$AX$13 & " - E-mail: " & Orçamento!$AX$14,"Fone: " & DK!$Y$14 & " - E-mail: " & DK!$P$14 ) & " - Vendedor: " & Orçamento!$AX$15,"") -> Representante: DK ESQUADRIAS IND E COM LTDA - Fone: (51) 3547-5002 - E-mail: vendas@dkesquadrias.net.br - Vendedor: JAQUES
H53: =" MODO " & Definições!$AP$6 -> MODO REPRESENTANTE | U53: =NOW() -> 2024-10-11T08:32:00.600 | AC53: =NOW() -> 45576.35556
H54: ='Metro Fácil JP'!$H$54:$AD$54 -> TODAS AS FOTOS ILUSTRATIVAS SÃO DE ESQUADRIAS NA MADEIRA DE EUCALIPTO. REPRESENTAM AS ESQUADRIAS PADRÃO, SEM OPCIONAIS. A QUANTIDADE DE CAIXILHOS E VENEZIANAS PODE VARIAR
H55: ='Metro Fácil JP'!$H$55:$AD$55 -> DE ACORDO COM A MEDIDA ESCOLHIDA. O CAIXILHO NA FOTO ILUSTRATIVA SEMPRE É O LISO E A VENEZIANA É A TRADICIONAL. NÃO ACOMPANHA COLOCAÇÃO, VIDROS E PINTURA.
AS57: FINAL

Sheet Metro PAAA
B2: DK ESQUADRIAS IND E COM LTDA | K2: =IF(Definições!$Y$17="SIM","CF","RV") -> RV | L2: MODO | O2: =Definições!AP6 -> REPRESENTANTE
E4: =Orçamento!$P$37 & ", escolha a referência desejada:" -> JAQUES, escolha a referência desejada:
A47: FINAL | B47: FINAL | C47: FINAL | D47: FINAL | E47: FINAL | F47: FINAL | G47: FINAL | H47: FINAL | I47: FINAL | J47: FINAL | K47: FINAL | L47: FINAL | M47: FINAL | N47: FINAL | O47: FINAL | P47: FINAL | Q47: FINAL | R47: FINAL | S47: FINAL | T47: FINAL | U47: FINAL | V47: FINAL | W47: FINAL | X47: FINAL | Y47: FINAL | Z47: FINAL | AA47: FINAL | AB47: FINAL | AC47: FINAL | AD47: FINAL

Sheet Metro Fácil PAAA
B2: DK ESQUADRIAS IND E COM LTDA | K2: =IF(Definições!$Y$17="SIM","CF","RV") -> RV | L2: MODO | O2: =Definições!AP6 -> REPRESENTANTE
E3: =Orçamento!$P$37 & ", selecione o tamanho, marco e madeira:" -> JAQUES, selecione o tamanho, marco e madeira:
H6: =IF(Definições!AA122=371,"PORTA DE ABRIR REF " & Definições!AA122 & " ALMOFADA ALTA FRISADA",IF(Definições!AA122=372,"PORTA DE ABRIR REF " & Definições!AA122 & " ALMOFADA ALTA FRISADA","PORTA DE ABRIR REF " & Definições!AA122 & " ALMOFADA ALTA")) -> PORTA DE ABRIR REF 101 ALMOFADA ALTA
AH7: LINHA | AI7: COLUNA | AJ7: CÉLULA | AK7: DESCRIÇÃO
H8: =AK8 -> Janela com veneziana pantográfica e caixilhos de correr, trilho de alumínio nas venezianas e nos caixilhos, todos caixilhos móveis, ferragem preta, | AH8: 18 | AI8: F | AJ8: ="$"& AI8 & "$" &AH8 -> $F$18 | AK8: Janela com veneziana pantográfica e caixilhos de correr, trilho de alumínio nas venezianas e nos caixilhos, todos caixilhos móveis, ferragem preta,
H9: =AK9 -> pino de pressão, baguete, acabamento Supreme, guarnição tradicional de 6,5cm para o lado interno. | AK9: pino de pressão, baguete, acabamento Supreme, guarnição tradicional de 6,5cm para o lado interno.
H11: Selecione o tamanho padrão: | N11: Para tamanho sobmedida digite abaixo: | AA11: Selecione a madeira: | AH11: VALOR DO ITEM | AJ11: SEU ITEM
AH12: 706.9345656 | AJ12: =H6 & " - " & AH37 & " - Tamanho: " & Q40 & "X" & X24 & "CM - Marco: " &J39 & "CM - Madeira: " & AI25 & IF(AJ13<>""," - Opcionais: " & AJ13,"") -> PORTA DE ABRIR REF 101 ALMOFADA ALTA - S/VITRO - Tamanho: 85X213CM - Marco: 9CM - Madeira: Eucalipto
H13: Largura | I13: X | J13: Altura | K13: (cm) | AA13: =IF(AI19="S",IF(Definições!$T$113="","",Definições!$T$113),"") -> Eucalipto | AH13: 653.074789
H15: 085 | I15: X | J15: 213 | K15: cm s/vitro
AA16: =IF(AI20="S",IF(Definições!$U$113="","",Definições!$U$113),"") -> 
H17: 090 | I17: X | J17: 213 | K17: cm s/vitro
H19: 095 | I19: X | J19: 213 | K19: cm s/vitro | AA19: =IF(AI21="S",IF(Definições!$V$113="","",Definições!$V$113),"") ->  | AH19: MADEIRA 1 | AI19: S
AH20: MADEIRA 2 | AI20: N
H21: 120 | I21: X | J21: 213 | K21: cm c/1 vitro | AH21: MADEIRA 3 | AI21: N
AA22: =IF(AI22="S",IF(Definições!$W$113="","",Definições!$W$113),"") ->  | AH22: MADEIRA 4 | AI22: N
H23: 150 | I23: X | J23: 213 | K23: cm c/2 vitro
X24: 213 | Z24: cm | AH24: MADEIRA
AH25: M01 | AI25: =IF(AH25="M01",Definições!$T$113,"")&IF(AH25="M02",Definições!$U$113,"")&IF(AH25="M03",Definições!$V$113,"")&IF(AH25="M04",Definições!$W$113,"")&IF(AH25="M05",Definições!$T$113,"")&IF(AH25="M06",Definições!$U$113,"")&IF(AH25="M07",Definições!$V$113,"")&IF(AH25="M08",Definições!$W$113,"") -> Eucalipto
X27: ALTURA | AH27: PUXADOR | AI27: PULA PERGUNTA
AH28: Sem PUXADOR
AH30: ATUALIZA PREÇO
AH31: 1
AA32: COMPARTILHAR
AH33: MARCO
AH34: Padrão:
AA35: PERSONALIZAR ITEM MAIS INFORMAÇÕES SOBRE A REFERÊNCIA
AH36: VITRO
H37: Informe a largura do marco: | AH37: S/VITRO
AA38: INCLUIR NO ORÇAMENTO
H39: =AH34 -> Padrão: | J39: 9 | K39: cm
Q40: 85 | S40: cm
V41: VALOR DO ITEM | AA41: R$ | AB41: =AH12 -> 706.9345656
Q43: LARGURA
H45: Seu item conforme suas escolhas:
H46: =AJ12 -> PORTA DE ABRIR REF 101 ALMOFADA ALTA - S/VITRO - Tamanho: 85X213CM - Marco: 9CM - Madeira: Eucalipto
A47: FINAL | B47: FINAL | C47: FINAL | D47: FINAL | E47: FINAL | F47: FINAL | G47: FINAL
H50: COMPRE COM A DK ESQUADRIAS E TENHA A CERTEZA DE UM BOM NEGÓCIO - DESDE 1960 SATISFAZENDO SEUS CLIENTES
H52: =IF(Definições!$AP$6="REPRESENTANTE","Representante: " & Definições!$D$94 & " - " & IF((Orçamento!$AX$13 & Orçamento!$AX$14)<>"","Fone: " & Orçamento!$AX$13 & " - E-mail: " & Orçamento!$AX$14,"Fone: " & Definições!$D$95 & " - E-mail: " & Definições!$D$96 ) & " - Vendedor: " & Orçamento!$AX$15,"") & IF(Definições!$AP$6="REVENDEDOR SEM MARGEM DE LUCRO","Parceiro: " & Orçamento!$Y$8 & " - " & IF((Orçamento!$AX$13 & Orçamento!$AX$14)<>"","Fone: " & Orçamento!$AX$13 & " - E-mail: " & Orçamento!$AX$14,"Fone: " & Orçamento!$Y$14 & " - E-mail: " & Orçamento!$P$14 ) & " - Vendedor: " & Orçamento!$AX$15,"") & IF(Definições!$AP$6="CONSTRUTORA / INCORPORADORA","Parceiro: " & Orçamento!$Y$8 & " - " & IF((Orçamento!$AX$13 & Orçamento!$AX$14)<>"","Fone: " & Orçamento!$AX$13 & " - E-mail: " & Orçamento!$AX$14,"Fone: " & Orçamento!$Y$14 & " - E-mail: " & Orçamento!$P$14 ) & " - Vendedor: " & Orçamento!$AX$15,"") & IF(Definições!$AP$6="REVENDEDOR COM MARGEM DE LUCRO","Parceiro: " & DK!$Y$8 & " - " & IF((Orçamento!$AX$13 & Orçamento!$AX$14)<>"","Fone: " & Orçamento!$AX$13 & " - E-mail: " & Orçamento!$AX$14,"Fone: " & DK!$Y$14 & " - E-mail: " & DK!$P$14 ) & " - Vendedor: " & Orçamento!$AX$15,"") -> Representante: DK ESQUADRIAS IND E COM LTDA - Fone: (51) 3547-5002 - E-mail: vendas@dkesquadrias.net.br - Vendedor: JAQUES
H53: =" MODO " & Definições!$AP$6 -> MODO REPRESENTANTE | U53: =NOW() -> 2024-10-11T08:32:00.600 | AC53: =NOW() -> 45576.35556
H54: ='Metro Fácil JP'!$H$54:$AD$54 -> TODAS AS FOTOS ILUSTRATIVAS SÃO DE ESQUADRIAS NA MADEIRA DE EUCALIPTO. REPRESENTAM AS ESQUADRIAS PADRÃO, SEM OPCIONAIS. A QUANTIDADE DE CAIXILHOS E VENEZIANAS PODE VARIAR
H55: ='Metro Fácil JP'!$H$55:$AD$55 -> DE ACORDO COM A MEDIDA ESCOLHIDA. O CAIXILHO NA FOTO ILUSTRATIVA SEMPRE É O LISO E A VENEZIANA É A TRADICIONAL. NÃO ACOMPANHA COLOCAÇÃO, VIDROS E PINTURA.
AS57: FINAL

Sheet Metro PP
B2: DK ESQUADRIAS IND E COM LTDA | K2: =IF(Definições!$Y$17="SIM","CF","RV") -> RV | L2: MODO | O2: =Definições!AP6 -> REPRESENTANTE
E4: =Orçamento!$P$37 & ", escolha a referência desejada:" -> JAQUES, escolha a referência desejada:
A47: FINAL | B47: FINAL | C47: FINAL | D47: FINAL | E47: FINAL | F47: FINAL | G47: FINAL | H47: FINAL | I47: FINAL | J47: FINAL | K47: FINAL | L47: FINAL | M47: FINAL | N47: FINAL | O47: FINAL | P47: FINAL | Q47: FINAL | R47: FINAL | S47: FINAL | T47: FINAL | U47: FINAL | V47: FINAL | W47: FINAL | X47: FINAL | Y47: FINAL | Z47: FINAL | AA47: FINAL | AB47: FINAL | AC47: FINAL | AD47: FINAL

Sheet Metro Fácil PP
B2: DK ESQUADRIAS IND E COM LTDA | K2: =IF(Definições!$Y$17="SIM","CF","RV") -> RV | L2: MODO | O2: =Definições!AP6 -> REPRESENTANTE
E3: =Orçamento!$P$37 & ", digite o tamanho e selecione o puxador, marco, vitros e madeira:" -> JAQUES, digite o tamanho e selecione o puxador, marco, vitros e madeira:
H6: ="PORTA PIVOTANTE REF " & Definições!AA122 & " FRISADA" -> PORTA PIVOTANTE REF 101 FRISADA
AH7: LINHA | AI7: COLUNA | AJ7: CÉLULA | AK7: DESCRIÇÃO
H8: =AK8 -> Porta pivotante com frisos, fechadura Stam 1005 cromada e 2 chaves, acabamento Supreme, marco e folha de 3,2cm de espessura, | AH8: 16 | AI8: H | AJ8: ="$"& AI8 & "$" &AH8 -> $H$16 | AK8: Porta pivotante com frisos, fechadura Stam 1005 cromada e 2 chaves, acabamento Supreme, marco e folha de 3,2cm de espessura,
H9: =AK9 -> guarnição tradicional de 6,5cm para o lado interno. | AK9: guarnição tradicional de 6,5cm para o lado interno.
H11: Selecione o puxador desejado: | N11: Digite o tamanho desejado abaixo: | AA11: Selecione a madeira: | AH11: VALOR DO ITEM | AJ11: SEU ITEM
AH12: 1036.716795 | AJ12: =H6 & IF(AH37="",""," - " & AH37) & " - Tamanho: " & Q40 & "X" & X24 & "CM - Marco: " &J39 & "CM - Madeira: " & AI25 & " - " & IF(AH28="Clique AQUI","Sem PUXADOR",AH28) & IF(AJ13<>""," - Opcionais: " & AJ13,"") -> PORTA PIVOTANTE REF 101 FRISADA - Tamanho: 100X213CM - Marco: 9CM - Madeira: Eucalipto - Sem PUXADOR
H13: =AH28 -> Clique AQUI | AA13: =IF(AI19="S",IF(Definições!$T$113="","",Definições!$T$113),"") -> Eucalipto | AH13: 3520.613968
AA17: Selecione o vitro:
H18: =IF(AH41=TRUE,"Selecione o tamanho padrão:","") -> 
AH19: MADEIRA 1 | AI19: S
H20: =IF(AH41=TRUE,"Largura","") ->  | I20: =IF(AH41=TRUE,"X","") ->  | J20: =IF(AH41=TRUE,"Altura","") ->  | K20: =IF(AH41=TRUE,"(cm)","") ->  | AH20: MADEIRA 2 | AI20: S
AH21: MADEIRA 3 | AI21: S
H22: =IF(AH41=TRUE,"100","") ->  | I22: =IF(AH41=TRUE,"X","") ->  | J22: =IF(AH41=TRUE,"213","") ->  | K22: =IF(AH41=TRUE,"cm s/vitro","") ->  | AH22: MADEIRA 4 | AI22: S
H24: =IF(AH41=TRUE,"110","") ->  | I24: =IF(AH41=TRUE,"X","") ->  | J24: =IF(AH41=TRUE,"213","") ->  | K24: =IF(AH41=TRUE,"cm s/vitro","") ->  | X24: 213 | Z24: cm | AH24: MADEIRA
AA25: Indicação para a medida atual: | AH25: M01 | AI25: =IF(AH25="M01",Definições!$T$113,"")&IF(AH25="M02",Definições!$U$113,"")&IF(AH25="M03",Definições!$V$113,"")&IF(AH25="M04",Definições!$W$113,"")&IF(AH25="M05",Definições!$T$113,"")&IF(AH25="M06",Definições!$U$113,"")&IF(AH25="M07",Definições!$V$113,"")&IF(AH25="M08",Definições!$W$113,"") -> Eucalipto
H26: =IF(AH41=TRUE,"120","") ->  | I26: =IF(AH41=TRUE,"X","") ->  | J26: =IF(AH41=TRUE,"213","") ->  | K26: =IF(AH41=TRUE,"cm s/vitro","") -> 
X27: ALTURA | AA27: =AH38 -> S/VITRO | AH27: PUXADOR | AI27: PULA PERGUNTA
AH28: Clique AQUI
AH30: ATUALIZA PREÇO
AH31: 1
AA32: COMPARTILHAR
AH33: MARCO
AH34: Padrão:
AA35: PERSONALIZAR ITEM MAIS INFORMAÇÕES SOBRE A REFERÊNCIA
AH36: VITRO
H37: Informe a largura do marco:
AA38: INCLUIR NO ORÇAMENTO | AH38: S/VITRO
H39: =AH34 -> Padrão: | J39: 9 | K39: cm
Q40: 100 | S40: cm | AH40: PADRÃO:
V41: VALOR DO ITEM | AA41: R$ | AB41: =AH12 -> 1036.716795 | AH41: FALSE
Q43: LARGURA
H45: Seu item conforme suas escolhas:
H46: =AJ12 -> PORTA PIVOTANTE REF 101 FRISADA - Tamanho: 100X213CM - Marco: 9CM - Madeira: Eucalipto - Sem PUXADOR
A47: FINAL | B47: FINAL | C47: FINAL | D47: FINAL | E47: FINAL | F47: FINAL | G47: FINAL
H50: COMPRE COM A DK ESQUADRIAS E TENHA A CERTEZA DE UM BOM NEGÓCIO - DESDE 1960 SATISFAZENDO SEUS CLIENTES
H52: =IF(Definições!$AP$6="REPRESENTANTE","Representante: " & Definições!$D$94 & " - " & IF((Orçamento!$AX$13 & Orçamento!$AX$14)<>"","Fone: " & Orçamento!$AX$13 & " - E-mail: " & Orçamento!$AX$14,"Fone: " & Definições!$D$95 & " - E-mail: " & Definições!$D$96 ) & " - Vendedor: " & Orçamento!$AX$15,"") & IF(Definições!$AP$6="REVENDEDOR SEM MARGEM DE LUCRO","Parceiro: " & Orçamento!$Y$8 & " - " & IF((Orçamento!$AX$13 & Orçamento!$AX$14)<>"","Fone: " & Orçamento!$AX$13 & " - E-mail: " & Orçamento!$AX$14,"Fone: " & Orçamento!$Y$14 & " - E-mail: " & Orçamento!$P$14 ) & " - Vendedor: " & Orçamento!$AX$15,"") & IF(Definições!$AP$6="CONSTRUTORA / INCORPORADORA","Parceiro: " & Orçamento!$Y$8 & " - " & IF((Orçamento!$AX$13 & Orçamento!$AX$14)<>"","Fone: " & Orçamento!$AX$13 & " - E-mail: " & Orçamento!$AX$14,"Fone: " & Orçamento!$Y$14 & " - E-mail: " & Orçamento!$P$14 ) & " - Vendedor: " & Orçamento!$AX$15,"") & IF(Definições!$AP$6="REVENDEDOR COM MARGEM DE LUCRO","Parceiro: " & DK!$Y$8 & " - " & IF((Orçamento!$AX$13 & Orçamento!$AX$14)<>"","Fone: " & Orçamento!$AX$13 & " - E-mail: " & Orçamento!$AX$14,"Fone: " & DK!$Y$14 & " - E-mail: " & DK!$P$14 ) & " - Vendedor: " & Orçamento!$AX$15,"") -> Representante: DK ESQUADRIAS IND E COM LTDA - Fone: (51) 3547-5002 - E-mail: vendas@dkesquadrias.net.br - Vendedor: JAQUES
H53: =" MODO " & Definições!$AP$6 -> MODO REPRESENTANTE | U53: =NOW() -> 2024-10-11T08:32:00.600 | AC53: =NOW() -> 45576.35556
H54: ='Metro Fácil JP'!$H$54:$AD$54 -> TODAS AS FOTOS ILUSTRATIVAS SÃO DE ESQUADRIAS NA MADEIRA DE EUCALIPTO. REPRESENTAM AS ESQUADRIAS PADRÃO, SEM OPCIONAIS. A QUANTIDADE DE CAIXILHOS E VENEZIANAS PODE VARIAR
H55: ='Metro Fácil JP'!$H$55:$AD$55 -> DE ACORDO COM A MEDIDA ESCOLHIDA. O CAIXILHO NA FOTO ILUSTRATIVA SEMPRE É O LISO E A VENEZIANA É A TRADICIONAL. NÃO ACOMPANHA COLOCAÇÃO, VIDROS E PINTURA.
AS57: FINAL

Sheet Metro PI
B2: DK ESQUADRIAS IND E COM LTDA | K2: =IF(Definições!$Y$17="SIM","CF","RV") -> RV | L2: MODO | O2: =Definições!AP6 -> REPRESENTANTE
E4: =Orçamento!$P$37 & ", escolha a referência e a linha desejada:" -> JAQUES, escolha a referência e a linha desejada:
E47: FINAL | F47: FINAL | G47: FINAL | H47: FINAL | I47: FINAL | J47: FINAL | K47: FINAL | L47: FINAL | M47: FINAL | N47: FINAL | O47: FINAL | P47: FINAL | Q47: FINAL | R47: FINAL | S47: FINAL | T47: FINAL | U47: FINAL | V47: FINAL | W47: FINAL | X47: FINAL | Y47: FINAL | Z47: FINAL | AA47: FINAL | AB47: FINAL | AC47: FINAL | AD47: FINAL | AE47: FINAL | AF47: FINAL | AG47: FINAL | AH47: FINAL | AI47: FINAL

Sheet Metro Fácil PI
B2: DK ESQUADRIAS IND E COM LTDA | K2: =IF(Definições!$Y$17="SIM","CF","RV") -> RV | L2: MODO | O2: =Definições!AP6 -> REPRESENTANTE
E3: =Orçamento!$P$37 & ", selecione o tamanho, marco e madeira:" -> JAQUES, selecione o tamanho, marco e madeira:
H6: =IF(Definições!AA122=621,"PORTA INTERNA REF " & Definições!AA122 & " LAMBRI",IF(Definições!AA122=622,"PORTA INTERNA REF " & Definições!AA122 & " LAMBRI",IF(Definições!AA122=623,"PORTA INTERNA REF " & Definições!AA122 & " LAMBRI",IF(Definições!AA122=601,"PORTA INTERNA REF " & Definições!AA122 & " COM VIDRO",IF(Definições!AA122=602,"PORTA INTERNA REF " & Definições!AA122 & " COM VIDRO",IF(Definições!AA122=603,"PORTA INTERNA REF " & Definições!AA122 & " COM VIDRO",IF(Definições!AA122=604,"PORTA INTERNA REF " & Definições!AA122 & " COM VIDRO",IF(Definições!AA122=721,"PORTA INTERNA REF " & Definições!AA122 & " MACIÇA",IF(Definições!AA122=722,"PORTA INTERNA REF " & Definições!AA122 & " MACIÇA",IF(Definições!AA122=731,"PORTA INTERNA REF " & Definições!AA122 & " MACIÇA",IF(Definições!AA122=732,"PORTA INTERNA REF " & Definições!AA122 & " MACIÇA",IF(Definições!AA122=771,"PORTA INTERNA REF " & Definições!AA122 & " MACIÇA","PORTA INTERNA REF " & Definições!AA122 & " SEMIOCA")))))))))))) -> PORTA INTERNA REF 101 SEMIOCA
AH7: LINHA | AI7: COLUNA | AJ7: CÉLULA | AK7: DESCRIÇÃO
H8: =AK8 -> Janela com veneziana pantográfica e caixilhos de correr, trilho de alumínio nas venezianas e nos caixilhos, todos caixilhos móveis, ferragem preta, | AH8: 20 | AI8: F | AJ8: ="$"& AI8 & "$" &AH8 -> $F$20 | AK8: Janela com veneziana pantográfica e caixilhos de correr, trilho de alumínio nas venezianas e nos caixilhos, todos caixilhos móveis, ferragem preta,
H9: =AK9 -> pino de pressão, baguete, acabamento Supreme, guarnição tradicional de 6,5cm para o lado interno. | AK9: pino de pressão, baguete, acabamento Supreme, guarnição tradicional de 6,5cm para o lado interno.
H11: Selecione o tamanho padrão: | N11: Para tamanho sobmedida digite abaixo: | AA11: Selecione a madeira: | AH11: VALOR DO ITEM | AJ11: SEU ITEM
AH12: 722.8826817 | AJ12: =H6 & " - Tamanho: " & Q40 & "X" & X24 & "CM - Marco: " &J39 & "CM - Madeira: " & AI25 & IF(AJ13<>""," - Opcionais: " & AJ13,"") -> PORTA INTERNA REF 101 SEMIOCA - Tamanho: 85X213CM - Marco: 14CM - Madeira: Eucalipto
H13: Largura | I13: X | J13: Altura | K13: (cm) | AA13: =IF(AI19="S",IF(Definições!$T$113="","",Definições!$T$113),"") -> Eucalipto | AH13: 326.7383078
H15: 065 | I15: X | J15: 213 | K15: cm | AH15: VALOR DO ITEM
AH16: FALSE
H17: 075 | I17: X | J17: 213 | K17: cm
H19: 085 | I19: X | J19: 213 | K19: cm | AH19: MADEIRA 1 | AI19: S
AH20: MADEIRA 2 | AI20: N
H21: =IF(AH16=TRUE,"","095") -> 095 | I21: =IF(AH16=TRUE,"","X") -> X | J21: =IF(AH16=TRUE,"","213") -> 213 | K21: =IF(AH16=TRUE,"","cm") -> cm | AH21: MADEIRA 3 | AI21: N
AA22: =IF(AI22="S",IF(Definições!$W$113="","",Definições!$W$113),"") ->  | AH22: MADEIRA 4 | AI22: N
X24: 213 | Z24: cm | AH24: MADEIRA
AH25: M01 | AI25: =IF(AH25="M01",Definições!$T$113,"")&IF(AH25="M02",Definições!$U$113,"")&IF(AH25="M03",Definições!$V$113,"")&IF(AH25="M04",Definições!$W$113,"")&IF(AH25="M05",Definições!$T$113,"")&IF(AH25="M06",Definições!$U$113,"")&IF(AH25="M07",Definições!$V$113,"")&IF(AH25="M08",Definições!$W$113,"") -> Eucalipto
X27: ALTURA
AH30: ATUALIZA PREÇO
AH31: 1
AA32: COMPARTILHAR
AH33: MARCO
AH34: Padrão:
AA35: PERSONALIZAR ITEM MAIS INFORMAÇÕES SOBRE A REFERÊNCIA
H37: Informe a largura do marco:
AA38: INCLUIR NO ORÇAMENTO
H39: =AH34 -> Padrão: | J39: 14 | K39: cm
Q40: 85 | S40: cm
V41: VALOR DO ITEM | AA41: R$ | AB41: =AH12 -> 722.8826817
Q43: LARGURA
H45: Seu item conforme suas escolhas:
H46: =AJ12 -> PORTA INTERNA REF 101 SEMIOCA - Tamanho: 85X213CM - Marco: 14CM - Madeira: Eucalipto
A47: FINAL | B47: FINAL | C47: FINAL | D47: FINAL | E47: FINAL | F47: FINAL | G47: FINAL
H50: COMPRE COM A DK ESQUADRIAS E TENHA A CERTEZA DE UM BOM NEGÓCIO - DESDE 1960 SATISFAZENDO SEUS CLIENTES
H52: =IF(Definições!$AP$6="REPRESENTANTE","Representante: " & Definições!$D$94 & " - " & IF((Orçamento!$AX$13 & Orçamento!$AX$14)<>"","Fone: " & Orçamento!$AX$13 & " - E-mail: " & Orçamento!$AX$14,"Fone: " & Definições!$D$95 & " - E-mail: " & Definições!$D$96 ) & " - Vendedor: " & Orçamento!$AX$15,"") & IF(Definições!$AP$6="REVENDEDOR SEM MARGEM DE LUCRO","Parceiro: " & Orçamento!$Y$8 & " - " & IF((Orçamento!$AX$13 & Orçamento!$AX$14)<>"","Fone: " & Orçamento!$AX$13 & " - E-mail: " & Orçamento!$AX$14,"Fone: " & Orçamento!$Y$14 & " - E-mail: " & Orçamento!$P$14 ) & " - Vendedor: " & Orçamento!$AX$15,"") & IF(Definições!$AP$6="CONSTRUTORA / INCORPORADORA","Parceiro: " & Orçamento!$Y$8 & " - " & IF((Orçamento!$AX$13 & Orçamento!$AX$14)<>"","Fone: " & Orçamento!$AX$13 & " - E-mail: " & Orçamento!$AX$14,"Fone: " & Orçamento!$Y$14 & " - E-mail: " & Orçamento!$P$14 ) & " - Vendedor: " & Orçamento!$AX$15,"") & IF(Definições!$AP$6="REVENDEDOR COM MARGEM DE LUCRO","Parceiro: " & DK!$Y$8 & " - " & IF((Orçamento!$AX$13 & Orçamento!$AX$14)<>"","Fone: " & Orçamento!$AX$13 & " - E-mail: " & Orçamento!$AX$14,"Fone: " & DK!$Y$14 & " - E-mail: " & DK!$P$14 ) & " - Vendedor: " & Orçamento!$AX$15,"") -> Representante: DK ESQUADRIAS IND E COM LTDA - Fone: (51) 3547-5002 - E-mail: vendas@dkesquadrias.net.br - Vendedor: JAQUES
H53: =" MODO " & Definições!$AP$6 -> MODO REPRESENTANTE | U53: =NOW() -> 2024-10-11T08:32:00.600 | AC53: =NOW() -> 45576.35556
H54: ='Metro Fácil JP'!$H$54:$AD$54 -> TODAS AS FOTOS ILUSTRATIVAS SÃO DE ESQUADRIAS NA MADEIRA DE EUCALIPTO. REPRESENTAM AS ESQUADRIAS PADRÃO, SEM OPCIONAIS. A QUANTIDADE DE CAIXILHOS E VENEZIANAS PODE VARIAR
H55: ='Metro Fácil JP'!$H$55:$AD$55 -> DE ACORDO COM A MEDIDA ESCOLHIDA. O CAIXILHO NA FOTO ILUSTRATIVA SEMPRE É O LISO E A VENEZIANA É A TRADICIONAL. NÃO ACOMPANHA COLOCAÇÃO, VIDROS E PINTURA.
AS57: FINAL

Sheet Metro PSP
B2: DK ESQUADRIAS IND E COM LTDA | K2: =IF(Definições!$Y$17="SIM","CF","RV") -> RV | L2: MODO | O2: =Definições!AP6 -> REPRESENTANTE
E4: =Orçamento!$P$37 & ", escolha a linha desejada:" -> JAQUES, escolha a linha desejada:
A47: FINAL | B47: FINAL | C47: FINAL | D47: FINAL | E47: FINAL | F47: FINAL | G47: FINAL | H47: FINAL | I47: FINAL | J47: FINAL | K47: FINAL | L47: FINAL | M47: FINAL | N47: FINAL | O47: FINAL | P47: FINAL | Q47: FINAL | R47: FINAL | S47: FINAL | T47: FINAL | U47: FINAL | V47: FINAL | W47: FINAL | X47: FINAL | Y47: FINAL | Z47: FINAL | AA47: FINAL | AB47: FINAL | AC47: FINAL | AD47: FINAL

Sheet Metro Fácil PSP
B2: DK ESQUADRIAS IND E COM LTDA | K2: =IF(Definições!$Y$17="SIM","CF","RV") -> RV | L2: MODO | O2: =Definições!AP6 -> REPRESENTANTE
E3: =Orçamento!$P$37 & ", selecione o tamanho, marco, madeira e modelo do caixilho:" -> JAQUES, selecione o tamanho, marco, madeira e modelo do caixilho:
H6: =IF(Definições!AA122=231,"PORTA SACADA REF " & Definições!AA122 & " VENEZIANA PANTOGRÁFICA caixilho pantográfico",IF(Definições!AA122="241","PORTA SACADA REF " & Definições!AA122 & " VENEZIANA PANTOGRÁFICA caixilho pantográfico",IF(Definições!AA122=281,"PORTA SACADA REF " & Definições!AA122 & " VENEZIANA PANTOGRÁFICA caixilho pantográfico","PORTA SACADA REF " & Definições!AA122 & " VENEZIANA PANTOGRÁFICA caixilho de correr"))) -> PORTA SACADA REF 101 VENEZIANA PANTOGRÁFICA caixilho de correr
AH7: LINHA | AI7: COLUNA | AJ7: CÉLULA | AK7: DESCRIÇÃO
H8: =AK8 -> Janela com veneziana pantográfica e caixilhos de correr, trilho de alumínio nas venezianas e nos caixilhos, todos caixilhos móveis, ferragem preta, | AH8: 17 | AI8: F | AJ8: ="$"& AI8 & "$" &AH8 -> $F$17 | AK8: Janela com veneziana pantográfica e caixilhos de correr, trilho de alumínio nas venezianas e nos caixilhos, todos caixilhos móveis, ferragem preta,
H9: =AK9 -> pino de pressão, baguete, acabamento Supreme, guarnição tradicional de 6,5cm para o lado interno. | AK9: pino de pressão, baguete, acabamento Supreme, guarnição tradicional de 6,5cm para o lado interno.
H11: Selecione o tamanho padrão: | P11: Para tamanho sobmedida digite abaixo: | AA11: Escolha o modelo do caixilho: | AH11: VALOR DO ITEM | AJ11: SEU ITEM
AH12: 1805.467023 | AJ12: =H6 & " " & AI28 & " - Tamanho: " & Q40 & "X" & X24 & "CM - Marco: " & J32 & "CM - Madeira: " & AI25 & IF(AJ13<>""," - Opcionais: " & AJ13,"") -> PORTA SACADA REF 101 VENEZIANA PANTOGRÁFICA caixilho de correr LISO - Tamanho: 120X213CM - Marco: 14CM - Madeira: Eucalipto - Opcionais: (GUARNIÇÃO TRADICIONAL 2L 6,5CM)
H13: Largura | I13: X | J13: Altura | K13: (cm) | AH13: 1303.817952 | AJ13: (GUARNIÇÃO TRADICIONAL 2L 6,5CM)
AH14: CAIXILHO
H15: 120 | I15: X | J15: 213 | K15: cm | AA15: =IF(AI15="S","Liso","") -> Liso | AC15: =IF(AI16="S","Quadriculado","") -> Quadriculado | AH15: LISO | AI15: S
AH16: QUADRICULADO | AI16: S
H17: 140 | I17: X | J17: 213 | K17: cm | AH17: ITALIANO | AI17: S
H19: 150 | I19: X | J19: 213 | K19: cm | AH19: MADEIRA 1 | AI19: S
AH20: MADEIRA 2 | AI20: S
H21: 160 | I21: X | J21: 213 | K21: cm | AH21: MADEIRA 3 | AI21: S
AA22: =IF(AI17="S","Italiano","") -> Italiano | AH22: MADEIRA 4 | AI22: S
H23: 180 | I23: X | J23: 213 | K23: cm
X24: 213 | Z24: cm | AH24: MADEIRA
H25: 200 | I25: X | J25: 213 | K25: cm | AH25: M01 | AI25: =IF(AH25="M01",Definições!$T$113,"")&IF(AH25="M02",Definições!$U$113,"")&IF(AH25="M03",Definições!$V$113,"")&IF(AH25="M04",Definições!$W$113,"")&IF(AH25="M05",Definições!$T$113,"")&IF(AH25="M06",Definições!$U$113,"")&IF(AH25="M07",Definições!$V$113,"")&IF(AH25="M08",Definições!$W$113,"") -> Eucalipto
X27: ALTURA | AH27: CAIXILHO
AH28: C01 | AI28: =IF(AH28="C01","LISO","") & IF(AH28="C02","QUADRICULADO","") & IF(AH28="C03","ITALIANO","") -> LISO
H30: Informe a largura do marco: | AH30: ATUALIZA PREÇO
AH31: 1
H32: =AH34 -> Sobmedida: | J32: 14 | K32: cm | AA32: COMPARTILHAR
AH33: MARCO
AH34: Sobmedida:
H35: Selecione a madeira: | AA35: PERSONALIZAR ITEM MAIS INFORMAÇÕES SOBRE A REFERÊNCIA
H38: =IF(AI19="S",IF(Definições!$T$113="","",Definições!$T$113),"") -> Eucalipto | AA38: INCLUIR NO ORÇAMENTO
Q40: 120 | S40: cm
V41: VALOR DO ITEM | AA41: R$ | AB41: =AH12 -> 1805.467023
Q43: LARGURA
H45: Seu item conforme suas escolhas:
H46: =AJ12 -> PORTA SACADA REF 101 VENEZIANA PANTOGRÁFICA caixilho de correr LISO - Tamanho: 120X213CM - Marco: 14CM - Madeira: Eucalipto - Opcionais: (GUARNIÇÃO TRADICIONAL 2L 6,5CM)
A47: FINAL | B47: FINAL | C47: FINAL | D47: FINAL | E47: FINAL | F47: FINAL | G47: FINAL
H50: COMPRE COM A DK ESQUADRIAS E TENHA A CERTEZA DE UM BOM NEGÓCIO - DESDE 1960 SATISFAZENDO SEUS CLIENTES
H52: =IF(Definições!$AP$6="REPRESENTANTE","Representante: " & Definições!$D$94 & " - " & IF((Orçamento!$AX$13 & Orçamento!$AX$14)<>"","Fone: " & Orçamento!$AX$13 & " - E-mail: " & Orçamento!$AX$14,"Fone: " & Definições!$D$95 & " - E-mail: " & Definições!$D$96 ) & " - Vendedor: " & Orçamento!$AX$15,"") & IF(Definições!$AP$6="REVENDEDOR SEM MARGEM DE LUCRO","Parceiro: " & Orçamento!$Y$8 & " - " & IF((Orçamento!$AX$13 & Orçamento!$AX$14)<>"","Fone: " & Orçamento!$AX$13 & " - E-mail: " & Orçamento!$AX$14,"Fone: " & Orçamento!$Y$14 & " - E-mail: " & Orçamento!$P$14 ) & " - Vendedor: " & Orçamento!$AX$15,"") & IF(Definições!$AP$6="CONSTRUTORA / INCORPORADORA","Parceiro: " & Orçamento!$Y$8 & " - " & IF((Orçamento!$AX$13 & Orçamento!$AX$14)<>"","Fone: " & Orçamento!$AX$13 & " - E-mail: " & Orçamento!$AX$14,"Fone: " & Orçamento!$Y$14 & " - E-mail: " & Orçamento!$P$14 ) & " - Vendedor: " & Orçamento!$AX$15,"") & IF(Definições!$AP$6="REVENDEDOR COM MARGEM DE LUCRO","Parceiro: " & DK!$Y$8 & " - " & IF((Orçamento!$AX$13 & Orçamento!$AX$14)<>"","Fone: " & Orçamento!$AX$13 & " - E-mail: " & Orçamento!$AX$14,"Fone: " & DK!$Y$14 & " - E-mail: " & DK!$P$14 ) & " - Vendedor: " & Orçamento!$AX$15,"") -> Representante: DK ESQUADRIAS IND E COM LTDA - Fone: (51) 3547-5002 - E-mail: vendas@dkesquadrias.net.br - Vendedor: JAQUES
H53: =" MODO " & Definições!$AP$6 -> MODO REPRESENTANTE | U53: =NOW() -> 2024-10-11T08:32:00.600 | AC53: =NOW() -> 45576.35556
H54: ='Metro Fácil JP'!$H$54:$AD$54 -> TODAS AS FOTOS ILUSTRATIVAS SÃO DE ESQUADRIAS NA MADEIRA DE EUCALIPTO. REPRESENTAM AS ESQUADRIAS PADRÃO, SEM OPCIONAIS. A QUANTIDADE DE CAIXILHOS E VENEZIANAS PODE VARIAR
H55: ='Metro Fácil JP'!$H$55:$AD$55 -> DE ACORDO COM A MEDIDA ESCOLHIDA. O CAIXILHO NA FOTO ILUSTRATIVA SEMPRE É O LISO E A VENEZIANA É A TRADICIONAL. NÃO ACOMPANHA COLOCAÇÃO, VIDROS E PINTURA.
AS57: FINAL

Sheet Metro PSA
B2: DK ESQUADRIAS IND E COM LTDA | K2: =IF(Definições!$Y$17="SIM","CF","RV") -> RV | L2: MODO | O2: =Definições!AP6 -> REPRESENTANTE
E4: =Orçamento!$P$37 & ", escolha a linha desejada:" -> JAQUES, escolha a linha desejada:
A47: FINAL | B47: FINAL | C47: FINAL | D47: FINAL | E47: FINAL | F47: FINAL | G47: FINAL | H47: FINAL | I47: FINAL | J47: FINAL | K47: FINAL | L47: FINAL | M47: FINAL | N47: FINAL | O47: FINAL | P47: FINAL | Q47: FINAL | R47: FINAL | S47: FINAL | T47: FINAL | U47: FINAL | V47: FINAL | W47: FINAL | X47: FINAL | Y47: FINAL | Z47: FINAL | AA47: FINAL | AB47: FINAL | AC47: FINAL | AD47: FINAL

Sheet Metro Fácil PSA
B2: DK ESQUADRIAS IND E COM LTDA | K2: =IF(Definições!$Y$17="SIM","CF","RV") -> RV | L2: MODO | O2: =Definições!AP6 -> REPRESENTANTE
E3: =Orçamento!$P$37 & ", selecione o tamanho, marco, madeira e modelo do caixilho:" -> JAQUES, selecione o tamanho, marco, madeira e modelo do caixilho:
H6: =IF(Definições!AA122=262,"PORTA SACADA REF " & Definições!AA122 & " VENEZIANA DE ABRIR caixilho de correr",IF(Definições!AA122="272","PORTA SACADA REF " & Definições!AA122 & " VENEZIANA DE ABRIR caixilho de correr",IF(Definições!AA122=292,"PORTA SACADA REF " & Definições!AA122 & " VENEZIANA DE ABRIR caixilho de correr","PORTA SACADA REF " & Definições!AA122 & " VENEZIANA DE ABRIR caixilho de abrir"))) -> PORTA SACADA REF 101 VENEZIANA DE ABRIR caixilho de abrir
AH7: LINHA | AI7: COLUNA | AJ7: CÉLULA | AK7: DESCRIÇÃO
H8: =AK8 -> Janela com veneziana pantográfica e caixilhos de correr, trilho de alumínio nas venezianas e nos caixilhos, todos caixilhos móveis, ferragem preta, | AH8: 17 | AI8: F | AJ8: ="$"& AI8 & "$" &AH8 -> $F$17 | AK8: Janela com veneziana pantográfica e caixilhos de correr, trilho de alumínio nas venezianas e nos caixilhos, todos caixilhos móveis, ferragem preta,
H9: =AK9 -> pino de pressão, baguete, acabamento Supreme, guarnição tradicional de 6,5cm para o lado interno. | AK9: pino de pressão, baguete, acabamento Supreme, guarnição tradicional de 6,5cm para o lado interno.
H11: Selecione o tamanho padrão: | P11: Para tamanho sobmedida digite abaixo: | AA11: Escolha o modelo do caixilho: | AH11: VALOR DO ITEM | AJ11: SEU ITEM
AH12: 1398.508051 | AJ12: =H6 & " " & AI28 & " - Tamanho: " & Q40 & "X" & X24 & "CM - Marco: " & J32 & "CM - Madeira: " & AI25 & IF(AJ13<>""," - Opcionais: " & AJ13,"") -> PORTA SACADA REF 101 VENEZIANA DE ABRIR caixilho de abrir LISO - Tamanho: 120X213CM - Marco: 14CM - Madeira: Eucalipto - Opcionais: (GUARNIÇÃO TRADICIONAL 2L 6,5CM)
H13: Largura | I13: X | J13: Altura | K13: (cm) | AH13: 919.1156184 | AJ13: (GUARNIÇÃO TRADICIONAL 2L 6,5CM)
AH14: CAIXILHO
H15: 120 | I15: X | J15: 213 | K15: cm | AA15: =IF(AI15="S","Liso","") -> Liso | AC15: =IF(AI16="S","Quadriculado","") -> Quadriculado | AH15: LISO | AI15: S
AH16: QUADRICULADO | AI16: S
H17: 140 | I17: X | J17: 213 | K17: cm | AH17: ITALIANO | AI17: S
H19: 150 | I19: X | J19: 213 | K19: cm | AH19: MADEIRA 1 | AI19: S
AH20: MADEIRA 2 | AI20: S
H21: =IF(Definições!AA122=202,"",IF(Definições!AA122="212","",IF(Definições!AA122=252,"",IF(Definições!AA122=262,"",IF(Definições!AA122="272","",IF(Definições!AA122=292,"","160")))))) -> 160 | I21: =IF(Definições!AA122=202,"",IF(Definições!AA122="212","",IF(Definições!AA122=252,"",IF(Definições!AA122=262,"",IF(Definições!AA122="272","",IF(Definições!AA122=292,"","X")))))) -> X | J21: =IF(Definições!AA122=202,"",IF(Definições!AA122="212","",IF(Definições!AA122=252,"",IF(Definições!AA122=262,"",IF(Definições!AA122="272","",IF(Definições!AA122=292,"","213")))))) -> 213 | K21: =IF(Definições!AA122=202,"",IF(Definições!AA122="212","",IF(Definições!AA122=252,"",IF(Definições!AA122=262,"",IF(Definições!AA122="272","",IF(Definições!AA122=292,"","cm")))))) -> cm | AH21: MADEIRA 3 | AI21: S
AA22: =IF(AI17="S","Italiano","") -> Italiano | AH22: MADEIRA 4 | AI22: S
H23: =IF(Definições!AA122=202,"",IF(Definições!AA122="212","",IF(Definições!AA122=252,"",IF(Definições!AA122=262,"",IF(Definições!AA122="272","",IF(Definições!AA122=292,"","180")))))) -> 180 | I23: =IF(Definições!AA122=202,"",IF(Definições!AA122="212","",IF(Definições!AA122=252,"",IF(Definições!AA122=262,"",IF(Definições!AA122="272","",IF(Definições!AA122=292,"","X")))))) -> X | J23: =IF(Definições!AA122=202,"",IF(Definições!AA122="212","",IF(Definições!AA122=252,"",IF(Definições!AA122=262,"",IF(Definições!AA122="272","",IF(Definições!AA122=292,"","213")))))) -> 213 | K23: =IF(Definições!AA122=202,"",IF(Definições!AA122="212","",IF(Definições!AA122=252,"",IF(Definições!AA122=262,"",IF(Definições!AA122="272","",IF(Definições!AA122=292,"","cm")))))) -> cm
X24: 213 | Z24: cm | AH24: MADEIRA
H25: =IF(Definições!AA122=202,"",IF(Definições!AA122="212","",IF(Definições!AA122=252,"",IF(Definições!AA122=262,"",IF(Definições!AA122="272","",IF(Definições!AA122=292,"","200")))))) -> 200 | I25: =IF(Definições!AA122=202,"",IF(Definições!AA122="212","",IF(Definições!AA122=252,"",IF(Definições!AA122=262,"",IF(Definições!AA122="272","",IF(Definições!AA122=292,"","X")))))) -> X | J25: =IF(Definições!AA122=202,"",IF(Definições!AA122="212","",IF(Definições!AA122=252,"",IF(Definições!AA122=262,"",IF(Definições!AA122="272","",IF(Definições!AA122=292,"","213")))))) -> 213 | K25: =IF(Definições!AA122=202,"",IF(Definições!AA122="212","",IF(Definições!AA122=252,"",IF(Definições!AA122=262,"",IF(Definições!AA122="272","",IF(Definições!AA122=292,"","cm")))))) -> cm | AH25: M01 | AI25: =IF(AH25="M01",Definições!$T$113,"")&IF(AH25="M02",Definições!$U$113,"")&IF(AH25="M03",Definições!$V$113,"")&IF(AH25="M04",Definições!$W$113,"")&IF(AH25="M05",Definições!$T$113,"")&IF(AH25="M06",Definições!$U$113,"")&IF(AH25="M07",Definições!$V$113,"")&IF(AH25="M08",Definições!$W$113,"") -> Eucalipto
X27: ALTURA | AH27: CAIXILHO
AH28: C01 | AI28: =IF(AH28="C01","LISO","") & IF(AH28="C02","QUADRICULADO","") & IF(AH28="C03","ITALIANO","") -> LISO
H30: Informe a largura do marco: | AH30: ATUALIZA PREÇO
AH31: 1
H32: =AH34 -> Sobmedida: | J32: 14 | K32: cm | AA32: COMPARTILHAR
AH33: MARCO
AH34: Sobmedida:
H35: Selecione a madeira: | AA35: PERSONALIZAR ITEM MAIS INFORMAÇÕES SOBRE A REFERÊNCIA
H38: =IF(AI19="S",IF(Definições!$T$113="","",Definições!$T$113),"") -> Eucalipto | AA38: INCLUIR NO ORÇAMENTO
Q40: 120 | S40: cm
V41: VALOR DO ITEM | AA41: R$ | AB41: =AH12 -> 1398.508051
Q43: LARGURA
H45: Seu item conforme suas escolhas:
H46: =AJ12 -> PORTA SACADA REF 101 VENEZIANA DE ABRIR caixilho de abrir LISO - Tamanho: 120X213CM - Marco: 14CM - Madeira: Eucalipto - Opcionais: (GUARNIÇÃO TRADICIONAL 2L 6,5CM)
A47: FINAL | B47: FINAL | C47: FINAL | D47: FINAL | E47: FINAL | F47: FINAL | G47: FINAL
H50: COMPRE COM A DK ESQUADRIAS E TENHA A CERTEZA DE UM BOM NEGÓCIO - DESDE 1960 SATISFAZENDO SEUS CLIENTES
H52: =IF(Definições!$AP$6="REPRESENTANTE","Representante: " & Definições!$D$94 & " - " & IF((Orçamento!$AX$13 & Orçamento!$AX$14)<>"","Fone: " & Orçamento!$AX$13 & " - E-mail: " & Orçamento!$AX$14,"Fone: " & Definições!$D$95 & " - E-mail: " & Definições!$D$96 ) & " - Vendedor: " & Orçamento!$AX$15,"") & IF(Definições!$AP$6="REVENDEDOR SEM MARGEM DE LUCRO","Parceiro: " & Orçamento!$Y$8 & " - " & IF((Orçamento!$AX$13 & Orçamento!$AX$14)<>"","Fone: " & Orçamento!$AX$13 & " - E-mail: " & Orçamento!$AX$14,"Fone: " & Orçamento!$Y$14 & " - E-mail: " & Orçamento!$P$14 ) & " - Vendedor: " & Orçamento!$AX$15,"") & IF(Definições!$AP$6="CONSTRUTORA / INCORPORADORA","Parceiro: " & Orçamento!$Y$8 & " - " & IF((Orçamento!$AX$13 & Orçamento!$AX$14)<>"","Fone: " & Orçamento!$AX$13 & " - E-mail: " & Orçamento!$AX$14,"Fone: " & Orçamento!$Y$14 & " - E-mail: " & Orçamento!$P$14 ) & " - Vendedor: " & Orçamento!$AX$15,"") & IF(Definições!$AP$6="REVENDEDOR COM MARGEM DE LUCRO","Parceiro: " & DK!$Y$8 & " - " & IF((Orçamento!$AX$13 & Orçamento!$AX$14)<>"","Fone: " & Orçamento!$AX$13 & " - E-mail: " & Orçamento!$AX$14,"Fone: " & DK!$Y$14 & " - E-mail: " & DK!$P$14 ) & " - Vendedor: " & Orçamento!$AX$15,"") -> Representante: DK ESQUADRIAS IND E COM LTDA - Fone: (51) 3547-5002 - E-mail: vendas@dkesquadrias.net.br - Vendedor: JAQUES
H53: =" MODO " & Definições!$AP$6 -> MODO REPRESENTANTE | U53: =NOW() -> 2024-10-11T08:32:00.600 | AC53: =NOW() -> 45576.35556
H54: ='Metro Fácil JP'!$H$54:$AD$54 -> TODAS AS FOTOS ILUSTRATIVAS SÃO DE ESQUADRIAS NA MADEIRA DE EUCALIPTO. REPRESENTAM AS ESQUADRIAS PADRÃO, SEM OPCIONAIS. A QUANTIDADE DE CAIXILHOS E VENEZIANAS PODE VARIAR
H55: ='Metro Fácil JP'!$H$55:$AD$55 -> DE ACORDO COM A MEDIDA ESCOLHIDA. O CAIXILHO NA FOTO ILUSTRATIVA SEMPRE É O LISO E A VENEZIANA É A TRADICIONAL. NÃO ACOMPANHA COLOCAÇÃO, VIDROS E PINTURA.
AS57: FINAL

Sheet Metro PSSV
B2: DK ESQUADRIAS IND E COM LTDA | K2: =IF(Definições!$Y$17="SIM","CF","RV") -> RV | L2: MODO | O2: =Definições!AP6 -> REPRESENTANTE
E4: =Orçamento!$P$37 & ", escolha a linha desejada:" -> JAQUES, escolha a linha desejada:
A47: FINAL | B47: FINAL | C47: FINAL | D47: FINAL | E47: FINAL | F47: FINAL | G47: FINAL | H47: FINAL | I47: FINAL | J47: FINAL | K47: FINAL | L47: FINAL | M47: FINAL | N47: FINAL | O47: FINAL | P47: FINAL | Q47: FINAL | R47: FINAL | S47: FINAL | T47: FINAL | U47: FINAL | V47: FINAL | W47: FINAL | X47: FINAL | Y47: FINAL | Z47: FINAL | AA47: FINAL | AB47: FINAL | AC47: FINAL | AD47: FINAL

Sheet Metro Fácil PSSV
B2: DK ESQUADRIAS IND E COM LTDA | K2: =IF(Definições!$Y$17="SIM","CF","RV") -> RV | L2: MODO | O2: =Definições!AP6 -> REPRESENTANTE
E3: =Orçamento!$P$37 & ", selecione o tamanho, marco, madeira e modelo do caixilho:" -> JAQUES, selecione o tamanho, marco, madeira e modelo do caixilho:
H6: =IF(Definições!AA122=233,"PORTA SACADA REF " & Definições!AA122 & " SEM VENEZIANA caixilho pantográfico",IF(Definições!AA122="243","PORTA SACADA REF " & Definições!AA122 & " SEM VENEZIANA caixilho pantográfico",IF(Definições!AA122=283,"PORTA SACADA REF " & Definições!AA122 & " SEM VENEZIANA caixilho pantográfico","PORTA SACADA REF " & Definições!AA122 & " SEM VENEZIANA caixilho de correr"))) -> PORTA SACADA REF 101 SEM VENEZIANA caixilho de correr
AH7: LINHA | AI7: COLUNA | AJ7: CÉLULA | AK7: DESCRIÇÃO
H8: =AK8 -> Janela com veneziana pantográfica e caixilhos de correr, trilho de alumínio nas venezianas e nos caixilhos, todos caixilhos móveis, ferragem preta, | AH8: 17 | AI8: F | AJ8: ="$"& AI8 & "$" &AH8 -> $F$17 | AK8: Janela com veneziana pantográfica e caixilhos de correr, trilho de alumínio nas venezianas e nos caixilhos, todos caixilhos móveis, ferragem preta,
H9: =AK9 -> pino de pressão, baguete, acabamento Supreme, guarnição tradicional de 6,5cm para o lado interno. | AK9: pino de pressão, baguete, acabamento Supreme, guarnição tradicional de 6,5cm para o lado interno.
H11: Selecione o tamanho padrão: | P11: Para tamanho sobmedida digite abaixo: | AA11: Escolha o modelo do caixilho: | AH11: VALOR DO ITEM | AJ11: SEU ITEM
AH12: 1220.812695 | AJ12: =H6 & " " & AI28 & " - Tamanho: " & Q40 & "X" & X24 & "CM - Marco: " & J32 & "CM - Madeira: " & AI25 & IF(AJ13<>""," - Opcionais: " & AJ13,"") -> PORTA SACADA REF 101 SEM VENEZIANA caixilho de correr LISO - Tamanho: 120X213CM - Marco: 14CM - Madeira: Eucalipto - Opcionais: (GUARNIÇÃO TRADICIONAL 2L 6,5CM)
H13: Largura | I13: X | J13: Altura | K13: (cm) | AH13: 576.7904202 | AJ13: (GUARNIÇÃO TRADICIONAL 2L 6,5CM)
AH14: CAIXILHO
H15: 120 | I15: X | J15: 213 | K15: cm | AA15: =IF(AI15="S","Liso","") -> Liso | AC15: =IF(AI16="S","Quadriculado","") -> Quadriculado | AH15: LISO | AI15: S
AH16: QUADRICULADO | AI16: S
H17: 140 | I17: X | J17: 213 | K17: cm | AH17: ITALIANO | AI17: S
H19: 150 | I19: X | J19: 213 | K19: cm | AH19: MADEIRA 1 | AI19: S
AH20: MADEIRA 2 | AI20: S
H21: 160 | I21: X | J21: 213 | K21: cm | AH21: MADEIRA 3 | AI21: S
AA22: =IF(AI17="S","Italiano","") -> Italiano | AH22: MADEIRA 4 | AI22: S
H23: 180 | I23: X | J23: 213 | K23: cm
X24: 213 | Z24: cm | AH24: MADEIRA
H25: 200 | I25: X | J25: 213 | K25: cm | AH25: M01 | AI25: =IF(AH25="M01",Definições!$T$113,"")&IF(AH25="M02",Definições!$U$113,"")&IF(AH25="M03",Definições!$V$113,"")&IF(AH25="M04",Definições!$W$113,"")&IF(AH25="M05",Definições!$T$113,"")&IF(AH25="M06",Definições!$U$113,"")&IF(AH25="M07",Definições!$V$113,"")&IF(AH25="M08",Definições!$W$113,"") -> Eucalipto
X27: ALTURA | AH27: CAIXILHO
AH28: C01 | AI28: =IF(AH28="C01","LISO","") & IF(AH28="C02","QUADRICULADO","") & IF(AH28="C03","ITALIANO","") -> LISO
H30: Informe a largura do marco: | AH30: ATUALIZA PREÇO
AH31: 1
H32: =AH34 -> Sobmedida: | J32: 14 | K32: cm | AA32: COMPARTILHAR
AH33: MARCO
AH34: Sobmedida:
H35: Selecione a madeira: | AA35: PERSONALIZAR ITEM MAIS INFORMAÇÕES SOBRE A REFERÊNCIA
H38: =IF(AI19="S",IF(Definições!$T$113="","",Definições!$T$113),"") -> Eucalipto | AA38: INCLUIR NO ORÇAMENTO
Q40: 120 | S40: cm
V41: VALOR DO ITEM | AA41: R$ | AB41: =AH12 -> 1220.812695
Q43: LARGURA
H45: Seu item conforme suas escolhas:
H46: =AJ12 -> PORTA SACADA REF 101 SEM VENEZIANA caixilho de correr LISO - Tamanho: 120X213CM - Marco: 14CM - Madeira: Eucalipto - Opcionais: (GUARNIÇÃO TRADICIONAL 2L 6,5CM)
A47: FINAL | B47: FINAL | C47: FINAL | D47: FINAL | E47: FINAL | F47: FINAL | G47: FINAL
H50: COMPRE COM A DK ESQUADRIAS E TENHA A CERTEZA DE UM BOM NEGÓCIO - DESDE 1960 SATISFAZENDO SEUS CLIENTES
H52: =IF(Definições!$AP$6="REPRESENTANTE","Representante: " & Definições!$D$94 & " - " & IF((Orçamento!$AX$13 & Orçamento!$AX$14)<>"","Fone: " & Orçamento!$AX$13 & " - E-mail: " & Orçamento!$AX$14,"Fone: " & Definições!$D$95 & " - E-mail: " & Definições!$D$96 ) & " - Vendedor: " & Orçamento!$AX$15,"") & IF(Definições!$AP$6="REVENDEDOR SEM MARGEM DE LUCRO","Parceiro: " & Orçamento!$Y$8 & " - " & IF((Orçamento!$AX$13 & Orçamento!$AX$14)<>"","Fone: " & Orçamento!$AX$13 & " - E-mail: " & Orçamento!$AX$14,"Fone: " & Orçamento!$Y$14 & " - E-mail: " & Orçamento!$P$14 ) & " - Vendedor: " & Orçamento!$AX$15,"") & IF(Definições!$AP$6="CONSTRUTORA / INCORPORADORA","Parceiro: " & Orçamento!$Y$8 & " - " & IF((Orçamento!$AX$13 & Orçamento!$AX$14)<>"","Fone: " & Orçamento!$AX$13 & " - E-mail: " & Orçamento!$AX$14,"Fone: " & Orçamento!$Y$14 & " - E-mail: " & Orçamento!$P$14 ) & " - Vendedor: " & Orçamento!$AX$15,"") & IF(Definições!$AP$6="REVENDEDOR COM MARGEM DE LUCRO","Parceiro: " & DK!$Y$8 & " - " & IF((Orçamento!$AX$13 & Orçamento!$AX$14)<>"","Fone: " & Orçamento!$AX$13 & " - E-mail: " & Orçamento!$AX$14,"Fone: " & DK!$Y$14 & " - E-mail: " & DK!$P$14 ) & " - Vendedor: " & Orçamento!$AX$15,"") -> Representante: DK ESQUADRIAS IND E COM LTDA - Fone: (51) 3547-5002 - E-mail: vendas@dkesquadrias.net.br - Vendedor: JAQUES
H53: =" MODO " & Definições!$AP$6 -> MODO REPRESENTANTE | U53: =NOW() -> 2024-10-11T08:32:00.600 | AC53: =NOW() -> 45576.35556
H54: ='Metro Fácil JP'!$H$54:$AD$54 -> TODAS AS FOTOS ILUSTRATIVAS SÃO DE ESQUADRIAS NA MADEIRA DE EUCALIPTO. REPRESENTAM AS ESQUADRIAS PADRÃO, SEM OPCIONAIS. A QUANTIDADE DE CAIXILHOS E VENEZIANAS PODE VARIAR
H55: ='Metro Fácil JP'!$H$55:$AD$55 -> DE ACORDO COM A MEDIDA ESCOLHIDA. O CAIXILHO NA FOTO ILUSTRATIVA SEMPRE É O LISO E A VENEZIANA É A TRADICIONAL. NÃO ACOMPANHA COLOCAÇÃO, VIDROS E PINTURA.
AS57: FINAL

Sheet Metro PD
B2: DK ESQUADRIAS IND E COM LTDA | K2: =IF(Definições!$Y$17="SIM","CF","RV") -> RV | L2: MODO | O2: =Definições!AP6 -> REPRESENTANTE
E4: =Orçamento!$P$37 & ", escolha a referência desejada:" -> JAQUES, escolha a referência desejada:
A47: FINAL | B47: FINAL | C47: FINAL | D47: FINAL | E47: FINAL | F47: FINAL | G47: FINAL | H47: FINAL | I47: FINAL | J47: FINAL | K47: FINAL | L47: FINAL | M47: FINAL | N47: FINAL | O47: FINAL | P47: FINAL | Q47: FINAL | R47: FINAL | S47: FINAL | T47: FINAL | U47: FINAL | V47: FINAL | W47: FINAL | X47: FINAL | Y47: FINAL | Z47: FINAL | AA47: FINAL | AB47: FINAL | AC47: FINAL | AD47: FINAL

Sheet Metro Fácil PD
B2: DK ESQUADRIAS IND E COM LTDA | K2: =IF(Definições!$Y$17="SIM","CF","RV") -> RV | L2: MODO | O2: =Definições!AP6 -> REPRESENTANTE
E3: =Orçamento!$P$37 & ", digite o tamanho e selecione a madeira:" -> JAQUES, digite o tamanho e selecione a madeira:
H6: =IF(Definições!AA122=971,"PORTA DE CHURRASQUEIRA REF " & Definições!AA122 & " VENEZIANA DE ABRIR",IF(Definições!AA122=972,"PORTA DE ALÇAPÃO REF " & Definições!AA122 & " ALMOFADÃO DE ABRIR","PORTA DE OITÃO REF " & Definições!AA122 & " VENEZIANA DE ABRIR")) -> PORTA DE OITÃO REF 101 VENEZIANA DE ABRIR
AH7: LINHA | AI7: COLUNA | AJ7: CÉLULA | AK7: DESCRIÇÃO
H8: =AK8 -> Janela com veneziana pantográfica e caixilhos de correr, trilho de alumínio nas venezianas e nos caixilhos, todos caixilhos móveis, ferragem preta, | AH8: 16 | AI8: H | AJ8: ="$"& AI8 & "$" &AH8 -> $H$16 | AK8: Janela com veneziana pantográfica e caixilhos de correr, trilho de alumínio nas venezianas e nos caixilhos, todos caixilhos móveis, ferragem preta,
H9: =AK9 -> pino de pressão, baguete, acabamento Supreme, guarnição tradicional de 6,5cm para o lado interno. | AK9: pino de pressão, baguete, acabamento Supreme, guarnição tradicional de 6,5cm para o lado interno.
N11: Digite o tamanho desejado abaixo: | AA11: Selecione a madeira: | AH11: VALOR DO ITEM | AJ11: SEU ITEM
AH12: 360.13572 | AJ12: =H6 & " " & " - Tamanho: " & Q40 & "X" & X24 & "CM - Marco: 10CM - Madeira: " & AI25 & IF(AJ13<>""," - Opcionais: " & AJ13,"") -> PORTA DE OITÃO REF 101 VENEZIANA DE ABRIR - Tamanho: 60X80CM - Marco: 10CM - Madeira: Eucalipto
AA13: =IF(AI19="S",IF(Definições!$T$113="","",Definições!$T$113),"") -> Eucalipto | AH13: 558.6002352
AH19: MADEIRA 1 | AI19: S
AH20: MADEIRA 2 | AI20: S
AH21: MADEIRA 3 | AI21: S
AH22: MADEIRA 4 | AI22: S
X24: 80 | Z24: cm | AH24: MADEIRA
AH25: M01 | AI25: =IF(AH25="M01",Definições!$T$113,"")&IF(AH25="M02",Definições!$U$113,"")&IF(AH25="M03",Definições!$V$113,"")&IF(AH25="M04",Definições!$W$113,"")&IF(AH25="M05",Definições!$T$113,"")&IF(AH25="M06",Definições!$U$113,"")&IF(AH25="M07",Definições!$V$113,"")&IF(AH25="M08",Definições!$W$113,"") -> Eucalipto
X27: ALTURA
AH30: ATUALIZA PREÇO
AH31: 1
AA32: COMPARTILHAR
AA35: PERSONALIZAR ITEM MAIS INFORMAÇÕES SOBRE A REFERÊNCIA
AA38: INCLUIR NO ORÇAMENTO
Q40: 60 | S40: cm
V41: VALOR DO ITEM | AA41: R$ | AB41: =AH12 -> 360.13572
Q43: LARGURA
H45: Seu item conforme suas escolhas:
H46: =AJ12 -> PORTA DE OITÃO REF 101 VENEZIANA DE ABRIR - Tamanho: 60X80CM - Marco: 10CM - Madeira: Eucalipto
A47: FINAL | B47: FINAL | C47: FINAL | D47: FINAL | E47: FINAL | F47: FINAL | G47: FINAL
H50: COMPRE COM A DK ESQUADRIAS E TENHA A CERTEZA DE UM BOM NEGÓCIO - DESDE 1960 SATISFAZENDO SEUS CLIENTES
H52: =IF(Definições!$AP$6="REPRESENTANTE","Representante: " & Definições!$D$94 & " - " & IF((Orçamento!$AX$13 & Orçamento!$AX$14)<>"","Fone: " & Orçamento!$AX$13 & " - E-mail: " & Orçamento!$AX$14,"Fone: " & Definições!$D$95 & " - E-mail: " & Definições!$D$96 ) & " - Vendedor: " & Orçamento!$AX$15,"") & IF(Definições!$AP$6="REVENDEDOR SEM MARGEM DE LUCRO","Parceiro: " & Orçamento!$Y$8 & " - " & IF((Orçamento!$AX$13 & Orçamento!$AX$14)<>"","Fone: " & Orçamento!$AX$13 & " - E-mail: " & Orçamento!$AX$14,"Fone: " & Orçamento!$Y$14 & " - E-mail: " & Orçamento!$P$14 ) & " - Vendedor: " & Orçamento!$AX$15,"") & IF(Definições!$AP$6="CONSTRUTORA / INCORPORADORA","Parceiro: " & Orçamento!$Y$8 & " - " & IF((Orçamento!$AX$13 & Orçamento!$AX$14)<>"","Fone: " & Orçamento!$AX$13 & " - E-mail: " & Orçamento!$AX$14,"Fone: " & Orçamento!$Y$14 & " - E-mail: " & Orçamento!$P$14 ) & " - Vendedor: " & Orçamento!$AX$15,"") & IF(Definições!$AP$6="REVENDEDOR COM MARGEM DE LUCRO","Parceiro: " & DK!$Y$8 & " - " & IF((Orçamento!$AX$13 & Orçamento!$AX$14)<>"","Fone: " & Orçamento!$AX$13 & " - E-mail: " & Orçamento!$AX$14,"Fone: " & DK!$Y$14 & " - E-mail: " & DK!$P$14 ) & " - Vendedor: " & Orçamento!$AX$15,"") -> Representante: DK ESQUADRIAS IND E COM LTDA - Fone: (51) 3547-5002 - E-mail: vendas@dkesquadrias.net.br - Vendedor: JAQUES
H53: =" MODO " & Definições!$AP$6 -> MODO REPRESENTANTE | U53: =NOW() -> 2024-10-11T08:32:00.600 | AC53: =NOW() -> 45576.35556
H54: ='Metro Fácil JP'!$H$54:$AD$54 -> TODAS AS FOTOS ILUSTRATIVAS SÃO DE ESQUADRIAS NA MADEIRA DE EUCALIPTO. REPRESENTAM AS ESQUADRIAS PADRÃO, SEM OPCIONAIS. A QUANTIDADE DE CAIXILHOS E VENEZIANAS PODE VARIAR
H55: ='Metro Fácil JP'!$H$55:$AD$55 -> DE ACORDO COM A MEDIDA ESCOLHIDA. O CAIXILHO NA FOTO ILUSTRATIVA SEMPRE É O LISO E A VENEZIANA É A TRADICIONAL. NÃO ACOMPANHA COLOCAÇÃO, VIDROS E PINTURA.
AS57: FINAL

Sheet Metro MG
B2: DK ESQUADRIAS IND E COM LTDA | K2: =IF(Definições!$Y$17="SIM","CF","RV") -> RV | L2: MODO | O2: =Definições!AP6 -> REPRESENTANTE
E4: =Orçamento!$P$37 & ", escolha a referência desejada:" -> JAQUES, escolha a referência desejada:
A47: FINAL | B47: FINAL | C47: FINAL | D47: FINAL | E47: FINAL | F47: FINAL | G47: FINAL | H47: FINAL | I47: FINAL | J47: FINAL | K47: FINAL | L47: FINAL | M47: FINAL | N47: FINAL | O47: FINAL | P47: FINAL | Q47: FINAL | R47: FINAL | S47: FINAL | T47: FINAL | U47: FINAL | V47: FINAL | W47: FINAL | X47: FINAL | Y47: FINAL | Z47: FINAL | AA47: FINAL | AB47: FINAL | AC47: FINAL | AD47: FINAL

Sheet Metro Fácil M
B2: DK ESQUADRIAS IND E COM LTDA | K2: =IF(Definições!$Y$17="SIM","CF","RV") -> RV | L2: MODO | O2: =Definições!AP6 -> REPRESENTANTE
E3: =Orçamento!$P$37 & IF(Definições!AA122=10,", selecione a largura e a madeira:",IF(Definições!AA122=11,", selecione o tamanho e a madeira:",IF(Definições!AA122=12,", digite o tamanho e selecione a parte inferior, largura e a madeira:"))) -> JAQUESFALSO
H6: =IF(Definições!AA122=10,"MARCO PARA PORTA REF 0" & Definições!AA122 & " desmontado",IF(Definições!AA122=11,"MARCO PARA PORTA REF 0" & Definições!AA122 & " montado","MARCO MOCHO REF 0" & Definições!AA122 & " desmontado")) -> MARCO MOCHO REF 0101 desmontado
AH7: LINHA | AI7: COLUNA | AJ7: CÉLULA | AK7: DESCRIÇÃO
H8: =AK8 -> Jogo de marco para porta desmontado, 3,2cm de grossura, rebaixo de 3,5mm, duas laterais de 211cm, cabeceira de 100cm de comprimento, sem | AH8: 17 | AI8: F | AJ8: ="$"& AI8 & "$" &AH8 -> $F$17 | AK8: Jogo de marco para porta desmontado, 3,2cm de grossura, rebaixo de 3,5mm, duas laterais de 211cm, cabeceira de 100cm de comprimento, sem
H9: =AK9 -> guarnição. Preço por jogo. | AK9: guarnição. Preço por jogo.
H11: =IF(Definições!AA122=11,"Selecione o tamanho desejado:","Selecione a largura desejada:") -> Selecione a largura desejada: | N11: =IF(Definições!AA122=12," Digite o tamanho desejado:"," Tamanho:") -> Tamanho: | AA11: Selecione a madeira: | AH11: VALOR DO ITEM | AJ11: SEU ITEM
AH12: 69.99825 | AJ12: =H6 & IF(Definições!AA122=12," - " & AH34,"") & " - Tamanho: " & Q40 & "X" & X24 & "CM - Marco: " & IF(Definições!AA122=10,RIGHT(AH28, 2),"") & IF(Definições!AA122=11,"09","") & IF(Definições!AA122=12,RIGHT(AH28, 2),"") & "CM - Madeira: " & AI25 & IF(AJ13<>""," - Opcionais: " & AJ13,"") -> MARCO MOCHO REF 0101 desmontado - Tamanho: 120X213CM - Marco: CM - Madeira: Eucalipto
H13: =IF(Definições!AA122=11,"Largura X Altura (cm)","Largura (cm)") -> Largura (cm) | AA13: =IF(AI19="S",IF(Definições!$T$113="","",Definições!$T$113),"") -> Eucalipto | AH13: 45.434088
H16: =IF(Definições!AA122=11,"120","07") -> 07 | I16: =IF(Definições!AA122=11,"X","") ->  | J16: =IF(Definições!AA122=11,"213","16") -> 16 | K16: =IF(Definições!AA122=11,"cm c/1 vitro","") -> 
H18: =IF(Definições!AA122=11,"140","08") -> 08 | I18: =IF(Definições!AA122=11,"X","") ->  | J18: =IF(Definições!AA122=11,"213","17") -> 17 | K18: =IF(Definições!AA122=11,"cm c/2 vitro","") -> 
AH19: MADEIRA 1 | AI19: S
H20: =IF(Definições!AA122=11,"150","09") -> 09 | I20: =IF(Definições!AA122=11,"X","") ->  | J20: =IF(Definições!AA122=11,"213","18") -> 18 | K20: =IF(Definições!AA122=11,"cm c/2 vitro","") ->  | AH20: MADEIRA 2 | AI20: S
AH21: MADEIRA 3 | AI21: S
H22: =IF(Definições!AA122=11,"","10") -> 10 | J22: =IF(Definições!AA122=11,"","19") -> 19 | AH22: MADEIRA 4 | AI22: S
H24: =IF(Definições!AA122=11,"","11") -> 11 | J24: =IF(Definições!AA122=11,"","20") -> 20 | X24: 213 | Z24: cm | AH24: MADEIRA
AH25: M01 | AI25: =IF(AH25="M01",Definições!$T$113,"")&IF(AH25="M02",Definições!$U$113,"")&IF(AH25="M03",Definições!$V$113,"")&IF(AH25="M04",Definições!$W$113,"")&IF(AH25="M05",Definições!$T$113,"")&IF(AH25="M06",Definições!$U$113,"")&IF(AH25="M07",Definições!$V$113,"")&IF(AH25="M08",Definições!$W$113,"") -> Eucalipto
H26: =IF(Definições!AA122=11,"","12") -> 12 | J26: =IF(Definições!AA122=11,"","21") -> 21
X27: ALTURA | AH27: LARGURA
H28: =IF(Definições!AA122=11,"","13") -> 13 | J28: =IF(Definições!AA122=11,"","22") -> 22 | AH28: L07
H30: =IF(Definições!AA122=11,"","14") -> 14 | J30: =IF(Definições!AA122=11,"","23") -> 23 | AH30: ATUALIZA PREÇO
AH31: 1
H32: =IF(Definições!AA122=11,"","15") -> 15 | J32: =IF(Definições!AA122=11,"","24") -> 24 | AA32: COMPARTILHAR
AH33: PARTE INFERIOR
AH34: =IF('R012'!AD41=TRUE,"COM PARTE INFERIOR","SEM PARTE INFERIOR") -> SEM PARTE INFERIOR
H35: =IF(Definições!AA122=12,"Parte inferior:","") ->  | AA35: PERSONALIZAR ITEM MAIS INFORMAÇÕES SOBRE A REFERÊNCIA
AA38: INCLUIR NO ORÇAMENTO
Q40: 120 | S40: cm
V41: VALOR DO ITEM | AA41: R$ | AB41: =AH12 -> 69.99825
Q43: LARGURA
H45: Seu item conforme suas escolhas:
H46: =AJ12 -> MARCO MOCHO REF 0101 desmontado - Tamanho: 120X213CM - Marco: CM - Madeira: Eucalipto
A47: FINAL | B47: FINAL | C47: FINAL | D47: FINAL | E47: FINAL | F47: FINAL
H50: COMPRE COM A DK ESQUADRIAS E TENHA A CERTEZA DE UM BOM NEGÓCIO - DESDE 1960 SATISFAZENDO SEUS CLIENTES
H52: =IF(Definições!$AP$6="REPRESENTANTE","Representante: " & Definições!$D$94 & " - " & IF((Orçamento!$AX$13 & Orçamento!$AX$14)<>"","Fone: " & Orçamento!$AX$13 & " - E-mail: " & Orçamento!$AX$14,"Fone: " & Definições!$D$95 & " - E-mail: " & Definições!$D$96 ) & " - Vendedor: " & Orçamento!$AX$15,"") & IF(Definições!$AP$6="REVENDEDOR SEM MARGEM DE LUCRO","Parceiro: " & Orçamento!$Y$8 & " - " & IF((Orçamento!$AX$13 & Orçamento!$AX$14)<>"","Fone: " & Orçamento!$AX$13 & " - E-mail: " & Orçamento!$AX$14,"Fone: " & Orçamento!$Y$14 & " - E-mail: " & Orçamento!$P$14 ) & " - Vendedor: " & Orçamento!$AX$15,"") & IF(Definições!$AP$6="CONSTRUTORA / INCORPORADORA","Parceiro: " & Orçamento!$Y$8 & " - " & IF((Orçamento!$AX$13 & Orçamento!$AX$14)<>"","Fone: " & Orçamento!$AX$13 & " - E-mail: " & Orçamento!$AX$14,"Fone: " & Orçamento!$Y$14 & " - E-mail: " & Orçamento!$P$14 ) & " - Vendedor: " & Orçamento!$AX$15,"") & IF(Definições!$AP$6="REVENDEDOR COM MARGEM DE LUCRO","Parceiro: " & DK!$Y$8 & " - " & IF((Orçamento!$AX$13 & Orçamento!$AX$14)<>"","Fone: " & Orçamento!$AX$13 & " - E-mail: " & Orçamento!$AX$14,"Fone: " & DK!$Y$14 & " - E-mail: " & DK!$P$14 ) & " - Vendedor: " & Orçamento!$AX$15,"") -> Representante: DK ESQUADRIAS IND E COM LTDA - Fone: (51) 3547-5002 - E-mail: vendas@dkesquadrias.net.br - Vendedor: JAQUES
H53: =" MODO " & Definições!$AP$6 -> MODO REPRESENTANTE | U53: =NOW() -> 2024-10-11T08:32:00.600 | AC53: =NOW() -> 45576.35556
H54: ='Metro Fácil JP'!$H$54:$AD$54 -> TODAS AS FOTOS ILUSTRATIVAS SÃO DE ESQUADRIAS NA MADEIRA DE EUCALIPTO. REPRESENTAM AS ESQUADRIAS PADRÃO, SEM OPCIONAIS. A QUANTIDADE DE CAIXILHOS E VENEZIANAS PODE VARIAR
H55: ='Metro Fácil JP'!$H$55:$AD$55 -> DE ACORDO COM A MEDIDA ESCOLHIDA. O CAIXILHO NA FOTO ILUSTRATIVA SEMPRE É O LISO E A VENEZIANA É A TRADICIONAL. NÃO ACOMPANHA COLOCAÇÃO, VIDROS E PINTURA.
AS57: FINAL

Sheet Metro Fácil G
B2: DK ESQUADRIAS IND E COM LTDA | K2: =IF(Definições!$Y$17="SIM","CF","RV") -> RV | L2: MODO | O2: =Definições!AP6 -> REPRESENTANTE
E3: =Orçamento!$P$37 & ", selecione a largura, modelo e a madeira:" -> JAQUES, selecione a largura, modelo e a madeira:
H6: GUARNIÇÃO REF 020 avulsa
AH7: LINHA | AI7: COLUNA | AJ7: CÉLULA | AK7: DESCRIÇÃO
H8: =AK8 -> Jogo de marco para porta desmontado, 3,2cm de grossura, rebaixo de 3,5mm, duas laterais de 211cm, cabeceira de 100cm de comprimento, sem | AH8: 17 | AI8: F | AJ8: ="$"& AI8 & "$" &AH8 -> $F$17 | AK8: Jogo de marco para porta desmontado, 3,2cm de grossura, rebaixo de 3,5mm, duas laterais de 211cm, cabeceira de 100cm de comprimento, sem
H9: =AK9 -> guarnição. Preço por jogo. | AK9: guarnição. Preço por jogo.
H11: Selecione a largura desejada: | N11: Tamanho: | AA11: Selecione a madeira: | AH11: VALOR DO ITEM | AJ11: SEU ITEM
AH12: 20.85375 | AJ12: =H6 & " " & AI17 & " " & " - Tamanho: " & Q40 & "X" & X24 & "CM - Madeira: " & AI25 & IF(AJ13<>""," - Opcionais: " & AJ13,"") -> GUARNIÇÃO REF 020 avulsa TRADICIONAL - Tamanho: 6,5X220CM - Madeira: Eucalipto
H13: Largura (cm) | AA13: =IF(AI19="S",IF(Definições!$T$113="","",Definições!$T$113),"") -> Eucalipto | AH13: 13.53564
H16: 6.5 | AH16: MODELO
AH17: M01 | AI17: =IF(AH17="M01","TRADICIONAL","") & IF(AH17="M02","CLEAN","") & IF(AH17="M03","VINTAGE","") & IF(AH17="M04","MODERN","") -> TRADICIONAL
H18: =IF(AH17="M01","",9.5) -> 
AH19: MADEIRA 1 | AI19: S
AH20: MADEIRA 2 | AI20: S
AH21: MADEIRA 3 | AI21: S
AH22: MADEIRA 4 | AI22: S
H23: Selecione o modelo desejado:
X24: 220 | Z24: cm | AH24: MADEIRA
AH25: M01 | AI25: =IF(AH25="M01",Definições!$T$113,"")&IF(AH25="M02",Definições!$U$113,"")&IF(AH25="M03",Definições!$V$113,"")&IF(AH25="M04",Definições!$W$113,"")&IF(AH25="M05",Definições!$T$113,"")&IF(AH25="M06",Definições!$U$113,"")&IF(AH25="M07",Definições!$V$113,"")&IF(AH25="M08",Definições!$W$113,"") -> Eucalipto
X27: ALTURA | AH27: LARGURA
AH28: L01
AH30: ATUALIZA PREÇO
AH31: 1
AA32: COMPARTILHAR
AA35: PERSONALIZAR ITEM MAIS INFORMAÇÕES SOBRE A REFERÊNCIA
AA38: INCLUIR NO ORÇAMENTO
Q40: 6.5 | S40: cm
V41: VALOR DO ITEM | AA41: R$ | AB41: =AH12 -> 20.85375
Q43: LARGURA
H45: Seu item conforme suas escolhas:
H46: =AJ12 -> GUARNIÇÃO REF 020 avulsa TRADICIONAL - Tamanho: 6,5X220CM - Madeira: Eucalipto
A47: FINAL | B47: FINAL | C47: FINAL | D47: FINAL | E47: FINAL | F47: FINAL
H50: COMPRE COM A DK ESQUADRIAS E TENHA A CERTEZA DE UM BOM NEGÓCIO - DESDE 1960 SATISFAZENDO SEUS CLIENTES
H52: =IF(Definições!$AP$6="REPRESENTANTE","Representante: " & Definições!$D$94 & " - " & IF((Orçamento!$AX$13 & Orçamento!$AX$14)<>"","Fone: " & Orçamento!$AX$13 & " - E-mail: " & Orçamento!$AX$14,"Fone: " & Definições!$D$95 & " - E-mail: " & Definições!$D$96 ) & " - Vendedor: " & Orçamento!$AX$15,"") & IF(Definições!$AP$6="REVENDEDOR SEM MARGEM DE LUCRO","Parceiro: " & Orçamento!$Y$8 & " - " & IF((Orçamento!$AX$13 & Orçamento!$AX$14)<>"","Fone: " & Orçamento!$AX$13 & " - E-mail: " & Orçamento!$AX$14,"Fone: " & Orçamento!$Y$14 & " - E-mail: " & Orçamento!$P$14 ) & " - Vendedor: " & Orçamento!$AX$15,"") & IF(Definições!$AP$6="CONSTRUTORA / INCORPORADORA","Parceiro: " & Orçamento!$Y$8 & " - " & IF((Orçamento!$AX$13 & Orçamento!$AX$14)<>"","Fone: " & Orçamento!$AX$13 & " - E-mail: " & Orçamento!$AX$14,"Fone: " & Orçamento!$Y$14 & " - E-mail: " & Orçamento!$P$14 ) & " - Vendedor: " & Orçamento!$AX$15,"") & IF(Definições!$AP$6="REVENDEDOR COM MARGEM DE LUCRO","Parceiro: " & DK!$Y$8 & " - " & IF((Orçamento!$AX$13 & Orçamento!$AX$14)<>"","Fone: " & Orçamento!$AX$13 & " - E-mail: " & Orçamento!$AX$14,"Fone: " & DK!$Y$14 & " - E-mail: " & DK!$P$14 ) & " - Vendedor: " & Orçamento!$AX$15,"") -> Representante: DK ESQUADRIAS IND E COM LTDA - Fone: (51) 3547-5002 - E-mail: vendas@dkesquadrias.net.br - Vendedor: JAQUES
H53: =" MODO " & Definições!$AP$6 -> MODO REPRESENTANTE | U53: =NOW() -> 2024-10-11T08:32:00.600 | AC53: =NOW() -> 45576.35556
H54: ='Metro Fácil JP'!$H$54:$AD$54 -> TODAS AS FOTOS ILUSTRATIVAS SÃO DE ESQUADRIAS NA MADEIRA DE EUCALIPTO. REPRESENTAM AS ESQUADRIAS PADRÃO, SEM OPCIONAIS. A QUANTIDADE DE CAIXILHOS E VENEZIANAS PODE VARIAR
H55: ='Metro Fácil JP'!$H$55:$AD$55 -> DE ACORDO COM A MEDIDA ESCOLHIDA. O CAIXILHO NA FOTO ILUSTRATIVA SEMPRE É O LISO E A VENEZIANA É A TRADICIONAL. NÃO ACOMPANHA COLOCAÇÃO, VIDROS E PINTURA.
AS57: FINAL

Sheet Catálogo Top Premium
K4: LINHA SUPREME CATÁLOGO
K7: =Orçamento!$P$37 & ", abaixo clique na referência desejada:" -> JAQUES, abaixo clique na referência desejada:
K254: PARA MAIS INFORMAÇÕES ACESSE NOSSO SITE:
K255: www.dkesquadrias.net.br

Sheet Catálogo Soft
K4: LINHA CLASSIC CATÁLOGO
K7: =Orçamento!$P$37 & ", abaixo clique na referência desejada:" -> JAQUES, abaixo clique na referência desejada:
K205: PARA MAIS INFORMAÇÕES ACESSE NOSSO SITE:
K206: www.dkesquadrias.net.br

Sheet Solicitação Assistência
V2: 0 | AC2: 0
K4: SOLICITAÇÃO DE ASSISTÊNCIA
K14: NOME DE QUEM ESTÁ PREENCHENDO: | Q14: =IF(Orçamento!$AX$15="","",Orçamento!$AX$15) -> JAQUES
K16: DATA SOLICITAÇÃO: | N16: =NOW() -> 2024-10-11T08:32:00.610 | S16: VISITA Nº:
K18: DADOS DA LOJA ONDE FORAM COMPRADAS AS ESQUADRIAS
K19: NOME: | S19: CNPJ:
K20: CONTATO: | P20: FONE: | S20: CELULAR:
K21: E-MAIL: | S21: DATA:
K23: DADOS DO CONSUMIDOR FINAL ONDE FORAM INSTALADAS AS ESQUADRIAS | AC23: DADOS DO REPRESENTANTE:
K24: NOME: | S24: CPF: | AC24: NOME:
K25: END: | S25: Nº: | AC25: FONE:
K26: BAIRRO: | O26: CIDADE: | S26: UF: | T26: RS | AC26: E-MAIL:
K27: COMPL:
K28: FONE: | S28: CELULAR:
K29: E-MAIL: | S29: DATA:
K31: DADOS DO REPRESENTANTE DA DK ESQUADRIAS
K32: NOME: | L32: =IF($AD$24<>"",$AD$24,Definições!$S$9) -> DK ESQUADRIAS IND E COM LTDA | O32: FONE: | P32: =IF($AD$25<>"",$AD$25,Definições!$S$10) -> (51) 3547-5002 | R32: E-MAIL: | S32: =IF($AD$26<>"",$AD$26,Definições!$S$11) -> vendas@dkesquadrias.net.br
K34: DESCRIÇÃO DETALHADA DO PROBLEMA
K46: PRAZO PARA ASSISTÊNCIA
K47: O PRAZO PARA A VISITA DO TÉCNICO É DE NO MÁXIMO 21 DIAS ÚTEIS APÓS O RECEBIMENTO DESTA
K48: SOLICITAÇÃO PELA DK ESQUADRIAS, TODOS OS DADOS DEVEM ESTAR PREENCHIDOS.
K49: O ENVIO DEVERÁ SER FEITO ATRAVÉS DESTE SISTEMA OU POR E-MAIL (assistencia@dkesquadrias.net.br).
K50: APÓS O RECEBIMENTO ENTRAREMOS EM CONTATO PARA AGENDAR A VISITA. O AGENDAMENTO SERÁ NO HORÁRIO
K51: COMERCIAL DA DK ESQUADRIAS, DE SEGUNDA A SEXTA, ENTRE 07:00H/11:30H E 13:00H/17:18H.
K53: TERMOS DA GARANTIA
K54: GARANTIA DE FÁBRICA APÓS A DATA DA COMPRA NO PERÍODO DE
K55: 1 ANO NA LINHA SUPREME E 1 ANO NA LINHA CLASSIC.
K56: CASO O TÉCNICO VERIFIQUE QUE O NÃO FUNCIONAMENTO DA ESQUADRIA SEJA DECORRENTE DE NÃO
K57: ESTAR PINTADA, POR MÁ COLOCAÇÃO OU ESTAR DANIFICADA, O CLIENTE PERDERÁ A GARANTIA. CASO ISSO
K58: ACONTEÇA, O TÉCNICO VAI ORÇAR O CONSERTO, CABENDO AO CLIENTE DECIDIR SE EFETUARÁ OU NÃO O SERVIÇO
K59: MEDIANTE O PAGAMENTO DO VALOR ORÇADO. NO CASO DE A ESQUADRIA ESTAR DANIFICADA,
K60: O TÉCNICO IRÁ VERIFICAR SE O DANO É DE RESPONSABILIDADE DA DK ESQUADRIAS.
K61: NO CASO DE PERDA DE GARANTIA, O DESLOCAMENTO DO TÉCNICO SERÁ COBRADO.

Sheet Solicitação Assistência Espelho (hidden)
W2: 0
I7: DK ESQUADRIAS INDÚSTRIA E COMÉRCIO LTDA
I8: FONE: (51) 3547-5002 E-MAIL: assistencia@dkesquadrias.net.br
E11: SOLICITAÇÃO DE ASSISTÊNCIA
E14: NOME DE QUEM ESTÁ PREENCHENDO: | K14: FERNANDO
E16: DATA SOLICITAÇÃO: | H16: 2023-10-02T09:06:56.330 | M16: VISITA Nº:
E18: DADOS DA LOJA ONDE FORAM COMPRADAS AS ESQUADRIAS
E19: NOME: | F19: TESTE | M19: CNPJ:
E20: CONTATO: | J20: FONE: | M20: CELULAR:
E21: E-MAIL: | M21: DATA:
E23: DADOS DO CONSUMIDOR FINAL ONDE FORAM INSTALADAS AS ESQUADRIAS
E24: NOME: | F24: TESTE TESTE | M24: CPF:
E25: END: | M25: Nº:
E26: BAIRRO: | I26: CIDADE: | M26: UF: | N26: RS
E27: COMPL:
E28: FONE: | M28: CELULAR:
E29: E-MAIL: | M29: DATA:
E31: DADOS DO REPRESENTANTE DA DK ESQUADRIAS
E32: NOME: | F32: FKB REPRESENTAÇÕES | I32: FONE: | J32: (51) 98014-7864 | L32: E-MAIL: | M32: fernandoklein@hotmail.com
E34: DESCRIÇÃO DETALHADA DO PROBLEMA
E35: TESTE TESTE TESTE
E46: PRAZO PARA ASSISTÊNCIA
E47: O PRAZO PARA A VISITA DO TÉCNICO É DE NO MÁXIMO 21 DIAS ÚTEIS APÓS O RECEBIMENTO DESTA
E48: SOLICITAÇÃO PELA DK ESQUADRIAS, TODOS OS DADOS DEVEM ESTAR PREENCHIDOS.
E49: O ENVIO DEVERÁ SER FEITO ATRAVÉS DESTE SISTEMA OU POR E-MAIL (assistencia@dkesquadrias.net.br).
E50: APÓS O RECEBIMENTO ENTRAREMOS EM CONTATO PARA AGENDAR A VISITA. O AGENDAMENTO SERÁ NO HORÁRIO
E51: COMERCIAL DA DK ESQUADRIAS, DE SEGUNDA A SEXTA, ENTRE 07:00H/11:30H E 13:00H/17:18H.
E53: TERMOS DA GARANTIA
E54: GARANTIA DE FÁBRICA APÓS A DATA DA COMPRA NO PERÍODO DE
E55: 1 ANO NA LINHA SUPREME E 1 ANO NA LINHA CLASSIC.
E56: CASO O TÉCNICO VERIFIQUE QUE O NÃO FUNCIONAMENTO DA ESQUADRIA SEJA DECORRENTE DE NÃO
E57: ESTAR PINTADA, POR MÁ COLOCAÇÃO OU ESTAR DANIFICADA, O CLIENTE PERDERÁ A GARANTIA. CASO ISSO
E58: ACONTEÇA, O TÉCNICO VAI ORÇAR O CONSERTO, CABENDO AO CLIENTE DECIDIR SE EFETUARÁ OU NÃO O SERVIÇO
E59: MEDIANTE O PAGAMENTO DO VALOR ORÇADO. NO CASO DE A ESQUADRIA ESTAR DANIFICADA,
E60: O TÉCNICO IRÁ VERIFICAR SE O DANO É DE RESPONSABILIDADE DA DK ESQUADRIAS.
E61: NO CASO DE PERDA DE GARANTIA, O DESLOCAMENTO DO TÉCNICO SERÁ COBRADO.

Sheet Solicitação Histórico
K4: SOLICITAÇÃO DE ASSISTÊNCIA - HISTÓRICO | V4: DK ESQUADRIAS
K7: DATA | L7: MÊS | M7: ANO | N7: NOME DA LOJA | O7: NOME DO C.F. | P7: PREENCHEU | Q7: AÇÃO | R7: REPRESENTANTE
K8: 20/08/2019 | L8: AGOSTO | M8: 2019 | N8: TESTE | O8: TESTE | P8: FERNANDO | Q8: E-MAIL | R8: FKB REPRESENTAÇÕES | S8: ASSISTÊNCIA - TESTE - TESTE-2019-08-20-H0950-EMAIL.pdf
K9: 14/06/2019 | L9: JUNHO | M9: 2019 | N9: FERNANDO | O9: TESTE TESTTE | P9: FERNANDO | Q9: E-MAIL | R9: FKB REPRESENTAÇÕES | S9: ASSISTÊNCIA - FERNANDO - TESTE TESTTE-2019-06-14-H1055-EMAIL.pdf
K10: 29/05/2019 | L10: MAIO | M10: 2019 | P10: FERNANDO | Q10: PDF | R10: FKB REPRESENTAÇÕES | S10: ASSISTÊNCIA - - -2019-05-29-H1343-PDF.pdf
K11: 29/05/2019 | L11: MAIO | M11: 2019 | P11: FERNANDO | Q11: PDF | R11: FKB REPRESENTAÇÕES | S11: ASSISTÊNCIA - - -2019-05-29-H1310-PDF.pdf
K12: 29/05/2019 | L12: MAIO | M12: 2019 | P12: FERNANDO | Q12: PDF | R12: FKB REPRESENTAÇÕES | S12: ASSISTÊNCIA - - -2019-05-29-H1246-PDF.pdf
K13: 29/05/2019 | L13: MAIO | M13: 2019 | P13: FERNANDO | Q13: PDF | R13: FKB REPRESENTAÇÕES | S13: ASSISTÊNCIA - - -2019-05-29-H1245-PDF.pdf
K14: 29/05/2019 | L14: MAIO | M14: 2019 | P14: FERNANDO | Q14: PDF | R14: FKB REPRESENTAÇÕES | S14: ASSISTÊNCIA - - -2019-05-29-H1241-PDF.pdf

Sheet Solicitação Histórico Espelho (hidden)
K4: SOLICITAÇÃO DE ASSISTÊNCIA - HISTÓRICO
K7: DATA | L7: MÊS | M7: ANO | N7: NOME DA LOJA | O7: NOME DO CLIENTE FINAL | P7: PREENCHEU | Q7: AÇÃO | R7: REPRESENTANTE

Sheet Avisos Histórico
K4: AVISOS - HISTÓRICO | V4: DK ESQUADRIAS
K7: DATA | L7: MÊS | M7: ANO | N7: DESTINATÁRIO | O7: AVISO | P7: ENVIOU | Q7: AÇÃO | R7: REPRESENTANTE
K8: 13/09/2019 | L8: SETEMBRO | M8: 2019 | N8: fernando - fernandoklein@hotmail.com | O8: PREÇOS IMBATÍVEIS | P8: FERNANDO | Q8: E-MAIL | R8: FKB REPRESENTAÇÕES | S8: ASSISTÊNCIA - TESTE - TESTE-2019-08-20-H0950-EMAIL.pdf
K9: 21/05/2019 | L9: MAIO | M9: 2019 | N9: FERNANDO - fernandoklein@hotmail.com | O9: LISTA DE PREÇOS | P9: FERNANDO | Q9: E-MAIL | R9: FKB REPRESENTAÇÕES | S9: ASSISTÊNCIA - FERNANDO - FERNANDO-2019-02-04-H1337-PDF.pdf
K10: 21/05/2019 | L10: MAIO | M10: 2019 | N10: FERNANDO - fernandoklein@hotmail.com | O10: CATÁLOGO SOFT | P10: FERNANDO | Q10: E-MAIL | R10: FKB REPRESENTAÇÕES | S10: ASSISTÊNCIA - FERNANDO - FERNANDO-2019-02-04-H1337-PDF.pdf
K11: 21/05/2019 | L11: MAIO | M11: 2019 | N11: FERNANDO - fernandoklein@hotmail.com | O11: CATÁLOGO PREMIUM | P11: FERNANDO | Q11: E-MAIL | R11: FKB REPRESENTAÇÕES | S11: ASSISTÊNCIA - FERNANDO - FERNANDO-2019-02-04-H1337-PDF.pdf
K12: 21/05/2019 | L12: MAIO | M12: 2019 | N12: FERNANDO - fernandoklein@hotmail.com | O12: CATÁLOGO TOP PREMIUM | P12: FERNANDO | Q12: E-MAIL | R12: FKB REPRESENTAÇÕES | S12: ASSISTÊNCIA - FERNANDO - FERNANDO-2019-02-04-H1337-PDF.pdf
K13: 21/05/2019 | L13: MAIO | M13: 2019 | N13: FERNANDO - fernandoklein@hotmail.com | O13: VANTAGENS | P13: FERNANDO | Q13: E-MAIL | R13: FKB REPRESENTAÇÕES | S13: ASSISTÊNCIA - FERNANDO - FERNANDO-2019-02-04-H1337-PDF.pdf
K14: 21/05/2019 | L14: MAIO | M14: 2019 | N14: FERNANDO - fernandoklein@hotmail.com | O14: VANTAGENS | P14: FERNANDO | Q14: E-MAIL | R14: FKB REPRESENTAÇÕES | S14: ASSISTÊNCIA - FERNANDO - FERNANDO-2019-02-04-H1337-PDF.pdf
K15: 21/05/2019 | L15: MAIO | M15: 2019 | N15: FERNANDO - fernandoklein@hotmail.com | O15: CATÁLOGO PREMIUM | P15: FERNANDO | Q15: E-MAIL | R15: FKB REPRESENTAÇÕES | S15: ASSISTÊNCIA - FERNANDO - FERNANDO-2019-02-04-H1337-PDF.pdf
K16: 21/05/2019 | L16: MAIO | M16: 2019 | N16: FERNANDO - fernandoklein@hotmail.com | O16: CATÁLOGO TOP PREMIUM | P16: FERNANDO | Q16: E-MAIL | R16: FKB REPRESENTAÇÕES | S16: ASSISTÊNCIA - FERNANDO - FERNANDO-2019-02-04-H1337-PDF.pdf
K17: 21/05/2019 | L17: MAIO | M17: 2019 | N17: FERNANDO - fernandoklein@hotmail.com | O17: CATÁLOGO SOFT | P17: FERNANDO | Q17: E-MAIL | R17: FKB REPRESENTAÇÕES | S17: ASSISTÊNCIA - FERNANDO - FERNANDO-2019-02-04-H1337-PDF.pdf
K18: 21/05/2019 | L18: MAIO | M18: 2019 | N18: FERNANDO - fernandoklein@hotmail.com | O18: CATÁLOGO PREMIUM | P18: FERNANDO | Q18: E-MAIL | R18: FKB REPRESENTAÇÕES | S18: ASSISTÊNCIA - FERNANDO - FERNANDO-2019-02-04-H1337-PDF.pdf
K19: 21/05/2019 | L19: MAIO | M19: 2019 | N19: FERNANDO - fernandoklein@hotmail.com | O19: CATÁLOGO TOP PREMIUM | P19: FERNANDO | Q19: E-MAIL | R19: FKB REPRESENTAÇÕES | S19: ASSISTÊNCIA - FERNANDO - FERNANDO-2019-02-04-H1337-PDF.pdf
K20: 21/05/2019 | L20: MAIO | M20: 2019 | N20: FERNANDO - fernandoklein@hotmail.com | O20: CATÁLOGO SOFT | P20: FERNANDO | Q20: E-MAIL | R20: FKB REPRESENTAÇÕES | S20: ASSISTÊNCIA - FERNANDO - FERNANDO-2019-02-04-H1337-PDF.pdf
K21: 21/05/2019 | L21: MAIO | M21: 2019 | N21: tutite - facebook@dkesquadrias.net.br | O21: CATÁLOGO TOP PREMIUM | P21: FERNANDO | Q21: E-MAIL | R21: FKB REPRESENTAÇÕES | S21: ASSISTÊNCIA - FERNANDO - FERNANDO-2019-02-04-H1337-PDF.pdf
K22: 21/05/2019 | L22: MAIO | M22: 2019 | N22: FERNANDO - fernandoklein@hotmail.com | O22: VANTAGENS | P22: FERNANDO | Q22: E-MAIL | R22: FKB REPRESENTAÇÕES | S22: ASSISTÊNCIA - FERNANDO - FERNANDO-2019-02-04-H1337-PDF.pdf
K23: 21/05/2019 | L23: MAIO | M23: 2019 | N23: FERNANDO - fernandoklein@hotmail.com | O23: CATÁLOGO PREMIUM | P23: FERNANDO | Q23: E-MAIL | R23: FKB REPRESENTAÇÕES | S23: ASSISTÊNCIA - FERNANDO - FERNANDO-2019-02-04-H1337-PDF.pdf
K24: 21/05/2019 | L24: MAIO | M24: 2019 | N24: FERNANDO - fernandoklein@hotmail.com | O24: CATÁLOGO SOFT | P24: FERNANDO | Q24: E-MAIL | R24: FKB REPRESENTAÇÕES | S24: ASSISTÊNCIA - FERNANDO - FERNANDO-2019-02-04-H1337-PDF.pdf
K25: 21/05/2019 | L25: MAIO | M25: 2019 | N25: FERNANDO - fernandoklein@hotmail.com | O25: CATÁLOGO PREMIUM | P25: FERNANDO | Q25: E-MAIL | R25: FKB REPRESENTAÇÕES | S25: ASSISTÊNCIA - FERNANDO - FERNANDO-2019-02-04-H1337-PDF.pdf
K26: 21/05/2019 | L26: MAIO | M26: 2019 | N26: FERNANDO - fernandoklein@hotmail.com | O26: CATÁLOGO TOP PREMIUM | P26: FERNANDO | Q26: E-MAIL | R26: FKB REPRESENTAÇÕES | S26: ASSISTÊNCIA - FERNANDO - FERNANDO-2019-02-04-H1337-PDF.pdf
K27: 21/05/2019 | L27: MAIO | M27: 2019 | N27: FERNANDO - fernandoklein@hotmail.com | O27: LISTA DE PREÇOS | P27: FERNANDO | Q27: E-MAIL | R27: FKB REPRESENTAÇÕES | S27: ASSISTÊNCIA - FERNANDO - FERNANDO-2019-02-04-H1337-PDF.pdf
K28: 21/05/2019 | L28: MAIO | M28: 2019 | N28: FERNANDO - fernandoklein@hotmail.com | O28: NOVIDADES | P28: FERNANDO | Q28: E-MAIL | R28: FKB REPRESENTAÇÕES | S28: ASSISTÊNCIA - FERNANDO - FERNANDO-2019-02-04-H1337-PDF.pdf
K29: 21/05/2019 | L29: MAIO | M29: 2019 | N29: FERNANDO - fernandoklein@hotmail.com | O29: VANTAGENS | P29: FERNANDO | Q29: E-MAIL | R29: FKB REPRESENTAÇÕES | S29: ASSISTÊNCIA - FERNANDO - FERNANDO-2019-02-04-H1337-PDF.pdf
K30: 21/05/2019 | L30: MAIO | M30: 2019 | N30: FERNANDO - fernandoklein@hotmail.com | O30: PREÇOS IMBATÍVEIS | P30: FERNANDO | Q30: E-MAIL | R30: FKB REPRESENTAÇÕES | S30: ASSISTÊNCIA - FERNANDO - FERNANDO-2019-02-04-H1337-PDF.pdf
K31: 21/05/2019 | L31: MAIO | M31: 2019 | N31: ROLINDO - fernandoklein@hotmail.com | O31: VANTAGENS | P31: FERNANDO | Q31: E-MAIL | R31: FKB REPRESENTAÇÕES | S31: ASSISTÊNCIA - FERNANDO - FERNANDO-2019-02-04-H1337-PDF.pdf
K32: 21/05/2019 | L32: MAIO | M32: 2019 | N32: FERNANDO - fernandoklein@hotmail.com | O32: CATÁLOGO PREMIUM | P32: FERNANDO | Q32: E-MAIL | R32: FKB REPRESENTAÇÕES | S32: ASSISTÊNCIA - FERNANDO - FERNANDO-2019-02-04-H1337-PDF.pdf
K33: 21/05/2019 | L33: MAIO | M33: 2019 | N33: FERNANDO - fernandoklein@hotmail.com | O33: CATÁLOGO TOP PREMIUM | P33: FERNANDO | Q33: E-MAIL | R33: FKB REPRESENTAÇÕES | S33: ASSISTÊNCIA - FERNANDO - FERNANDO-2019-02-04-H1337-PDF.pdf
K34: 21/05/2019 | L34: MAIO | M34: 2019 | N34: FERNANDO - fernandoklein@hotmail.com | O34: NOVIDADES | P34: FERNANDO | Q34: E-MAIL | R34: FKB REPRESENTAÇÕES | S34: ASSISTÊNCIA - FERNANDO - FERNANDO-2019-02-04-H1337-PDF.pdf
K35: 21/05/2019 | L35: MAIO | M35: 2019 | N35: FERNANDO - fernandoklein@hotmail.com | O35: VANTAGENS | P35: FERNANDO | Q35: E-MAIL | R35: FKB REPRESENTAÇÕES | S35: ASSISTÊNCIA - FERNANDO - FERNANDO-2019-02-04-H1337-PDF.pdf

Sheet Garantia
AC2: 0
K4: GARANTIA DK ESQUADRIAS
L19: TERMOS DA GARANTIA
L22: SEGUINDO RIGOROSAMENTE OS PASSOS DESTES TERMOS VOCÊ TEM:
L23: =UPPER('Atualização Geral'!B51) & " DE GARANTIA NA LINHA SUPREME" -> 1 ANO DE GARANTIA NA LINHA SUPREME
L24: =UPPER('Atualização Geral'!B53) & " DE GARANTIA NA LINHA CLASSIC" -> 1 ANO DE GARANTIA NA LINHA CLASSIC
L28: ARMAZENAMENTO DAS ESQUADRIAS
L29: AO CHEGAR NA OBRA CONFIRA SE TODAS AS ESQUADRIAS ESTÃO COM AS MEDIDAS CORRETAS, DE ACORDO COM O PEDIDO. ARMAZENE AS ESQUADRIAS EM UM LOCAL SECO E COBERTO PARA EVITAR SOL E CHUVA. DEIXE AS ESQUADRIAS NA POSIÇÃO VERTICAL, SOBRE RIPAS DE MADEIRA, PARA EVITAR A UMIDADE DO CHÃO. PROTEJA-AS PARA QUE NÃO SEJAM ATINGIDAS POR RESPINGOS DE ÁGUA, TINTAS, CIMENTO OU QUALQUER OUTRO MATERIAL QUE POSSA MANCHAR A MADEIRA E AS FERRAGENS.
L35: O PROCEDIMENTO DE PINTURA E INSTALAÇÃO DEVE SER FEITO POR PROFISSIONAL QUALIFICADO
L36: PINTURA: ANTES DA INSTALAÇÃO DAS ESQUADRIAS DEVE-SE PASSAR DUAS MÃOS DE TINTA PARA FUNDO EM TODAS AS PARTES DAS ESQUADRIAS, INCLUSIVE NA PARTE EXTERNA DO MARCO, PARA EVITAR A ABSORÇÃO DE UMIDADE E O EMPENAMENTO. AS FERRAGENS NÃO DEVEM SER PINTADAS PARA GARANTIR O FUNCIONAMENTO E A ESTÉTICA . APÓS A INSTALAÇÃO DEVE SER FEITA A PINTURA FINAL, ASSIM EVITANDO DANOS COMUNS CAUSADOS PELAS CONDIÇÕES CLIMÁTICAS ADVERSAS. A PINTURA NATURALMENTE SOFRE COM A AÇÃO DO TEMPO, PORTANTO, QUANDO A PINTURA APRESENTAR SINAIS DE DESGASTE E ENVELHECIMENTO DEVE-SE FAZER A MANUTENÇÃO NECESSÁRIA PARA A MANTER SEMPRE EM BOAS CONDIÇÕES. A PINTURA INADEQUADA OU SUA AUSÊNCIA ANULA A GARANTIA. RECOMENDAÇÃO: EM POUCOS CASOS, A MADEIRA DE EUCALIPTO PODE APRESENTAR ALGUMA MANCHA NA PINTURA DEVIDO SUA RESINA, PARA EVITAR ISSO, PRIMEIRO PASSE DUAS MÃOS DE ISOLANTE ANTES DO FUNDO, COM ISSO EVITANDO QUE A RESINA AFETE A PINTURA FINAL. INSTALAÇÃO: A ESQUADRIA DEVE ESTAR EXATAMENTE NO PRUMO E NO NÍVEL. A FIXAÇÃO DEVE SER FEITA COM ESPUMA DE POLIETIRENO OU COM TACOS DE MADEIRA, SENDO COM ESPUMA A ESQUADRIA DEVE SER DEVIDAMENTE CALÇADA ANTES DA APLICAÇÃO DA ESPUMA, SENDO COM TACOS DE MADEIRA OS PONTOS DE FIXAÇÃO DEVEM SER DE NO MÁXIMO 40CM UM DO OUTRO, NAS LATERAIS, CABECEIRA E SOLEIRA. A FORMA DA ESQUADRIA NÃO DEVE SER ALTERADA.
L50: EXCLUSÕES
L51: FECHADURAS, PUXADORES, CREMONAS E FERRAGENS COM DESGASTE NATURAL EM SEU USO NÃO ESTÃO INCLUÍDOS NA GARANTIA. ESSAS FERRAGENS ENTRAM NA GARANTIA FORNECIDA PELO SEU FABRICANTE, PODENDO VARIAR DE ACORDO COM O FABRICANTE.
L55: DK ESQUADRIAS IND E COM LTDA - ROLANTE / RS - FONE: (51) 3547-5002

Sheet Vantagens
K4: VANTAGENS DK ESQUADRIAS
K52: VANTAGENS DA DK ESQUADRIAS
K101: VANTAGENS DA DK ESQUADRIAS
K149: VANTAGENS DA DK ESQUADRIAS
K197: VANTAGENS DA DK ESQUADRIAS
K240: PARA MAIS VANTAGENS ACESSE NOSSO SITE:
K241: www.dkesquadrias.net.br

Sheet Feedback
K4: FEEDBACK SOBRE O SISTEMA PDV
N8: INSATISFEITO | AC8: =L21 -> FACILIDADE DE USO | AD8: 0
AC9: =L27 -> VISUAL | AD9: 0
N10: TEM QUE MELHORAR | AC10: =L33 -> RECURSOS | AD10: 0
AC11: =L39 -> UTILIDADE | AD11: 0
N12: PODE MELHORAR | AC12: =L45 -> GERAL | AD12: 0
AC13: VALIDA | AD13: =SUM(AD8:AD12) -> 0
N14: CHEGANDO LÁ
N16: APROVADO
L18: AVALIE PELOS CRITÉRIOS SELECIONANDO AS ESTRELAS ABAIXO E OPINE EM CADA CRITÉRIO. SEJA SINCERO, POIS SÓ ASSIM PODEREMOS MELHORAR:
L21: FACILIDADE DE USO
L23: ESCREVA SUA OPINIÃO AQUI, ELA É MUITO IMPORTANTE...
L27: VISUAL
L29: ESCREVA SUA OPINIÃO AQUI, ELA É MUITO IMPORTANTE...
L33: RECURSOS
L35: ESCREVA SUA OPINIÃO AQUI, ELA É MUITO IMPORTANTE...
L39: UTILIDADE
L41: ESCREVA SUA OPINIÃO AQUI, ELA É MUITO IMPORTANTE...
L45: GERAL
L47: ESCREVA SUA OPINIÃO AQUI, ELA É MUITO IMPORTANTE...
L51: ESPAÇO PARA SUGESTÕES E CRITICAS:
L53: ESCREVA AQUI...
L63: SEU NOME: | N63: =IF(Orçamento!$AX$15="","",Orçamento!$AX$15) -> JAQUES | R63: FONE: | S63: =IF(Orçamento!$AX$13="",(IF(Definições!$AP$6="REPRESENTANTE",Definições!$U$10,IF(Definições!$AP$6="REVENDEDOR COM MARGEM DE LUCRO",DK!$Y$14,Orçamento!$Y$14))),Orçamento!$AX$13) -> (51) 3547-5002
L65: NOME DA EMPRESA: | O65: =IF(Definições!$AP$6="REPRESENTANTE",Definições!$S$9,IF(Definições!$AP$6="REVENDEDOR COM MARGEM DE LUCRO",DK!$Y$8,Orçamento!$Y$8)) -> DK ESQUADRIAS IND E COM LTDA
L67: OBRIGADO POR COMPARTILHAR SUA OPINIÃO! ELA É MUITO IMPORTANTE PARA PODERMOS MELHORAR!
L71: ="REVISÃO: " & Definições!$S$5 -> REVISÃO: 00312 | S71: =NOW() -> 2024-10-11T08:32:00.600

Sheet Pesquisa de Satisfação
K4: PESQUISA DE SATISFAÇÃO
N8: MUITO INSATISFEITO | AC8: =L21 -> REPRESENTANTE | AD8: 0
AC9: =L27 -> QUALIDADE | AD9: 0
N10: INSATISFEITO | AC10: =L33 -> ENTREGA | AD10: 0
AC11: =L39 -> GARANTIA | AD11: 0
N12: NEUTRO | AC12: =L45 -> DIVERSIDADE | AD12: 0
AC13: =L51 -> LINHAS DE PRODUTOS | AD13: 0
N14: SATISFEITO | AC14: =L57 -> VALORES | AD14: 0
AC15: =L63 -> SISTEMA PDV | AD15: 0
N16: MUITO SATISFEITO | AC16: =L69 -> CATÁLOGOS | AD16: 0
AC17: =L75 -> SITE | AD17: 0
L18: AVALIE PELOS CRITÉRIOS SELECIONANDO AS ESTRELAS ABAIXO E OPINE EM CADA CRITÉRIO. SEJA SINCERO, POIS SÓ ASSIM PODEREMOS MELHORAR: | AC18: =L81 -> PREÇOS IMBATÍVEIS | AD18: 0
AC19: =L87 -> MELHORAR | AD19: 0
AC20: =L93 -> EMPRESA | AD20: 0
L21: REPRESENTANTE | AC21: VALIDA | AD21: =SUM(AD8:AD20) -> 0
L23: ESCREVA SUA OPINIÃO AQUI, ELA É MUITO IMPORTANTE...
L27: QUALIDADE
L29: ESCREVA SUA OPINIÃO AQUI, ELA É MUITO IMPORTANTE...
L33: ENTREGA
L35: ESCREVA SUA OPINIÃO AQUI, ELA É MUITO IMPORTANTE...
L39: GARANTIA
L41: ESCREVA SUA OPINIÃO AQUI, ELA É MUITO IMPORTANTE...
L45: DIVERSIDADE
L47: ESCREVA SUA OPINIÃO AQUI, ELA É MUITO IMPORTANTE...
L51: LINHAS DE PRODUTOS
L53: ESCREVA SUA OPINIÃO AQUI, ELA É MUITO IMPORTANTE...
L57: VALORES
L59: ESCREVA SUA OPINIÃO AQUI, ELA É MUITO IMPORTANTE...
L63: SISTEMA PDV
L65: ESCREVA SUA OPINIÃO AQUI, ELA É MUITO IMPORTANTE...
L69: CATÁLOGOS
L71: ESCREVA SUA OPINIÃO AQUI, ELA É MUITO IMPORTANTE...
L75: SITE
L77: ESCREVA SUA OPINIÃO AQUI, ELA É MUITO IMPORTANTE...
L81: PREÇOS IMBATÍVEIS
L83: ESCREVA SUA OPINIÃO AQUI, ELA É MUITO IMPORTANTE...
L87: MELHORAR
L89: ESCREVA SUA OPINIÃO AQUI, ELA É MUITO IMPORTANTE...
L93: EMPRESA
L95: ESCREVA SUA OPINIÃO AQUI, ELA É MUITO IMPORTANTE...
L99: ESPAÇO PARA SUGESTÕES E CRITICAS:
L101: ESCREVA AQUI...
L111: SEU NOME: | N111: =IF(Orçamento!$AX$15="","",Orçamento!$AX$15) -> JAQUES
L113: NOME DA EMPRESA: | O113: =IF(Definições!$AP$6="REPRESENTANTE",Definições!$S$9,IF(Definições!$AP$6="REVENDEDOR COM MARGEM DE LUCRO",DK!$Y$8,Orçamento!$Y$8)) -> DK ESQUADRIAS IND E COM LTDA
L115: OBRIGADO POR COMPARTILHAR SUA OPINIÃO! ELA É MUITO IMPORTANTE PARA PODERMOS MELHORAR!
L119: ="REVISÃO: " & Definições!$S$5 -> REVISÃO: 00312 | S119: =NOW() -> 2024-10-11T08:32:00.600

Sheet Suporte Remoto
AC2: 0
K4: SUPORTE REMOTO DK ESQUADRIAS
AC9: VALIDAR ENVIO DE FEEDBACK
L23: ABAIXO ENTRE NO SOFTWARE DE ACESSO REMOTO DE SUA PREFERÊNCIA:
L27: E QUANDO SOLICITADO INFORME SUA ID E SENHA.
L59: VOCÊ TAMBÉM PODE ENTRAR EM CONTATO DIRETO COM A DK, ATRÁVES DAS SEGUINTES FORMAS:
L61: Fone: (51) 3547-5002 E-mail: contato@dkesquadrias.net.br
L65: HORÁRIO DE ATENDIMENTO:
L66: de segunda a sexta: 07:00/11:30H - 13:00/17:18H

Sheet Ponta de Estoque
Y2: 0
L4: PONTA DE ESTOQUE DK ESQUADRIAS
AG7: LINHA ATUAL: | AH7: 23
K8: # | L8: CD | M8: QUANT | N8: REF | O8: MADEIRA | P8: MEDIDAS (CM) | R8: MODELO DO CAXILHO | S8: MARCO (CM) | T8: LADO | U8: DESCRIÇÃO DAS ESQUADRIAS (OPCIONAIS) | AG8: LINHA SELECIONADA: | AH8: 10 | AN8: JUROS - TAXA MENSAL | AO8: =Definições!$AF$20 -> 4.2
P9: LAR | Q9: ALT | AG9: PREÇO PURO | AH9: PREÇO COM LUCRO | AN9: JUROS - DIAS | AO9: =Definições!$X$18 -> 0 | AP9: PREÇO COM JURO | AQ9: C/IPI | AR9: C/ST
K10: 1 | L10: =IF('Atualização Ponta de Estoque'!B2="","",'Atualização Ponta de Estoque'!B2) ->  | M10: =IF('Atualização Ponta de Estoque'!C2="","",'Atualização Ponta de Estoque'!C2) ->  | N10: =IF('Atualização Ponta de Estoque'!D2="","",'Atualização Ponta de Estoque'!D2) ->  | O10: =IF('Atualização Ponta de Estoque'!E2="","",'Atualização Ponta de Estoque'!E2) ->  | P10: =IF('Atualização Ponta de Estoque'!F2="","",'Atualização Ponta de Estoque'!F2) ->  | Q10: =IF('Atualização Ponta de Estoque'!G2="","",'Atualização Ponta de Estoque'!G2) ->  | R10: =IF('Atualização Ponta de Estoque'!H2="","",'Atualização Ponta de Estoque'!H2) ->  | S10: =IF('Atualização Ponta de Estoque'!I2="","",'Atualização Ponta de Estoque'!I2) ->  | T10: =IF('Atualização Ponta de Estoque'!J2="","",'Atualização Ponta de Estoque'!J2) ->  | U10: =IF('Atualização Ponta de Estoque'!K2="","",'Atualização Ponta de Estoque'!K2) ->  | V10: =ROUND(AH10,2) -> 0 | AG10: =IF('Atualização Ponta de Estoque'!L2="",0,'Atualização Ponta de Estoque'!L2) -> 0 | AH10: =((AR10/100)*(100+(IF(Definições!$AS$6>0,Definições!$M$37,0)))) -> 0 | AI10: PE | AJ10: ='Atualização Ponta de Estoque'!B2 -> 0 | AK10: - | AL10: ='Atualização Ponta de Estoque'!K2 -> 0 | AM10: =concatenaValues(AI10:AL10) -> PE 0 - 0 | AN10: =(($AO$8/30)*$AO$9)+IF(Orçamento!$AV$15="CF",Definições!$AO$81,0) -> 0 | AP10: =(AG10/100)*(100+AN10) -> 0 | AQ10: =IF(AP10="","",IF(Definições!$AP$6="REVENDEDOR COM MARGEM DE LUCRO",(AP10/100)*(100+#REF!),AP10)) -> 0 | AR10: =IF(AP10="","",IF(Definições!$AP$6="REVENDEDOR COM MARGEM DE LUCRO",(AQ10/100)*(100+#REF!),AQ10)) -> 0 | AS10: =concatenaValues(L10:U10) -> 
K11: 2 | L11: =IF('Atualização Ponta de Estoque'!B3="","",'Atualização Ponta de Estoque'!B3) ->  | M11: =IF('Atualização Ponta de Estoque'!C3="","",'Atualização Ponta de Estoque'!C3) ->  | N11: =IF('Atualização Ponta de Estoque'!D3="","",'Atualização Ponta de Estoque'!D3) ->  | O11: =IF('Atualização Ponta de Estoque'!E3="","",'Atualização Ponta de Estoque'!E3) ->  | P11: =IF('Atualização Ponta de Estoque'!F3="","",'Atualização Ponta de Estoque'!F3) ->  | Q11: =IF('Atualização Ponta de Estoque'!G3="","",'Atualização Ponta de Estoque'!G3) ->  | R11: =IF('Atualização Ponta de Estoque'!H3="","",'Atualização Ponta de Estoque'!H3) ->  | S11: =IF('Atualização Ponta de Estoque'!I3="","",'Atualização Ponta de Estoque'!I3) ->  | T11: =IF('Atualização Ponta de Estoque'!J3="","",'Atualização Ponta de Estoque'!J3) ->  | U11: =IF('Atualização Ponta de Estoque'!K3="","",'Atualização Ponta de Estoque'!K3) ->  | V11: =ROUND(AH11,2) -> 0 | AG11: =IF('Atualização Ponta de Estoque'!L3="",0,'Atualização Ponta de Estoque'!L3) -> 0 | AH11: =((AR11/100)*(100+(IF(Definições!$AS$6>0,Definições!$M$37,0)))) -> 0 | AI11: PE | AJ11: ='Atualização Ponta de Estoque'!B3 -> 0 | AK11: - | AL11: ='Atualização Ponta de Estoque'!K3 -> 0 | AM11: =concatenaValues(AI11:AL11) -> PE 0 - 0 | AN11: =(($AO$8/30)*$AO$9)+IF(Orçamento!$AV$15="CF",Definições!$AO$81,0) -> 0 | AP11: =(AG11/100)*(100+AN11) -> 0 | AQ11: =IF(AP11="","",IF(Definições!$AP$6="REVENDEDOR COM MARGEM DE LUCRO",(AP11/100)*(100+#REF!),AP11)) -> 0 | AR11: =IF(AP11="","",IF(Definições!$AP$6="REVENDEDOR COM MARGEM DE LUCRO",(AQ11/100)*(100+#REF!),AQ11)) -> 0 | AS11: =concatenaValues(L11:U11) -> 
K12: 3 | L12: =IF('Atualização Ponta de Estoque'!B4="","",'Atualização Ponta de Estoque'!B4) ->  | M12: =IF('Atualização Ponta de Estoque'!C4="","",'Atualização Ponta de Estoque'!C4) ->  | N12: =IF('Atualização Ponta de Estoque'!D4="","",'Atualização Ponta de Estoque'!D4) ->  | O12: =IF('Atualização Ponta de Estoque'!E4="","",'Atualização Ponta de Estoque'!E4) ->  | P12: =IF('Atualização Ponta de Estoque'!F4="","",'Atualização Ponta de Estoque'!F4) ->  | Q12: =IF('Atualização Ponta de Estoque'!G4="","",'Atualização Ponta de Estoque'!G4) ->  | R12: =IF('Atualização Ponta de Estoque'!H4="","",'Atualização Ponta de Estoque'!H4) ->  | S12: =IF('Atualização Ponta de Estoque'!I4="","",'Atualização Ponta de Estoque'!I4) ->  | T12: =IF('Atualização Ponta de Estoque'!J4="","",'Atualização Ponta de Estoque'!J4) ->  | U12: =IF('Atualização Ponta de Estoque'!K4="","",'Atualização Ponta de Estoque'!K4) ->  | V12: =ROUND(AH12,2) -> 0 | AG12: =IF('Atualização Ponta de Estoque'!L4="",0,'Atualização Ponta de Estoque'!L4) -> 0 | AH12: =((AR12/100)*(100+(IF(Definições!$AS$6>0,Definições!$M$37,0)))) -> 0 | AI12: PE | AJ12: ='Atualização Ponta de Estoque'!B4 -> 0 | AK12: - | AL12: ='Atualização Ponta de Estoque'!K4 -> 0 | AM12: PE 0 - 0 | AN12: =(($AO$8/30)*$AO$9)+IF(Orçamento!$AV$15="CF",Definições!$AO$81,0) -> 0 | AP12: 0 | AQ12: =IF(AP12="","",IF(Definições!$AP$6="REVENDEDOR COM MARGEM DE LUCRO",(AP12/100)*(100+#REF!),AP12)) -> 0 | AR12: =IF(AP12="","",IF(Definições!$AP$6="REVENDEDOR COM MARGEM DE LUCRO",(AQ12/100)*(100+#REF!),AQ12)) -> 0
K13: 4 | L13: =IF('Atualização Ponta de Estoque'!B5="","",'Atualização Ponta de Estoque'!B5) ->  | M13: =IF('Atualização Ponta de Estoque'!C5="","",'Atualização Ponta de Estoque'!C5) ->  | N13: =IF('Atualização Ponta de Estoque'!D5="","",'Atualização Ponta de Estoque'!D5) ->  | O13: =IF('Atualização Ponta de Estoque'!E5="","",'Atualização Ponta de Estoque'!E5) ->  | P13: =IF('Atualização Ponta de Estoque'!F5="","",'Atualização Ponta de Estoque'!F5) ->  | Q13: =IF('Atualização Ponta de Estoque'!G5="","",'Atualização Ponta de Estoque'!G5) ->  | R13: =IF('Atualização Ponta de Estoque'!H5="","",'Atualização Ponta de Estoque'!H5) ->  | S13: =IF('Atualização Ponta de Estoque'!I5="","",'Atualização Ponta de Estoque'!I5) ->  | T13: =IF('Atualização Ponta de Estoque'!J5="","",'Atualização Ponta de Estoque'!J5) ->  | U13: =IF('Atualização Ponta de Estoque'!K5="","",'Atualização Ponta de Estoque'!K5) ->  | V13: =ROUND(AH13,2) -> 0 | AG13: =IF('Atualização Ponta de Estoque'!L5="",0,'Atualização Ponta de Estoque'!L5) -> 0 | AH13: =((AR13/100)*(100+(IF(Definições!$AS$6>0,Definições!$M$37,0)))) -> 0 | AI13: PE | AJ13: ='Atualização Ponta de Estoque'!B5 -> 0 | AK13: - | AL13: ='Atualização Ponta de Estoque'!K5 -> 0 | AM13: PE 0 - 0 | AN13: =(($AO$8/30)*$AO$9)+IF(Orçamento!$AV$15="CF",Definições!$AO$81,0) -> 0 | AP13: 0 | AQ13: =IF(AP13="","",IF(Definições!$AP$6="REVENDEDOR COM MARGEM DE LUCRO",(AP13/100)*(100+#REF!),AP13)) -> 0 | AR13: =IF(AP13="","",IF(Definições!$AP$6="REVENDEDOR COM MARGEM DE LUCRO",(AQ13/100)*(100+#REF!),AQ13)) -> 0
K14: 5 | L14: =IF('Atualização Ponta de Estoque'!B6="","",'Atualização Ponta de Estoque'!B6) ->  | M14: =IF('Atualização Ponta de Estoque'!C6="","",'Atualização Ponta de Estoque'!C6) ->  | N14: =IF('Atualização Ponta de Estoque'!D6="","",'Atualização Ponta de Estoque'!D6) ->  | O14: =IF('Atualização Ponta de Estoque'!E6="","",'Atualização Ponta de Estoque'!E6) ->  | P14: =IF('Atualização Ponta de Estoque'!F6="","",'Atualização Ponta de Estoque'!F6) ->  | Q14: =IF('Atualização Ponta de Estoque'!G6="","",'Atualização Ponta de Estoque'!G6) ->  | R14: =IF('Atualização Ponta de Estoque'!H6="","",'Atualização Ponta de Estoque'!H6) ->  | S14: =IF('Atualização Ponta de Estoque'!I6="","",'Atualização Ponta de Estoque'!I6) ->  | T14: =IF('Atualização Ponta de Estoque'!J6="","",'Atualização Ponta de Estoque'!J6) ->  | U14: =IF('Atualização Ponta de Estoque'!K6="","",'Atualização Ponta de Estoque'!K6) ->  | V14: 0 | AG14: =IF('Atualização Ponta de Estoque'!L6="",0,'Atualização Ponta de Estoque'!L6) -> 0 | AH14: =((AR14/100)*(100+(IF(Definições!$AS$6>0,Definições!$M$37,0)))) -> 0 | AI14: PE | AJ14: ='Atualização Ponta de Estoque'!B6 -> 0 | AK14: - | AL14: ='Atualização Ponta de Estoque'!K6 -> 0 | AM14: PE 0 - 0 | AN14: =(($AO$8/30)*$AO$9)+IF(Orçamento!$AV$15="CF",Definições!$AO$81,0) -> 0 | AP14: 0 | AQ14: =IF(AP14="","",IF(Definições!$AP$6="REVENDEDOR COM MARGEM DE LUCRO",(AP14/100)*(100+#REF!),AP14)) -> 0 | AR14: =IF(AP14="","",IF(Definições!$AP$6="REVENDEDOR COM MARGEM DE LUCRO",(AQ14/100)*(100+#REF!),AQ14)) -> 0
K15: 6 | L15: =IF('Atualização Ponta de Estoque'!B7="","",'Atualização Ponta de Estoque'!B7) ->  | M15: =IF('Atualização Ponta de Estoque'!C7="","",'Atualização Ponta de Estoque'!C7) ->  | N15: =IF('Atualização Ponta de Estoque'!D7="","",'Atualização Ponta de Estoque'!D7) ->  | O15: =IF('Atualização Ponta de Estoque'!E7="","",'Atualização Ponta de Estoque'!E7) ->  | P15: =IF('Atualização Ponta de Estoque'!F7="","",'Atualização Ponta de Estoque'!F7) ->  | Q15: =IF('Atualização Ponta de Estoque'!G7="","",'Atualização Ponta de Estoque'!G7) ->  | R15: =IF('Atualização Ponta de Estoque'!H7="","",'Atualização Ponta de Estoque'!H7) ->  | S15: =IF('Atualização Ponta de Estoque'!I7="","",'Atualização Ponta de Estoque'!I7) ->  | T15: =IF('Atualização Ponta de Estoque'!J7="","",'Atualização Ponta de Estoque'!J7) ->  | U15: =IF('Atualização Ponta de Estoque'!K7="","",'Atualização Ponta de Estoque'!K7) ->  | V15: 0 | AG15: =IF('Atualização Ponta de Estoque'!L7="",0,'Atualização Ponta de Estoque'!L7) -> 0 | AH15: =((AR15/100)*(100+(IF(Definições!$AS$6>0,Definições!$M$37,0)))) -> 0 | AI15: PE | AJ15: ='Atualização Ponta de Estoque'!B7 -> 0 | AK15: - | AL15: ='Atualização Ponta de Estoque'!K7 -> 0 | AM15: PE 0 - 0 | AN15: =(($AO$8/30)*$AO$9)+IF(Orçamento!$AV$15="CF",Definições!$AO$81,0) -> 0 | AP15: 0 | AQ15: =IF(AP15="","",IF(Definições!$AP$6="REVENDEDOR COM MARGEM DE LUCRO",(AP15/100)*(100+#REF!),AP15)) -> 0 | AR15: =IF(AP15="","",IF(Definições!$AP$6="REVENDEDOR COM MARGEM DE LUCRO",(AQ15/100)*(100+#REF!),AQ15)) -> 0
K16: 7 | L16: =IF('Atualização Ponta de Estoque'!B8="","",'Atualização Ponta de Estoque'!B8) ->  | M16: =IF('Atualização Ponta de Estoque'!C8="","",'Atualização Ponta de Estoque'!C8) ->  | N16: =IF('Atualização Ponta de Estoque'!D8="","",'Atualização Ponta de Estoque'!D8) ->  | O16: =IF('Atualização Ponta de Estoque'!E8="","",'Atualização Ponta de Estoque'!E8) ->  | P16: =IF('Atualização Ponta de Estoque'!F8="","",'Atualização Ponta de Estoque'!F8) ->  | Q16: =IF('Atualização Ponta de Estoque'!G8="","",'Atualização Ponta de Estoque'!G8) ->  | R16: =IF('Atualização Ponta de Estoque'!H8="","",'Atualização Ponta de Estoque'!H8) ->  | S16: =IF('Atualização Ponta de Estoque'!I8="","",'Atualização Ponta de Estoque'!I8) ->  | T16: =IF('Atualização Ponta de Estoque'!J8="","",'Atualização Ponta de Estoque'!J8) ->  | U16: =IF('Atualização Ponta de Estoque'!K8="","",'Atualização Ponta de Estoque'!K8) ->  | V16: 0 | AG16: =IF('Atualização Ponta de Estoque'!L8="",0,'Atualização Ponta de Estoque'!L8) -> 0 | AH16: =((AR16/100)*(100+(IF(Definições!$AS$6>0,Definições!$M$37,0)))) -> 0 | AI16: PE | AJ16: ='Atualização Ponta de Estoque'!B8 -> 0 | AK16: - | AL16: ='Atualização Ponta de Estoque'!K8 -> 0 | AM16: PE 0 - 0 | AN16: =(($AO$8/30)*$AO$9)+IF(Orçamento!$AV$15="CF",Definições!$AO$81,0) -> 0 | AP16: 0 | AQ16: =IF(AP16="","",IF(Definições!$AP$6="REVENDEDOR COM MARGEM DE LUCRO",(AP16/100)*(100+#REF!),AP16)) -> 0 | AR16: =IF(AP16="","",IF(Definições!$AP$6="REVENDEDOR COM MARGEM DE LUCRO",(AQ16/100)*(100+#REF!),AQ16)) -> 0
K17: 8 | L17: =IF('Atualização Ponta de Estoque'!B9="","",'Atualização Ponta de Estoque'!B9) ->  | M17: =IF('Atualização Ponta de Estoque'!C9="","",'Atualização Ponta de Estoque'!C9) ->  | N17: =IF('Atualização Ponta de Estoque'!D9="","",'Atualização Ponta de Estoque'!D9) ->  | O17: =IF('Atualização Ponta de Estoque'!E9="","",'Atualização Ponta de Estoque'!E9) ->  | P17: =IF('Atualização Ponta de Estoque'!F9="","",'Atualização Ponta de Estoque'!F9) ->  | Q17: =IF('Atualização Ponta de Estoque'!G9="","",'Atualização Ponta de Estoque'!G9) ->  | R17: =IF('Atualização Ponta de Estoque'!H9="","",'Atualização Ponta de Estoque'!H9) ->  | S17: =IF('Atualização Ponta de Estoque'!I9="","",'Atualização Ponta de Estoque'!I9) ->  | T17: =IF('Atualização Ponta de Estoque'!J9="","",'Atualização Ponta de Estoque'!J9) ->  | U17: =IF('Atualização Ponta de Estoque'!K9="","",'Atualização Ponta de Estoque'!K9) ->  | V17: 0 | AG17: =IF('Atualização Ponta de Estoque'!L9="",0,'Atualização Ponta de Estoque'!L9) -> 0 | AH17: =((AR17/100)*(100+(IF(Definições!$AS$6>0,Definições!$M$37,0)))) -> 0 | AI17: PE | AJ17: ='Atualização Ponta de Estoque'!B9 -> 0 | AK17: - | AL17: ='Atualização Ponta de Estoque'!K9 -> 0 | AM17: PE 0 - 0 | AN17: =(($AO$8/30)*$AO$9)+IF(Orçamento!$AV$15="CF",Definições!$AO$81,0) -> 0 | AP17: 0 | AQ17: =IF(AP17="","",IF(Definições!$AP$6="REVENDEDOR COM MARGEM DE LUCRO",(AP17/100)*(100+#REF!),AP17)) -> 0 | AR17: =IF(AP17="","",IF(Definições!$AP$6="REVENDEDOR COM MARGEM DE LUCRO",(AQ17/100)*(100+#REF!),AQ17)) -> 0
K18: 9 | L18: =IF('Atualização Ponta de Estoque'!B10="","",'Atualização Ponta de Estoque'!B10) ->  | M18: =IF('Atualização Ponta de Estoque'!C10="","",'Atualização Ponta de Estoque'!C10) ->  | N18: =IF('Atualização Ponta de Estoque'!D10="","",'Atualização Ponta de Estoque'!D10) ->  | O18: =IF('Atualização Ponta de Estoque'!E10="","",'Atualização Ponta de Estoque'!E10) ->  | P18: =IF('Atualização Ponta de Estoque'!F10="","",'Atualização Ponta de Estoque'!F10) ->  | Q18: =IF('Atualização Ponta de Estoque'!G10="","",'Atualização Ponta de Estoque'!G10) ->  | R18: =IF('Atualização Ponta de Estoque'!H10="","",'Atualização Ponta de Estoque'!H10) ->  | S18: =IF('Atualização Ponta de Estoque'!I10="","",'Atualização Ponta de Estoque'!I10) ->  | T18: =IF('Atualização Ponta de Estoque'!J10="","",'Atualização Ponta de Estoque'!J10) ->  | U18: =IF('Atualização Ponta de Estoque'!K10="","",'Atualização Ponta de Estoque'!K10) ->  | V18: 0 | AG18: =IF('Atualização Ponta de Estoque'!L10="",0,'Atualização Ponta de Estoque'!L10) -> 0 | AH18: =((AR18/100)*(100+(IF(Definições!$AS$6>0,Definições!$M$37,0)))) -> 0 | AI18: PE | AJ18: ='Atualização Ponta de Estoque'!B10 -> 0 | AK18: - | AL18: ='Atualização Ponta de Estoque'!K10 -> 0 | AM18: PE 0 - 0 | AN18: =(($AO$8/30)*$AO$9)+IF(Orçamento!$AV$15="CF",Definições!$AO$81,0) -> 0 | AP18: 0 | AQ18: =IF(AP18="","",IF(Definições!$AP$6="REVENDEDOR COM MARGEM DE LUCRO",(AP18/100)*(100+#REF!),AP18)) -> 0 | AR18: =IF(AP18="","",IF(Definições!$AP$6="REVENDEDOR COM MARGEM DE LUCRO",(AQ18/100)*(100+#REF!),AQ18)) -> 0
K19: 10 | L19: =IF('Atualização Ponta de Estoque'!B11="","",'Atualização Ponta de Estoque'!B11) ->  | M19: =IF('Atualização Ponta de Estoque'!C11="","",'Atualização Ponta de Estoque'!C11) ->  | N19: =IF('Atualização Ponta de Estoque'!D11="","",'Atualização Ponta de Estoque'!D11) ->  | O19: =IF('Atualização Ponta de Estoque'!E11="","",'Atualização Ponta de Estoque'!E11) ->  | P19: =IF('Atualização Ponta de Estoque'!F11="","",'Atualização Ponta de Estoque'!F11) ->  | Q19: =IF('Atualização Ponta de Estoque'!G11="","",'Atualização Ponta de Estoque'!G11) ->  | R19: =IF('Atualização Ponta de Estoque'!H11="","",'Atualização Ponta de Estoque'!H11) ->  | S19: =IF('Atualização Ponta de Estoque'!I11="","",'Atualização Ponta de Estoque'!I11) ->  | T19: =IF('Atualização Ponta de Estoque'!J11="","",'Atualização Ponta de Estoque'!J11) ->  | U19: =IF('Atualização Ponta de Estoque'!K11="","",'Atualização Ponta de Estoque'!K11) ->  | V19: 0 | AG19: =IF('Atualização Ponta de Estoque'!L11="",0,'Atualização Ponta de Estoque'!L11) -> 0 | AH19: =((AR19/100)*(100+(IF(Definições!$AS$6>0,Definições!$M$37,0)))) -> 0 | AI19: PE | AJ19: ='Atualização Ponta de Estoque'!B11 -> 0 | AK19: - | AL19: ='Atualização Ponta de Estoque'!K11 -> 0 | AM19: PE 0 - 0 | AN19: =(($AO$8/30)*$AO$9)+IF(Orçamento!$AV$15="CF",Definições!$AO$81,0) -> 0 | AP19: 0 | AQ19: =IF(AP19="","",IF(Definições!$AP$6="REVENDEDOR COM MARGEM DE LUCRO",(AP19/100)*(100+#REF!),AP19)) -> 0 | AR19: =IF(AP19="","",IF(Definições!$AP$6="REVENDEDOR COM MARGEM DE LUCRO",(AQ19/100)*(100+#REF!),AQ19)) -> 0
K20: 11 | L20: =IF('Atualização Ponta de Estoque'!B12="","",'Atualização Ponta de Estoque'!B12) ->  | M20: =IF('Atualização Ponta de Estoque'!C12="","",'Atualização Ponta de Estoque'!C12) ->  | N20: =IF('Atualização Ponta de Estoque'!D12="","",'Atualização Ponta de Estoque'!D12) ->  | O20: =IF('Atualização Ponta de Estoque'!E12="","",'Atualização Ponta de Estoque'!E12) ->  | P20: =IF('Atualização Ponta de Estoque'!F12="","",'Atualização Ponta de Estoque'!F12) ->  | Q20: =IF('Atualização Ponta de Estoque'!G12="","",'Atualização Ponta de Estoque'!G12) ->  | R20: =IF('Atualização Ponta de Estoque'!H12="","",'Atualização Ponta de Estoque'!H12) ->  | S20: =IF('Atualização Ponta de Estoque'!I12="","",'Atualização Ponta de Estoque'!I12) ->  | T20: =IF('Atualização Ponta de Estoque'!J12="","",'Atualização Ponta de Estoque'!J12) ->  | U20: =IF('Atualização Ponta de Estoque'!K12="","",'Atualização Ponta de Estoque'!K12) ->  | V20: 0 | AG20: =IF('Atualização Ponta de Estoque'!L12="",0,'Atualização Ponta de Estoque'!L12) -> 0 | AH20: =((AR20/100)*(100+(IF(Definições!$AS$6>0,Definições!$M$37,0)))) -> 0 | AI20: PE | AJ20: ='Atualização Ponta de Estoque'!B12 -> 0 | AK20: - | AL20: ='Atualização Ponta de Estoque'!K12 -> 0 | AM20: PE 0 - 0 | AN20: =(($AO$8/30)*$AO$9)+IF(Orçamento!$AV$15="CF",Definições!$AO$81,0) -> 0 | AP20: 0 | AQ20: =IF(AP20="","",IF(Definições!$AP$6="REVENDEDOR COM MARGEM DE LUCRO",(AP20/100)*(100+#REF!),AP20)) -> 0 | AR20: =IF(AP20="","",IF(Definições!$AP$6="REVENDEDOR COM MARGEM DE LUCRO",(AQ20/100)*(100+#REF!),AQ20)) -> 0
K21: 12 | L21: =IF('Atualização Ponta de Estoque'!B13="","",'Atualização Ponta de Estoque'!B13) ->  | M21: =IF('Atualização Ponta de Estoque'!C13="","",'Atualização Ponta de Estoque'!C13) ->  | N21: =IF('Atualização Ponta de Estoque'!D13="","",'Atualização Ponta de Estoque'!D13) ->  | O21: =IF('Atualização Ponta de Estoque'!E13="","",'Atualização Ponta de Estoque'!E13) ->  | P21: =IF('Atualização Ponta de Estoque'!F13="","",'Atualização Ponta de Estoque'!F13) ->  | Q21: =IF('Atualização Ponta de Estoque'!G13="","",'Atualização Ponta de Estoque'!G13) ->  | R21: =IF('Atualização Ponta de Estoque'!H13="","",'Atualização Ponta de Estoque'!H13) ->  | S21: =IF('Atualização Ponta de Estoque'!I13="","",'Atualização Ponta de Estoque'!I13) ->  | T21: =IF('Atualização Ponta de Estoque'!J13="","",'Atualização Ponta de Estoque'!J13) ->  | U21: =IF('Atualização Ponta de Estoque'!K13="","",'Atualização Ponta de Estoque'!K13) ->  | V21: 0 | AG21: =IF('Atualização Ponta de Estoque'!L13="",0,'Atualização Ponta de Estoque'!L13) -> 0 | AH21: =((AR21/100)*(100+(IF(Definições!$AS$6>0,Definições!$M$37,0)))) -> 0 | AI21: PE | AJ21: ='Atualização Ponta de Estoque'!B13 -> 0 | AK21: - | AL21: ='Atualização Ponta de Estoque'!K13 -> 0 | AM21: PE 0 - 0 | AN21: =(($AO$8/30)*$AO$9)+IF(Orçamento!$AV$15="CF",Definições!$AO$81,0) -> 0 | AP21: 0 | AQ21: =IF(AP21="","",IF(Definições!$AP$6="REVENDEDOR COM MARGEM DE LUCRO",(AP21/100)*(100+#REF!),AP21)) -> 0 | AR21: =IF(AP21="","",IF(Definições!$AP$6="REVENDEDOR COM MARGEM DE LUCRO",(AQ21/100)*(100+#REF!),AQ21)) -> 0
K22: 13 | L22: =IF('Atualização Ponta de Estoque'!B14="","",'Atualização Ponta de Estoque'!B14) ->  | M22: =IF('Atualização Ponta de Estoque'!C14="","",'Atualização Ponta de Estoque'!C14) ->  | N22: =IF('Atualização Ponta de Estoque'!D14="","",'Atualização Ponta de Estoque'!D14) ->  | O22: =IF('Atualização Ponta de Estoque'!E14="","",'Atualização Ponta de Estoque'!E14) ->  | P22: =IF('Atualização Ponta de Estoque'!F14="","",'Atualização Ponta de Estoque'!F14) ->  | Q22: =IF('Atualização Ponta de Estoque'!G14="","",'Atualização Ponta de Estoque'!G14) ->  | R22: =IF('Atualização Ponta de Estoque'!H14="","",'Atualização Ponta de Estoque'!H14) ->  | S22: =IF('Atualização Ponta de Estoque'!I14="","",'Atualização Ponta de Estoque'!I14) ->  | T22: =IF('Atualização Ponta de Estoque'!J14="","",'Atualização Ponta de Estoque'!J14) ->  | U22: =IF('Atualização Ponta de Estoque'!K14="","",'Atualização Ponta de Estoque'!K14) ->  | V22: 0 | AG22: =IF('Atualização Ponta de Estoque'!L14="",0,'Atualização Ponta de Estoque'!L14) -> 0 | AH22: =((AR22/100)*(100+(IF(Definições!$AS$6>0,Definições!$M$37,0)))) -> 0 | AI22: PE | AJ22: ='Atualização Ponta de Estoque'!B14 -> 0 | AK22: - | AL22: ='Atualização Ponta de Estoque'!K14 -> 0 | AM22: PE 0 - 0 | AN22: =(($AO$8/30)*$AO$9)+IF(Orçamento!$AV$15="CF",Definições!$AO$81,0) -> 0 | AP22: 0 | AQ22: =IF(AP22="","",IF(Definições!$AP$6="REVENDEDOR COM MARGEM DE LUCRO",(AP22/100)*(100+#REF!),AP22)) -> 0 | AR22: =IF(AP22="","",IF(Definições!$AP$6="REVENDEDOR COM MARGEM DE LUCRO",(AQ22/100)*(100+#REF!),AQ22)) -> 0
K23: 14 | L23: =IF('Atualização Ponta de Estoque'!B15="","",'Atualização Ponta de Estoque'!B15) ->  | M23: =IF('Atualização Ponta de Estoque'!C15="","",'Atualização Ponta de Estoque'!C15) ->  | N23: =IF('Atualização Ponta de Estoque'!D15="","",'Atualização Ponta de Estoque'!D15) ->  | O23: =IF('Atualização Ponta de Estoque'!E15="","",'Atualização Ponta de Estoque'!E15) ->  | P23: =IF('Atualização Ponta de Estoque'!F15="","",'Atualização Ponta de Estoque'!F15) ->  | Q23: =IF('Atualização Ponta de Estoque'!G15="","",'Atualização Ponta de Estoque'!G15) ->  | R23: =IF('Atualização Ponta de Estoque'!H15="","",'Atualização Ponta de Estoque'!H15) ->  | S23: =IF('Atualização Ponta de Estoque'!I15="","",'Atualização Ponta de Estoque'!I15) ->  | T23: =IF('Atualização Ponta de Estoque'!J15="","",'Atualização Ponta de Estoque'!J15) ->  | U23: =IF('Atualização Ponta de Estoque'!K15="","",'Atualização Ponta de Estoque'!K15) ->  | V23: 0 | AG23: =IF('Atualização Ponta de Estoque'!L15="",0,'Atualização Ponta de Estoque'!L15) -> 0 | AH23: =((AR23/100)*(100+(IF(Definições!$AS$6>0,Definições!$M$37,0)))) -> 0 | AI23: PE | AJ23: ='Atualização Ponta de Estoque'!B15 -> 0 | AK23: - | AL23: ='Atualização Ponta de Estoque'!K15 -> 0 | AM23: PE 0 - 0 | AN23: =(($AO$8/30)*$AO$9)+IF(Orçamento!$AV$15="CF",Definições!$AO$81,0) -> 0 | AP23: 0 | AQ23: =IF(AP23="","",IF(Definições!$AP$6="REVENDEDOR COM MARGEM DE LUCRO",(AP23/100)*(100+#REF!),AP23)) -> 0 | AR23: =IF(AP23="","",IF(Definições!$AP$6="REVENDEDOR COM MARGEM DE LUCRO",(AQ23/100)*(100+#REF!),AQ23)) -> 0
K24: 15 | L24: =IF('Atualização Ponta de Estoque'!B16="","",'Atualização Ponta de Estoque'!B16) ->  | M24: =IF('Atualização Ponta de Estoque'!C16="","",'Atualização Ponta de Estoque'!C16) ->  | N24: =IF('Atualização Ponta de Estoque'!D16="","",'Atualização Ponta de Estoque'!D16) ->  | O24: =IF('Atualização Ponta de Estoque'!E16="","",'Atualização Ponta de Estoque'!E16) ->  | P24: =IF('Atualização Ponta de Estoque'!F16="","",'Atualização Ponta de Estoque'!F16) ->  | Q24: =IF('Atualização Ponta de Estoque'!G16="","",'Atualização Ponta de Estoque'!G16) ->  | R24: =IF('Atualização Ponta de Estoque'!H16="","",'Atualização Ponta de Estoque'!H16) ->  | S24: =IF('Atualização Ponta de Estoque'!I16="","",'Atualização Ponta de Estoque'!I16) ->  | T24: =IF('Atualização Ponta de Estoque'!J16="","",'Atualização Ponta de Estoque'!J16) ->  | U24: =IF('Atualização Ponta de Estoque'!K16="","",'Atualização Ponta de Estoque'!K16) ->  | V24: 0 | AG24: =IF('Atualização Ponta de Estoque'!L16="",0,'Atualização Ponta de Estoque'!L16) -> 0 | AH24: =((AR24/100)*(100+(IF(Definições!$AS$6>0,Definições!$M$37,0)))) -> 0 | AI24: PE | AJ24: ='Atualização Ponta de Estoque'!B16 -> 0 | AK24: - | AL24: ='Atualização Ponta de Estoque'!K16 -> 0 | AM24: PE 0 - 0 | AN24: =(($AO$8/30)*$AO$9)+IF(Orçamento!$AV$15="CF",Definições!$AO$81,0) -> 0 | AP24: 0 | AQ24: =IF(AP24="","",IF(Definições!$AP$6="REVENDEDOR COM MARGEM DE LUCRO",(AP24/100)*(100+#REF!),AP24)) -> 0 | AR24: =IF(AP24="","",IF(Definições!$AP$6="REVENDEDOR COM MARGEM DE LUCRO",(AQ24/100)*(100+#REF!),AQ24)) -> 0
K25: 16 | L25: =IF('Atualização Ponta de Estoque'!B17="","",'Atualização Ponta de Estoque'!B17) ->  | M25: =IF('Atualização Ponta de Estoque'!C17="","",'Atualização Ponta de Estoque'!C17) ->  | N25: =IF('Atualização Ponta de Estoque'!D17="","",'Atualização Ponta de Estoque'!D17) ->  | O25: =IF('Atualização Ponta de Estoque'!E17="","",'Atualização Ponta de Estoque'!E17) ->  | P25: =IF('Atualização Ponta de Estoque'!F17="","",'Atualização Ponta de Estoque'!F17) ->  | Q25: =IF('Atualização Ponta de Estoque'!G17="","",'Atualização Ponta de Estoque'!G17) ->  | R25: =IF('Atualização Ponta de Estoque'!H17="","",'Atualização Ponta de Estoque'!H17) ->  | S25: =IF('Atualização Ponta de Estoque'!I17="","",'Atualização Ponta de Estoque'!I17) ->  | T25: =IF('Atualização Ponta de Estoque'!J17="","",'Atualização Ponta de Estoque'!J17) ->  | U25: =IF('Atualização Ponta de Estoque'!K17="","",'Atualização Ponta de Estoque'!K17) ->  | V25: 0 | AG25: =IF('Atualização Ponta de Estoque'!L17="",0,'Atualização Ponta de Estoque'!L17) -> 0 | AH25: =((AR25/100)*(100+(IF(Definições!$AS$6>0,Definições!$M$37,0)))) -> 0 | AI25: PE | AJ25: ='Atualização Ponta de Estoque'!B17 -> 0 | AK25: - | AL25: ='Atualização Ponta de Estoque'!K17 -> 0 | AM25: PE 0 - 0 | AN25: =(($AO$8/30)*$AO$9)+IF(Orçamento!$AV$15="CF",Definições!$AO$81,0) -> 0 | AP25: 0 | AQ25: =IF(AP25="","",IF(Definições!$AP$6="REVENDEDOR COM MARGEM DE LUCRO",(AP25/100)*(100+#REF!),AP25)) -> 0 | AR25: =IF(AP25="","",IF(Definições!$AP$6="REVENDEDOR COM MARGEM DE LUCRO",(AQ25/100)*(100+#REF!),AQ25)) -> 0
K26: 17 | L26: =IF('Atualização Ponta de Estoque'!B18="","",'Atualização Ponta de Estoque'!B18) ->  | M26: =IF('Atualização Ponta de Estoque'!C18="","",'Atualização Ponta de Estoque'!C18) ->  | N26: =IF('Atualização Ponta de Estoque'!D18="","",'Atualização Ponta de Estoque'!D18) ->  | O26: =IF('Atualização Ponta de Estoque'!E18="","",'Atualização Ponta de Estoque'!E18) ->  | P26: =IF('Atualização Ponta de Estoque'!F18="","",'Atualização Ponta de Estoque'!F18) ->  | Q26: =IF('Atualização Ponta de Estoque'!G18="","",'Atualização Ponta de Estoque'!G18) ->  | R26: =IF('Atualização Ponta de Estoque'!H18="","",'Atualização Ponta de Estoque'!H18) ->  | S26: =IF('Atualização Ponta de Estoque'!I18="","",'Atualização Ponta de Estoque'!I18) ->  | T26: =IF('Atualização Ponta de Estoque'!J18="","",'Atualização Ponta de Estoque'!J18) ->  | U26: =IF('Atualização Ponta de Estoque'!K18="","",'Atualização Ponta de Estoque'!K18) ->  | V26: 0 | AG26: =IF('Atualização Ponta de Estoque'!L18="",0,'Atualização Ponta de Estoque'!L18) -> 0 | AH26: =((AR26/100)*(100+(IF(Definições!$AS$6>0,Definições!$M$37,0)))) -> 0 | AI26: PE | AJ26: ='Atualização Ponta de Estoque'!B18 -> 0 | AK26: - | AL26: ='Atualização Ponta de Estoque'!K18 -> 0 | AM26: PE 0 - 0 | AN26: =(($AO$8/30)*$AO$9)+IF(Orçamento!$AV$15="CF",Definições!$AO$81,0) -> 0 | AP26: 0 | AQ26: =IF(AP26="","",IF(Definições!$AP$6="REVENDEDOR COM MARGEM DE LUCRO",(AP26/100)*(100+#REF!),AP26)) -> 0 | AR26: =IF(AP26="","",IF(Definições!$AP$6="REVENDEDOR COM MARGEM DE LUCRO",(AQ26/100)*(100+#REF!),AQ26)) -> 0
K27: 18 | L27: =IF('Atualização Ponta de Estoque'!B19="","",'Atualização Ponta de Estoque'!B19) ->  | M27: =IF('Atualização Ponta de Estoque'!C19="","",'Atualização Ponta de Estoque'!C19) ->  | N27: =IF('Atualização Ponta de Estoque'!D19="","",'Atualização Ponta de Estoque'!D19) ->  | O27: =IF('Atualização Ponta de Estoque'!E19="","",'Atualização Ponta de Estoque'!E19) ->  | P27: =IF('Atualização Ponta de Estoque'!F19="","",'Atualização Ponta de Estoque'!F19) ->  | Q27: =IF('Atualização Ponta de Estoque'!G19="","",'Atualização Ponta de Estoque'!G19) ->  | R27: =IF('Atualização Ponta de Estoque'!H19="","",'Atualização Ponta de Estoque'!H19) ->  | S27: =IF('Atualização Ponta de Estoque'!I19="","",'Atualização Ponta de Estoque'!I19) ->  | T27: =IF('Atualização Ponta de Estoque'!J19="","",'Atualização Ponta de Estoque'!J19) ->  | U27: =IF('Atualização Ponta de Estoque'!K19="","",'Atualização Ponta de Estoque'!K19) ->  | V27: 0 | AG27: =IF('Atualização Ponta de Estoque'!L19="",0,'Atualização Ponta de Estoque'!L19) -> 0 | AH27: =((AR27/100)*(100+(IF(Definições!$AS$6>0,Definições!$M$37,0)))) -> 0 | AI27: PE | AJ27: ='Atualização Ponta de Estoque'!B19 -> 0 | AK27: - | AL27: ='Atualização Ponta de Estoque'!K19 -> 0 | AM27: PE 0 - 0 | AN27: =(($AO$8/30)*$AO$9)+IF(Orçamento!$AV$15="CF",Definições!$AO$81,0) -> 0 | AP27: 0 | AQ27: =IF(AP27="","",IF(Definições!$AP$6="REVENDEDOR COM MARGEM DE LUCRO",(AP27/100)*(100+#REF!),AP27)) -> 0 | AR27: =IF(AP27="","",IF(Definições!$AP$6="REVENDEDOR COM MARGEM DE LUCRO",(AQ27/100)*(100+#REF!),AQ27)) -> 0
K28: 19 | L28: =IF('Atualização Ponta de Estoque'!B20="","",'Atualização Ponta de Estoque'!B20) ->  | M28: =IF('Atualização Ponta de Estoque'!C20="","",'Atualização Ponta de Estoque'!C20) ->  | N28: =IF('Atualização Ponta de Estoque'!D20="","",'Atualização Ponta de Estoque'!D20) ->  | O28: =IF('Atualização Ponta de Estoque'!E20="","",'Atualização Ponta de Estoque'!E20) ->  | P28: =IF('Atualização Ponta de Estoque'!F20="","",'Atualização Ponta de Estoque'!F20) ->  | Q28: =IF('Atualização Ponta de Estoque'!G20="","",'Atualização Ponta de Estoque'!G20) ->  | R28: =IF('Atualização Ponta de Estoque'!H20="","",'Atualização Ponta de Estoque'!H20) ->  | S28: =IF('Atualização Ponta de Estoque'!I20="","",'Atualização Ponta de Estoque'!I20) ->  | T28: =IF('Atualização Ponta de Estoque'!J20="","",'Atualização Ponta de Estoque'!J20) ->  | U28: =IF('Atualização Ponta de Estoque'!K20="","",'Atualização Ponta de Estoque'!K20) ->  | V28: 0 | AG28: =IF('Atualização Ponta de Estoque'!L20="",0,'Atualização Ponta de Estoque'!L20) -> 0 | AH28: =((AR28/100)*(100+(IF(Definições!$AS$6>0,Definições!$M$37,0)))) -> 0 | AI28: PE | AJ28: ='Atualização Ponta de Estoque'!B20 -> 0 | AK28: - | AL28: ='Atualização Ponta de Estoque'!K20 -> 0 | AM28: PE 0 - 0 | AN28: =(($AO$8/30)*$AO$9)+IF(Orçamento!$AV$15="CF",Definições!$AO$81,0) -> 0 | AP28: 0 | AQ28: =IF(AP28="","",IF(Definições!$AP$6="REVENDEDOR COM MARGEM DE LUCRO",(AP28/100)*(100+#REF!),AP28)) -> 0 | AR28: =IF(AP28="","",IF(Definições!$AP$6="REVENDEDOR COM MARGEM DE LUCRO",(AQ28/100)*(100+#REF!),AQ28)) -> 0
K29: 20 | L29: =IF('Atualização Ponta de Estoque'!B21="","",'Atualização Ponta de Estoque'!B21) ->  | M29: =IF('Atualização Ponta de Estoque'!C21="","",'Atualização Ponta de Estoque'!C21) ->  | N29: =IF('Atualização Ponta de Estoque'!D21="","",'Atualização Ponta de Estoque'!D21) ->  | O29: =IF('Atualização Ponta de Estoque'!E21="","",'Atualização Ponta de Estoque'!E21) ->  | P29: =IF('Atualização Ponta de Estoque'!F21="","",'Atualização Ponta de Estoque'!F21) ->  | Q29: =IF('Atualização Ponta de Estoque'!G21="","",'Atualização Ponta de Estoque'!G21) ->  | R29: =IF('Atualização Ponta de Estoque'!H21="","",'Atualização Ponta de Estoque'!H21) ->  | S29: =IF('Atualização Ponta de Estoque'!I21="","",'Atualização Ponta de Estoque'!I21) ->  | T29: =IF('Atualização Ponta de Estoque'!J21="","",'Atualização Ponta de Estoque'!J21) ->  | U29: =IF('Atualização Ponta de Estoque'!K21="","",'Atualização Ponta de Estoque'!K21) ->  | V29: 0 | AG29: =IF('Atualização Ponta de Estoque'!L21="",0,'Atualização Ponta de Estoque'!L21) -> 0 | AH29: =((AR29/100)*(100+(IF(Definições!$AS$6>0,Definições!$M$37,0)))) -> 0 | AI29: PE | AJ29: ='Atualização Ponta de Estoque'!B21 -> 0 | AK29: - | AL29: ='Atualização Ponta de Estoque'!K21 -> 0 | AM29: PE 0 - 0 | AN29: =(($AO$8/30)*$AO$9)+IF(Orçamento!$AV$15="CF",Definições!$AO$81,0) -> 0 | AP29: 0 | AQ29: =IF(AP29="","",IF(Definições!$AP$6="REVENDEDOR COM MARGEM DE LUCRO",(AP29/100)*(100+#REF!),AP29)) -> 0 | AR29: =IF(AP29="","",IF(Definições!$AP$6="REVENDEDOR COM MARGEM DE LUCRO",(AQ29/100)*(100+#REF!),AQ29)) -> 0
K30: 21 | L30: =IF('Atualização Ponta de Estoque'!B22="","",'Atualização Ponta de Estoque'!B22) ->  | M30: =IF('Atualização Ponta de Estoque'!C22="","",'Atualização Ponta de Estoque'!C22) ->  | N30: =IF('Atualização Ponta de Estoque'!D22="","",'Atualização Ponta de Estoque'!D22) ->  | O30: =IF('Atualização Ponta de Estoque'!E22="","",'Atualização Ponta de Estoque'!E22) ->  | P30: =IF('Atualização Ponta de Estoque'!F22="","",'Atualização Ponta de Estoque'!F22) ->  | Q30: =IF('Atualização Ponta de Estoque'!G22="","",'Atualização Ponta de Estoque'!G22) ->  | R30: =IF('Atualização Ponta de Estoque'!H22="","",'Atualização Ponta de Estoque'!H22) ->  | S30: =IF('Atualização Ponta de Estoque'!I22="","",'Atualização Ponta de Estoque'!I22) ->  | T30: =IF('Atualização Ponta de Estoque'!J22="","",'Atualização Ponta de Estoque'!J22) ->  | U30: =IF('Atualização Ponta de Estoque'!K22="","",'Atualização Ponta de Estoque'!K22) ->  | V30: 0 | AG30: =IF('Atualização Ponta de Estoque'!L22="",0,'Atualização Ponta de Estoque'!L22) -> 0 | AH30: =((AR30/100)*(100+(IF(Definições!$AS$6>0,Definições!$M$37,0)))) -> 0 | AI30: PE | AJ30: ='Atualização Ponta de Estoque'!B22 -> 0 | AK30: - | AL30: ='Atualização Ponta de Estoque'!K22 -> 0 | AM30: PE 0 - 0 | AN30: =(($AO$8/30)*$AO$9)+IF(Orçamento!$AV$15="CF",Definições!$AO$81,0) -> 0 | AP30: 0 | AQ30: =IF(AP30="","",IF(Definições!$AP$6="REVENDEDOR COM MARGEM DE LUCRO",(AP30/100)*(100+#REF!),AP30)) -> 0 | AR30: =IF(AP30="","",IF(Definições!$AP$6="REVENDEDOR COM MARGEM DE LUCRO",(AQ30/100)*(100+#REF!),AQ30)) -> 0
K31: 22 | L31: =IF('Atualização Ponta de Estoque'!B23="","",'Atualização Ponta de Estoque'!B23) ->  | M31: =IF('Atualização Ponta de Estoque'!C23="","",'Atualização Ponta de Estoque'!C23) ->  | N31: =IF('Atualização Ponta de Estoque'!D23="","",'Atualização Ponta de Estoque'!D23) ->  | O31: =IF('Atualização Ponta de Estoque'!E23="","",'Atualização Ponta de Estoque'!E23) ->  | P31: =IF('Atualização Ponta de Estoque'!F23="","",'Atualização Ponta de Estoque'!F23) ->  | Q31: =IF('Atualização Ponta de Estoque'!G23="","",'Atualização Ponta de Estoque'!G23) ->  | R31: =IF('Atualização Ponta de Estoque'!H23="","",'Atualização Ponta de Estoque'!H23) ->  | S31: =IF('Atualização Ponta de Estoque'!I23="","",'Atualização Ponta de Estoque'!I23) ->  | T31: =IF('Atualização Ponta de Estoque'!J23="","",'Atualização Ponta de Estoque'!J23) ->  | U31: =IF('Atualização Ponta de Estoque'!K23="","",'Atualização Ponta de Estoque'!K23) ->  | V31: 0 | AG31: =IF('Atualização Ponta de Estoque'!L23="",0,'Atualização Ponta de Estoque'!L23) -> 0 | AH31: =((AR31/100)*(100+(IF(Definições!$AS$6>0,Definições!$M$37,0)))) -> 0 | AI31: PE | AJ31: ='Atualização Ponta de Estoque'!B23 -> 0 | AK31: - | AL31: ='Atualização Ponta de Estoque'!K23 -> 0 | AM31: PE 0 - 0 | AN31: =(($AO$8/30)*$AO$9)+IF(Orçamento!$AV$15="CF",Definições!$AO$81,0) -> 0 | AP31: 0 | AQ31: =IF(AP31="","",IF(Definições!$AP$6="REVENDEDOR COM MARGEM DE LUCRO",(AP31/100)*(100+#REF!),AP31)) -> 0 | AR31: =IF(AP31="","",IF(Definições!$AP$6="REVENDEDOR COM MARGEM DE LUCRO",(AQ31/100)*(100+#REF!),AQ31)) -> 0
K32: 23 | L32: =IF('Atualização Ponta de Estoque'!B24="","",'Atualização Ponta de Estoque'!B24) ->  | M32: =IF('Atualização Ponta de Estoque'!C24="","",'Atualização Ponta de Estoque'!C24) ->  | N32: =IF('Atualização Ponta de Estoque'!D24="","",'Atualização Ponta de Estoque'!D24) ->  | O32: =IF('Atualização Ponta de Estoque'!E24="","",'Atualização Ponta de Estoque'!E24) ->  | P32: =IF('Atualização Ponta de Estoque'!F24="","",'Atualização Ponta de Estoque'!F24) ->  | Q32: =IF('Atualização Ponta de Estoque'!G24="","",'Atualização Ponta de Estoque'!G24) ->  | R32: =IF('Atualização Ponta de Estoque'!H24="","",'Atualização Ponta de Estoque'!H24) ->  | S32: =IF('Atualização Ponta de Estoque'!I24="","",'Atualização Ponta de Estoque'!I24) ->  | T32: =IF('Atualização Ponta de Estoque'!J24="","",'Atualização Ponta de Estoque'!J24) ->  | U32: =IF('Atualização Ponta de Estoque'!K24="","",'Atualização Ponta de Estoque'!K24) ->  | V32: 0 | AG32: =IF('Atualização Ponta de Estoque'!L24="",0,'Atualização Ponta de Estoque'!L24) -> 0 | AH32: =((AR32/100)*(100+(IF(Definições!$AS$6>0,Definições!$M$37,0)))) -> 0 | AI32: PE | AJ32: ='Atualização Ponta de Estoque'!B24 -> 0 | AK32: - | AL32: ='Atualização Ponta de Estoque'!K24 -> 0 | AM32: PE 0 - 0 | AN32: =(($AO$8/30)*$AO$9)+IF(Orçamento!$AV$15="CF",Definições!$AO$81,0) -> 0 | AP32: 0 | AQ32: =IF(AP32="","",IF(Definições!$AP$6="REVENDEDOR COM MARGEM DE LUCRO",(AP32/100)*(100+#REF!),AP32)) -> 0 | AR32: =IF(AP32="","",IF(Definições!$AP$6="REVENDEDOR COM MARGEM DE LUCRO",(AQ32/100)*(100+#REF!),AQ32)) -> 0
K33: 24 | L33: =IF('Atualização Ponta de Estoque'!B25="","",'Atualização Ponta de Estoque'!B25) ->  | M33: =IF('Atualização Ponta de Estoque'!C25="","",'Atualização Ponta de Estoque'!C25) ->  | N33: =IF('Atualização Ponta de Estoque'!D25="","",'Atualização Ponta de Estoque'!D25) ->  | O33: =IF('Atualização Ponta de Estoque'!E25="","",'Atualização Ponta de Estoque'!E25) ->  | P33: =IF('Atualização Ponta de Estoque'!F25="","",'Atualização Ponta de Estoque'!F25) ->  | Q33: =IF('Atualização Ponta de Estoque'!G25="","",'Atualização Ponta de Estoque'!G25) ->  | R33: =IF('Atualização Ponta de Estoque'!H25="","",'Atualização Ponta de Estoque'!H25) ->  | S33: =IF('Atualização Ponta de Estoque'!I25="","",'Atualização Ponta de Estoque'!I25) ->  | T33: =IF('Atualização Ponta de Estoque'!J25="","",'Atualização Ponta de Estoque'!J25) ->  | U33: =IF('Atualização Ponta de Estoque'!K25="","",'Atualização Ponta de Estoque'!K25) ->  | V33: 0 | AG33: =IF('Atualização Ponta de Estoque'!L25="",0,'Atualização Ponta de Estoque'!L25) -> 0 | AH33: =((AR33/100)*(100+(IF(Definições!$AS$6>0,Definições!$M$37,0)))) -> 0 | AI33: PE | AJ33: ='Atualização Ponta de Estoque'!B25 -> 0 | AK33: - | AL33: ='Atualização Ponta de Estoque'!K25 -> 0 | AM33: PE 0 - 0 | AN33: =(($AO$8/30)*$AO$9)+IF(Orçamento!$AV$15="CF",Definições!$AO$81,0) -> 0 | AP33: 0 | AQ33: =IF(AP33="","",IF(Definições!$AP$6="REVENDEDOR COM MARGEM DE LUCRO",(AP33/100)*(100+#REF!),AP33)) -> 0 | AR33: =IF(AP33="","",IF(Definições!$AP$6="REVENDEDOR COM MARGEM DE LUCRO",(AQ33/100)*(100+#REF!),AQ33)) -> 0
K34: 25 | L34: =IF('Atualização Ponta de Estoque'!B26="","",'Atualização Ponta de Estoque'!B26) ->  | M34: =IF('Atualização Ponta de Estoque'!C26="","",'Atualização Ponta de Estoque'!C26) ->  | N34: =IF('Atualização Ponta de Estoque'!D26="","",'Atualização Ponta de Estoque'!D26) ->  | O34: =IF('Atualização Ponta de Estoque'!E26="","",'Atualização Ponta de Estoque'!E26) ->  | P34: =IF('Atualização Ponta de Estoque'!F26="","",'Atualização Ponta de Estoque'!F26) ->  | Q34: =IF('Atualização Ponta de Estoque'!G26="","",'Atualização Ponta de Estoque'!G26) ->  | R34: =IF('Atualização Ponta de Estoque'!H26="","",'Atualização Ponta de Estoque'!H26) ->  | S34: =IF('Atualização Ponta de Estoque'!I26="","",'Atualização Ponta de Estoque'!I26) ->  | T34: =IF('Atualização Ponta de Estoque'!J26="","",'Atualização Ponta de Estoque'!J26) ->  | U34: =IF('Atualização Ponta de Estoque'!K26="","",'Atualização Ponta de Estoque'!K26) ->  | V34: 0 | AG34: =IF('Atualização Ponta de Estoque'!L26="",0,'Atualização Ponta de Estoque'!L26) -> 0 | AH34: =((AR34/100)*(100+(IF(Definições!$AS$6>0,Definições!$M$37,0)))) -> 0 | AI34: PE | AJ34: ='Atualização Ponta de Estoque'!B26 -> 0 | AK34: - | AL34: ='Atualização Ponta de Estoque'!K26 -> 0 | AM34: PE 0 - 0 | AN34: =(($AO$8/30)*$AO$9)+IF(Orçamento!$AV$15="CF",Definições!$AO$81,0) -> 0 | AP34: 0 | AQ34: =IF(AP34="","",IF(Definições!$AP$6="REVENDEDOR COM MARGEM DE LUCRO",(AP34/100)*(100+#REF!),AP34)) -> 0 | AR34: =IF(AP34="","",IF(Definições!$AP$6="REVENDEDOR COM MARGEM DE LUCRO",(AQ34/100)*(100+#REF!),AQ34)) -> 0
K35: 26 | L35: =IF('Atualização Ponta de Estoque'!B27="","",'Atualização Ponta de Estoque'!B27) ->  | M35: =IF('Atualização Ponta de Estoque'!C27="","",'Atualização Ponta de Estoque'!C27) ->  | N35: =IF('Atualização Ponta de Estoque'!D27="","",'Atualização Ponta de Estoque'!D27) ->  | O35: =IF('Atualização Ponta de Estoque'!E27="","",'Atualização Ponta de Estoque'!E27) ->  | P35: =IF('Atualização Ponta de Estoque'!F27="","",'Atualização Ponta de Estoque'!F27) ->  | Q35: =IF('Atualização Ponta de Estoque'!G27="","",'Atualização Ponta de Estoque'!G27) ->  | R35: =IF('Atualização Ponta de Estoque'!H27="","",'Atualização Ponta de Estoque'!H27) ->  | S35: =IF('Atualização Ponta de Estoque'!I27="","",'Atualização Ponta de Estoque'!I27) ->  | T35: =IF('Atualização Ponta de Estoque'!J27="","",'Atualização Ponta de Estoque'!J27) ->  | U35: =IF('Atualização Ponta de Estoque'!K27="","",'Atualização Ponta de Estoque'!K27) ->  | V35: 0 | AG35: =IF('Atualização Ponta de Estoque'!L27="",0,'Atualização Ponta de Estoque'!L27) -> 0 | AH35: =((AR35/100)*(100+(IF(Definições!$AS$6>0,Definições!$M$37,0)))) -> 0 | AI35: PE | AJ35: ='Atualização Ponta de Estoque'!B27 -> 0 | AK35: - | AL35: ='Atualização Ponta de Estoque'!K27 -> 0 | AM35: PE 0 - 0 | AN35: =(($AO$8/30)*$AO$9)+IF(Orçamento!$AV$15="CF",Definições!$AO$81,0) -> 0 | AP35: 0 | AQ35: =IF(AP35="","",IF(Definições!$AP$6="REVENDEDOR COM MARGEM DE LUCRO",(AP35/100)*(100+#REF!),AP35)) -> 0 | AR35: =IF(AP35="","",IF(Definições!$AP$6="REVENDEDOR COM MARGEM DE LUCRO",(AQ35/100)*(100+#REF!),AQ35)) -> 0
K36: 27 | L36: =IF('Atualização Ponta de Estoque'!B28="","",'Atualização Ponta de Estoque'!B28) ->  | M36: =IF('Atualização Ponta de Estoque'!C28="","",'Atualização Ponta de Estoque'!C28) ->  | N36: =IF('Atualização Ponta de Estoque'!D28="","",'Atualização Ponta de Estoque'!D28) ->  | O36: =IF('Atualização Ponta de Estoque'!E28="","",'Atualização Ponta de Estoque'!E28) ->  | P36: =IF('Atualização Ponta de Estoque'!F28="","",'Atualização Ponta de Estoque'!F28) ->  | Q36: =IF('Atualização Ponta de Estoque'!G28="","",'Atualização Ponta de Estoque'!G28) ->  | R36: =IF('Atualização Ponta de Estoque'!H28="","",'Atualização Ponta de Estoque'!H28) ->  | S36: =IF('Atualização Ponta de Estoque'!I28="","",'Atualização Ponta de Estoque'!I28) ->  | T36: =IF('Atualização Ponta de Estoque'!J28="","",'Atualização Ponta de Estoque'!J28) ->  | U36: =IF('Atualização Ponta de Estoque'!K28="","",'Atualização Ponta de Estoque'!K28) ->  | V36: 0 | AG36: =IF('Atualização Ponta de Estoque'!L28="",0,'Atualização Ponta de Estoque'!L28) -> 0 | AH36: =((AR36/100)*(100+(IF(Definições!$AS$6>0,Definições!$M$37,0)))) -> 0 | AI36: PE | AJ36: ='Atualização Ponta de Estoque'!B28 -> 0 | AK36: - | AL36: ='Atualização Ponta de Estoque'!K28 -> 0 | AM36: PE 0 - 0 | AN36: =(($AO$8/30)*$AO$9)+IF(Orçamento!$AV$15="CF",Definições!$AO$81,0) -> 0 | AP36: 0 | AQ36: =IF(AP36="","",IF(Definições!$AP$6="REVENDEDOR COM MARGEM DE LUCRO",(AP36/100)*(100+#REF!),AP36)) -> 0 | AR36: =IF(AP36="","",IF(Definições!$AP$6="REVENDEDOR COM MARGEM DE LUCRO",(AQ36/100)*(100+#REF!),AQ36)) -> 0
K37: 28 | L37: =IF('Atualização Ponta de Estoque'!B29="","",'Atualização Ponta de Estoque'!B29) ->  | M37: =IF('Atualização Ponta de Estoque'!C29="","",'Atualização Ponta de Estoque'!C29) ->  | N37: =IF('Atualização Ponta de Estoque'!D29="","",'Atualização Ponta de Estoque'!D29) ->  | O37: =IF('Atualização Ponta de Estoque'!E29="","",'Atualização Ponta de Estoque'!E29) ->  | P37: =IF('Atualização Ponta de Estoque'!F29="","",'Atualização Ponta de Estoque'!F29) ->  | Q37: =IF('Atualização Ponta de Estoque'!G29="","",'Atualização Ponta de Estoque'!G29) ->  | R37: =IF('Atualização Ponta de Estoque'!H29="","",'Atualização Ponta de Estoque'!H29) ->  | S37: =IF('Atualização Ponta de Estoque'!I29="","",'Atualização Ponta de Estoque'!I29) ->  | T37: =IF('Atualização Ponta de Estoque'!J29="","",'Atualização Ponta de Estoque'!J29) ->  | U37: =IF('Atualização Ponta de Estoque'!K29="","",'Atualização Ponta de Estoque'!K29) ->  | V37: 0 | AG37: =IF('Atualização Ponta de Estoque'!L29="",0,'Atualização Ponta de Estoque'!L29) -> 0 | AH37: =((AR37/100)*(100+(IF(Definições!$AS$6>0,Definições!$M$37,0)))) -> 0 | AI37: PE | AJ37: ='Atualização Ponta de Estoque'!B29 -> 0 | AK37: - | AL37: ='Atualização Ponta de Estoque'!K29 -> 0 | AM37: PE 0 - 0 | AN37: =(($AO$8/30)*$AO$9)+IF(Orçamento!$AV$15="CF",Definições!$AO$81,0) -> 0 | AP37: 0 | AQ37: =IF(AP37="","",IF(Definições!$AP$6="REVENDEDOR COM MARGEM DE LUCRO",(AP37/100)*(100+#REF!),AP37)) -> 0 | AR37: =IF(AP37="","",IF(Definições!$AP$6="REVENDEDOR COM MARGEM DE LUCRO",(AQ37/100)*(100+#REF!),AQ37)) -> 0
K38: 29 | L38: =IF('Atualização Ponta de Estoque'!B30="","",'Atualização Ponta de Estoque'!B30) ->  | M38: =IF('Atualização Ponta de Estoque'!C30="","",'Atualização Ponta de Estoque'!C30) ->  | N38: =IF('Atualização Ponta de Estoque'!D30="","",'Atualização Ponta de Estoque'!D30) ->  | O38: =IF('Atualização Ponta de Estoque'!E30="","",'Atualização Ponta de Estoque'!E30) ->  | P38: =IF('Atualização Ponta de Estoque'!F30="","",'Atualização Ponta de Estoque'!F30) ->  | Q38: =IF('Atualização Ponta de Estoque'!G30="","",'Atualização Ponta de Estoque'!G30) ->  | R38: =IF('Atualização Ponta de Estoque'!H30="","",'Atualização Ponta de Estoque'!H30) ->  | S38: =IF('Atualização Ponta de Estoque'!I30="","",'Atualização Ponta de Estoque'!I30) ->  | T38: =IF('Atualização Ponta de Estoque'!J30="","",'Atualização Ponta de Estoque'!J30) ->  | U38: =IF('Atualização Ponta de Estoque'!K30="","",'Atualização Ponta de Estoque'!K30) ->  | V38: 0 | AG38: =IF('Atualização Ponta de Estoque'!L30="",0,'Atualização Ponta de Estoque'!L30) -> 0 | AH38: =((AR38/100)*(100+(IF(Definições!$AS$6>0,Definições!$M$37,0)))) -> 0 | AI38: PE | AJ38: ='Atualização Ponta de Estoque'!B30 -> 0 | AK38: - | AL38: ='Atualização Ponta de Estoque'!K30 -> 0 | AM38: PE 0 - 0 | AN38: =(($AO$8/30)*$AO$9)+IF(Orçamento!$AV$15="CF",Definições!$AO$81,0) -> 0 | AP38: 0 | AQ38: =IF(AP38="","",IF(Definições!$AP$6="REVENDEDOR COM MARGEM DE LUCRO",(AP38/100)*(100+#REF!),AP38)) -> 0 | AR38: =IF(AP38="","",IF(Definições!$AP$6="REVENDEDOR COM MARGEM DE LUCRO",(AQ38/100)*(100+#REF!),AQ38)) -> 0
K39: 30 | L39: =IF('Atualização Ponta de Estoque'!B31="","",'Atualização Ponta de Estoque'!B31) ->  | M39: =IF('Atualização Ponta de Estoque'!C31="","",'Atualização Ponta de Estoque'!C31) ->  | N39: =IF('Atualização Ponta de Estoque'!D31="","",'Atualização Ponta de Estoque'!D31) ->  | O39: =IF('Atualização Ponta de Estoque'!E31="","",'Atualização Ponta de Estoque'!E31) ->  | P39: =IF('Atualização Ponta de Estoque'!F31="","",'Atualização Ponta de Estoque'!F31) ->  | Q39: =IF('Atualização Ponta de Estoque'!G31="","",'Atualização Ponta de Estoque'!G31) ->  | R39: =IF('Atualização Ponta de Estoque'!H31="","",'Atualização Ponta de Estoque'!H31) ->  | S39: =IF('Atualização Ponta de Estoque'!I31="","",'Atualização Ponta de Estoque'!I31) ->  | T39: =IF('Atualização Ponta de Estoque'!J31="","",'Atualização Ponta de Estoque'!J31) ->  | U39: =IF('Atualização Ponta de Estoque'!K31="","",'Atualização Ponta de Estoque'!K31) ->  | V39: 0 | AG39: =IF('Atualização Ponta de Estoque'!L31="",0,'Atualização Ponta de Estoque'!L31) -> 0 | AH39: =((AR39/100)*(100+(IF(Definições!$AS$6>0,Definições!$M$37,0)))) -> 0 | AI39: PE | AJ39: ='Atualização Ponta de Estoque'!B31 -> 0 | AK39: - | AL39: ='Atualização Ponta de Estoque'!K31 -> 0 | AM39: PE 0 - 0 | AN39: =(($AO$8/30)*$AO$9)+IF(Orçamento!$AV$15="CF",Definições!$AO$81,0) -> 0 | AP39: 0 | AQ39: =IF(AP39="","",IF(Definições!$AP$6="REVENDEDOR COM MARGEM DE LUCRO",(AP39/100)*(100+#REF!),AP39)) -> 0 | AR39: =IF(AP39="","",IF(Definições!$AP$6="REVENDEDOR COM MARGEM DE LUCRO",(AQ39/100)*(100+#REF!),AQ39)) -> 0
K40: 31 | L40: =IF('Atualização Ponta de Estoque'!B32="","",'Atualização Ponta de Estoque'!B32) ->  | M40: =IF('Atualização Ponta de Estoque'!C32="","",'Atualização Ponta de Estoque'!C32) ->  | N40: =IF('Atualização Ponta de Estoque'!D32="","",'Atualização Ponta de Estoque'!D32) ->  | O40: =IF('Atualização Ponta de Estoque'!E32="","",'Atualização Ponta de Estoque'!E32) ->  | P40: =IF('Atualização Ponta de Estoque'!F32="","",'Atualização Ponta de Estoque'!F32) ->  | Q40: =IF('Atualização Ponta de Estoque'!G32="","",'Atualização Ponta de Estoque'!G32) ->  | R40: =IF('Atualização Ponta de Estoque'!H32="","",'Atualização Ponta de Estoque'!H32) ->  | S40: =IF('Atualização Ponta de Estoque'!I32="","",'Atualização Ponta de Estoque'!I32) ->  | T40: =IF('Atualização Ponta de Estoque'!J32="","",'Atualização Ponta de Estoque'!J32) ->  | U40: =IF('Atualização Ponta de Estoque'!K32="","",'Atualização Ponta de Estoque'!K32) ->  | V40: 0 | AG40: =IF('Atualização Ponta de Estoque'!L32="",0,'Atualização Ponta de Estoque'!L32) -> 0 | AH40: =((AR40/100)*(100+(IF(Definições!$AS$6>0,Definições!$M$37,0)))) -> 0 | AI40: PE | AJ40: ='Atualização Ponta de Estoque'!B32 -> 0 | AK40: - | AL40: ='Atualização Ponta de Estoque'!K32 -> 0 | AM40: PE 0 - 0 | AN40: =(($AO$8/30)*$AO$9)+IF(Orçamento!$AV$15="CF",Definições!$AO$81,0) -> 0 | AP40: 0 | AQ40: =IF(AP40="","",IF(Definições!$AP$6="REVENDEDOR COM MARGEM DE LUCRO",(AP40/100)*(100+#REF!),AP40)) -> 0 | AR40: =IF(AP40="","",IF(Definições!$AP$6="REVENDEDOR COM MARGEM DE LUCRO",(AQ40/100)*(100+#REF!),AQ40)) -> 0
K41: 32 | L41: =IF('Atualização Ponta de Estoque'!B33="","",'Atualização Ponta de Estoque'!B33) ->  | M41: =IF('Atualização Ponta de Estoque'!C33="","",'Atualização Ponta de Estoque'!C33) ->  | N41: =IF('Atualização Ponta de Estoque'!D33="","",'Atualização Ponta de Estoque'!D33) ->  | O41: =IF('Atualização Ponta de Estoque'!E33="","",'Atualização Ponta de Estoque'!E33) ->  | P41: =IF('Atualização Ponta de Estoque'!F33="","",'Atualização Ponta de Estoque'!F33) ->  | Q41: =IF('Atualização Ponta de Estoque'!G33="","",'Atualização Ponta de Estoque'!G33) ->  | R41: =IF('Atualização Ponta de Estoque'!H33="","",'Atualização Ponta de Estoque'!H33) ->  | S41: =IF('Atualização Ponta de Estoque'!I33="","",'Atualização Ponta de Estoque'!I33) ->  | T41: =IF('Atualização Ponta de Estoque'!J33="","",'Atualização Ponta de Estoque'!J33) ->  | U41: =IF('Atualização Ponta de Estoque'!K33="","",'Atualização Ponta de Estoque'!K33) ->  | V41: 0 | AG41: =IF('Atualização Ponta de Estoque'!L33="",0,'Atualização Ponta de Estoque'!L33) -> 0 | AH41: =((AR41/100)*(100+(IF(Definições!$AS$6>0,Definições!$M$37,0)))) -> 0 | AI41: PE | AJ41: ='Atualização Ponta de Estoque'!B33 -> 0 | AK41: - | AL41: ='Atualização Ponta de Estoque'!K33 -> 0 | AM41: PE 0 - 0 | AN41: =(($AO$8/30)*$AO$9)+IF(Orçamento!$AV$15="CF",Definições!$AO$81,0) -> 0 | AP41: 0 | AQ41: =IF(AP41="","",IF(Definições!$AP$6="REVENDEDOR COM MARGEM DE LUCRO",(AP41/100)*(100+#REF!),AP41)) -> 0 | AR41: =IF(AP41="","",IF(Definições!$AP$6="REVENDEDOR COM MARGEM DE LUCRO",(AQ41/100)*(100+#REF!),AQ41)) -> 0
K42: 33 | L42: =IF('Atualização Ponta de Estoque'!B34="","",'Atualização Ponta de Estoque'!B34) ->  | M42: =IF('Atualização Ponta de Estoque'!C34="","",'Atualização Ponta de Estoque'!C34) ->  | N42: =IF('Atualização Ponta de Estoque'!D34="","",'Atualização Ponta de Estoque'!D34) ->  | O42: =IF('Atualização Ponta de Estoque'!E34="","",'Atualização Ponta de Estoque'!E34) ->  | P42: =IF('Atualização Ponta de Estoque'!F34="","",'Atualização Ponta de Estoque'!F34) ->  | Q42: =IF('Atualização Ponta de Estoque'!G34="","",'Atualização Ponta de Estoque'!G34) ->  | R42: =IF('Atualização Ponta de Estoque'!H34="","",'Atualização Ponta de Estoque'!H34) ->  | S42: =IF('Atualização Ponta de Estoque'!I34="","",'Atualização Ponta de Estoque'!I34) ->  | T42: =IF('Atualização Ponta de Estoque'!J34="","",'Atualização Ponta de Estoque'!J34) ->  | U42: =IF('Atualização Ponta de Estoque'!K34="","",'Atualização Ponta de Estoque'!K34) ->  | V42: 0 | AG42: =IF('Atualização Ponta de Estoque'!L34="",0,'Atualização Ponta de Estoque'!L34) -> 0 | AH42: =((AR42/100)*(100+(IF(Definições!$AS$6>0,Definições!$M$37,0)))) -> 0 | AI42: PE | AJ42: ='Atualização Ponta de Estoque'!B34 -> 0 | AK42: - | AL42: ='Atualização Ponta de Estoque'!K34 -> 0 | AM42: PE 0 - 0 | AN42: =(($AO$8/30)*$AO$9)+IF(Orçamento!$AV$15="CF",Definições!$AO$81,0) -> 0 | AP42: 0 | AQ42: =IF(AP42="","",IF(Definições!$AP$6="REVENDEDOR COM MARGEM DE LUCRO",(AP42/100)*(100+#REF!),AP42)) -> 0 | AR42: =IF(AP42="","",IF(Definições!$AP$6="REVENDEDOR COM MARGEM DE LUCRO",(AQ42/100)*(100+#REF!),AQ42)) -> 0
K43: 34 | L43: =IF('Atualização Ponta de Estoque'!B35="","",'Atualização Ponta de Estoque'!B35) ->  | M43: =IF('Atualização Ponta de Estoque'!C35="","",'Atualização Ponta de Estoque'!C35) ->  | N43: =IF('Atualização Ponta de Estoque'!D35="","",'Atualização Ponta de Estoque'!D35) ->  | O43: =IF('Atualização Ponta de Estoque'!E35="","",'Atualização Ponta de Estoque'!E35) ->  | P43: =IF('Atualização Ponta de Estoque'!F35="","",'Atualização Ponta de Estoque'!F35) ->  | Q43: =IF('Atualização Ponta de Estoque'!G35="","",'Atualização Ponta de Estoque'!G35) ->  | R43: =IF('Atualização Ponta de Estoque'!H35="","",'Atualização Ponta de Estoque'!H35) ->  | S43: =IF('Atualização Ponta de Estoque'!I35="","",'Atualização Ponta de Estoque'!I35) ->  | T43: =IF('Atualização Ponta de Estoque'!J35="","",'Atualização Ponta de Estoque'!J35) ->  | U43: =IF('Atualização Ponta de Estoque'!K35="","",'Atualização Ponta de Estoque'!K35) ->  | V43: 0 | AG43: =IF('Atualização Ponta de Estoque'!L35="",0,'Atualização Ponta de Estoque'!L35) -> 0 | AH43: =((AR43/100)*(100+(IF(Definições!$AS$6>0,Definições!$M$37,0)))) -> 0 | AI43: PE | AJ43: ='Atualização Ponta de Estoque'!B35 -> 0 | AK43: - | AL43: ='Atualização Ponta de Estoque'!K35 -> 0 | AM43: PE 0 - 0 | AN43: =(($AO$8/30)*$AO$9)+IF(Orçamento!$AV$15="CF",Definições!$AO$81,0) -> 0 | AP43: 0 | AQ43: =IF(AP43="","",IF(Definições!$AP$6="REVENDEDOR COM MARGEM DE LUCRO",(AP43/100)*(100+#REF!),AP43)) -> 0 | AR43: =IF(AP43="","",IF(Definições!$AP$6="REVENDEDOR COM MARGEM DE LUCRO",(AQ43/100)*(100+#REF!),AQ43)) -> 0
K44: 35 | L44: =IF('Atualização Ponta de Estoque'!B36="","",'Atualização Ponta de Estoque'!B36) ->  | M44: =IF('Atualização Ponta de Estoque'!C36="","",'Atualização Ponta de Estoque'!C36) ->  | N44: =IF('Atualização Ponta de Estoque'!D36="","",'Atualização Ponta de Estoque'!D36) ->  | O44: =IF('Atualização Ponta de Estoque'!E36="","",'Atualização Ponta de Estoque'!E36) ->  | P44: =IF('Atualização Ponta de Estoque'!F36="","",'Atualização Ponta de Estoque'!F36) ->  | Q44: =IF('Atualização Ponta de Estoque'!G36="","",'Atualização Ponta de Estoque'!G36) ->  | R44: =IF('Atualização Ponta de Estoque'!H36="","",'Atualização Ponta de Estoque'!H36) ->  | S44: =IF('Atualização Ponta de Estoque'!I36="","",'Atualização Ponta de Estoque'!I36) ->  | T44: =IF('Atualização Ponta de Estoque'!J36="","",'Atualização Ponta de Estoque'!J36) ->  | U44: =IF('Atualização Ponta de Estoque'!K36="","",'Atualização Ponta de Estoque'!K36) ->  | V44: 0 | AG44: =IF('Atualização Ponta de Estoque'!L36="",0,'Atualização Ponta de Estoque'!L36) -> 0 | AH44: =((AR44/100)*(100+(IF(Definições!$AS$6>0,Definições!$M$37,0)))) -> 0 | AI44: PE | AJ44: ='Atualização Ponta de Estoque'!B36 -> 0 | AK44: - | AL44: ='Atualização Ponta de Estoque'!K36 -> 0 | AM44: PE 0 - 0 | AN44: =(($AO$8/30)*$AO$9)+IF(Orçamento!$AV$15="CF",Definições!$AO$81,0) -> 0 | AP44: 0 | AQ44: =IF(AP44="","",IF(Definições!$AP$6="REVENDEDOR COM MARGEM DE LUCRO",(AP44/100)*(100+#REF!),AP44)) -> 0 | AR44: =IF(AP44="","",IF(Definições!$AP$6="REVENDEDOR COM MARGEM DE LUCRO",(AQ44/100)*(100+#REF!),AQ44)) -> 0
K45: 36 | L45: =IF('Atualização Ponta de Estoque'!B37="","",'Atualização Ponta de Estoque'!B37) ->  | M45: =IF('Atualização Ponta de Estoque'!C37="","",'Atualização Ponta de Estoque'!C37) ->  | N45: =IF('Atualização Ponta de Estoque'!D37="","",'Atualização Ponta de Estoque'!D37) ->  | O45: =IF('Atualização Ponta de Estoque'!E37="","",'Atualização Ponta de Estoque'!E37) ->  | P45: =IF('Atualização Ponta de Estoque'!F37="","",'Atualização Ponta de Estoque'!F37) ->  | Q45: =IF('Atualização Ponta de Estoque'!G37="","",'Atualização Ponta de Estoque'!G37) ->  | R45: =IF('Atualização Ponta de Estoque'!H37="","",'Atualização Ponta de Estoque'!H37) ->  | S45: =IF('Atualização Ponta de Estoque'!I37="","",'Atualização Ponta de Estoque'!I37) ->  | T45: =IF('Atualização Ponta de Estoque'!J37="","",'Atualização Ponta de Estoque'!J37) ->  | U45: =IF('Atualização Ponta de Estoque'!K37="","",'Atualização Ponta de Estoque'!K37) ->  | V45: 0 | AG45: =IF('Atualização Ponta de Estoque'!L37="",0,'Atualização Ponta de Estoque'!L37) -> 0 | AH45: =((AR45/100)*(100+(IF(Definições!$AS$6>0,Definições!$M$37,0)))) -> 0 | AI45: PE | AJ45: ='Atualização Ponta de Estoque'!B37 -> 0 | AK45: - | AL45: ='Atualização Ponta de Estoque'!K37 -> 0 | AM45: PE 0 - 0 | AN45: =(($AO$8/30)*$AO$9)+IF(Orçamento!$AV$15="CF",Definições!$AO$81,0) -> 0 | AP45: 0 | AQ45: =IF(AP45="","",IF(Definições!$AP$6="REVENDEDOR COM MARGEM DE LUCRO",(AP45/100)*(100+#REF!),AP45)) -> 0 | AR45: =IF(AP45="","",IF(Definições!$AP$6="REVENDEDOR COM MARGEM DE LUCRO",(AQ45/100)*(100+#REF!),AQ45)) -> 0
K46: 37 | L46: =IF('Atualização Ponta de Estoque'!B38="","",'Atualização Ponta de Estoque'!B38) ->  | M46: =IF('Atualização Ponta de Estoque'!C38="","",'Atualização Ponta de Estoque'!C38) ->  | N46: =IF('Atualização Ponta de Estoque'!D38="","",'Atualização Ponta de Estoque'!D38) ->  | O46: =IF('Atualização Ponta de Estoque'!E38="","",'Atualização Ponta de Estoque'!E38) ->  | P46: =IF('Atualização Ponta de Estoque'!F38="","",'Atualização Ponta de Estoque'!F38) ->  | Q46: =IF('Atualização Ponta de Estoque'!G38="","",'Atualização Ponta de Estoque'!G38) ->  | R46: =IF('Atualização Ponta de Estoque'!H38="","",'Atualização Ponta de Estoque'!H38) ->  | S46: =IF('Atualização Ponta de Estoque'!I38="","",'Atualização Ponta de Estoque'!I38) ->  | T46: =IF('Atualização Ponta de Estoque'!J38="","",'Atualização Ponta de Estoque'!J38) ->  | U46: =IF('Atualização Ponta de Estoque'!K38="","",'Atualização Ponta de Estoque'!K38) ->  | V46: 0 | AG46: =IF('Atualização Ponta de Estoque'!L38="",0,'Atualização Ponta de Estoque'!L38) -> 0 | AH46: =((AR46/100)*(100+(IF(Definições!$AS$6>0,Definições!$M$37,0)))) -> 0 | AI46: PE | AJ46: ='Atualização Ponta de Estoque'!B38 -> 0 | AK46: - | AL46: ='Atualização Ponta de Estoque'!K38 -> 0 | AM46: PE 0 - 0 | AN46: =(($AO$8/30)*$AO$9)+IF(Orçamento!$AV$15="CF",Definições!$AO$81,0) -> 0 | AP46: 0 | AQ46: =IF(AP46="","",IF(Definições!$AP$6="REVENDEDOR COM MARGEM DE LUCRO",(AP46/100)*(100+#REF!),AP46)) -> 0 | AR46: =IF(AP46="","",IF(Definições!$AP$6="REVENDEDOR COM MARGEM DE LUCRO",(AQ46/100)*(100+#REF!),AQ46)) -> 0
K47: 38 | L47: =IF('Atualização Ponta de Estoque'!B39="","",'Atualização Ponta de Estoque'!B39) ->  | M47: =IF('Atualização Ponta de Estoque'!C39="","",'Atualização Ponta de Estoque'!C39) ->  | N47: =IF('Atualização Ponta de Estoque'!D39="","",'Atualização Ponta de Estoque'!D39) ->  | O47: =IF('Atualização Ponta de Estoque'!E39="","",'Atualização Ponta de Estoque'!E39) ->  | P47: =IF('Atualização Ponta de Estoque'!F39="","",'Atualização Ponta de Estoque'!F39) ->  | Q47: =IF('Atualização Ponta de Estoque'!G39="","",'Atualização Ponta de Estoque'!G39) ->  | R47: =IF('Atualização Ponta de Estoque'!H39="","",'Atualização Ponta de Estoque'!H39) ->  | S47: =IF('Atualização Ponta de Estoque'!I39="","",'Atualização Ponta de Estoque'!I39) ->  | T47: =IF('Atualização Ponta de Estoque'!J39="","",'Atualização Ponta de Estoque'!J39) ->  | U47: =IF('Atualização Ponta de Estoque'!K39="","",'Atualização Ponta de Estoque'!K39) ->  | V47: 0 | AG47: =IF('Atualização Ponta de Estoque'!L39="",0,'Atualização Ponta de Estoque'!L39) -> 0 | AH47: =((AR47/100)*(100+(IF(Definições!$AS$6>0,Definições!$M$37,0)))) -> 0 | AI47: PE | AJ47: ='Atualização Ponta de Estoque'!B39 -> 0 | AK47: - | AL47: ='Atualização Ponta de Estoque'!K39 -> 0 | AM47: PE 0 - 0 | AN47: =(($AO$8/30)*$AO$9)+IF(Orçamento!$AV$15="CF",Definições!$AO$81,0) -> 0 | AP47: 0 | AQ47: =IF(AP47="","",IF(Definições!$AP$6="REVENDEDOR COM MARGEM DE LUCRO",(AP47/100)*(100+#REF!),AP47)) -> 0 | AR47: =IF(AP47="","",IF(Definições!$AP$6="REVENDEDOR COM MARGEM DE LUCRO",(AQ47/100)*(100+#REF!),AQ47)) -> 0
K48: 39 | L48: =IF('Atualização Ponta de Estoque'!B40="","",'Atualização Ponta de Estoque'!B40) ->  | M48: =IF('Atualização Ponta de Estoque'!C40="","",'Atualização Ponta de Estoque'!C40) ->  | N48: =IF('Atualização Ponta de Estoque'!D40="","",'Atualização Ponta de Estoque'!D40) ->  | O48: =IF('Atualização Ponta de Estoque'!E40="","",'Atualização Ponta de Estoque'!E40) ->  | P48: =IF('Atualização Ponta de Estoque'!F40="","",'Atualização Ponta de Estoque'!F40) ->  | Q48: =IF('Atualização Ponta de Estoque'!G40="","",'Atualização Ponta de Estoque'!G40) ->  | R48: =IF('Atualização Ponta de Estoque'!H40="","",'Atualização Ponta de Estoque'!H40) ->  | S48: =IF('Atualização Ponta de Estoque'!I40="","",'Atualização Ponta de Estoque'!I40) ->  | T48: =IF('Atualização Ponta de Estoque'!J40="","",'Atualização Ponta de Estoque'!J40) ->  | U48: =IF('Atualização Ponta de Estoque'!K40="","",'Atualização Ponta de Estoque'!K40) ->  | V48: 0 | AG48: =IF('Atualização Ponta de Estoque'!L40="",0,'Atualização Ponta de Estoque'!L40) -> 0 | AH48: =((AR48/100)*(100+(IF(Definições!$AS$6>0,Definições!$M$37,0)))) -> 0 | AI48: PE | AJ48: ='Atualização Ponta de Estoque'!B40 -> 0 | AK48: - | AL48: ='Atualização Ponta de Estoque'!K40 -> 0 | AM48: PE 0 - 0 | AN48: =(($AO$8/30)*$AO$9)+IF(Orçamento!$AV$15="CF",Definições!$AO$81,0) -> 0 | AP48: 0 | AQ48: =IF(AP48="","",IF(Definições!$AP$6="REVENDEDOR COM MARGEM DE LUCRO",(AP48/100)*(100+#REF!),AP48)) -> 0 | AR48: =IF(AP48="","",IF(Definições!$AP$6="REVENDEDOR COM MARGEM DE LUCRO",(AQ48/100)*(100+#REF!),AQ48)) -> 0
K49: 40 | L49: =IF('Atualização Ponta de Estoque'!B41="","",'Atualização Ponta de Estoque'!B41) ->  | M49: =IF('Atualização Ponta de Estoque'!C41="","",'Atualização Ponta de Estoque'!C41) ->  | N49: =IF('Atualização Ponta de Estoque'!D41="","",'Atualização Ponta de Estoque'!D41) ->  | O49: =IF('Atualização Ponta de Estoque'!E41="","",'Atualização Ponta de Estoque'!E41) ->  | P49: =IF('Atualização Ponta de Estoque'!F41="","",'Atualização Ponta de Estoque'!F41) ->  | Q49: =IF('Atualização Ponta de Estoque'!G41="","",'Atualização Ponta de Estoque'!G41) ->  | R49: =IF('Atualização Ponta de Estoque'!H41="","",'Atualização Ponta de Estoque'!H41) ->  | S49: =IF('Atualização Ponta de Estoque'!I41="","",'Atualização Ponta de Estoque'!I41) ->  | T49: =IF('Atualização Ponta de Estoque'!J41="","",'Atualização Ponta de Estoque'!J41) ->  | U49: =IF('Atualização Ponta de Estoque'!K41="","",'Atualização Ponta de Estoque'!K41) ->  | V49: 0 | AG49: =IF('Atualização Ponta de Estoque'!L41="",0,'Atualização Ponta de Estoque'!L41) -> 0 | AH49: =((AR49/100)*(100+(IF(Definições!$AS$6>0,Definições!$M$37,0)))) -> 0 | AI49: PE | AJ49: ='Atualização Ponta de Estoque'!B41 -> 0 | AK49: - | AL49: ='Atualização Ponta de Estoque'!K41 -> 0 | AM49: PE 0 - 0 | AN49: =(($AO$8/30)*$AO$9)+IF(Orçamento!$AV$15="CF",Definições!$AO$81,0) -> 0 | AP49: 0 | AQ49: =IF(AP49="","",IF(Definições!$AP$6="REVENDEDOR COM MARGEM DE LUCRO",(AP49/100)*(100+#REF!),AP49)) -> 0 | AR49: =IF(AP49="","",IF(Definições!$AP$6="REVENDEDOR COM MARGEM DE LUCRO",(AQ49/100)*(100+#REF!),AQ49)) -> 0
K50: 41 | L50: =IF('Atualização Ponta de Estoque'!B42="","",'Atualização Ponta de Estoque'!B42) ->  | M50: =IF('Atualização Ponta de Estoque'!C42="","",'Atualização Ponta de Estoque'!C42) ->  | N50: =IF('Atualização Ponta de Estoque'!D42="","",'Atualização Ponta de Estoque'!D42) ->  | O50: =IF('Atualização Ponta de Estoque'!E42="","",'Atualização Ponta de Estoque'!E42) ->  | P50: =IF('Atualização Ponta de Estoque'!F42="","",'Atualização Ponta de Estoque'!F42) ->  | Q50: =IF('Atualização Ponta de Estoque'!G42="","",'Atualização Ponta de Estoque'!G42) ->  | R50: =IF('Atualização Ponta de Estoque'!H42="","",'Atualização Ponta de Estoque'!H42) ->  | S50: =IF('Atualização Ponta de Estoque'!I42="","",'Atualização Ponta de Estoque'!I42) ->  | T50: =IF('Atualização Ponta de Estoque'!J42="","",'Atualização Ponta de Estoque'!J42) ->  | U50: =IF('Atualização Ponta de Estoque'!K42="","",'Atualização Ponta de Estoque'!K42) ->  | V50: 0 | AG50: =IF('Atualização Ponta de Estoque'!L42="",0,'Atualização Ponta de Estoque'!L42) -> 0 | AH50: =((AR50/100)*(100+(IF(Definições!$AS$6>0,Definições!$M$37,0)))) -> 0 | AI50: PE | AJ50: ='Atualização Ponta de Estoque'!B42 -> 0 | AK50: - | AL50: ='Atualização Ponta de Estoque'!K42 -> 0 | AM50: PE 0 - 0 | AN50: =(($AO$8/30)*$AO$9)+IF(Orçamento!$AV$15="CF",Definições!$AO$81,0) -> 0 | AP50: 0 | AQ50: =IF(AP50="","",IF(Definições!$AP$6="REVENDEDOR COM MARGEM DE LUCRO",(AP50/100)*(100+#REF!),AP50)) -> 0 | AR50: =IF(AP50="","",IF(Definições!$AP$6="REVENDEDOR COM MARGEM DE LUCRO",(AQ50/100)*(100+#REF!),AQ50)) -> 0
K51: 42 | L51: =IF('Atualização Ponta de Estoque'!B43="","",'Atualização Ponta de Estoque'!B43) ->  | M51: =IF('Atualização Ponta de Estoque'!C43="","",'Atualização Ponta de Estoque'!C43) ->  | N51: =IF('Atualização Ponta de Estoque'!D43="","",'Atualização Ponta de Estoque'!D43) ->  | O51: =IF('Atualização Ponta de Estoque'!E43="","",'Atualização Ponta de Estoque'!E43) ->  | P51: =IF('Atualização Ponta de Estoque'!F43="","",'Atualização Ponta de Estoque'!F43) ->  | Q51: =IF('Atualização Ponta de Estoque'!G43="","",'Atualização Ponta de Estoque'!G43) ->  | R51: =IF('Atualização Ponta de Estoque'!H43="","",'Atualização Ponta de Estoque'!H43) ->  | S51: =IF('Atualização Ponta de Estoque'!I43="","",'Atualização Ponta de Estoque'!I43) ->  | T51: =IF('Atualização Ponta de Estoque'!J43="","",'Atualização Ponta de Estoque'!J43) ->  | U51: =IF('Atualização Ponta de Estoque'!K43="","",'Atualização Ponta de Estoque'!K43) ->  | V51: 0 | AG51: =IF('Atualização Ponta de Estoque'!L43="",0,'Atualização Ponta de Estoque'!L43) -> 0 | AH51: =((AR51/100)*(100+(IF(Definições!$AS$6>0,Definições!$M$37,0)))) -> 0 | AI51: PE | AJ51: ='Atualização Ponta de Estoque'!B43 -> 0 | AK51: - | AL51: ='Atualização Ponta de Estoque'!K43 -> 0 | AM51: PE 0 - 0 | AN51: =(($AO$8/30)*$AO$9)+IF(Orçamento!$AV$15="CF",Definições!$AO$81,0) -> 0 | AP51: 0 | AQ51: =IF(AP51="","",IF(Definições!$AP$6="REVENDEDOR COM MARGEM DE LUCRO",(AP51/100)*(100+#REF!),AP51)) -> 0 | AR51: =IF(AP51="","",IF(Definições!$AP$6="REVENDEDOR COM MARGEM DE LUCRO",(AQ51/100)*(100+#REF!),AQ51)) -> 0
K52: 43 | L52: =IF('Atualização Ponta de Estoque'!B44="","",'Atualização Ponta de Estoque'!B44) ->  | M52: =IF('Atualização Ponta de Estoque'!C44="","",'Atualização Ponta de Estoque'!C44) ->  | N52: =IF('Atualização Ponta de Estoque'!D44="","",'Atualização Ponta de Estoque'!D44) ->  | O52: =IF('Atualização Ponta de Estoque'!E44="","",'Atualização Ponta de Estoque'!E44) ->  | P52: =IF('Atualização Ponta de Estoque'!F44="","",'Atualização Ponta de Estoque'!F44) ->  | Q52: =IF('Atualização Ponta de Estoque'!G44="","",'Atualização Ponta de Estoque'!G44) ->  | R52: =IF('Atualização Ponta de Estoque'!H44="","",'Atualização Ponta de Estoque'!H44) ->  | S52: =IF('Atualização Ponta de Estoque'!I44="","",'Atualização Ponta de Estoque'!I44) ->  | T52: =IF('Atualização Ponta de Estoque'!J44="","",'Atualização Ponta de Estoque'!J44) ->  | U52: =IF('Atualização Ponta de Estoque'!K44="","",'Atualização Ponta de Estoque'!K44) ->  | V52: 0 | AG52: =IF('Atualização Ponta de Estoque'!L44="",0,'Atualização Ponta de Estoque'!L44) -> 0 | AH52: =((AR52/100)*(100+(IF(Definições!$AS$6>0,Definições!$M$37,0)))) -> 0 | AI52: PE | AJ52: ='Atualização Ponta de Estoque'!B44 -> 0 | AK52: - | AL52: ='Atualização Ponta de Estoque'!K44 -> 0 | AM52: PE 0 - 0 | AN52: =(($AO$8/30)*$AO$9)+IF(Orçamento!$AV$15="CF",Definições!$AO$81,0) -> 0 | AP52: 0 | AQ52: =IF(AP52="","",IF(Definições!$AP$6="REVENDEDOR COM MARGEM DE LUCRO",(AP52/100)*(100+#REF!),AP52)) -> 0 | AR52: =IF(AP52="","",IF(Definições!$AP$6="REVENDEDOR COM MARGEM DE LUCRO",(AQ52/100)*(100+#REF!),AQ52)) -> 0
K53: 44 | L53: =IF('Atualização Ponta de Estoque'!B45="","",'Atualização Ponta de Estoque'!B45) ->  | M53: =IF('Atualização Ponta de Estoque'!C45="","",'Atualização Ponta de Estoque'!C45) ->  | N53: =IF('Atualização Ponta de Estoque'!D45="","",'Atualização Ponta de Estoque'!D45) ->  | O53: =IF('Atualização Ponta de Estoque'!E45="","",'Atualização Ponta de Estoque'!E45) ->  | P53: =IF('Atualização Ponta de Estoque'!F45="","",'Atualização Ponta de Estoque'!F45) ->  | Q53: =IF('Atualização Ponta de Estoque'!G45="","",'Atualização Ponta de Estoque'!G45) ->  | R53: =IF('Atualização Ponta de Estoque'!H45="","",'Atualização Ponta de Estoque'!H45) ->  | S53: =IF('Atualização Ponta de Estoque'!I45="","",'Atualização Ponta de Estoque'!I45) ->  | T53: =IF('Atualização Ponta de Estoque'!J45="","",'Atualização Ponta de Estoque'!J45) ->  | U53: =IF('Atualização Ponta de Estoque'!K45="","",'Atualização Ponta de Estoque'!K45) ->  | V53: 0 | AG53: =IF('Atualização Ponta de Estoque'!L45="",0,'Atualização Ponta de Estoque'!L45) -> 0 | AH53: =((AR53/100)*(100+(IF(Definições!$AS$6>0,Definições!$M$37,0)))) -> 0 | AI53: PE | AJ53: ='Atualização Ponta de Estoque'!B45 -> 0 | AK53: - | AL53: ='Atualização Ponta de Estoque'!K45 -> 0 | AM53: PE 0 - 0 | AN53: =(($AO$8/30)*$AO$9)+IF(Orçamento!$AV$15="CF",Definições!$AO$81,0) -> 0 | AP53: 0 | AQ53: =IF(AP53="","",IF(Definições!$AP$6="REVENDEDOR COM MARGEM DE LUCRO",(AP53/100)*(100+#REF!),AP53)) -> 0 | AR53: =IF(AP53="","",IF(Definições!$AP$6="REVENDEDOR COM MARGEM DE LUCRO",(AQ53/100)*(100+#REF!),AQ53)) -> 0
K54: 45 | L54: =IF('Atualização Ponta de Estoque'!B46="","",'Atualização Ponta de Estoque'!B46) ->  | M54: =IF('Atualização Ponta de Estoque'!C46="","",'Atualização Ponta de Estoque'!C46) ->  | N54: =IF('Atualização Ponta de Estoque'!D46="","",'Atualização Ponta de Estoque'!D46) ->  | O54: =IF('Atualização Ponta de Estoque'!E46="","",'Atualização Ponta de Estoque'!E46) ->  | P54: =IF('Atualização Ponta de Estoque'!F46="","",'Atualização Ponta de Estoque'!F46) ->  | Q54: =IF('Atualização Ponta de Estoque'!G46="","",'Atualização Ponta de Estoque'!G46) ->  | R54: =IF('Atualização Ponta de Estoque'!H46="","",'Atualização Ponta de Estoque'!H46) ->  | S54: =IF('Atualização Ponta de Estoque'!I46="","",'Atualização Ponta de Estoque'!I46) ->  | T54: =IF('Atualização Ponta de Estoque'!J46="","",'Atualização Ponta de Estoque'!J46) ->  | U54: =IF('Atualização Ponta de Estoque'!K46="","",'Atualização Ponta de Estoque'!K46) ->  | V54: 0 | AG54: =IF('Atualização Ponta de Estoque'!L46="",0,'Atualização Ponta de Estoque'!L46) -> 0 | AH54: =((AR54/100)*(100+(IF(Definições!$AS$6>0,Definições!$M$37,0)))) -> 0 | AI54: PE | AJ54: ='Atualização Ponta de Estoque'!B46 -> 0 | AK54: - | AL54: ='Atualização Ponta de Estoque'!K46 -> 0 | AM54: PE 0 - 0 | AN54: =(($AO$8/30)*$AO$9)+IF(Orçamento!$AV$15="CF",Definições!$AO$81,0) -> 0 | AP54: 0 | AQ54: =IF(AP54="","",IF(Definições!$AP$6="REVENDEDOR COM MARGEM DE LUCRO",(AP54/100)*(100+#REF!),AP54)) -> 0 | AR54: =IF(AP54="","",IF(Definições!$AP$6="REVENDEDOR COM MARGEM DE LUCRO",(AQ54/100)*(100+#REF!),AQ54)) -> 0
K55: 46 | L55: =IF('Atualização Ponta de Estoque'!B47="","",'Atualização Ponta de Estoque'!B47) ->  | M55: =IF('Atualização Ponta de Estoque'!C47="","",'Atualização Ponta de Estoque'!C47) ->  | N55: =IF('Atualização Ponta de Estoque'!D47="","",'Atualização Ponta de Estoque'!D47) ->  | O55: =IF('Atualização Ponta de Estoque'!E47="","",'Atualização Ponta de Estoque'!E47) ->  | P55: =IF('Atualização Ponta de Estoque'!F47="","",'Atualização Ponta de Estoque'!F47) ->  | Q55: =IF('Atualização Ponta de Estoque'!G47="","",'Atualização Ponta de Estoque'!G47) ->  | R55: =IF('Atualização Ponta de Estoque'!H47="","",'Atualização Ponta de Estoque'!H47) ->  | S55: =IF('Atualização Ponta de Estoque'!I47="","",'Atualização Ponta de Estoque'!I47) ->  | T55: =IF('Atualização Ponta de Estoque'!J47="","",'Atualização Ponta de Estoque'!J47) ->  | U55: =IF('Atualização Ponta de Estoque'!K47="","",'Atualização Ponta de Estoque'!K47) ->  | V55: 0 | AG55: =IF('Atualização Ponta de Estoque'!L47="",0,'Atualização Ponta de Estoque'!L47) -> 0 | AH55: =((AR55/100)*(100+(IF(Definições!$AS$6>0,Definições!$M$37,0)))) -> 0 | AI55: PE | AJ55: ='Atualização Ponta de Estoque'!B47 -> 0 | AK55: - | AL55: ='Atualização Ponta de Estoque'!K47 -> 0 | AM55: PE 0 - 0 | AN55: =(($AO$8/30)*$AO$9)+IF(Orçamento!$AV$15="CF",Definições!$AO$81,0) -> 0 | AP55: 0 | AQ55: =IF(AP55="","",IF(Definições!$AP$6="REVENDEDOR COM MARGEM DE LUCRO",(AP55/100)*(100+#REF!),AP55)) -> 0 | AR55: =IF(AP55="","",IF(Definições!$AP$6="REVENDEDOR COM MARGEM DE LUCRO",(AQ55/100)*(100+#REF!),AQ55)) -> 0
K56: 47 | L56: =IF('Atualização Ponta de Estoque'!B48="","",'Atualização Ponta de Estoque'!B48) ->  | M56: =IF('Atualização Ponta de Estoque'!C48="","",'Atualização Ponta de Estoque'!C48) ->  | N56: =IF('Atualização Ponta de Estoque'!D48="","",'Atualização Ponta de Estoque'!D48) ->  | O56: =IF('Atualização Ponta de Estoque'!E48="","",'Atualização Ponta de Estoque'!E48) ->  | P56: =IF('Atualização Ponta de Estoque'!F48="","",'Atualização Ponta de Estoque'!F48) ->  | Q56: =IF('Atualização Ponta de Estoque'!G48="","",'Atualização Ponta de Estoque'!G48) ->  | R56: =IF('Atualização Ponta de Estoque'!H48="","",'Atualização Ponta de Estoque'!H48) ->  | S56: =IF('Atualização Ponta de Estoque'!I48="","",'Atualização Ponta de Estoque'!I48) ->  | T56: =IF('Atualização Ponta de Estoque'!J48="","",'Atualização Ponta de Estoque'!J48) ->  | U56: =IF('Atualização Ponta de Estoque'!K48="","",'Atualização Ponta de Estoque'!K48) ->  | V56: 0 | AG56: =IF('Atualização Ponta de Estoque'!L48="",0,'Atualização Ponta de Estoque'!L48) -> 0 | AH56: =((AR56/100)*(100+(IF(Definições!$AS$6>0,Definições!$M$37,0)))) -> 0 | AI56: PE | AJ56: ='Atualização Ponta de Estoque'!B48 -> 0 | AK56: - | AL56: ='Atualização Ponta de Estoque'!K48 -> 0 | AM56: PE 0 - 0 | AN56: =(($AO$8/30)*$AO$9)+IF(Orçamento!$AV$15="CF",Definições!$AO$81,0) -> 0 | AP56: 0 | AQ56: =IF(AP56="","",IF(Definições!$AP$6="REVENDEDOR COM MARGEM DE LUCRO",(AP56/100)*(100+#REF!),AP56)) -> 0 | AR56: =IF(AP56="","",IF(Definições!$AP$6="REVENDEDOR COM MARGEM DE LUCRO",(AQ56/100)*(100+#REF!),AQ56)) -> 0
K57: 48 | L57: =IF('Atualização Ponta de Estoque'!B49="","",'Atualização Ponta de Estoque'!B49) ->  | M57: =IF('Atualização Ponta de Estoque'!C49="","",'Atualização Ponta de Estoque'!C49) ->  | N57: =IF('Atualização Ponta de Estoque'!D49="","",'Atualização Ponta de Estoque'!D49) ->  | O57: =IF('Atualização Ponta de Estoque'!E49="","",'Atualização Ponta de Estoque'!E49) ->  | P57: =IF('Atualização Ponta de Estoque'!F49="","",'Atualização Ponta de Estoque'!F49) ->  | Q57: =IF('Atualização Ponta de Estoque'!G49="","",'Atualização Ponta de Estoque'!G49) ->  | R57: =IF('Atualização Ponta de Estoque'!H49="","",'Atualização Ponta de Estoque'!H49) ->  | S57: =IF('Atualização Ponta de Estoque'!I49="","",'Atualização Ponta de Estoque'!I49) ->  | T57: =IF('Atualização Ponta de Estoque'!J49="","",'Atualização Ponta de Estoque'!J49) ->  | U57: =IF('Atualização Ponta de Estoque'!K49="","",'Atualização Ponta de Estoque'!K49) ->  | V57: 0 | AG57: =IF('Atualização Ponta de Estoque'!L49="",0,'Atualização Ponta de Estoque'!L49) -> 0 | AH57: =((AR57/100)*(100+(IF(Definições!$AS$6>0,Definições!$M$37,0)))) -> 0 | AI57: PE | AJ57: ='Atualização Ponta de Estoque'!B49 -> 0 | AK57: - | AL57: ='Atualização Ponta de Estoque'!K49 -> 0 | AM57: PE 0 - 0 | AN57: =(($AO$8/30)*$AO$9)+IF(Orçamento!$AV$15="CF",Definições!$AO$81,0) -> 0 | AP57: 0 | AQ57: =IF(AP57="","",IF(Definições!$AP$6="REVENDEDOR COM MARGEM DE LUCRO",(AP57/100)*(100+#REF!),AP57)) -> 0 | AR57: =IF(AP57="","",IF(Definições!$AP$6="REVENDEDOR COM MARGEM DE LUCRO",(AQ57/100)*(100+#REF!),AQ57)) -> 0
K58: 49 | L58: =IF('Atualização Ponta de Estoque'!B50="","",'Atualização Ponta de Estoque'!B50) ->  | M58: =IF('Atualização Ponta de Estoque'!C50="","",'Atualização Ponta de Estoque'!C50) ->  | N58: =IF('Atualização Ponta de Estoque'!D50="","",'Atualização Ponta de Estoque'!D50) ->  | O58: =IF('Atualização Ponta de Estoque'!E50="","",'Atualização Ponta de Estoque'!E50) ->  | P58: =IF('Atualização Ponta de Estoque'!F50="","",'Atualização Ponta de Estoque'!F50) ->  | Q58: =IF('Atualização Ponta de Estoque'!G50="","",'Atualização Ponta de Estoque'!G50) ->  | R58: =IF('Atualização Ponta de Estoque'!H50="","",'Atualização Ponta de Estoque'!H50) ->  | S58: =IF('Atualização Ponta de Estoque'!I50="","",'Atualização Ponta de Estoque'!I50) ->  | T58: =IF('Atualização Ponta de Estoque'!J50="","",'Atualização Ponta de Estoque'!J50) ->  | U58: =IF('Atualização Ponta de Estoque'!K50="","",'Atualização Ponta de Estoque'!K50) ->  | V58: 0 | AG58: =IF('Atualização Ponta de Estoque'!L50="",0,'Atualização Ponta de Estoque'!L50) -> 0 | AH58: =((AR58/100)*(100+(IF(Definições!$AS$6>0,Definições!$M$37,0)))) -> 0 | AI58: PE | AJ58: ='Atualização Ponta de Estoque'!B50 -> 0 | AK58: - | AL58: ='Atualização Ponta de Estoque'!K50 -> 0 | AM58: PE 0 - 0 | AN58: =(($AO$8/30)*$AO$9)+IF(Orçamento!$AV$15="CF",Definições!$AO$81,0) -> 0 | AP58: 0 | AQ58: =IF(AP58="","",IF(Definições!$AP$6="REVENDEDOR COM MARGEM DE LUCRO",(AP58/100)*(100+#REF!),AP58)) -> 0 | AR58: =IF(AP58="","",IF(Definições!$AP$6="REVENDEDOR COM MARGEM DE LUCRO",(AQ58/100)*(100+#REF!),AQ58)) -> 0
K59: 50 | L59: =IF('Atualização Ponta de Estoque'!B51="","",'Atualização Ponta de Estoque'!B51) ->  | M59: =IF('Atualização Ponta de Estoque'!C51="","",'Atualização Ponta de Estoque'!C51) ->  | N59: =IF('Atualização Ponta de Estoque'!D51="","",'Atualização Ponta de Estoque'!D51) ->  | O59: =IF('Atualização Ponta de Estoque'!E51="","",'Atualização Ponta de Estoque'!E51) ->  | P59: =IF('Atualização Ponta de Estoque'!F51="","",'Atualização Ponta de Estoque'!F51) ->  | Q59: =IF('Atualização Ponta de Estoque'!G51="","",'Atualização Ponta de Estoque'!G51) ->  | R59: =IF('Atualização Ponta de Estoque'!H51="","",'Atualização Ponta de Estoque'!H51) ->  | S59: =IF('Atualização Ponta de Estoque'!I51="","",'Atualização Ponta de Estoque'!I51) ->  | T59: =IF('Atualização Ponta de Estoque'!J51="","",'Atualização Ponta de Estoque'!J51) ->  | U59: =IF('Atualização Ponta de Estoque'!K51="","",'Atualização Ponta de Estoque'!K51) ->  | V59: 0 | AG59: =IF('Atualização Ponta de Estoque'!L51="",0,'Atualização Ponta de Estoque'!L51) -> 0 | AH59: =((AR59/100)*(100+(IF(Definições!$AS$6>0,Definições!$M$37,0)))) -> 0 | AI59: PE | AJ59: ='Atualização Ponta de Estoque'!B51 -> 0 | AK59: - | AL59: ='Atualização Ponta de Estoque'!K51 -> 0 | AM59: PE 0 - 0 | AN59: =(($AO$8/30)*$AO$9)+IF(Orçamento!$AV$15="CF",Definições!$AO$81,0) -> 0 | AP59: 0 | AQ59: =IF(AP59="","",IF(Definições!$AP$6="REVENDEDOR COM MARGEM DE LUCRO",(AP59/100)*(100+#REF!),AP59)) -> 0 | AR59: =IF(AP59="","",IF(Definições!$AP$6="REVENDEDOR COM MARGEM DE LUCRO",(AQ59/100)*(100+#REF!),AQ59)) -> 0

Sheet Definições
S4: 1003.10 | T4: 11/10/2024 | U4: TABELA REPRESENTANTE | V4: TABELA TEMPORÁRIA | W4: TABELA SISTEMA | X4: Versão disponível no site: | Y4: STATUS ATIVAÇÃO | Z4: DESATIVADA | AA4: CHAVE ATIVAÇÃO | AC4: PARA | AE4: CIDADE | AG4: 2 | AH4: =IF(AP6="REPRESENTANTE",IF(AH5=1,AG5,2),AH5) -> 2 | AI4: CANCELAR | AK4: FECHA DIRETO
C5: DEFINIÇÕES DO SISTEMA | S5: 00312 | T5: =IF(Definições!AP6="REPRESENTANTE",'Atualização Geral'!D10,'Atualização Geral'!D8) -> 00311 | U5: 100 | W5: =IF($V$5="",$U$5,$V$5) -> 100 | X5: ='Atualização Geral'!C8 -> 1003.10 | AG5: 1 | AH5: 2 | AM5: MODO DE OPERAÇÃO DO SISTEMA | AS5: PREÇO BRUTO DK
S6: CONSUMIDOR FINAL | T6: FALSE | V6: REPRESENTANTE | W6: TRUE | Y6: SENHA | Z6: =IF(J113="","",J113) ->  | AE6: BLOQUEIA VERSÃO | AG6: =IF('Atualização Geral'!F7="BLOQUEADA","BLOQUEADA","DESBLOQUEADA") -> DESBLOQUEADA | AH6: =IF('Atualização Geral'!G7="AVISO","AVISO","SEM AVISO") -> SEM AVISO | AK6: FALSE | AL6: FALSE | AM6: É SETADO DIRETAMENTE > | AP6: REPRESENTANTE | AS6: =IF(X29=TRUE,1,0)+IF(X30=TRUE,1,0) -> 0 | AU6: DK
C8: CONDIÇÃO DE PAGAMENTO REVENDEDOR | S8: REPRESENT ATUAL | T8: REPRESENT TEMPORÁRIO | U8: REPRESENT SISTEMA | W8: REPRESENT ATUAL | X8: REPRESENT TEMPORÁRIO | Y8: REPRESENT SISTEMA
C9: CLIQUE PARA ALTERAR O PRAZO MÉDIO | S9: DK ESQUADRIAS IND E COM LTDA | U9: =IF(T9="",S9,T9) -> DK ESQUADRIAS IND E COM LTDA | W9: JAQUES | Y9: =IF(X9="",W9,X9) -> JAQUES
C10: Pagamento antecipado, à vista no pedido. (Deposito em conta) | L10: 0 | M10: % | N10: =IF($S$20=TRUE,"PM00","") -> PM00 | S10: (51) 3547-5002 | U10: =IF(T10="",S10,T10) -> (51) 3547-5002 | W10: CD000001 | Y10: =IF(X10="",W10,X10) -> CD000001
C11: Pagamento com prazo médio de 28 dias. (Boleto ou cheque) | L11: =($AF$20/30)*AB29 -> 3.92 | M11: % | N11: =IF($T$20=TRUE,"PM28","") ->  | S11: vendas@dkesquadrias.net.br | U11: =IF(T11="",S11,T11) -> vendas@dkesquadrias.net.br | W11: P01 | Y11: =IF(X11="",W11,X11) -> P01
C12: Pagamento com prazo médio de 35 dias. (Boleto ou cheque) | L12: =($AF$20/30)*AB30 -> 4.9 | M12: % | N12: =IF($U$20=TRUE,"PM35","") ->  | S12: vendasdkesquadrias | U12: =IF(T12="",S12,T12) -> vendasdkesquadrias
C13: Pagamento com prazo médio de 42 dias. (Boleto ou cheque) | L13: =($AF$20/30)*AB31 -> 5.88 | M13: % | N13: =IF($V$20=TRUE,"PM42","") ->  | S13: DEFINIÇÕES GERAIS | AB13: DEFINIÇÕES GERAIS | AJ13: CÁLCULOS DE PERCENTUAIS
C14: Pagamento com prazo médio de 49 dias. (Boleto ou cheque) | L14: =($AF$20/30)*AB32 -> 6.86 | M14: % | N14: =IF($W$20=TRUE,"PM49","") -> 
C15: Pagamento com prazo médio de 56 dias. (Boleto ou cheque) | L15: =($AF$20/30)*AB33 -> 7.84 | M15: % | N15: =IF($X$20=TRUE,"PM56","") ->  | S15: USAR TABELA DE VALORES | X15: TRUE | AC15: VALORES R$ MULTIPLICADOS POR | AF15: ='Atualização Geral'!C10 -> 3 | AJ15: CONSUMIDOR FINAL | AO15: SUBSTITUIÇÃO TRIBUTÁRIA | AT15: IPI | AY15: IPI COM SUBSTITUIÇÃO | BD15: IPI SOBRE CF
AC16: PERCENTUAL SOB MEDIDA | AF16: =IF(AA122=111,'Valor M2'!BD5,IF(AA122=112,'Valor M2'!BD10,IF(AA122=113,'Valor M2'!BD15,IF(AA122=181,'Valor M2'!BD20,IF(AA122=183,'Valor M2'!BD25,IF(AA122=141,'Valor M2'!BD6,IF(AA122=142,'Valor M2'!BD11,IF(AA122=143,'Valor M2'!BD16,IF(AA122=104,'Valor M2'!BD28,IF(AA122=114,'Valor M2'!BD29,IF(AA122=105,'Valor M2'!BD32,IF(AA122=115,'Valor M2'!BD33,IF(AA122=251,'Valor M2'!BD69,IF(AA122=253,'Valor M2'!BD77,IF(AA122=281,'Valor M2'!BD81,IF(AA122=283,'Valor M2'!BD85,IF(AA122=252,'Valor M2'!BD73,IF(AA122=292,'Valor M2'!BD89,IF(AA122=371,'Valor M2'!BD146,IF(AA122=372,'Valor M2'!BD147,IF(AA122=322,'Valor M2'!BD135,IF(AA122=332,'Valor M2'!BD136,IF(AA122=501,'Valor M2'!BD157,IF(AA122=502,'Valor M2'!BD158,IF(AA122=503,'Valor M2'!BD159,IF(AA122=507,'Valor M2'!BD162,IF(AA122=508,'Valor M2'!BD163,IF(AA122=509,'Valor M2'!BD164,IF(AA122=571,'Valor M2'!BD168,IF(AA122=572,'Valor M2'!BD169,IF(AA122=421,'Valor M2'!BD119,IF(AA122=431,'Valor M2'!BD120,IF(AA122=581,'Valor M2'!BD210,IF(AA122=582,'Valor M2'!BD211,IF(AA122=591,'Valor M2'!BD212,IF(AA122=592,'Valor M2'!BD213,IF(AA122=721,'Valor M2'!BD246,IF(AA122=722,'Valor M2'!BD247,IF(AA122=731,'Valor M2'!BD248,IF(AA122=732,'Valor M2'!BD249,'Atualização Geral'!C4)))))))))))))))))))))))))))))))))))))))) -> 15 | AG16: % | AJ16: A VISTA | AK16: A VISTA | AL16: A VISTA | AM16: A VISTA | AO16: A VISTA | AP16: A VISTA | AQ16: A VISTA | AR16: A VISTA | AT16: A VISTA | AU16: A VISTA | AV16: A VISTA | AW16: A VISTA | AY16: A VISTA | AZ16: A VISTA | BA16: A VISTA | BB16: A VISTA | BD16: A VISTA | BE16: A VISTA | BF16: A VISTA | BG16: A VISTA
S17: VENDA PARA CONSUMIDOR FINAL (CF) | X17: =T6 -> FALSE | Y17: =IF(X17=TRUE,"SIM","NÃO") -> NÃO | Z17: =IF(Definições!$Y$17="SIM","SIM","NÃO") -> NÃO | AC17: PERCENTUAL SOB MEDIDA PI | AF17: =IF(AA122=711,'Valor M2'!BD256,IF(AA122=751,'Valor M2'!BD262,'Atualização Geral'!C5)) -> 15 | AG17: % | AJ17: 500 | AK17: 500 | AL17: 500 | AM17: 500 | AO17: 500 | AP17: 500 | AQ17: 500 | AR17: 500 | AT17: 500 | AU17: 500 | AV17: 500 | AW17: 500 | AY17: 500 | AZ17: 500 | BA17: 500 | BB17: 500 | BD17: 500 | BE17: 500 | BF17: 500 | BG17: 500
S18: DESCONTO REVENDEDOR | X18: =IF(Y17="SIM",28,Y18) -> 0 | Y18: =IF(S20=TRUE,S19,0)+IF(T20=TRUE,T19,0)+IF(U20=TRUE,U19,0)+IF(V20=TRUE,V19,0)+IF(W20=TRUE,W19,0)+IF(X20=TRUE,X19,0) -> 0 | Z18: 0 | AC18: PERCENTUAL PARA CONSUMIDOR FINAL | AF18: =-(AO86) -> 6 | AG18: ='Atualização Geral'!C6 -> 6 | AJ18: =$AD$28 -> 12.15 | AK18: =$AE$28 -> 0 | AL18: =$AF$28 -> 0 | AM18: =$AG$28 -> 0 | AO18: =$AD$28 -> 12.15 | AP18: =$AE$28 -> 0 | AQ18: =$AF$28 -> 0 | AR18: =$AG$28 -> 0 | AT18: =$AD$28 -> 12.15 | AU18: =$AE$28 -> 0 | AV18: =$AF$28 -> 0 | AW18: =$AG$28 -> 0 | AY18: =AT24 -> 12.15 | AZ18: =AU24 -> 0 | BA18: =AV24 -> 0 | BB18: =AW24 -> 0 | BD18: =$AJ$34 -> 3.2286568 | BE18: =$AK$34 -> -6 | BF18: =$AL$34 -> -6 | BG18: =$AM$34 -> -6
S19: 0 | T19: 28 | U19: 35 | V19: 42 | W19: 49 | X19: 56 | AC19: PERCENTUAL SUBSTITUIÇÃO TRIBUTÁRIA | AF19: =AG19 -> 0 | AG19: =IF($Y$32="SIM",$Y$81,$Y$78) -> 0 | AJ19: =$AF$18 -> 6 | AK19: =$AF$18 -> 6 | AL19: =$AF$18 -> 6 | AM19: =$AF$18 -> 6 | AO19: =$AF$19 -> 0 | AP19: =$AF$19 -> 0 | AQ19: =$AF$19 -> 0 | AR19: =$AF$19 -> 0 | AT19: =$AF$21 -> 0 | AU19: =$AF$21 -> 0 | AV19: =$AF$21 -> 0 | AW19: =$AF$21 -> 0 | AY19: =$AF$19 -> 0 | AZ19: =$AF$19 -> 0 | BA19: =$AF$19 -> 0 | BB19: =$AF$19 -> 0 | BD19: =$AF$21 -> 0 | BE19: =$AF$21 -> 0 | BF19: =$AF$21 -> 0 | BG19: =$AF$21 -> 0
S20: TRUE | T20: FALSE | U20: FALSE | V20: FALSE | W20: FALSE | X20: FALSE | AC20: TAXA DE JURO AO MÊS | AF20: ='Atualização Geral'!C7 -> 4.2 | AG20: % | AJ20: =AJ17-((AJ17/100)*AJ18) -> 439.25 | AK20: =AK17-((AK17/100)*AK18) -> 500 | AL20: =AL17-((AL17/100)*AL18) -> 500 | AM20: =AM17-((AM17/100)*AM18) -> 500 | AO20: =AO17-((AO17/100)*AO18) -> 439.25 | AP20: =AP17-((AP17/100)*AP18) -> 500 | AQ20: =AQ17-((AQ17/100)*AQ18) -> 500 | AR20: =AR17-((AR17/100)*AR18) -> 500 | AT20: =AT17-((AT17/100)*AT18) -> 439.25 | AU20: =AU17-((AU17/100)*AU18) -> 500 | AV20: =AV17-((AV17/100)*AV18) -> 500 | AW20: =AW17-((AW17/100)*AW18) -> 500 | AY20: =AY17-((AY17/100)*AY18) -> 439.25 | AZ20: =AZ17-((AZ17/100)*AZ18) -> 500 | BA20: =BA17-((BA17/100)*BA18) -> 500 | BB20: =BB17-((BB17/100)*BB18) -> 500 | BD20: =BD17-((BD17/100)*BD18) -> 483.856716 | BE20: =BE17-((BE17/100)*BE18) -> 530 | BF20: =BF17-((BF17/100)*BF18) -> 530 | BG20: =BG17-((BG17/100)*BG18) -> 530
D21: REVENDEDOR | L21: =IF(Definições!$X$188="ATIVA","ST","") ->  | AC21: IPI | AF21: ='Atualização Geral'!C2 -> 0 | AG21: % | AJ21: =((AJ20/100)*AJ19) -> 26.355 | AK21: =((AK20/100)*AK19) -> 30 | AL21: =((AL20/100)*AL19) -> 30 | AM21: =((AM20/100)*AM19) -> 30 | AO21: =((AO20/100)*AO19) -> 0 | AP21: =((AP20/100)*AP19) -> 0 | AQ21: =((AQ20/100)*AQ19) -> 0 | AR21: =((AR20/100)*AR19) -> 0 | AT21: =((AT20/100)*AT19) -> 0 | AU21: =((AU20/100)*AU19) -> 0 | AV21: =((AV20/100)*AV19) -> 0 | AW21: =((AW20/100)*AW19) -> 0 | AY21: =((AY20/100)*AY19) -> 0 | AZ21: =((AZ20/100)*AZ19) -> 0 | BA21: =((BA20/100)*BA19) -> 0 | BB21: =((BB20/100)*BB19) -> 0 | BD21: =((BD20/100)*BD19) -> 0 | BE21: =((BE20/100)*BE19) -> 0 | BF21: =((BF20/100)*BF19) -> 0 | BG21: =((BG20/100)*BG19) -> 0
S22: CAMPO SUBSTITUIÇÃO TRIBUTÁRIA NO ORÇAMENTO | X22: FALSE | Y22: =IF(Definições!$X$188="ATIVA",IF(X22=TRUE,"SIM","NÃO"),"NÃO") -> NÃO | Z22: =IF(Definições!$Y$31="SIM","SIM","NÃO") -> NÃO | AC22: ICMS | AF22: =IF(X188="ATIVA",'Atualização Geral'!C1,0) -> 0 | AG22: % | AJ22: =AJ20+AJ21 -> 465.605 | AK22: =AK20+AK21 -> 530 | AL22: =AL20+AL21 -> 530 | AM22: =AM20+AM21 -> 530 | AO22: =AO20+AO21 -> 439.25 | AP22: =AP20+AP21 -> 500 | AQ22: =AQ20+AQ21 -> 500 | AR22: =AR20+AR21 -> 500 | AT22: =AT20+AT21 -> 439.25 | AU22: =AU20+AU21 -> 500 | AV22: =AV20+AV21 -> 500 | AW22: =AW20+AW21 -> 500 | AY22: =AY20+AY21 -> 439.25 | AZ22: =AZ20+AZ21 -> 500 | BA22: =BA20+BA21 -> 500 | BB22: =BB20+BB21 -> 500 | BD22: =BD20+BD21 -> 483.856716 | BE22: =BE20+BE21 -> 530 | BF22: =BF20+BF21 -> 530 | BG22: =BG20+BG21 -> 530
S23: DESCONTOS CONSUMIDOR FINAL | Y23: =IF(S25=TRUE,S24,0)+IF(T25=TRUE,T24,0)+IF(U25=TRUE,U24,0)+IF(V25=TRUE,V24,0)+IF(W25=TRUE,W24,0)+IF(X25=TRUE,X24,0) -> 0 | AC23: MVA | AF23: ='Atualização Geral'!C3 -> 38 | AG23: % | AJ23: =AJ17-AJ22 -> 34.395 | AK23: =AK17-AK22 -> -30 | AL23: =AL17-AL22 -> -30 | AM23: =AM17-AM22 -> -30 | AO23: =AO17-AO22 -> 60.75 | AP23: =AP17-AP22 -> 0 | AQ23: =AQ17-AQ22 -> 0 | AR23: =AR17-AR22 -> 0 | AT23: =AT17-AT22 -> 60.75 | AU23: =AU17-AU22 -> 0 | AV23: =AV17-AV22 -> 0 | AW23: =AW17-AW22 -> 0 | AY23: =AY17-AY22 -> 60.75 | AZ23: =AZ17-AZ22 -> 0 | BA23: =BA17-BA22 -> 0 | BB23: =BB17-BB22 -> 0 | BD23: =BD17-BD22 -> 16.143284 | BE23: =BE17-BE22 -> -30 | BF23: =BF17-BF22 -> -30 | BG23: =BG17-BG22 -> -30
S24: -7 | T24: -5 | U24: -4 | V24: -2.5 | W24: -1 | X24: 0 | AJ24: =(AJ23/AJ17)*100 -> 6.879 | AK24: =(AK23/AK17)*100 -> -6 | AL24: =(AL23/AL17)*100 -> -6 | AM24: =(AM23/AM17)*100 -> -6 | AO24: =(AO23/AO17)*100 -> 12.15 | AP24: =(AP23/AP17)*100 -> 0 | AQ24: =(AQ23/AQ17)*100 -> 0 | AR24: =(AR23/AR17)*100 -> 0 | AT24: =(AT23/AT17)*100 -> 12.15 | AU24: =(AU23/AU17)*100 -> 0 | AV24: =(AV23/AV17)*100 -> 0 | AW24: =(AW23/AW17)*100 -> 0 | AY24: =(AY23/AY17)*100 -> 12.15 | AZ24: =(AZ23/AZ17)*100 -> 0 | BA24: =(BA23/BA17)*100 -> 0 | BB24: =(BB23/BB17)*100 -> 0 | BD24: =(BD23/BD17)*100 -> 3.2286568 | BE24: =(BE23/BE17)*100 -> -6 | BF24: =(BF23/BF17)*100 -> -6 | BG24: =(BG23/BG17)*100 -> -6
C25: DADOS DO REVENDEDOR | S25: FALSE | T25: FALSE | U25: FALSE | V25: FALSE | W25: FALSE | X25: FALSE | AB25: DESCONTO REVENDEDOR | AO25: =AO18-AO24 -> 0 | AP25: =AP18-AP24 -> 0 | AQ25: =AQ18-AQ24 -> 0 | AR25: =AR18-AR24 -> 0 | AT25: =AT18-AT24 -> 0 | AU25: =AU18-AU24 -> 0 | AV25: =AV18-AV24 -> 0 | AW25: =AW18-AW24 -> 0 | AY25: =AY18-AY24+AT25 -> 0 | AZ25: =AZ18-AZ24+AU25 -> 0 | BA25: =BA18-BA24+AV25 -> 0 | BB25: =BB18-BB24+AW25 -> 0 | BD25: =BD18-BD24 -> 0 | BE25: =BE18-BE24 -> 0 | BF25: =BF18-BF24 -> 0 | BG25: =BG18-BG24 -> 0
C26: Nome da Loja: | AD26: =Definições!$AC$144 -> Eucalipto | AE26: =Definições!$AC$145 -> 0 | AF26: =Definições!$AC$146 -> 0 | AG26: =Definições!$AC$147 -> 0 | AJ26: 28 DIAS | AK26: 28 DIAS | AL26: 28 DIAS | AM26: 28 DIAS | AO26: 28 DIAS | AP26: 28 DIAS | AQ26: 28 DIAS | AR26: 28 DIAS | AT26: 28 DIAS | AU26: 28 DIAS | AV26: 28 DIAS | AW26: 28 DIAS | AY26: 28 DIAS | AZ26: 28 DIAS | BA26: 28 DIAS | BB26: 28 DIAS | BD26: 28 DIAS | BE26: 28 DIAS | BF26: 28 DIAS | BG26: 28 DIAS
S27: Campo IPI no Orçamento | X27: TRUE | Y27: =IF(X27=TRUE,"SIM","NÃO") -> SIM | Z27: =IF(Definições!$Y$32="SIM","SIM","NÃO") -> NÃO | AJ27: 500 | AK27: 500 | AL27: 500 | AM27: 500 | AO27: 500 | AP27: 500 | AQ27: 500 | AR27: 500 | AT27: 500 | AU27: 500 | AV27: 500 | AW27: 500 | AY27: 500 | AZ27: 500 | BA27: 500 | BB27: 500 | BD27: 500 | BE27: 500 | BF27: 500 | BG27: 500
C28: Fone / E-mail: | S28: Margem de Lucro | Y28: =IF(Definições!$Y$29="SIM","SIM",Y30) -> NÃO | AB28: 0 | AC28: Dias À Vista | AD28: =IF($X$15=TRUE,H54,0) -> 12.15 | AE28: 0 | AF28: 0 | AG28: =IF($X$15=TRUE,M54,0) -> 0 | AH28: % | AJ28: =$AD$29 -> 8.70628 | AK28: =$AE$29 -> 0 | AL28: =$AF$29 -> 0 | AM28: =$AG$29 -> 0 | AO28: =$AD$29 -> 8.70628 | AP28: =$AE$29 -> 0 | AQ28: =$AF$29 -> 0 | AR28: =$AG$29 -> 0 | AT28: =$AD$29 -> 8.70628 | AU28: =$AE$29 -> 0 | AV28: =$AF$29 -> 0 | AW28: =$AG$29 -> 0 | AY28: =AT34 -> 8.70628 | AZ28: =AU34 -> 0 | BA28: =AV34 -> 0 | BB28: =AW34 -> 0 | BD28: =$AJ$34 -> 3.2286568 | BE28: =$AK$34 -> -6 | BF28: =$AL$34 -> -6 | BG28: =$AM$34 -> -6
S29: Percentuais de Lucro Diferentes por Referência e Madeira | X29: FALSE | Y29: =IF(X29=TRUE,"SIM","NÃO") -> NÃO | AB29: 28 | AC29: Dias Prazo | AD29: 8.70628 | AE29: 0 | AF29: 0 | AG29: 0 | AH29: % | AJ29: =$AF$18 -> 6 | AK29: =$AF$18 -> 6 | AL29: =$AF$18 -> 6 | AM29: =$AF$18 -> 6 | AO29: =$AF$19 -> 0 | AP29: =$AF$19 -> 0 | AQ29: =$AF$19 -> 0 | AR29: =$AF$19 -> 0 | AT29: =$AF$21 -> 0 | AU29: =$AF$21 -> 0 | AV29: =$AF$21 -> 0 | AW29: =$AF$21 -> 0 | AY29: =$AF$19 -> 0 | AZ29: =$AF$19 -> 0 | BA29: =$AF$19 -> 0 | BB29: =$AF$19 -> 0 | BD29: =$AF$21 -> 0 | BE29: =$AF$21 -> 0 | BF29: =$AF$21 -> 0 | BG29: =$AF$21 -> 0
S30: Percentual Único de Lucro | X30: FALSE | Y30: =IF(X30=TRUE,"SIM","NÃO") -> NÃO | AB30: 35 | AC30: Dias Prazo | AD30: 7.84535 | AE30: 0 | AF30: 0 | AG30: 0 | AH30: % | AJ30: =AJ27-((AJ27/100)*AJ28) -> 456.4686 | AK30: =AK27-((AK27/100)*AK28) -> 500 | AL30: =AL27-((AL27/100)*AL28) -> 500 | AM30: =AM27-((AM27/100)*AM28) -> 500 | AO30: =AO27-((AO27/100)*AO28) -> 456.4686 | AP30: =AP27-((AP27/100)*AP28) -> 500 | AQ30: =AQ27-((AQ27/100)*AQ28) -> 500 | AR30: =AR27-((AR27/100)*AR28) -> 500 | AT30: =AT27-((AT27/100)*AT28) -> 456.4686 | AU30: =AU27-((AU27/100)*AU28) -> 500 | AV30: =AV27-((AV27/100)*AV28) -> 500 | AW30: =AW27-((AW27/100)*AW28) -> 500 | AY30: =AY27-((AY27/100)*AY28) -> 456.4686 | AZ30: =AZ27-((AZ27/100)*AZ28) -> 500 | BA30: =BA27-((BA27/100)*BA28) -> 500 | BB30: =BB27-((BB27/100)*BB28) -> 500 | BD30: =BD27-((BD27/100)*BD28) -> 483.856716 | BE30: =BE27-((BE27/100)*BE28) -> 530 | BF30: =BF27-((BF27/100)*BF28) -> 530 | BG30: =BG27-((BG27/100)*BG28) -> 530
S31: Substituição Tributária no Sistema | W31: =IF(Z31="","NÃO","") -> NÃO | X31: FALSE | Y31: =IF(Y22="SIM",IF(Y28="SIM",IF(X31=TRUE,"SIM","NÃO"),"NÃO"),"NÃO") -> NÃO | AB31: 42 | AC31: Dias Prazo | AD31: 6.98442 | AE31: 0 | AF31: 0 | AG31: 0 | AH31: % | AJ31: =((AJ30/100)*AJ29) -> 27.388116 | AK31: =((AK30/100)*AK29) -> 30 | AL31: =((AL30/100)*AL29) -> 30 | AM31: =((AM30/100)*AM29) -> 30 | AO31: =((AO30/100)*AO29) -> 0 | AP31: =((AP30/100)*AP29) -> 0 | AQ31: =((AQ30/100)*AQ29) -> 0 | AR31: =((AR30/100)*AR29) -> 0 | AT31: =((AT30/100)*AT29) -> 0 | AU31: =((AU30/100)*AU29) -> 0 | AV31: =((AV30/100)*AV29) -> 0 | AW31: =((AW30/100)*AW29) -> 0 | AY31: =((AY30/100)*AY29) -> 0 | AZ31: =((AZ30/100)*AZ29) -> 0 | BA31: =((BA30/100)*BA29) -> 0 | BB31: =((BB30/100)*BB29) -> 0 | BD31: =((BD30/100)*BD29) -> 0 | BE31: =((BE30/100)*BE29) -> 0 | BF31: =((BF30/100)*BF29) -> 0 | BG31: =((BG30/100)*BG29) -> 0
C32: PERCENTUAIS DE LUCRO - DEFINIDO PELO REVENDEDOR | S32: IPI no Sistema | X32: FALSE | Y32: =IF(Y27="SIM",IF(Y28="SIM",IF(X32=TRUE,"SIM","NÃO"),"NÃO"),"NÃO") -> NÃO | AB32: 49 | AC32: Dias Prazo | AD32: 6.12349 | AE32: 0 | AF32: 0 | AG32: 0 | AH32: % | AJ32: =AJ30+AJ31 -> 483.856716 | AK32: =AK30+AK31 -> 530 | AL32: =AL30+AL31 -> 530 | AM32: =AM30+AM31 -> 530 | AO32: =AO30+AO31 -> 456.4686 | AP32: =AP30+AP31 -> 500 | AQ32: =AQ30+AQ31 -> 500 | AR32: =AR30+AR31 -> 500 | AT32: =AT30+AT31 -> 456.4686 | AU32: =AU30+AU31 -> 500 | AV32: =AV30+AV31 -> 500 | AW32: =AW30+AW31 -> 500 | AY32: =AY30+AY31 -> 456.4686 | AZ32: =AZ30+AZ31 -> 500 | BA32: =BA30+BA31 -> 500 | BB32: =BB30+BB31 -> 500 | BD32: =BD30+BD31 -> 483.856716 | BE32: =BE30+BE31 -> 530 | BF32: =BF30+BF31 -> 530 | BG32: =BG30+BG31 -> 530
AB33: 56 | AC33: Dias Prazo | AD33: 5.26256 | AE33: 0 | AF33: 0 | AG33: 0 | AH33: % | AJ33: =AJ27-AJ32 -> 16.143284 | AK33: =AK27-AK32 -> -30 | AL33: =AL27-AL32 -> -30 | AM33: =AM27-AM32 -> -30 | AO33: =AO27-AO32 -> 43.5314 | AP33: =AP27-AP32 -> 0 | AQ33: =AQ27-AQ32 -> 0 | AR33: =AR27-AR32 -> 0 | AT33: =AT27-AT32 -> 43.5314 | AU33: =AU27-AU32 -> 0 | AV33: =AV27-AV32 -> 0 | AW33: =AW27-AW32 -> 0 | AY33: =AY27-AY32 -> 43.5314 | AZ33: =AZ27-AZ32 -> 0 | BA33: =BA27-BA32 -> 0 | BB33: =BB27-BB32 -> 0 | BD33: =BD27-BD32 -> 16.143284 | BE33: =BE27-BE32 -> -30 | BF33: =BF27-BF32 -> -30 | BG33: =BG27-BG32 -> -30
C34: Marque para definir percentuais de lucro diferentes por referência, linha ou madeira. (Informe clicando na barra abaixo) | S34: TAXA DE JUROS - MAD1 | AJ34: =($AJ$33/$AJ$27)*100 -> 3.2286568 | AK34: =($AK$33/$AK$27)*100 -> -6 | AL34: =($AL$33/$AL$27)*100 -> -6 | AM34: =($AM$33/$AM$27)*100 -> -6 | AO34: =(AO33/AO27)*100 -> 8.70628 | AP34: =(AP33/AP27)*100 -> 0 | AQ34: =(AQ33/AQ27)*100 -> 0 | AR34: =(AR33/AR27)*100 -> 0 | AT34: =(AT33/AT27)*100 -> 8.70628 | AU34: =(AU33/AU27)*100 -> 0 | AV34: =(AV33/AV27)*100 -> 0 | AW34: =(AW33/AW27)*100 -> 0 | AY34: =(AY33/AY27)*100 -> 8.70628 | AZ34: =(AZ33/AZ27)*100 -> 0 | BA34: =(BA33/BA27)*100 -> 0 | BB34: =(BB33/BB27)*100 -> 0 | BD34: =(BD33/BD27)*100 -> 3.2286568 | BE34: =(BE33/BE27)*100 -> -6 | BF34: =(BF33/BF27)*100 -> -6 | BG34: =(BG33/BG27)*100 -> -6
C35: Marque para definir um percentual único de lucro. | S35: 28 | T35: 35 | U35: 42 | V35: 49 | W35: 56 | AO35: =AO28-AO34 -> 0 | AP35: =AP28-AP34 -> 0 | AQ35: =AQ28-AQ34 -> 0 | AR35: =AR28-AR34 -> 0 | AT35: =AT28-AT34 -> 0 | AU35: =AU28-AU34 -> 0 | AV35: =AV28-AV34 -> 0 | AW35: =AW28-AW34 -> 0 | AY35: =AY28-AY34+AT35 -> 0 | AZ35: =AZ28-AZ34+AU35 -> 0 | BA35: =BA28-BA34+AV35 -> 0 | BB35: =BB28-BB34+AW35 -> 0 | BD35: =BD28-BD34 -> 0 | BE35: =BE28-BE34 -> 0 | BF35: =BF28-BF34 -> 0 | BG35: =BG28-BG34 -> 0
C36: Defina um percentual único de lucro para todo o sistema. | K36: >>>>>>> | M36: 0 | O36: % | S36: 500 | T36: 500 | U36: 500 | V36: 500 | W36: 500 | AB36: DESCONTO SUBSTITUIÇÃO TRIBUTÁRIA/IPI | AJ36: 35 DIAS | AK36: 35 DIAS | AL36: 35 DIAS | AM36: 35 DIAS | AO36: 35 DIAS | AP36: 35 DIAS | AQ36: 35 DIAS | AR36: 35 DIAS | AT36: 35 DIAS | AU36: 35 DIAS | AV36: 35 DIAS | AW36: 35 DIAS | AY36: 35 DIAS | AZ36: 35 DIAS | BA36: 35 DIAS | BB36: 35 DIAS | BD36: 35 DIAS | BE36: 35 DIAS | BF36: 35 DIAS | BG36: 35 DIAS
C37: Defina um percentual único de lucro para todos os itens de ponta de estoque e dos preços imbatíveis. | K37: >>>>>>> | M37: 0 | O37: % | S37: =IF('Calcular Novos Descontos'!E9="SIM",'Calcular Novos Descontos'!F21,H54) -> 12.15 | T37: =IF('Calcular Novos Descontos'!E9="SIM",'Calcular Novos Descontos'!F21,H54) -> 12.15 | U37: =IF('Calcular Novos Descontos'!E9="SIM",'Calcular Novos Descontos'!F21,H54) -> 12.15 | V37: =IF('Calcular Novos Descontos'!E9="SIM",'Calcular Novos Descontos'!F21,H54) -> 12.15 | W37: =IF('Calcular Novos Descontos'!E9="SIM",'Calcular Novos Descontos'!F21,H54) -> 12.15 | AD37: =Definições!$AC$144 -> Eucalipto | AE37: =Definições!$AC$145 -> 0 | AF37: =Definições!$AC$146 -> 0 | AG37: =Definições!$AC$147 -> 0 | AJ37: 500 | AK37: 500 | AL37: 500 | AM37: 500 | AO37: 500 | AP37: 500 | AQ37: 500 | AR37: 500 | AT37: 500 | AU37: 500 | AV37: 500 | AW37: 500 | AY37: 500 | AZ37: 500 | BA37: 500 | BB37: 500 | BD37: 500 | BE37: 500 | BF37: 500 | BG37: 500
S38: =$L$11 -> 3.92 | T38: =$L$12 -> 4.9 | U38: =$L$13 -> 5.88 | V38: =$L$14 -> 6.86 | W38: =$L$15 -> 7.84 | AJ38: =$AD$30 -> 7.84535 | AK38: =$AE$30 -> 0 | AL38: =$AF$30 -> 0 | AM38: =$AG$30 -> 0 | AO38: =$AD$30 -> 7.84535 | AP38: =$AE$30 -> 0 | AQ38: =$AF$30 -> 0 | AR38: =$AG$30 -> 0 | AT38: =$AD$30 -> 7.84535 | AU38: =$AE$30 -> 0 | AV38: =$AF$30 -> 0 | AW38: =$AG$30 -> 0 | AY38: =AT44 -> 7.84535 | AZ38: =AU44 -> 0 | BA38: =AV44 -> 0 | BB38: =AW44 -> 0 | BD38: =$AJ$34 -> 3.2286568 | BE38: =$AK$34 -> -6 | BF38: =$AL$34 -> -6 | BG38: =$AM$34 -> -6
S39: =S36-((S36/100)*S37) -> 439.25 | T39: =T36-((T36/100)*T37) -> 439.25 | U39: =U36-((U36/100)*U37) -> 439.25 | V39: =V36-((V36/100)*V37) -> 439.25 | W39: =W36-((W36/100)*W37) -> 439.25 | AB39: 0 | AC39: Dias À Vista | AD39: =(IF($Z$17="SIM",AJ34-(IF($Z$27="SIM",BD35,0)),(AD28-(IF(AND($Z$22="SIM",$Z$27="SIM"),AY25,IF($Z$22="SIM",AO25,IF($Z$27="SIM",AT25,0))))))) -> 12.15 | AE39: =(IF($Z$17="SIM",AK34-(IF($Z$27="SIM",BE35,0)),(AE28-(IF(AND($Z$22="SIM",$Z$27="SIM"),AZ25,IF($Z$22="SIM",AP25,IF($Z$27="SIM",AU25,0))))))) -> 0 | AF39: =(IF($Z$17="SIM",AL34-(IF($Z$27="SIM",BF35,0)),(AF28-(IF(AND($Z$22="SIM",$Z$27="SIM"),BA25,IF($Z$22="SIM",AQ25,IF($Z$27="SIM",AV25,0))))))) -> 0 | AG39: =(IF($Z$17="SIM",AM34-(IF($Z$27="SIM",BG35,0)),(AG28-(IF(AND($Z$22="SIM",$Z$27="SIM"),BB25,IF($Z$22="SIM",AR25,IF($Z$27="SIM",AW25,0))))))) -> 0 | AH39: % | AJ39: =$AF$18 -> 6 | AK39: =$AF$18 -> 6 | AL39: =$AF$18 -> 6 | AM39: =$AF$18 -> 6 | AO39: =$AF$19 -> 0 | AP39: =$AF$19 -> 0 | AQ39: =$AF$19 -> 0 | AR39: =$AF$19 -> 0 | AT39: =$AF$21 -> 0 | AU39: =$AF$21 -> 0 | AV39: =$AF$21 -> 0 | AW39: =$AF$21 -> 0 | AY39: =$AF$19 -> 0 | AZ39: =$AF$19 -> 0 | BA39: =$AF$19 -> 0 | BB39: =$AF$19 -> 0 | BD39: =$AF$21 -> 0 | BE39: =$AF$21 -> 0 | BF39: =$AF$21 -> 0 | BG39: =$AF$21 -> 0
S40: =((S39/100)*S38) -> 17.2186 | T40: =((T39/100)*T38) -> 21.52325 | U40: =((U39/100)*U38) -> 25.8279 | V40: =((V39/100)*V38) -> 30.13255 | W40: =((W39/100)*W38) -> 34.4372 | AB40: 28 | AC40: Dias Prazo | AD40: =(IF($Z$17="SIM",AJ34-(IF($Z$27="SIM",BD35,0)),(AD29-(IF(AND($Z$22="SIM",$Z$27="SIM"),AY35,IF($Z$22="SIM",AO35,IF($Z$27="SIM",AT35,0))))))) -> 8.70628 | AE40: =(IF($Z$17="SIM",AK34-(IF($Z$27="SIM",BE35,0)),(AE29-(IF(AND($Z$22="SIM",$Z$27="SIM"),AZ35,IF($Z$22="SIM",AP35,IF($Z$27="SIM",AU35,0))))))) -> 0 | AF40: =(IF($Z$17="SIM",AL34-(IF($Z$27="SIM",BF35,0)),(AF29-(IF(AND($Z$22="SIM",$Z$27="SIM"),BA35,IF($Z$22="SIM",AQ35,IF($Z$27="SIM",AV35,0))))))) -> 0 | AG40: =(IF($Z$17="SIM",AM34-(IF($Z$27="SIM",BG35,0)),(AG29-(IF(AND($Z$22="SIM",$Z$27="SIM"),BB35,IF($Z$22="SIM",AR35,IF($Z$27="SIM",AW35,0))))))) -> 0 | AH40: % | AJ40: =AJ37-((AJ37/100)*AJ38) -> 460.77325 | AK40: =AK37-((AK37/100)*AK38) -> 500 | AL40: =AL37-((AL37/100)*AL38) -> 500 | AM40: =AM37-((AM37/100)*AM38) -> 500 | AO40: =AO37-((AO37/100)*AO38) -> 460.77325 | AP40: =AP37-((AP37/100)*AP38) -> 500 | AQ40: =AQ37-((AQ37/100)*AQ38) -> 500 | AR40: =AR37-((AR37/100)*AR38) -> 500 | AT40: =AT37-((AT37/100)*AT38) -> 460.77325 | AU40: =AU37-((AU37/100)*AU38) -> 500 | AV40: =AV37-((AV37/100)*AV38) -> 500 | AW40: =AW37-((AW37/100)*AW38) -> 500 | AY40: =AY37-((AY37/100)*AY38) -> 460.77325 | AZ40: =AZ37-((AZ37/100)*AZ38) -> 500 | BA40: =BA37-((BA37/100)*BA38) -> 500 | BB40: =BB37-((BB37/100)*BB38) -> 500 | BD40: =BD37-((BD37/100)*BD38) -> 483.856716 | BE40: =BE37-((BE37/100)*BE38) -> 530 | BF40: =BF37-((BF37/100)*BF38) -> 530 | BG40: =BG37-((BG37/100)*BG38) -> 530
S41: =S39+S40 -> 456.4686 | T41: =T39+T40 -> 460.77325 | U41: =U39+U40 -> 465.0779 | V41: =V39+V40 -> 469.38255 | W41: =W39+W40 -> 473.6872 | AB41: 35 | AC41: Dias Prazo | AD41: =(IF($Z$17="SIM",AJ34-(IF($Z$27="SIM",BD35,0)),(AD30-(IF(AND($Z$22="SIM",$Z$27="SIM"),AY45,IF($Z$22="SIM",AO45,IF($Z$27="SIM",AT45,0))))))) -> 7.84535 | AE41: =(IF($Z$17="SIM",AK34-(IF($Z$27="SIM",BE35,0)),(AE30-(IF(AND($Z$22="SIM",$Z$27="SIM"),AZ45,IF($Z$22="SIM",AP45,IF($Z$27="SIM",AU45,0))))))) -> 0 | AF41: =(IF($Z$17="SIM",AL34-(IF($Z$27="SIM",BF35,0)),(AF30-(IF(AND($Z$22="SIM",$Z$27="SIM"),BA45,IF($Z$22="SIM",AQ45,IF($Z$27="SIM",AV45,0))))))) -> 0 | AG41: =(IF($Z$17="SIM",AM34-(IF($Z$27="SIM",BG35,0)),(AG30-(IF(AND($Z$22="SIM",$Z$27="SIM"),BB45,IF($Z$22="SIM",AR45,IF($Z$27="SIM",AW45,0))))))) -> 0 | AH41: % | AJ41: =((AJ40/100)*AJ39) -> 27.646395 | AK41: =((AK40/100)*AK39) -> 30 | AL41: =((AL40/100)*AL39) -> 30 | AM41: =((AM40/100)*AM39) -> 30 | AO41: =((AO40/100)*AO39) -> 0 | AP41: =((AP40/100)*AP39) -> 0 | AQ41: =((AQ40/100)*AQ39) -> 0 | AR41: =((AR40/100)*AR39) -> 0 | AT41: =((AT40/100)*AT39) -> 0 | AU41: =((AU40/100)*AU39) -> 0 | AV41: =((AV40/100)*AV39) -> 0 | AW41: =((AW40/100)*AW39) -> 0 | AY41: =((AY40/100)*AY39) -> 0 | AZ41: =((AZ40/100)*AZ39) -> 0 | BA41: =((BA40/100)*BA39) -> 0 | BB41: =((BB40/100)*BB39) -> 0 | BD41: =((BD40/100)*BD39) -> 0 | BE41: =((BE40/100)*BE39) -> 0 | BF41: =((BF40/100)*BF39) -> 0 | BG41: =((BG40/100)*BG39) -> 0
S42: =S36-S41 -> 43.5314 | T42: =T36-T41 -> 39.22675 | U42: =U36-U41 -> 34.9221 | V42: =V36-V41 -> 30.61745 | W42: =W36-W41 -> 26.3128 | AB42: 42 | AC42: Dias Prazo | AD42: =(IF($Z$17="SIM",AJ34-(IF($Z$27="SIM",BD35,0)),(AD31-(IF(AND($Z$22="SIM",$Z$27="SIM"),AY55,IF($Z$22="SIM",AO55,IF($Z$27="SIM",AT55,0))))))) -> 6.98442 | AE42: =(IF($Z$17="SIM",AK34-(IF($Z$27="SIM",BE35,0)),(AE31-(IF(AND($Z$22="SIM",$Z$27="SIM"),AZ55,IF($Z$22="SIM",AP55,IF($Z$27="SIM",AU55,0))))))) -> 0 | AF42: =(IF($Z$17="SIM",AL34-(IF($Z$27="SIM",BF35,0)),(AF31-(IF(AND($Z$22="SIM",$Z$27="SIM"),BA55,IF($Z$22="SIM",AQ55,IF($Z$27="SIM",AV55,0))))))) -> 0 | AG42: =(IF($Z$17="SIM",AM34-(IF($Z$27="SIM",BG35,0)),(AG31-(IF(AND($Z$22="SIM",$Z$27="SIM"),BB55,IF($Z$22="SIM",AR55,IF($Z$27="SIM",AW55,0))))))) -> 0 | AH42: % | AJ42: =AJ40+AJ41 -> 488.419645 | AK42: =AK40+AK41 -> 530 | AL42: =AL40+AL41 -> 530 | AM42: =AM40+AM41 -> 530 | AO42: =AO40+AO41 -> 460.77325 | AP42: =AP40+AP41 -> 500 | AQ42: =AQ40+AQ41 -> 500 | AR42: =AR40+AR41 -> 500 | AT42: =AT40+AT41 -> 460.77325 | AU42: =AU40+AU41 -> 500 | AV42: =AV40+AV41 -> 500 | AW42: =AW40+AW41 -> 500 | AY42: =AY40+AY41 -> 460.77325 | AZ42: =AZ40+AZ41 -> 500 | BA42: =BA40+BA41 -> 500 | BB42: =BB40+BB41 -> 500 | BD42: =BD40+BD41 -> 483.856716 | BE42: =BE40+BE41 -> 530 | BF42: =BF40+BF41 -> 530 | BG42: =BG40+BG41 -> 530
S43: =(S42/S36)*100 -> 8.70628 | T43: =(T42/T36)*100 -> 7.84535 | U43: =(U42/U36)*100 -> 6.98442 | V43: =(V42/V36)*100 -> 6.12349 | W43: =(W42/W36)*100 -> 5.26256 | AB43: 49 | AC43: Dias Prazo | AD43: =(IF($Z$17="SIM",AJ34-(IF($Z$27="SIM",BD35,0)),(AD32-(IF(AND($Z$22="SIM",$Z$27="SIM"),AY65,IF($Z$22="SIM",AO65,IF($Z$27="SIM",AT65,0))))))) -> 6.12349 | AE43: =(IF($Z$17="SIM",AK34-(IF($Z$27="SIM",BE35,0)),(AE32-(IF(AND($Z$22="SIM",$Z$27="SIM"),AZ65,IF($Z$22="SIM",AP65,IF($Z$27="SIM",AU65,0))))))) -> 0 | AF43: =(IF($Z$17="SIM",AL34-(IF($Z$27="SIM",BF35,0)),(AF32-(IF(AND($Z$22="SIM",$Z$27="SIM"),BA65,IF($Z$22="SIM",AQ65,IF($Z$27="SIM",AV65,0))))))) -> 0 | AG43: =(IF($Z$17="SIM",AM34-(IF($Z$27="SIM",BG35,0)),(AG32-(IF(AND($Z$22="SIM",$Z$27="SIM"),BB65,IF($Z$22="SIM",AR65,IF($Z$27="SIM",AW65,0))))))) -> 0 | AH43: % | AJ43: =AJ37-AJ42 -> 11.580355 | AK43: =AK37-AK42 -> -30 | AL43: =AL37-AL42 -> -30 | AM43: =AM37-AM42 -> -30 | AO43: =AO37-AO42 -> 39.22675 | AP43: =AP37-AP42 -> 0 | AQ43: =AQ37-AQ42 -> 0 | AR43: =AR37-AR42 -> 0 | AT43: =AT37-AT42 -> 39.22675 | AU43: =AU37-AU42 -> 0 | AV43: =AV37-AV42 -> 0 | AW43: =AW37-AW42 -> 0 | AY43: =AY37-AY42 -> 39.22675 | AZ43: =AZ37-AZ42 -> 0 | BA43: =BA37-BA42 -> 0 | BB43: =BB37-BB42 -> 0 | BD43: =BD37-BD42 -> 16.143284 | BE43: =BE37-BE42 -> -30 | BF43: =BF37-BF42 -> -30 | BG43: =BG37-BG42 -> -30
AB44: 56 | AC44: Dias Prazo | AD44: =(IF($Z$17="SIM",AJ34-(IF($Z$27="SIM",BD35,0)),(AD33-(IF(AND($Z$22="SIM",$Z$27="SIM"),AY75,IF($Z$22="SIM",AO75,IF($Z$27="SIM",AT75,0))))))) -> 5.26256 | AE44: =(IF($Z$17="SIM",AK34-(IF($Z$27="SIM",BE35,0)),(AE33-(IF(AND($Z$22="SIM",$Z$27="SIM"),AZ75,IF($Z$22="SIM",AP75,IF($Z$27="SIM",AU75,0))))))) -> 0 | AF44: =(IF($Z$17="SIM",AL34-(IF($Z$27="SIM",BF35,0)),(AF33-(IF(AND($Z$22="SIM",$Z$27="SIM"),BA75,IF($Z$22="SIM",AQ75,IF($Z$27="SIM",AV75,0))))))) -> 0 | AG44: =(IF($Z$17="SIM",AM34-(IF($Z$27="SIM",BG35,0)),(AG33-(IF(AND($Z$22="SIM",$Z$27="SIM"),BB75,IF($Z$22="SIM",AR75,IF($Z$27="SIM",AW75,0))))))) -> 0 | AH44: % | AJ44: =(AJ43/AJ37)*100 -> 2.316071 | AK44: =(AK43/AK37)*100 -> -6 | AL44: =(AL43/AL37)*100 -> -6 | AM44: =(AM43/AM37)*100 -> -6 | AO44: =(AO43/AO37)*100 -> 7.84535 | AP44: =(AP43/AP37)*100 -> 0 | AQ44: =(AQ43/AQ37)*100 -> 0 | AR44: =(AR43/AR37)*100 -> 0 | AT44: =(AT43/AT37)*100 -> 7.84535 | AU44: =(AU43/AU37)*100 -> 0 | AV44: =(AV43/AV37)*100 -> 0 | AW44: =(AW43/AW37)*100 -> 0 | AY44: =(AY43/AY37)*100 -> 7.84535 | AZ44: =(AZ43/AZ37)*100 -> 0 | BA44: =(BA43/BA37)*100 -> 0 | BB44: =(BB43/BB37)*100 -> 0 | BD44: =(BD43/BD37)*100 -> 3.2286568 | BE44: =(BE43/BE37)*100 -> -6 | BF44: =(BF43/BF37)*100 -> -6 | BG44: =(BG43/BG37)*100 -> -6
C45: TABELA DE VALORES Nº | H45: =I51 -> 119 | I45: =M51 -> 2024-06-24 | AO45: =AO38-AO44 -> 0 | AP45: =AP38-AP44 -> 0 | AQ45: =AQ38-AQ44 -> 0 | AR45: =AR38-AR44 -> 0 | AT45: =AT38-AT44 -> 0 | AU45: =AU38-AU44 -> 0 | AV45: =AV38-AV44 -> 0 | AW45: =AW38-AW44 -> 0 | AY45: =AY38-AY44+AT45 -> 0 | AZ45: =AZ38-AZ44+AU45 -> 0 | BA45: =BA38-BA44+AV45 -> 0 | BB45: =BB38-BB44+AW45 -> 0 | BD45: =BD38-BD44 -> 0 | BE45: =BE38-BE44 -> 0 | BF45: =BF38-BF44 -> 0 | BG45: =BG38-BG44 -> 0
AJ46: 42 DIAS | AK46: 42 DIAS | AL46: 42 DIAS | AM46: 42 DIAS | AO46: 42 DIAS | AP46: 42 DIAS | AQ46: 42 DIAS | AR46: 42 DIAS | AT46: 42 DIAS | AU46: 42 DIAS | AV46: 42 DIAS | AW46: 42 DIAS | AY46: 42 DIAS | AZ46: 42 DIAS | BA46: 42 DIAS | BB46: 42 DIAS | BD46: 42 DIAS | BE46: 42 DIAS | BF46: 42 DIAS | BG46: 42 DIAS
AB47: DESCONTO CONSUMIDOR FINAL | AJ47: 500 | AK47: 500 | AL47: 500 | AM47: 500 | AO47: 500 | AP47: 500 | AQ47: 500 | AR47: 500 | AT47: 500 | AU47: 500 | AV47: 500 | AW47: 500 | AY47: 500 | AZ47: 500 | BA47: 500 | BB47: 500 | BD47: 500 | BE47: 500 | BF47: 500 | BG47: 500
AD48: =Definições!$AC$144 -> Eucalipto | AE48: =Definições!$AC$145 -> 0 | AF48: =Definições!$AC$146 -> 0 | AG48: =Definições!$AC$147 -> 0 | AJ48: =$AD$31 -> 6.98442 | AK48: =$AE$31 -> 0 | AL48: =$AF$31 -> 0 | AM48: =$AG$31 -> 0 | AO48: =$AD$31 -> 6.98442 | AP48: =$AE$31 -> 0 | AQ48: =$AF$31 -> 0 | AR48: =$AG$31 -> 0 | AT48: =$AD$31 -> 6.98442 | AU48: =$AE$31 -> 0 | AV48: =$AF$31 -> 0 | AW48: =$AG$31 -> 0 | AY48: =AT54 -> 6.98442 | AZ48: =AU54 -> 0 | BA48: =AV54 -> 0 | BB48: =AW54 -> 0 | BD48: =$AJ$34 -> 3.2286568 | BE48: =$AK$34 -> -6 | BF48: =$AL$34 -> -6 | BG48: =$AM$34 -> -6
C49: REVENDEDOR (RV) | AJ49: =$AF$18 -> 6 | AK49: =$AF$18 -> 6 | AL49: =$AF$18 -> 6 | AM49: =$AF$18 -> 6 | AO49: =$AF$19 -> 0 | AP49: =$AF$19 -> 0 | AQ49: =$AF$19 -> 0 | AR49: =$AF$19 -> 0 | AT49: =$AF$21 -> 0 | AU49: =$AF$21 -> 0 | AV49: =$AF$21 -> 0 | AW49: =$AF$21 -> 0 | AY49: =$AF$19 -> 0 | AZ49: =$AF$19 -> 0 | BA49: =$AF$19 -> 0 | BB49: =$AF$19 -> 0 | BD49: =$AF$21 -> 0 | BE49: =$AF$21 -> 0 | BF49: =$AF$21 -> 0 | BG49: =$AF$21 -> 0
AB50: 28 | AC50: Dias Prazo | AD50: =AJ86 -> 3.2286568 | AE50: =AK86 -> -6 | AF50: =AL86 -> -6 | AG50: =AM86 -> -6 | AH50: % | AJ50: =AJ47-((AJ47/100)*AJ48) -> 465.0779 | AK50: =AK47-((AK47/100)*AK48) -> 500 | AL50: =AL47-((AL47/100)*AL48) -> 500 | AM50: =AM47-((AM47/100)*AM48) -> 500 | AO50: =AO47-((AO47/100)*AO48) -> 465.0779 | AP50: =AP47-((AP47/100)*AP48) -> 500 | AQ50: =AQ47-((AQ47/100)*AQ48) -> 500 | AR50: =AR47-((AR47/100)*AR48) -> 500 | AT50: =AT47-((AT47/100)*AT48) -> 465.0779 | AU50: =AU47-((AU47/100)*AU48) -> 500 | AV50: =AV47-((AV47/100)*AV48) -> 500 | AW50: =AW47-((AW47/100)*AW48) -> 500 | AY50: =AY47-((AY47/100)*AY48) -> 465.0779 | AZ50: =AZ47-((AZ47/100)*AZ48) -> 500 | BA50: =BA47-((BA47/100)*BA48) -> 500 | BB50: =BB47-((BB47/100)*BB48) -> 500 | BD50: =BD47-((BD47/100)*BD48) -> 483.856716 | BE50: =BE47-((BE47/100)*BE48) -> 530 | BF50: =BF47-((BF47/100)*BF48) -> 530 | BG50: =BG47-((BG47/100)*BG48) -> 530
C51: DESCONTOS ATUALIZADOS PELA INTERNET | H51: TABELA Nº: | I51: =IF($W$5=100,Descontos!B1,IF($W$5=200,Descontos!B2,IF($W$5=300,Descontos!B3))) -> 119 | K51: DATA: | M51: =IF($W$5=100,Descontos!C1,IF($W$5=200,Descontos!C2,IF($W$5=300,Descontos!C3))) -> 2024-06-24 | AJ51: =((AJ50/100)*AJ49) -> 27.904674 | AK51: =((AK50/100)*AK49) -> 30 | AL51: =((AL50/100)*AL49) -> 30 | AM51: =((AM50/100)*AM49) -> 30 | AO51: =((AO50/100)*AO49) -> 0 | AP51: =((AP50/100)*AP49) -> 0 | AQ51: =((AQ50/100)*AQ49) -> 0 | AR51: =((AR50/100)*AR49) -> 0 | AT51: =((AT50/100)*AT49) -> 0 | AU51: =((AU50/100)*AU49) -> 0 | AV51: =((AV50/100)*AV49) -> 0 | AW51: =((AW50/100)*AW49) -> 0 | AY51: =((AY50/100)*AY49) -> 0 | AZ51: =((AZ50/100)*AZ49) -> 0 | BA51: =((BA50/100)*BA49) -> 0 | BB51: =((BB50/100)*BB49) -> 0 | BD51: =((BD50/100)*BD49) -> 0 | BE51: =((BE50/100)*BE49) -> 0 | BF51: =((BF50/100)*BF49) -> 0 | BG51: =((BG50/100)*BG49) -> 0
H52: =Definições!$AC$144 -> Eucalipto | AB52: DESCONTO FIXOS CF PARA DEFINIÇÕES | AJ52: =AJ50+AJ51 -> 492.982574 | AK52: =AK50+AK51 -> 530 | AL52: =AL50+AL51 -> 530 | AM52: =AM50+AM51 -> 530 | AO52: =AO50+AO51 -> 465.0779 | AP52: =AP50+AP51 -> 500 | AQ52: =AQ50+AQ51 -> 500 | AR52: =AR50+AR51 -> 500 | AT52: =AT50+AT51 -> 465.0779 | AU52: =AU50+AU51 -> 500 | AV52: =AV50+AV51 -> 500 | AW52: =AW50+AW51 -> 500 | AY52: =AY50+AY51 -> 465.0779 | AZ52: =AZ50+AZ51 -> 500 | BA52: =BA50+BA51 -> 500 | BB52: =BB50+BB51 -> 500 | BD52: =BD50+BD51 -> 483.856716 | BE52: =BE50+BE51 -> 530 | BF52: =BF50+BF51 -> 530 | BG52: =BG50+BG51 -> 530
AD53: =Definições!$AC$144 -> Eucalipto | AE53: =Definições!$AC$145 -> 0 | AF53: =Definições!$AC$146 -> 0 | AG53: =Definições!$AC$147 -> 0 | AJ53: =AJ47-AJ52 -> 7.017426 | AK53: =AK47-AK52 -> -30 | AL53: =AL47-AL52 -> -30 | AM53: =AM47-AM52 -> -30 | AO53: =AO47-AO52 -> 34.9221 | AP53: =AP47-AP52 -> 0 | AQ53: =AQ47-AQ52 -> 0 | AR53: =AR47-AR52 -> 0 | AT53: =AT47-AT52 -> 34.9221 | AU53: =AU47-AU52 -> 0 | AV53: =AV47-AV52 -> 0 | AW53: =AW47-AW52 -> 0 | AY53: =AY47-AY52 -> 34.9221 | AZ53: =AZ47-AZ52 -> 0 | BA53: =BA47-BA52 -> 0 | BB53: =BB47-BB52 -> 0 | BD53: =BD47-BD52 -> 16.143284 | BE53: =BE47-BE52 -> -30 | BF53: =BF47-BF52 -> -30 | BG53: =BG47-BG52 -> -30
C54: Total antecipado, à vista no pedido. (Deposito em conta) | H54: =IF($W$5=100,Descontos!E1,IF($W$5=200,Descontos!E2,IF($W$5=300,Descontos!E3))) -> 12.15 | AJ54: =(AJ53/AJ47)*100 -> 1.4034852 | AK54: =(AK53/AK47)*100 -> -6 | AL54: =(AL53/AL47)*100 -> -6 | AM54: =(AM53/AM47)*100 -> -6 | AO54: =(AO53/AO47)*100 -> 6.98442 | AP54: =(AP53/AP47)*100 -> 0 | AQ54: =(AQ53/AQ47)*100 -> 0 | AR54: =(AR53/AR47)*100 -> 0 | AT54: =(AT53/AT47)*100 -> 6.98442 | AU54: =(AU53/AU47)*100 -> 0 | AV54: =(AV53/AV47)*100 -> 0 | AW54: =(AW53/AW47)*100 -> 0 | AY54: =(AY53/AY47)*100 -> 6.98442 | AZ54: =(AZ53/AZ47)*100 -> 0 | BA54: =(BA53/BA47)*100 -> 0 | BB54: =(BB53/BB47)*100 -> 0 | BD54: =(BD53/BD47)*100 -> 3.2286568 | BE54: =(BE53/BE47)*100 -> -6 | BF54: =(BF53/BF47)*100 -> -6 | BG54: =(BG53/BG47)*100 -> -6
C55: Prazo médio de 28 dias. (Boleto ou cheque) | H55: =Definições!$S$43 -> 8.70628 | AB55: =S24 -> -7 | AD55: =AJ108 -> 10.00265082 | AE55: =AJ119 -> 1.42 | AF55: =AJ130 -> 1.42 | AG55: =AJ141 -> 1.42 | AH55: % | AO55: =AO48-AO54 -> 0 | AP55: =AP48-AP54 -> 0 | AQ55: =AQ48-AQ54 -> 0 | AR55: =AR48-AR54 -> 0 | AT55: =AT48-AT54 -> 0 | AU55: =AU48-AU54 -> 0 | AV55: =AV48-AV54 -> 0 | AW55: =AW48-AW54 -> 0 | AY55: =AY48-AY54+AT55 -> 0 | AZ55: =AZ48-AZ54+AU55 -> 0 | BA55: =BA48-BA54+AV55 -> 0 | BB55: =BB48-BB54+AW55 -> 0 | BD55: =BD48-BD54 -> 0 | BE55: =BE48-BE54 -> 0 | BF55: =BF48-BF54 -> 0 | BG55: =BG48-BG54 -> 0
C56: Prazo médio de 35 dias. (Boleto ou cheque) | H56: =Definições!$T$43 -> 7.84535 | AB56: =T24 -> -5 | AD56: =AK108 -> 8.06722396 | AE56: =AK119 -> -0.7 | AF56: =AK130 -> -0.7 | AG56: =AK141 -> -0.7 | AH56: % | AJ56: 49 DIAS | AK56: 49 DIAS | AL56: 49 DIAS | AM56: 49 DIAS | AO56: 49 DIAS | AP56: 49 DIAS | AQ56: 49 DIAS | AR56: 49 DIAS | AT56: 49 DIAS | AU56: 49 DIAS | AV56: 49 DIAS | AW56: 49 DIAS | AY56: 49 DIAS | AZ56: 49 DIAS | BA56: 49 DIAS | BB56: 49 DIAS | BD56: 49 DIAS | BE56: 49 DIAS | BF56: 49 DIAS | BG56: 49 DIAS
C57: Prazo médio de 42 dias. (Boleto ou cheque) | H57: =Definições!$U$43 -> 6.98442 | AB57: =U24 -> -4 | AD57: =AL108 -> 7.099510528 | AE57: =AL119 -> -1.76 | AF57: =AL130 -> -1.76 | AG57: =AL141 -> -1.76 | AH57: % | AJ57: 500 | AK57: 500 | AL57: 500 | AM57: 500 | AO57: 500 | AP57: 500 | AQ57: 500 | AR57: 500 | AT57: 500 | AU57: 500 | AV57: 500 | AW57: 500 | AY57: 500 | AZ57: 500 | BA57: 500 | BB57: 500 | BD57: 500 | BE57: 500 | BF57: 500 | BG57: 500
C58: Prazo médio de 49 dias. (Boleto ou cheque) | H58: =Definições!$V$43 -> 6.12349 | AB58: =V24 -> -2.5 | AD58: =AM108 -> 5.64794038 | AE58: =AM119 -> -3.35 | AF58: =AM130 -> -3.35 | AG58: =AM141 -> -3.35 | AH58: % | AJ58: =$AD$32 -> 6.12349 | AK58: =$AE$32 -> 0 | AL58: =$AF$32 -> 0 | AM58: =$AG$32 -> 0 | AO58: =$AD$32 -> 6.12349 | AP58: =$AE$32 -> 0 | AQ58: =$AF$32 -> 0 | AR58: =$AG$32 -> 0 | AT58: =$AD$32 -> 6.12349 | AU58: =$AE$32 -> 0 | AV58: =$AF$32 -> 0 | AW58: =$AG$32 -> 0 | AY58: =AT64 -> 6.12349 | AZ58: =AU64 -> 0 | BA58: =AV64 -> 0 | BB58: =AW64 -> 0 | BD58: =$AJ$34 -> 3.2286568 | BE58: =$AK$34 -> -6 | BF58: =$AL$34 -> -6 | BG58: =$AM$34 -> -6
C59: Prazo médio de 56 dias. (Boleto ou cheque) | H59: =Definições!$W$43 -> 5.26256 | AB59: =W24 -> -1 | AD59: =AO108 -> 4.196370232 | AE59: =AO119 -> -4.94 | AF59: =AO130 -> -4.94 | AG59: =AO141 -> -4.94 | AH59: % | AJ59: =$AF$18 -> 6 | AK59: =$AF$18 -> 6 | AL59: =$AF$18 -> 6 | AM59: =$AF$18 -> 6 | AO59: =$AF$19 -> 0 | AP59: =$AF$19 -> 0 | AQ59: =$AF$19 -> 0 | AR59: =$AF$19 -> 0 | AT59: =$AF$21 -> 0 | AU59: =$AF$21 -> 0 | AV59: =$AF$21 -> 0 | AW59: =$AF$21 -> 0 | AY59: =$AF$19 -> 0 | AZ59: =$AF$19 -> 0 | BA59: =$AF$19 -> 0 | BB59: =$AF$19 -> 0 | BD59: =$AF$21 -> 0 | BE59: =$AF$21 -> 0 | BF59: =$AF$21 -> 0 | BG59: =$AF$21 -> 0
AB60: =X24 -> 0 | AD60: =AP108 -> 3.2286568 | AE60: =AP119 -> -6 | AF60: =AP130 -> -6 | AG60: =AP141 -> -6 | AH60: % | AJ60: =AJ57-((AJ57/100)*AJ58) -> 469.38255 | AK60: =AK57-((AK57/100)*AK58) -> 500 | AL60: =AL57-((AL57/100)*AL58) -> 500 | AM60: =AM57-((AM57/100)*AM58) -> 500 | AO60: =AO57-((AO57/100)*AO58) -> 469.38255 | AP60: =AP57-((AP57/100)*AP58) -> 500 | AQ60: =AQ57-((AQ57/100)*AQ58) -> 500 | AR60: =AR57-((AR57/100)*AR58) -> 500 | AT60: =AT57-((AT57/100)*AT58) -> 469.38255 | AU60: =AU57-((AU57/100)*AU58) -> 500 | AV60: =AV57-((AV57/100)*AV58) -> 500 | AW60: =AW57-((AW57/100)*AW58) -> 500 | AY60: =AY57-((AY57/100)*AY58) -> 469.38255 | AZ60: =AZ57-((AZ57/100)*AZ58) -> 500 | BA60: =BA57-((BA57/100)*BA58) -> 500 | BB60: =BB57-((BB57/100)*BB58) -> 500 | BD60: =BD57-((BD57/100)*BD58) -> 483.856716 | BE60: =BE57-((BE57/100)*BE58) -> 530 | BF60: =BF57-((BF57/100)*BF58) -> 530 | BG60: =BG57-((BG57/100)*BG58) -> 530
AJ61: =((AJ60/100)*AJ59) -> 28.162953 | AK61: =((AK60/100)*AK59) -> 30 | AL61: =((AL60/100)*AL59) -> 30 | AM61: =((AM60/100)*AM59) -> 30 | AO61: =((AO60/100)*AO59) -> 0 | AP61: =((AP60/100)*AP59) -> 0 | AQ61: =((AQ60/100)*AQ59) -> 0 | AR61: =((AR60/100)*AR59) -> 0 | AT61: =((AT60/100)*AT59) -> 0 | AU61: =((AU60/100)*AU59) -> 0 | AV61: =((AV60/100)*AV59) -> 0 | AW61: =((AW60/100)*AW59) -> 0 | AY61: =((AY60/100)*AY59) -> 0 | AZ61: =((AZ60/100)*AZ59) -> 0 | BA61: =((BA60/100)*BA59) -> 0 | BB61: =((BB60/100)*BB59) -> 0 | BD61: =((BD60/100)*BD59) -> 0 | BE61: =((BE60/100)*BE59) -> 0 | BF61: =((BF60/100)*BF59) -> 0 | BG61: =((BG60/100)*BG59) -> 0
AB62: DESCONTO CÁLCULO AUTOMÁTICO POR PORCENTAGEM | AJ62: =AJ60+AJ61 -> 497.545503 | AK62: =AK60+AK61 -> 530 | AL62: =AL60+AL61 -> 530 | AM62: =AM60+AM61 -> 530 | AO62: =AO60+AO61 -> 469.38255 | AP62: =AP60+AP61 -> 500 | AQ62: =AQ60+AQ61 -> 500 | AR62: =AR60+AR61 -> 500 | AT62: =AT60+AT61 -> 469.38255 | AU62: =AU60+AU61 -> 500 | AV62: =AV60+AV61 -> 500 | AW62: =AW60+AW61 -> 500 | AY62: =AY60+AY61 -> 469.38255 | AZ62: =AZ60+AZ61 -> 500 | BA62: =BA60+BA61 -> 500 | BB62: =BB60+BB61 -> 500 | BD62: =BD60+BD61 -> 483.856716 | BE62: =BE60+BE61 -> 530 | BF62: =BF60+BF61 -> 530 | BG62: =BG60+BG61 -> 530
AJ63: =AJ57-AJ62 -> 2.454497 | AK63: =AK57-AK62 -> -30 | AL63: =AL57-AL62 -> -30 | AM63: =AM57-AM62 -> -30 | AO63: =AO57-AO62 -> 30.61745 | AP63: =AP57-AP62 -> 0 | AQ63: =AQ57-AQ62 -> 0 | AR63: =AR57-AR62 -> 0 | AT63: =AT57-AT62 -> 30.61745 | AU63: =AU57-AU62 -> 0 | AV63: =AV57-AV62 -> 0 | AW63: =AW57-AW62 -> 0 | AY63: =AY57-AY62 -> 30.61745 | AZ63: =AZ57-AZ62 -> 0 | BA63: =BA57-BA62 -> 0 | BB63: =BB57-BB62 -> 0 | BD63: =BD57-BD62 -> 16.143284 | BE63: =BE57-BE62 -> -30 | BF63: =BF57-BF62 -> -30 | BG63: =BG57-BG62 -> -30
AD64: =Definições!$AC$144 -> Eucalipto | AE64: =Definições!$AC$145 -> 0 | AF64: =Definições!$AC$146 -> 0 | AG64: =Definições!$AC$147 -> 0 | AJ64: =(AJ63/AJ57)*100 -> 0.4908994 | AK64: =(AK63/AK57)*100 -> -6 | AL64: =(AL63/AL57)*100 -> -6 | AM64: =(AM63/AM57)*100 -> -6 | AO64: =(AO63/AO57)*100 -> 6.12349 | AP64: =(AP63/AP57)*100 -> 0 | AQ64: =(AQ63/AQ57)*100 -> 0 | AR64: =(AR63/AR57)*100 -> 0 | AT64: =(AT63/AT57)*100 -> 6.12349 | AU64: =(AU63/AU57)*100 -> 0 | AV64: =(AV63/AV57)*100 -> 0 | AW64: =(AW63/AW57)*100 -> 0 | AY64: =(AY63/AY57)*100 -> 6.12349 | AZ64: =(AZ63/AZ57)*100 -> 0 | BA64: =(BA63/BA57)*100 -> 0 | BB64: =(BB63/BB57)*100 -> 0 | BD64: =(BD63/BD57)*100 -> 3.2286568 | BE64: =(BE63/BE57)*100 -> -6 | BF64: =(BF63/BF57)*100 -> -6 | BG64: =(BG63/BG57)*100 -> -6
AO65: =AO58-AO64 -> 0 | AP65: =AP58-AP64 -> 0 | AQ65: =AQ58-AQ64 -> 0 | AR65: =AR58-AR64 -> 0 | AT65: =AT58-AT64 -> 0 | AU65: =AU58-AU64 -> 0 | AV65: =AV58-AV64 -> 0 | AW65: =AW58-AW64 -> 0 | AY65: =AY58-AY64+AT65 -> 0 | AZ65: =AZ58-AZ64+AU65 -> 0 | BA65: =BA58-BA64+AV65 -> 0 | BB65: =BB58-BB64+AW65 -> 0 | BD65: =BD58-BD64 -> 0 | BE65: =BE58-BE64 -> 0 | BF65: =BF58-BF64 -> 0 | BG65: =BG58-BG64 -> 0
AB66: 28 | AC66: Dias Prazo | AD66: 62.6 | AE66: 62.6 | AF66: 62.6 | AG66: 62.6 | AH66: % | AJ66: 56 DIAS | AK66: 56 DIAS | AL66: 56 DIAS | AM66: 56 DIAS | AO66: 56 DIAS | AP66: 56 DIAS | AQ66: 56 DIAS | AR66: 56 DIAS | AT66: 56 DIAS | AU66: 56 DIAS | AV66: 56 DIAS | AW66: 56 DIAS | AY66: 56 DIAS | AZ66: 56 DIAS | BA66: 56 DIAS | BB66: 56 DIAS | BD66: 56 DIAS | BE66: 56 DIAS | BF66: 56 DIAS | BG66: 56 DIAS
AB67: 35 | AC67: Dias Prazo | AD67: 62.3 | AE67: 62.3 | AF67: 62.3 | AG67: 62.3 | AH67: % | AJ67: 500 | AK67: 500 | AL67: 500 | AM67: 500 | AO67: 500 | AP67: 500 | AQ67: 500 | AR67: 500 | AT67: 500 | AU67: 500 | AV67: 500 | AW67: 500 | AY67: 500 | AZ67: 500 | BA67: 500 | BB67: 500 | BD67: 500 | BE67: 500 | BF67: 500 | BG67: 500
AB68: 42 | AC68: Dias Prazo | AD68: 61.9 | AE68: 61.9 | AF68: 61.9 | AG68: 61.9 | AH68: % | AJ68: =$AD$33 -> 5.26256 | AK68: =$AE$33 -> 0 | AL68: =$AF$33 -> 0 | AM68: =$AG$33 -> 0 | AO68: =$AD$33 -> 5.26256 | AP68: =$AE$33 -> 0 | AQ68: =$AF$33 -> 0 | AR68: =$AG$33 -> 0 | AT68: =$AD$33 -> 5.26256 | AU68: =$AE$33 -> 0 | AV68: =$AF$33 -> 0 | AW68: =$AG$33 -> 0 | AY68: =AT74 -> 5.26256 | AZ68: =AU74 -> 0 | BA68: =AV74 -> 0 | BB68: =AW74 -> 0 | BD68: =$AJ$34 -> 3.2286568 | BE68: =$AK$34 -> -6 | BF68: =$AL$34 -> -6 | BG68: =$AM$34 -> -6
AB69: 49 | AC69: Dias Prazo | AD69: 61.5 | AE69: 61.5 | AF69: 61.5 | AG69: 61.5 | AH69: % | AJ69: =$AF$18 -> 6 | AK69: =$AF$18 -> 6 | AL69: =$AF$18 -> 6 | AM69: =$AF$18 -> 6 | AO69: =$AF$19 -> 0 | AP69: =$AF$19 -> 0 | AQ69: =$AF$19 -> 0 | AR69: =$AF$19 -> 0 | AT69: =$AF$21 -> 0 | AU69: =$AF$21 -> 0 | AV69: =$AF$21 -> 0 | AW69: =$AF$21 -> 0 | AY69: =$AF$19 -> 0 | AZ69: =$AF$19 -> 0 | BA69: =$AF$19 -> 0 | BB69: =$AF$19 -> 0 | BD69: =$AF$21 -> 0 | BE69: =$AF$21 -> 0 | BF69: =$AF$21 -> 0 | BG69: =$AF$21 -> 0
AB70: 56 | AC70: Dias Prazo | AD70: 61.3 | AE70: 61.3 | AF70: 61.3 | AG70: 61.3 | AH70: % | AJ70: =AJ67-((AJ67/100)*AJ68) -> 473.6872 | AK70: =AK67-((AK67/100)*AK68) -> 500 | AL70: =AL67-((AL67/100)*AL68) -> 500 | AM70: =AM67-((AM67/100)*AM68) -> 500 | AO70: =AO67-((AO67/100)*AO68) -> 473.6872 | AP70: =AP67-((AP67/100)*AP68) -> 500 | AQ70: =AQ67-((AQ67/100)*AQ68) -> 500 | AR70: =AR67-((AR67/100)*AR68) -> 500 | AT70: =AT67-((AT67/100)*AT68) -> 473.6872 | AU70: =AU67-((AU67/100)*AU68) -> 500 | AV70: =AV67-((AV67/100)*AV68) -> 500 | AW70: =AW67-((AW67/100)*AW68) -> 500 | AY70: =AY67-((AY67/100)*AY68) -> 473.6872 | AZ70: =AZ67-((AZ67/100)*AZ68) -> 500 | BA70: =BA67-((BA67/100)*BA68) -> 500 | BB70: =BB67-((BB67/100)*BB68) -> 500 | BD70: =BD67-((BD67/100)*BD68) -> 483.856716 | BE70: =BE67-((BE67/100)*BE68) -> 530 | BF70: =BF67-((BF67/100)*BF68) -> 530 | BG70: =BG67-((BG67/100)*BG68) -> 530
C71: CONDIÇÃO DE PAGAMENTO CF | AJ71: =((AJ70/100)*AJ69) -> 28.421232 | AK71: =((AK70/100)*AK69) -> 30 | AL71: =((AL70/100)*AL69) -> 30 | AM71: =((AM70/100)*AM69) -> 30 | AO71: =((AO70/100)*AO69) -> 0 | AP71: =((AP70/100)*AP69) -> 0 | AQ71: =((AQ70/100)*AQ69) -> 0 | AR71: =((AR70/100)*AR69) -> 0 | AT71: =((AT70/100)*AT69) -> 0 | AU71: =((AU70/100)*AU69) -> 0 | AV71: =((AV70/100)*AV69) -> 0 | AW71: =((AW70/100)*AW69) -> 0 | AY71: =((AY70/100)*AY69) -> 0 | AZ71: =((AZ70/100)*AZ69) -> 0 | BA71: =((BA70/100)*BA69) -> 0 | BB71: =((BB70/100)*BB69) -> 0 | BD71: =((BD70/100)*BD69) -> 0 | BE71: =((BE70/100)*BE69) -> 0 | BF71: =((BF70/100)*BF69) -> 0 | BG71: =((BG70/100)*BG69) -> 0
AJ72: =AJ70+AJ71 -> 502.108432 | AK72: =AK70+AK71 -> 530 | AL72: =AL70+AL71 -> 530 | AM72: =AM70+AM71 -> 530 | AO72: =AO70+AO71 -> 473.6872 | AP72: =AP70+AP71 -> 500 | AQ72: =AQ70+AQ71 -> 500 | AR72: =AR70+AR71 -> 500 | AT72: =AT70+AT71 -> 473.6872 | AU72: =AU70+AU71 -> 500 | AV72: =AV70+AV71 -> 500 | AW72: =AW70+AW71 -> 500 | AY72: =AY70+AY71 -> 473.6872 | AZ72: =AZ70+AZ71 -> 500 | BA72: =BA70+BA71 -> 500 | BB72: =BB70+BB71 -> 500 | BD72: =BD70+BD71 -> 483.856716 | BE72: =BE70+BE71 -> 530 | BF72: =BF70+BF71 -> 530 | BG72: =BG70+BG71 -> 530
C73: Preço padrão: Pagamento de 20% antecipado, 80% em 30/60/90/120 dias com cheque. | L73: =X24 -> 0 | M73: % | AJ73: =AJ67-AJ72 -> -2.108432 | AK73: =AK67-AK72 -> -30 | AL73: =AL67-AL72 -> -30 | AM73: =AM67-AM72 -> -30 | AO73: =AO67-AO72 -> 26.3128 | AP73: =AP67-AP72 -> 0 | AQ73: =AQ67-AQ72 -> 0 | AR73: =AR67-AR72 -> 0 | AT73: =AT67-AT72 -> 26.3128 | AU73: =AU67-AU72 -> 0 | AV73: =AV67-AV72 -> 0 | AW73: =AW67-AW72 -> 0 | AY73: =AY67-AY72 -> 26.3128 | AZ73: =AZ67-AZ72 -> 0 | BA73: =BA67-BA72 -> 0 | BB73: =BB67-BB72 -> 0 | BD73: =BD67-BD72 -> 16.143284 | BE73: =BE67-BE72 -> -30 | BF73: =BF67-BF72 -> -30 | BG73: =BG67-BG72 -> -30
C74: Pagamento de 30% antecipado, 70% em 30/60/90/120 dias com cheque. | L74: =W24 -> -1 | M74: % | AJ74: =(AJ73/AJ67)*100 -> -0.4216864 | AK74: =(AK73/AK67)*100 -> -6 | AL74: =(AL73/AL67)*100 -> -6 | AM74: =(AM73/AM67)*100 -> -6 | AO74: =(AO73/AO67)*100 -> 5.26256 | AP74: =(AP73/AP67)*100 -> 0 | AQ74: =(AQ73/AQ67)*100 -> 0 | AR74: =(AR73/AR67)*100 -> 0 | AT74: =(AT73/AT67)*100 -> 5.26256 | AU74: =(AU73/AU67)*100 -> 0 | AV74: =(AV73/AV67)*100 -> 0 | AW74: =(AW73/AW67)*100 -> 0 | AY74: =(AY73/AY67)*100 -> 5.26256 | AZ74: =(AZ73/AZ67)*100 -> 0 | BA74: =(BA73/BA67)*100 -> 0 | BB74: =(BB73/BB67)*100 -> 0 | BD74: =(BD73/BD67)*100 -> 3.2286568 | BE74: =(BE73/BE67)*100 -> -6 | BF74: =(BF73/BF67)*100 -> -6 | BG74: =(BG73/BG67)*100 -> -6
C75: Pagamento de 40% antecipado, 60% em 30/60/90 dias com cheque. | L75: =V24 -> -2.5 | M75: % | AO75: =AO68-AO74 -> 0 | AP75: =AP68-AP74 -> 0 | AQ75: =AQ68-AQ74 -> 0 | AR75: =AR68-AR74 -> 0 | AT75: =AT68-AT74 -> 0 | AU75: =AU68-AU74 -> 0 | AV75: =AV68-AV74 -> 0 | AW75: =AW68-AW74 -> 0 | AY75: =AY68-AY74+AT75 -> 0 | AZ75: =AZ68-AZ74+AU75 -> 0 | BA75: =BA68-BA74+AV75 -> 0 | BB75: =BB68-BB74+AW75 -> 0 | BD75: =BD68-BD74 -> 0 | BE75: =BE68-BE74 -> 0 | BF75: =BF68-BF74 -> 0 | BG75: =BG68-BG74 -> 0
C76: Pagamento de 50% antecipado, 50% em 30/60 dias com cheque. | L76: =U24 -> -4 | M76: % | S76: CÁLCULO PERCENTUAL FINAL SUBSTITUIÇÃO TRIBUTÁRIA
C77: Pagamento de 50% antecipado, 50% na entrega. | L77: =T24 -> -5 | M77: % | S77: BASE ICMS | T77: % ICMS | U77: VALOR ICMS | V77: MVA | W77: BASE ICMS ST | X77: VALOR ICMS ST | Y77: PERCENTUAL FINAL | AJ77: CONSUMIDOR FINAL | AO77: CF DESCONTOS / PERCENTUAL COMISSÃO | AT77: PERCENTUAL DE COMISSÃO / DESCONTO OU ACRÉSCIMO
C78: Pagamento total antecipado, à vista no pedido. (Deposito em conta) | L78: =S24 -> -7 | M78: % | S78: 10000 | T78: =AF22 -> 0 | U78: =S78*T78% -> 0 | V78: 38 | W78: =S78+((S78/100)*V78) -> 13800 | X78: =(W78-S78)*T78% -> 0 | Y78: =(X78/S78)*100 -> 0 | AJ78: =IF('Atualização Geral'!$D$7="","28DD",'Atualização Geral'!$D$7) -> 28DD | AK78: =IF('Atualização Geral'!$D$7="","28DD",'Atualização Geral'!$D$7) -> 28DD | AL78: =IF('Atualização Geral'!$D$7="","28DD",'Atualização Geral'!$D$7) -> 28DD | AM78: =IF('Atualização Geral'!$D$7="","28DD",'Atualização Geral'!$D$7) -> 28DD | AT78: COMISSÃO SELECIONADA | AV78: COMISSÃO | AW78: DESC / ACRESC | AY78: LIBERADO
AJ79: 500 | AK79: 500 | AL79: 500 | AM79: 500 | AO79: 500 | AT79: =IF(Orçamento!AT9="ND",0,IF(Orçamento!AV15="CF",Orçamento!AT9,0)) -> 0 | AV79: 0 | AW79: -5 | AY79: ='Atualização Geral'!BI2 -> LIBERADA
C80: TABELA DE VALORES Nº | H80: =I51 -> 119 | I80: =M51 -> 2024-06-24 | S80: BASE C/IPI | T80: % IPI | U80: VALOR IPI | V80: MVA | W80: BASE ICMS ST C/IPI NA BASE | X80: VALOR ICMS ST C/IPI NA BASE | Y80: PERCENTUAL FINAL C/IPI NA BASE | AJ80: =IF(AJ78="00DD",$H$54,IF(AJ78="28DD",$H$55,IF(AJ78="35DD",$H$56,IF(AJ78="42DD",$H$57,IF(AJ78="49DD",$H$58,IF(AJ78="56DD",$H$59,"28DD")))))) -> 8.70628 | AK80: =IF(AK78="00DD",$I$54,IF(AK78="28DD",$I$55,IF(AK78="35DD",$I$56,IF(AK78="42DD",$I$57,IF(AK78="49DD",$I$58,IF(AK78="56DD",$I$59,"28DD")))))) -> 0 | AL80: =IF(AL78="00DD",$J$54,IF(AL78="28DD",$J$55,IF(AL78="35DD",$J$56,IF(AL78="42DD",$J$57,IF(AL78="49DD",$J$58,IF(AL78="56DD",$J$59,"28DD")))))) -> 0 | AM80: =IF(AM78="00DD",$M$54,IF(AM78="28DD",$M$55,IF(AM78="35DD",$M$56,IF(AM78="42DD",$M$57,IF(AM78="49DD",$M$58,IF(AM78="56DD",$M$59,"28DD")))))) -> 0 | AO80: =-(IF(S25=TRUE,S24,0)+IF(T25=TRUE,T24,0)+IF(U25=TRUE,U24,0)+IF(V25=TRUE,V24,0)+IF(W25=TRUE,W24,0)+IF(X25=TRUE,X24,0)) -> 0 | AT80: DESC / ACRÉSC SELECIONADO | AV80: 1 | AW80: -4 | AY80: ='Atualização Geral'!BI3 -> LIBERADA
S81: =S78+U81 -> 10000 | T81: =AF21 -> 0 | U81: =S78*T81% -> 0 | V81: =V78 -> 38 | W81: =((S78+U81)/100)*(100+V81) -> 13800 | X81: =(W81-S78)*T78% -> 0 | Y81: =(X81/S81)*100 -> 0 | AJ81: =$AF$18 -> 6 | AK81: =$AF$18 -> 6 | AL81: =$AF$18 -> 6 | AM81: =$AF$18 -> 6 | AO81: =$AG$18+$AT$81 -> 6 | AT81: 0,0 | AV81: 2 | AW81: -3 | AY81: ='Atualização Geral'!BI4 -> LIBERADA
C82: CONSUMIDOR FINAL (CF) | AJ82: =AJ79-((AJ79/100)*AJ80) -> 456.4686 | AK82: =AK79-((AK79/100)*AK80) -> 500 | AL82: =AL79-((AL79/100)*AL80) -> 500 | AM82: =AM79-((AM79/100)*AM80) -> 500 | AO82: =AO79-((AO79/100)*AO80) -> 500 | AV82: 3 | AW82: -2 | AY82: ='Atualização Geral'!BI5 -> LIBERADA
AJ83: =((AJ82/100)*AJ81) -> 27.388116 | AK83: =((AK82/100)*AK81) -> 30 | AL83: =((AL82/100)*AL81) -> 30 | AM83: =((AM82/100)*AM81) -> 30 | AO83: =((AO82/100)*AO81) -> 30 | AT83: COMISSÃO PADRÃO | AV83: 4 | AW83: -1 | AY83: ='Atualização Geral'!BI6 -> LIBERADA
H84: =Definições!$AC$144 -> Eucalipto | I84: =Definições!$AC$145 -> 0 | J84: =Definições!$AC$146 -> 0 | M84: =Definições!$AC$147 -> 0 | S84: ALTERAR PM BOTÃO | AJ84: =AJ82+AJ83 -> 483.856716 | AK84: =AK82+AK83 -> 530 | AL84: =AL82+AL83 -> 530 | AM84: =AM82+AM83 -> 530 | AO84: =AO82+AO83 -> 530 | AT84: 5,0 | AV84: 5 | AW84: 0 | AY84: ='Atualização Geral'!BI7 -> LIBERADA
T85: 28 | U85: 35 | V85: 42 | W85: 49 | X85: 56 | AJ85: =AJ79-AJ84 -> 16.143284 | AK85: =AK79-AK84 -> -30 | AL85: =AL79-AL84 -> -30 | AM85: =AM79-AM84 -> -30 | AO85: =AO79-AO84 -> -30 | AV85: 6 | AW85: 1.5 | AY85: ='Atualização Geral'!BI8 -> LIBERADA
C86: Desconto da tabela para o preço padrão: | H86: =AD60 -> 3.2286568 | I86: =AE60 -> -6 | J86: =AF60 -> -6 | M86: =AG60 -> -6 | S86: PM00 >>> | T86: 500 | U86: 500 | V86: 500 | W86: 500 | X86: 500 | AJ86: =(AJ85/AJ79)*100 -> 3.2286568 | AK86: =(AK85/AK79)*100 -> -6 | AL86: =(AL85/AL79)*100 -> -6 | AM86: =(AM85/AM79)*100 -> -6 | AO86: =(AO85/AO79)*100 -> -6 | AV86: 7 | AW86: 3 | AY86: ='Atualização Geral'!BI9 -> LIBERADA
T87: =$L$11 -> 3.92 | U87: =$L$12 -> 4.9 | V87: =$L$13 -> 5.88 | W87: =$L$14 -> 6.86 | X87: =$L$15 -> 7.84 | AV87: 8 | AW87: 4.5 | AY87: ='Atualização Geral'!BI10 -> LIBERADA
S88: 3.77213241 | T88: =(T86/100)*(100+T87) -> 519.6 | U88: =(U86/100)*(100+U87) -> 524.5 | V88: =(V86/100)*(100+V87) -> 529.4 | W88: =(W86/100)*(100+W87) -> 534.3 | X88: =(X86/100)*(100+X87) -> 539.2 | AJ88: CF DESCONTOS CÁCULOS FIXOS PARA DEFINIÇÕES | AV88: 9 | AW88: 6 | AY88: ='Atualização Geral'!BI11 -> LIBERADA
D89: REPRESENTANTE | L89: =IF(Definições!$X$188="ATIVA",U144,"") ->  | S89: 4.9 | T89: =-(((T86/T88)*100)-100) -> 3.77213241 | U89: =-(((U86/U88)*100)-100) -> 4.671115348 | V89: =-(((V86/V88)*100)-100) -> 5.553456743 | W89: =-(((W86/W88)*100)-100) -> 6.419614449 | X89: =-(((X86/X88)*100)-100) -> 7.270029674 | AV89: 10 | AW89: 7.5 | AY89: ='Atualização Geral'!BI12 -> LIBERADA
AJ90: 500 | AK90: 500 | AL90: 500 | AM90: 500 | AO90: 500 | AP90: 500 | AV90: 11 | AW90: 9 | AY90: ='Atualização Geral'!BI13 -> BLOQUEADA
AJ91: =-(S24) -> 7 | AK91: =-(T24) -> 5 | AL91: =-(U24) -> 4 | AM91: =-(V24) -> 2.5 | AO91: =-(W24) -> 1 | AP91: =-(X24) -> 0 | AV91: 12 | AW91: 10.5 | AY91: ='Atualização Geral'!BI14 -> BLOQUEADA
AJ92: =$AG$18 -> 6 | AK92: =$AG$18 -> 6 | AL92: =$AG$18 -> 6 | AM92: =$AG$18 -> 6 | AO92: =$AG$18 -> 6 | AP92: =$AG$18 -> 6 | AV92: 13 | AW92: 12 | AY92: ='Atualização Geral'!BI15 -> BLOQUEADA
C93: DADOS DO REPRESENTANTE DA DK ESQUADRIAS | S93: ALTERAR COMISSÃO CF BOTÃO | AJ93: =AJ90-((AJ90/100)*AJ91) -> 465 | AK93: =AK90-((AK90/100)*AK91) -> 475 | AL93: =AL90-((AL90/100)*AL91) -> 480 | AM93: =AM90-((AM90/100)*AM91) -> 487.5 | AO93: =AO90-((AO90/100)*AO91) -> 495 | AP93: =AP90-((AP90/100)*AP91) -> 500 | AV93: 14 | AW93: 13.5 | AY93: ='Atualização Geral'!BI16 -> BLOQUEADA
C94: Nome: | D94: =$S$9 -> DK ESQUADRIAS IND E COM LTDA | T94: =$AV$79 -> 0 | U94: =$AV$80 -> 1 | V94: =$AV$81 -> 2 | W94: =$AV$82 -> 3 | X94: =$AV$83 -> 4 | Y94: =$AV$84 -> 5 | Z94: =$AV$85 -> 6 | AA94: =$AV$86 -> 7 | AB94: =$AV$87 -> 8 | AC94: =$AV$88 -> 9 | AD94: =$AV$89 -> 10 | AJ94: =((AJ93/100)*AJ92) -> 27.9 | AK94: =((AK93/100)*AK92) -> 28.5 | AL94: =((AL93/100)*AL92) -> 28.8 | AM94: =((AM93/100)*AM92) -> 29.25 | AO94: =((AO93/100)*AO92) -> 29.7 | AP94: =((AP93/100)*AP92) -> 30 | AV94: 15 | AW94: 15 | AY94: ='Atualização Geral'!BI17 -> BLOQUEADA | BA94: =$AV$90 -> 11 | BB94: =$AV$91 -> 12 | BC94: =$AV$92 -> 13 | BD94: =$AV$93 -> 14 | BE94: =$AV$94 -> 15 | BF94: =$AV$95 -> 16 | BG94: =$AV$96 -> 17 | BH94: =$AV$97 -> 18 | BI94: =$AV$98 -> 19 | BJ94: =$AV$99 -> 20
C95: Fone: | D95: =$S$10 -> (51) 3547-5002 | S95: CM5 >>> | T95: 500 | U95: 500 | V95: 500 | W95: 500 | X95: 500 | Y95: 500 | Z95: 500 | AA95: 500 | AB95: 500 | AC95: 500 | AD95: 500 | AJ95: =AJ93+AJ94 -> 492.9 | AK95: =AK93+AK94 -> 503.5 | AL95: =AL93+AL94 -> 508.8 | AM95: =AM93+AM94 -> 516.75 | AO95: =AO93+AO94 -> 524.7 | AP95: =AP93+AP94 -> 530 | AV95: 16 | AW95: 16.5 | AY95: ='Atualização Geral'!BI18 -> BLOQUEADA | BA95: 500 | BB95: 500 | BC95: 500 | BD95: 500 | BE95: 500 | BF95: 500 | BG95: 500 | BH95: 500 | BI95: 500 | BJ95: 500
C96: E-mail: | D96: =$S$11 -> vendas@dkesquadrias.net.br | S96: DA e CF >>> | T96: =$AW$79+$AG$18 -> 1 | U96: =$AW$80+$AG$18 -> 2 | V96: =$AW$81+$AG$18 -> 3 | W96: =$AW$82+$AG$18 -> 4 | X96: =$AW$83+$AG$18 -> 5 | Y96: =$AW$84+$AG$18 -> 6 | Z96: =$AW$85+$AG$18 -> 7.5 | AA96: =$AW$86+$AG$18 -> 9 | AB96: =$AW$87+$AG$18 -> 10.5 | AC96: =$AW$88+$AG$18 -> 12 | AD96: =$AW$89+$AG$18 -> 13.5 | AJ96: =AJ90-AJ95 -> 7.1 | AK96: =AK90-AK95 -> -3.5 | AL96: =AL90-AL95 -> -8.8 | AM96: =AM90-AM95 -> -16.75 | AO96: =AO90-AO95 -> -24.7 | AP96: =AP90-AP95 -> -30 | AV96: 17 | AW96: 18 | AY96: ='Atualização Geral'!BI19 -> BLOQUEADA | BA96: =$AW$90+$AG$18 -> 15 | BB96: =$AW$91+$AG$18 -> 16.5 | BC96: =$AW$92+$AG$18 -> 18 | BD96: =$AW$93+$AG$18 -> 19.5 | BE96: =$AW$94+$AG$18 -> 21 | BF96: =$AW$95+$AG$18 -> 22.5 | BG96: =$AW$96+$AG$18 -> 24 | BH96: =$AW$97+$AG$18 -> 25.5 | BI96: =$AW$98+$AG$18 -> 27 | BJ96: =$AW$99+$AG$18 -> 28.5
C97: Skype: | D97: =$U$12 -> vendasdkesquadrias | S97: 8.256880734 | T97: =(T95/100)*(100+T96) -> 505 | U97: =(U95/100)*(100+U96) -> 510 | V97: =(V95/100)*(100+V96) -> 515 | W97: =(W95/100)*(100+W96) -> 520 | X97: =(X95/100)*(100+X96) -> 525 | Y97: =(Y95/100)*(100+Y96) -> 530 | Z97: 537.5 | AA97: 545 | AB97: 552.5 | AC97: 560 | AD97: 567.5 | AJ97: =(AJ96/AJ90)*100 -> 1.42 | AK97: =(AK96/AK90)*100 -> -0.7 | AL97: =(AL96/AL90)*100 -> -1.76 | AM97: =(AM96/AM90)*100 -> -3.35 | AO97: =(AO96/AO90)*100 -> -4.94 | AP97: =(AP96/AP90)*100 -> -6 | AV97: 18 | AW97: 19.5 | AY97: ='Atualização Geral'!BI20 -> BLOQUEADA | BA97: =(BA95/100)*(100+BA96) -> 575 | BB97: 582.5 | BC97: 590 | BD97: 597.5 | BE97: 605 | BF97: 612.5 | BG97: 620 | BH97: 627.5 | BI97: 635 | BJ97: 642.5
C98: Vendedor: | D98: =$Y$9 -> JAQUES | S98: 10.5 | T98: =-(((T95/T97)*100)-100) -> 0.9900990099 | U98: =-(((U95/U97)*100)-100) -> 1.960784314 | V98: 2.912621359 | W98: 3.846153846 | X98: 4.761904762 | Y98: 5.660377358 | Z98: 6.976744186 | AA98: 8.256880734 | AB98: 9.502262443 | AC98: 10.71428571 | AD98: 11.89427313 | AV98: 19 | AW98: 21 | AY98: ='Atualização Geral'!BI21 -> BLOQUEADA | BA98: =-(((BA95/BA97)*100)-100) -> 13.04347826 | BB98: 14.16309013 | BC98: 15.25423729 | BD98: 16.31799163 | BE98: 17.3553719 | BF98: 18.36734694 | BG98: 19.35483871 | BH98: 20.3187251 | BI98: 21.25984252 | BJ98: 22.17898833
L99: =IF(T6=TRUE,"ATIVADO","DESATIVADO") -> DESATIVADO | AJ99: CONSUMIDOR FINAL DESCONTOS FIXOS | AV99: 20 | AW99: 22.5 | AY99: ='Atualização Geral'!BI22 -> BLOQUEADA
S100: MADEIRAS | T100: MADEIRA 1 | U100: MADEIRA 2 | V100: MADEIRA 3 | W100: MADEIRA 4 | X100: MADEIRA 5 | Y100: MADEIRA 6 | Z100: MADEIRA 7 | AA100: MADEIRA 8 | AJ100: 28/MAD1 | AK100: 28/MAD1 | AL100: 28/MAD1 | AM100: 28/MAD1 | AO100: 28/MAD1 | AP100: 28/MAD1
C101: BLOQUEIOS / LIMITES / PERMISSÕES | S101: RECALCULO > | T101: =IF('Atualização Geral'!D17="NÃO","NAORECALCULA",'Atualização Geral'!D17) -> EUCALIPTO | U101: =IF('Atualização Geral'!D18="NÃO","NAORECALCULA",'Atualização Geral'!D18) -> 0 | V101: =IF('Atualização Geral'!D19="NÃO","NAORECALCULA",'Atualização Geral'!D19) -> 0 | W101: =IF('Atualização Geral'!D20="NÃO","NAORECALCULA",'Atualização Geral'!D20) -> 0 | X101: =IF('Atualização Geral'!J17="NÃO","NAORECALCULA",'Atualização Geral'!J17) -> 0 | Y101: =IF('Atualização Geral'!J18="NÃO","NAORECALCULA",'Atualização Geral'!J18) -> 0 | Z101: =IF('Atualização Geral'!J19="NÃO","NAORECALCULA",'Atualização Geral'!J19) -> 0 | AA101: =IF('Atualização Geral'!J20="NÃO","NAORECALCULA",'Atualização Geral'!J20) -> 0 | AJ101: 500 | AK101: 500 | AL101: 500 | AM101: 500 | AO101: 500 | AP101: 500
C102: Bloquear alteração do prazo médio de pagamento fora das definições. | S102: % RECALCULO > | T102: 4.9 | U102: 4.9 | V102: 4.9 | W102: 4.9 | X102: 4.9 | Y102: 4.9 | Z102: 4.9 | AA102: 4.9 | AJ102: =$H$55 -> 8.70628 | AK102: =$H$55 -> 8.70628 | AL102: =$H$55 -> 8.70628 | AM102: =$H$55 -> 8.70628 | AO102: =$H$55 -> 8.70628 | AP102: =$H$55 -> 8.70628
C103: Bloquear envio de e-mail para cliente final. | AJ103: =-($AJ$97) -> -1.42 | AK103: =-($AK$97) -> 0.7 | AL103: =-($AL$97) -> 1.76 | AM103: =-($AM$97) -> 3.35 | AO103: =-($AO$97) -> 4.94 | AP103: =-($AP$97) -> 6
C104: Bloquear envio de e-mail para responsável pelas compras. | S104: DADOS DO ORÇAMENTO | AJ104: =AJ101-((AJ101/100)*AJ102) -> 456.4686 | AK104: =AK101-((AK101/100)*AK102) -> 456.4686 | AL104: =AL101-((AL101/100)*AL102) -> 456.4686 | AM104: =AM101-((AM101/100)*AM102) -> 456.4686 | AO104: =AO101-((AO101/100)*AO102) -> 456.4686 | AP104: =AP101-((AP101/100)*AP102) -> 456.4686
C105: Bloquear envio de e-mail para representante da DK Esquadrias. | S105: Nome: | T105: =IF(D26="",DK!$O$11,D26) -> DK ESQUADRIAS INDÚSTRIA E COMÉRCIO LTDA | AJ105: =((AJ104/100)*AJ103) -> -6.48185412 | AK105: =((AK104/100)*AK103) -> 3.1952802 | AL105: =((AL104/100)*AL103) -> 8.03384736 | AM105: =((AM104/100)*AM103) -> 15.2916981 | AO105: =((AO104/100)*AO103) -> 22.54954884 | AP105: =((AP104/100)*AP103) -> 27.388116
C106: Defina o percentual máximo de desconto permitido no pedido/orçamento. | K106: >>>>>>> | M106: 25 | O106: % | S106: Fone/Email/Dados | T106: =IF(D28="",DK!$O$13,D28) -> FONE: (51) 3547-5002 E-MAIL: vendas@dkesquadrias.net.br | AJ106: =AJ104+AJ105 -> 449.9867459 | AK106: =AK104+AK105 -> 459.6638802 | AL106: =AL104+AL105 -> 464.5024474 | AM106: =AM104+AM105 -> 471.7602981 | AO106: =AO104+AO105 -> 479.0181488 | AP106: =AP104+AP105 -> 483.856716
C107: Permitir visualização do preço de custo sem a senha das definições através do botão espiar. | AJ107: =AJ101-AJ106 -> 50.01325412 | AK107: =AK101-AK106 -> 40.3361198 | AL107: =AL101-AL106 -> 35.49755264 | AM107: =AM101-AM106 -> 28.2397019 | AO107: =AO101-AO106 -> 20.98185116 | AP107: =AP101-AP106 -> 16.143284
C108: Permitir enviar pedido/orçamento para o representante no pedido/orçamento com margem de lucro | AJ108: =(AJ107/AJ101)*100 -> 10.00265082 | AK108: =(AK107/AK101)*100 -> 8.06722396 | AL108: =(AL107/AL101)*100 -> 7.099510528 | AM108: =(AM107/AM101)*100 -> 5.64794038 | AO108: =(AO107/AO101)*100 -> 4.196370232 | AP108: =(AP107/AP101)*100 -> 3.2286568
S109: VIZUALIZAÇÃO DAS MADEIRAS | X109: MADEIRA DAS FOLHAS SEMIOCAS
S110: LUGAR | T110: MADEIRA 1 | U110: MADEIRA 2 | V110: MADEIRA 3 | W110: MADEIRA 4 | X110: MADEIRA 1 | Y110: MADEIRA 2 | Z110: MADEIRA 3 | AA110: MADEIRA 4 | AJ110: CF DESCONTOS FIXOS
S111: PRINCIPAIS | T111: =IF('Atualização Geral'!C17="NÃO","",'Atualização Geral'!C17) -> Eucalipto | U111: =IF('Atualização Geral'!C18="NÃO","",'Atualização Geral'!C18) -> 0 | V111: =IF('Atualização Geral'!C19="NÃO","",'Atualização Geral'!C19) -> 0 | W111: =IF('Atualização Geral'!C20="NÃO","",'Atualização Geral'!C20) -> 0 | X111: =IF('Atualização Geral'!C25="NÃO","",'Atualização Geral'!C25) -> CURUPIXA | Y111: =IF('Atualização Geral'!C26="NÃO","",'Atualização Geral'!C26) -> 0 | Z111: =IF('Atualização Geral'!C27="NÃO","",'Atualização Geral'!C27) -> 0 | AA111: =IF('Atualização Geral'!C28="NÃO","",'Atualização Geral'!C28) -> 0 | AJ111: 28/MAD2 | AK111: 28/MAD2 | AL111: 28/MAD2 | AM111: 28/MAD2 | AO111: 28/MAD2 | AP111: 28/MAD2
S112: SECUNDÁRIAS | T112: =IF('Atualização Geral'!I17="NÃO","",'Atualização Geral'!I17) -> 0 | U112: =IF('Atualização Geral'!I18="NÃO","",'Atualização Geral'!I18) -> 0 | V112: =IF('Atualização Geral'!I19="NÃO","",'Atualização Geral'!I19) -> 0 | W112: =IF('Atualização Geral'!I20="NÃO","",'Atualização Geral'!I20) -> 0 | X112: =IF('Atualização Geral'!J25="NÃO","",'Atualização Geral'!J25) -> 0 | Y112: =IF('Atualização Geral'!J26="NÃO","",'Atualização Geral'!J26) -> 0 | Z112: =IF('Atualização Geral'!J27="NÃO","",'Atualização Geral'!J27) -> 0 | AA112: =IF('Atualização Geral'!J28="NÃO","",'Atualização Geral'!J28) -> 0 | AJ112: 500 | AK112: 500 | AL112: 500 | AM112: 500 | AO112: 500 | AP112: 500
C113: DEFINA UMA SENHA PARA RESTRINGIR O ACESSO AS DEFINIÇÕES GERAIS | I113: SENHA: | S113: VIZUALIZANDO | T113: =IF(T114=TRUE,T111,T112) -> Eucalipto | U113: =IF(U114=TRUE,U111,U112) -> 0 | V113: =IF(V114=TRUE,V111,V112) -> 0 | W113: =IF(W114=TRUE,W111,W112) -> 0 | X113: =IF(T114=TRUE,X111,X112) -> CURUPIXA | Y113: =IF(U114=TRUE,Y111,Y112) -> 0 | Z113: =IF(V114=TRUE,Z111,Z112) -> 0 | AA113: =IF(W114=TRUE,AA111,AA112) -> 0 | AJ113: =$I$55 -> 0 | AK113: =$I$55 -> 0 | AL113: =$I$55 -> 0 | AM113: =$I$55 -> 0 | AO113: =$I$55 -> 0 | AP113: =$I$55 -> 0
S114: SELECIONADAS | T114: TRUE | U114: TRUE | V114: TRUE | W114: TRUE | AJ114: =-($AJ$97) -> -1.42 | AK114: =-($AK$97) -> 0.7 | AL114: =-($AL$97) -> 1.76 | AM114: =-($AM$97) -> 3.35 | AO114: =-($AO$97) -> 4.94 | AP114: =-($AP$97) -> 6
C115: SISTEMA | S115: PRINCIPAIS | T115: =IF('Atualização Geral'!D17="NÃO","",'Atualização Geral'!D17) -> EUCALIPTO | U115: =IF('Atualização Geral'!D18="NÃO","",'Atualização Geral'!D18) -> 0 | V115: =IF('Atualização Geral'!D19="NÃO","",'Atualização Geral'!D19) -> 0 | W115: =IF('Atualização Geral'!D20="NÃO","",'Atualização Geral'!D20) -> 0 | AJ115: =AJ112-((AJ112/100)*AJ113) -> 500 | AK115: =AK112-((AK112/100)*AK113) -> 500 | AL115: =AL112-((AL112/100)*AL113) -> 500 | AM115: =AM112-((AM112/100)*AM113) -> 500 | AO115: =AO112-((AO112/100)*AO113) -> 500 | AP115: =AP112-((AP112/100)*AP113) -> 500
S116: SECUNDÁRIAS | T116: =IF('Atualização Geral'!J17="NÃO","",'Atualização Geral'!J17) -> 0 | U116: =IF('Atualização Geral'!J18="NÃO","",'Atualização Geral'!J18) -> 0 | V116: =IF('Atualização Geral'!J19="NÃO","",'Atualização Geral'!J19) -> 0 | W116: =IF('Atualização Geral'!J20="NÃO","",'Atualização Geral'!J20) -> 0 | AJ116: =((AJ115/100)*AJ114) -> -7.1 | AK116: =((AK115/100)*AK114) -> 3.5 | AL116: =((AL115/100)*AL114) -> 8.8 | AM116: =((AM115/100)*AM114) -> 16.75 | AO116: =((AO115/100)*AO114) -> 24.7 | AP116: =((AP115/100)*AP114) -> 30
C117: ALTERAR A COR DO ÍCONE DO ATALHO DO SISTEMA, CLIQUE NA COR DESEJADA: | S117: VIZUALIZANDO | T117: =IF(T114=TRUE,T115,T116) -> EUCALIPTO | U117: =IF(U114=TRUE,U115,U116) -> 0 | V117: =IF(V114=TRUE,V115,V116) -> 0 | W117: =IF(W114=TRUE,W115,W116) -> 0 | AJ117: =AJ115+AJ116 -> 492.9 | AK117: =AK115+AK116 -> 503.5 | AL117: =AL115+AL116 -> 508.8 | AM117: =AM115+AM116 -> 516.75 | AO117: =AO115+AO116 -> 524.7 | AP117: =AP115+AP116 -> 530
AJ118: =AJ112-AJ117 -> 7.1 | AK118: =AK112-AK117 -> -3.5 | AL118: =AL112-AL117 -> -8.8 | AM118: =AM112-AM117 -> -16.75 | AO118: =AO112-AO117 -> -24.7 | AP118: =AP112-AP117 -> -30
AJ119: =(AJ118/AJ112)*100 -> 1.42 | AK119: =(AK118/AK112)*100 -> -0.7 | AL119: =(AL118/AL112)*100 -> -1.76 | AM119: =(AM118/AM112)*100 -> -3.35 | AO119: =(AO118/AO112)*100 -> -4.94 | AP119: =(AP118/AP112)*100 -> -6
Y120: CARTÕES | AA120: MENU METRO (FÁCIL) | AB120: LER PERGUNTAS
Y121: 1 | Z121: =IF('Atualização Geral'!R2="NÃO","",'Atualização Geral'!R2) -> CARTÕES BNDES | AA121: FALSE | AB121: FERNANDO, qual esquadria você está procurando? | AJ121: CF DESCONTOS FIXOS
Y122: 2 | Z122: =IF('Atualização Geral'!R3="NÃO","",'Atualização Geral'!R3) -> CARTÕES VISA | AA122: 101 | AB122: FALSE | AJ122: 28/MAD3 | AK122: 28/MAD3 | AL122: 28/MAD3 | AM122: 28/MAD3 | AO122: 28/MAD3 | AP122: 28/MAD3
C123: CONFIGURAÇÃO DE REDE | Y123: 3 | Z123: =IF('Atualização Geral'!R4="NÃO","",'Atualização Geral'!R4) -> CARTÕES MASTERCARD | AA123: Metro Fácil JP | AJ123: 500 | AK123: 500 | AL123: 500 | AM123: 500 | AO123: 500 | AP123: 500
C124: CLIQUE PARA ALTERAR A CONFIGURAÇÃO DE REDE | Y124: 4 | Z124: =IF('Atualização Geral'!R5="NÃO","",'Atualização Geral'!R5) -> CARTÕES ELO | AA124: TRUE | AJ124: =$J$55 -> 0 | AK124: =$J$55 -> 0 | AL124: =$J$55 -> 0 | AM124: =$J$55 -> 0 | AO124: =$J$55 -> 0 | AP124: =$J$55 -> 0
C125: USO LOCAL | Y125: 5 | Z125: =IF('Atualização Geral'!R6="NÃO","",'Atualização Geral'!R6) -> CARTÕES VERDECARD | AA125: TRUE | AJ125: =-($AJ$97) -> -1.42 | AK125: =-($AK$97) -> 0.7 | AL125: =-($AL$97) -> 1.76 | AM125: =-($AM$97) -> 3.35 | AO125: =-($AO$97) -> 4.94 | AP125: =-($AP$97) -> 6
C126: USO EM REDE - ESTAÇÃO | Y126: 6 | Z126: =IF('Atualização Geral'!R7="NÃO","",'Atualização Geral'!R7) -> CARTÕES BANRICOMPRAS | AA126: FALSE | AJ126: =AJ123-((AJ123/100)*AJ124) -> 500 | AK126: =AK123-((AK123/100)*AK124) -> 500 | AL126: =AL123-((AL123/100)*AL124) -> 500 | AM126: =AM123-((AM123/100)*AM124) -> 500 | AO126: =AO123-((AO123/100)*AO124) -> 500 | AP126: =AP123-((AP123/100)*AP124) -> 500
C127: USO EM REDE - SERVIDOR | Y127: 7 | Z127: =IF('Atualização Geral'!R8="NÃO","",'Atualização Geral'!R8) ->  | AA127: FALSE | AJ127: =((AJ126/100)*AJ125) -> -7.1 | AK127: =((AK126/100)*AK125) -> 3.5 | AL127: =((AL126/100)*AL125) -> 8.8 | AM127: =((AM126/100)*AM125) -> 16.75 | AO127: =((AO126/100)*AO125) -> 24.7 | AP127: =((AP126/100)*AP125) -> 30
Y128: 8 | Z128: =IF('Atualização Geral'!R9="NÃO","",'Atualização Geral'!R9) ->  | AA128: 101 | AJ128: =AJ126+AJ127 -> 492.9 | AK128: =AK126+AK127 -> 503.5 | AL128: =AL126+AL127 -> 508.8 | AM128: =AM126+AM127 -> 516.75 | AO128: =AO126+AO127 -> 524.7 | AP128: =AP126+AP127 -> 530
C129: LOCAL DO SISTEMA NA REDE: | E129: =IF(AG182="","",AG182) -> DEFINA O LOCAL CLICANDO AQUI | Y129: 9 | Z129: =IF('Atualização Geral'!R10="NÃO","",'Atualização Geral'!R10) ->  | AJ129: =AJ123-AJ128 -> 7.1 | AK129: =AK123-AK128 -> -3.5 | AL129: =AL123-AL128 -> -8.8 | AM129: =AM123-AM128 -> -16.75 | AO129: =AO123-AO128 -> -24.7 | AP129: =AP123-AP128 -> -30
Y130: 10 | Z130: =IF('Atualização Geral'!R11="NÃO","",'Atualização Geral'!R11) ->  | AJ130: =(AJ129/AJ123)*100 -> 1.42 | AK130: =(AK129/AK123)*100 -> -0.7 | AL130: =(AL129/AL123)*100 -> -1.76 | AM130: =(AM129/AM123)*100 -> -3.35 | AO130: =(AO129/AO123)*100 -> -4.94 | AP130: =(AP129/AP123)*100 -> -6
AJ132: CF DESCONTOS FIXOS
AJ133: 28/MAD4 | AK133: 28/MAD4 | AL133: 28/MAD4 | AM133: 28/MAD4 | AO133: 28/MAD4 | AP133: 28/MAD4
AJ134: 500 | AK134: 500 | AL134: 500 | AM134: 500 | AO134: 500 | AP134: 500
S135: BLOQUEIOS | U135: ÚLTIMO ESTADO SUBST TRIB RV X CF | X135: LARGURA ORÇAMENTO E DK | Y135: 9 | Z135: ZOOM ORÇAMENTO E DK | AA135: 100 | AB135: FORMAS | AE135: MSGBOX ALERTA MENSAGENS | AH135: SELEÇÃO PREÇO | AJ135: =$M$55 -> 0 | AK135: =$M$55 -> 0 | AL135: =$M$55 -> 0 | AM135: =$M$55 -> 0 | AO135: =$M$55 -> 0 | AP135: =$M$55 -> 0
S136: CLIENTES | T136: FALSE | U136: FALSE | X136: LARGURA DEFINIÇÕES | Y136: 9 | Z136: ZOOM DEFINIÇÕES | AA136: 100 | AB136: TRABALHADOR | AD136: =IF(Definições!AP6="REPRESENTANTE",'Atualização Mural'!B42,'Atualização Mural'!B18) -> NÃO | AE136: MENSAGEM | AF136: PESQUISA DE CLIENTES | AG136: Efetue o cadastro do revendedor. Ou busque do cadastro. | AH136: TRUE | AJ136: =-($AJ$97) -> -1.42 | AK136: =-($AK$97) -> 0.7 | AL136: =-($AL$97) -> 1.76 | AM136: =-($AM$97) -> 3.35 | AO136: =-($AO$97) -> 4.94 | AP136: =-($AP$97) -> 6
S137: COMPRAS | T137: FALSE | X137: LARGURA DIVERSAS | Y137: 9 | Z137: ZOOM DIVERSAS | AA137: 100 | AE137: WORKBOOKDK | AH137: AVISOS ATUALIZAÇÃO | AJ137: =AJ134-((AJ134/100)*AJ135) -> 500 | AK137: =AK134-((AK134/100)*AK135) -> 500 | AL137: =AL134-((AL134/100)*AL135) -> 500 | AM137: =AM134-((AM134/100)*AM135) -> 500 | AO137: =AO134-((AO134/100)*AO135) -> 500 | AP137: =AP134-((AP134/100)*AP135) -> 500
S138: REPRESENTANTE | T138: FALSE | X138: LARGURA ARMÁRIO | Y138: 9 | Z138: ZOOM ARMÁRIO | AA138: 100 | AB138: PREÇOS IMBATÍVEIS | AE138: NOME/CAMINHO | AF138: DK_Ponto_de_Venda_1003.10_00311.xlsm | AG138: C:\Users\DK Esquadrias\Desktop\DK PDV\PDV 100308\REVISÃO 00113 | AH138: 15 | AJ138: =((AJ137/100)*AJ136) -> -7.1 | AK138: =((AK137/100)*AK136) -> 3.5 | AL138: =((AL137/100)*AL136) -> 8.8 | AM138: =((AM137/100)*AM136) -> 16.75 | AO138: =((AO137/100)*AO136) -> 24.7 | AP138: =((AP137/100)*AP136) -> 30
C139: CONFIGURAÇÃO DE IMPRESSÃO | S139: PM | T139: FALSE | X139: ALTURA METRO | Y139: 20 | Z139: ZOOM METRO | AA139: 100 | AE139: FORM CONFIRMAR | AH139: ; suzi@malessa.com.br; suzi@malessa.com.br; bellebonimateriais@hotmail.com; bellebonimateriais@hotmail.com; naopeguei@hotmail.com; naopeguei@hotmail.com; armetransportes@brturbo.com.br; armetransportes@brturbo.com.br; compras@zampeze.com.br; compras@zampeze.com.br; belarte1@terra.com.br; belarte1@terra.com.br; monteiroemartins@ibest.com.br; monteiroemartins@ibest.com.br; contato@lojascasadopiso.com.br; contato@lojascasadopiso.com.br | AJ139: =AJ137+AJ138 -> 492.9 | AK139: =AK137+AK138 -> 503.5 | AL139: =AL137+AL138 -> 508.8 | AM139: =AM137+AM138 -> 516.75 | AO139: =AO137+AO138 -> 524.7 | AP139: =AP137+AP138 -> 530
C140: CLIQUE PARA ALTERAR A IMPRESSORA PADRÃO DO SISTEMA PDV | S140: REFERÊNCIA ATUAL OPÇÕES | U140: GUIA ATUAL OPÇÕES | X140: LARGURA PREÇOS | Y140: 9 | Z140: ZOOM PREÇOS | AA140: 100 | AB140: TABELA DE VALORES USADA NO ORÇAMENTO | AH140: fernandoklein@hotmail.com | AJ140: =AJ134-AJ139 -> 7.1 | AK140: =AK134-AK139 -> -3.5 | AL140: =AL134-AL139 -> -8.8 | AM140: =AM134-AM139 -> -16.75 | AO140: =AO134-AO139 -> -24.7 | AP140: =AP134-AP139 -> -30
C141: IMPRESSORA PADRÃO É: | E141: =IF(AH178="","NÃO DEFINIDA",AH178) -> Microsoft Print to PDF em Ne01: | S141: ATUAL | T141: 480 | U141: ATUAL OPÇÕES | V141: Metro | X141: LARGURA PONTA DE ESTOQUE E SOLICITAÇÃO HISTÓRICO | Y141: 9 | Z141: ZOOM PONTA DE ESTOQUE E SOLICITAÇÃO HISTÓRICO | AA141: 100 | AE141: TRANSFERIR | AH141: 100 | AJ141: =(AJ140/AJ134)*100 -> 1.42 | AK141: =(AK140/AK134)*100 -> -0.7 | AL141: =(AL140/AL134)*100 -> -1.76 | AM141: =(AM140/AM134)*100 -> -3.35 | AO141: =(AO140/AO134)*100 -> -4.94 | AP141: =(AP140/AP134)*100 -> -6
U142: ATUAL GERAL | V142: Orçamento | X142: LARGURA MODO COMPACTO | Y142: 20 | Z142: ZOOM MODO COMPACTO | AA142: 100 | AE142: LINHA ATUAL ORÇAMENTO | AG142: 19 | AH142: ENVIA DIRETO
S143: MENSAGEM METRO NUVEM | U143: ST REPRESENTANTE | AB143: MADEIRAS | AE143: DESCR/OPCIONAIS | AF143: JANELA SUPREME PADRÃO | AH143: FALSE
S144: =IF(Definições!AP6="REPRESENTANTE", IF('Atualização Mural'!$B$43="NÃO","NÃO",'Atualização Mural'!$B$43),IF('Atualização Mural'!$B$19="NÃO","NÃO",'Atualização Mural'!$B$19)) -> NÃO | U144: ST | AB144: MAD1 | AC144: =T113 -> Eucalipto | AD144: =T117 -> EUCALIPTO | AE144: CANCELAR | AH144: FALSE
S145: MSG DIRETA CLIENTE | X145: QUANDO ATIVA/DESATIVA INTERFACE EXCEL | AB145: MAD2 | AC145: =U113 -> 0 | AD145: =U117 -> 0 | AE145: DADOS | AF145: LOGOUT | AG145: LOGIN | AH145: APAGA FOTOS LOGIN
S146: CLIENTE OU REVENDEDOR | U146: CONFIGURAÇÃO INICIAL | X146: LARGURA ORÇAMENTO E DK | Y146: 9 | Z146: ZOOM ORÇAMENTO E DK | AA146: 175 | AB146: MAD3 | AC146: =V113 -> 0 | AD146: =V117 -> 0 | AE146: DATA | AF146: 01/10/2024 | AH146: 7
S147: =IF(T6=TRUE,"CLIENTE CF:","CLIENTE RV:") -> CLIENTE RV: | X147: LARGURA DEFINIÇÕES | Y147: 35.25 | Z147: ZOOM DEFINIÇÕES | AA147: 162.5 | AB147: MAD4 | AC147: =W113 -> 0 | AD147: =W117 -> 0 | AE147: HORA | AF147: 13:02:07 | AH147: AVISO INSTALE
X148: LARGURA DIVERSAS | Y148: 29 | Z148: ZOOM DIVERSAS | AA148: 197.5 | AE148: VENDEDOR | AF148: VIN DIESEL | AH148: 7
C149: CONFIGURAÇÃO DE ENVIO DE E-MAIL - GERAL | S149: FEEDBACK ENVIADO | X149: LARGURA ARMÁRIO | Y149: 20.25 | Z149: ZOOM ARMÁRIO | AA149: 165 | AB149: E-MAIL LOG TXT | AE149: DIA / NÚMERO | AF149: 11 | AG149: 1 | AH149: AVISOS E-MAIL
U150: 0 | X150: ALTURA METRO | Y150: 40 | Z150: ZOOM METRO | AA150: 140 | AB150: LOG REPRESENTANTE | AD150: =IF('Atualização Geral'!C21="","",'Atualização Geral'!C21) -> logtxt@dkesquadrias.net.br | AE150: IMPORTAÇÃO | AH150: 2
H151: =AA165 -> SISTEMA | S151: PESQUISA | T151: 1 | U151: 0 | X151: LARGURA PREÇOS | Y151: 6.5 | Z151: ZOOM PREÇOS | AA151: 180 | AB151: LOG CLIENTE | AD151: =IF('Atualização Geral'!C22="","",'Atualização Geral'!C22) -> logtxt@dkesquadrias.net.br | AE151: CANCELAR | AH151: 1
S152: LINHA ATUAL ARMÁRIO | U152: ATIVAR SCROLL VERTICAL E HORIZONTAL | X152: LARGURA PONTA DE ESTOQUE E SOLICITAÇÃO HISTÓRICO | Y152: 32.75 | Z152: ZOOM PONTA DE ESTOQUE E SOLICITAÇÃO HISTÓRICO | AA152: 170 | AB152: TIMEVALUE | AE152: REVISÃO ANTIGA | AH152: 2
S153: ATUAL | T153: 11 | U153: FALSE | W153: =IF(U153=TRUE,"ATIVADO","DESATIVADO") -> DESATIVADO | X153: LARGURA MODO COMPACTO | Y153: 40 | Z153: ZOOM MODO COMPACTO | AA153: 140 | AD153: FALSE | AE153: TROCAR MADEIRA | AH153: 2
AB154: TIMEVALUE | AE154: PARA | AF154: COLUNA | AH154: 1
H155: =AD165 ->  | S155: INTERFACE EXCEL | U155: PRAZO MÉDIO | AB155: VALIDAR SENHA - DESATIVADO ESSA VALIDAÇÃO | AE155: ANGELIM | AF155: AW | AH155: 3
H156: 2 | S156: ATIVA | T156: FALSE | U156: =concatenaValues(Orçamento!I6:J6) -> PM00 | V156: =IF(Orçamento!J6=" ","CF",Orçamento!J6) -> 00 | AB156: =CELL("tipo",J113) -> l | AH156: 2
H157: 25 | AE157: BUSCAR REFERÊNCIA | AH157: 2
H158: 1 | S158: VALIDAR | T158: CADASTRO CLIENTE | U158: ORÇAMENTO | W158: =IF(AND(Orçamento!B2="CONSUMIDOR FINAL",LEN(Orçamento!Y13)=14),"",concatenaValues(W159:W162)) ->  | X158: DK | Z158: =concatenaValues(Z159:Z162) ->  | AB158: DESCRIÇÃO DOS ITENS NO PEDIDO/ORÇAMENTO | AE158: REFERENCIA A BUSCAR | AH158: Soft
H159: TRUE | S159: CPF | U159: =ISNUMBER(Orçamento!Y13) -> FALSE | AB159: TRUE | AH159: 2
S160: 98408690000 | T160: =IF(AND(LEN(S160)=11,SUM(IF(S160=REPT({"0";"1";"2";"3";"4";"5";"6";"7";"8";"9"},11),1,0))=0,SUM(IF(ISNUMBER(VALUE(MID(S160,{1;2;3;4;5;6;7;8;9;10;11},1))),0,1))=0),AND(IF(OR(11-(MOD(SUM(INT(MID(S160,{1;2;3;4;5;6;7;8;9},1))*({10;9;8;7;6;5;4;3;2})),11))=10,11-(MOD(SUM(INT(MID(S160,{1;2;3;4;5;6;7;8;9},1))*({10;9;8;7;6;5;4;3;2})),11))=11),0,11-(MOD(SUM(INT(MID(S160,{1;2;3;4;5;6;7;8;9},1))*({10;9;8;7;6;5;4;3;2})),11)))=INT(MID(S160,10,1)),IF(OR(11-(MOD(SUM(INT(MID(S160,{1;2;3;4;5;6;7;8;9;10},1))*({11;10;9;8;7;6;5;4;3;2})),11))=10,11-(MOD(SUM(INT(MID(S160,{1;2;3;4;5;6;7;8;9;10},1))*({11;10;9;8;7;6;5;4;3;2})),11))=11),0,11-(MOD(SUM(INT(MID(S160,{1;2;3;4;5;6;7;8;9;10},1))*({11;10;9;8;7;6;5;4;3;2})),11)))=INT(MID(S160,11,1))),FALSE) -> TRUE | U160: =IF(U159=FALSE,IF(LEN(ExtraiNumeros(Orçamento!Y13))=11,ExtraiNumeros(Orçamento!Y13),"ERRADO"),"ERRADO") -> ERRADO | V160: =IF(AND(LEN(U160)=11,SUM(IF(U160=REPT({"0";"1";"2";"3";"4";"5";"6";"7";"8";"9"},11),1,0))=0,SUM(IF(ISNUMBER(VALUE(MID(U160,{1;2;3;4;5;6;7;8;9;10;11},1))),0,1))=0),AND(IF(OR(11-(MOD(SUM(INT(MID(U160,{1;2;3;4;5;6;7;8;9},1))*({10;9;8;7;6;5;4;3;2})),11))=10,11-(MOD(SUM(INT(MID(U160,{1;2;3;4;5;6;7;8;9},1))*({10;9;8;7;6;5;4;3;2})),11))=11),0,11-(MOD(SUM(INT(MID(U160,{1;2;3;4;5;6;7;8;9},1))*({10;9;8;7;6;5;4;3;2})),11)))=INT(MID(U160,10,1)),IF(OR(11-(MOD(SUM(INT(MID(U160,{1;2;3;4;5;6;7;8;9;10},1))*({11;10;9;8;7;6;5;4;3;2})),11))=10,11-(MOD(SUM(INT(MID(U160,{1;2;3;4;5;6;7;8;9;10},1))*({11;10;9;8;7;6;5;4;3;2})),11))=11),0,11-(MOD(SUM(INT(MID(U160,{1;2;3;4;5;6;7;8;9;10},1))*({11;10;9;8;7;6;5;4;3;2})),11)))=INT(MID(U160,11,1))),FALSE) -> FALSE | W160: =IF(V160=TRUE,"CERTO","") ->  | X160: =IF(ExtraiNumeros(DK!X13)="","",ExtraiNumeros(DK!X13)) ->  | Y160: =IF(AND(LEN(X160)=11,SUM(IF(X160=REPT({"0";"1";"2";"3";"4";"5";"6";"7";"8";"9"},11),1,0))=0,SUM(IF(ISNUMBER(VALUE(MID(X160,{1;2;3;4;5;6;7;8;9;10;11},1))),0,1))=0),AND(IF(OR(11-(MOD(SUM(INT(MID(X160,{1;2;3;4;5;6;7;8;9},1))*({10;9;8;7;6;5;4;3;2})),11))=10,11-(MOD(SUM(INT(MID(X160,{1;2;3;4;5;6;7;8;9},1))*({10;9;8;7;6;5;4;3;2})),11))=11),0,11-(MOD(SUM(INT(MID(X160,{1;2;3;4;5;6;7;8;9},1))*({10;9;8;7;6;5;4;3;2})),11)))=INT(MID(X160,10,1)),IF(OR(11-(MOD(SUM(INT(MID(X160,{1;2;3;4;5;6;7;8;9;10},1))*({11;10;9;8;7;6;5;4;3;2})),11))=10,11-(MOD(SUM(INT(MID(X160,{1;2;3;4;5;6;7;8;9;10},1))*({11;10;9;8;7;6;5;4;3;2})),11))=11),0,11-(MOD(SUM(INT(MID(X160,{1;2;3;4;5;6;7;8;9;10},1))*({11;10;9;8;7;6;5;4;3;2})),11)))=INT(MID(X160,11,1))),FALSE) -> FALSE | Z160: =IF(Y160=TRUE,"CERTO","") ->  | AB160: LIMITE DE DESCONTO | AE160: VOLTAR GUIA
C161: CONFIGURAÇÃO DE ENVIO DE E-MAIL - RESPONSÁVEL PELAS COMPRAS | S161: CNPJ | U161: =ISNUMBER(Orçamento!Y13) -> FALSE | AB161: PERCENTUAIS | AC161: =Orçamento!AG37 -> 0 | AD161: =DK!AG37 -> 0 | AE161: Metro Fácil G | AF161: Metro | AG161: Pesquisa de Satisfação
S162: 98408690000 | T162: =IF(AND(LEN(S162)=14,SUM(IF(ISNUMBER(VALUE(MID(S162,{1;2;3;4;5;6;7;8;9;10;11;12;13;14},1))),0,1))=0),AND(IF(MOD(SUM(INT(MID(S162,{1;2;3;4;5;6;7;8;9;10;11;12},1))*(INT(MID("543298765432",{1;2;3;4;5;6;7;8;9;10;11;12},1))))*10,11)=10,0,MOD(SUM(INT(MID(S162,{1;2;3;4;5;6;7;8;9;10;11;12},1))*(INT(MID("543298765432",{1;2;3;4;5;6;7;8;9;10;11;12},1))))*10,11))=INT(MID(S162,13,1)),IF(MOD(SUM(INT(MID(S162,{1;2;3;4;5;6;7;8;9;10;11;12;13},1))*(INT(MID("6543298765432",{1;2;3;4;5;6;7;8;9;10;11;12;13},1))))*10,11)=10,0,MOD(SUM(INT(MID(S162,{1;2;3;4;5;6;7;8;9;10;11;12;13},1))*(INT(MID("6543298765432",{1;2;3;4;5;6;7;8;9;10;11;12;13},1))))*10,11))=INT(MID(S162,14,1))),FALSE) -> FALSE | U162: =IF(U161=FALSE,IF(LEN(ExtraiNumeros(Orçamento!Y13))=14,ExtraiNumeros(Orçamento!Y13),"ERRADO"),"ERRADO") -> ERRADO | V162: =IF(AND(LEN(U162)=14,SUM(IF(ISNUMBER(VALUE(MID(U162,{1;2;3;4;5;6;7;8;9;10;11;12;13;14},1))),0,1))=0),AND(IF(MOD(SUM(INT(MID(U162,{1;2;3;4;5;6;7;8;9;10;11;12},1))*(INT(MID("543298765432",{1;2;3;4;5;6;7;8;9;10;11;12},1))))*10,11)=10,0,MOD(SUM(INT(MID(U162,{1;2;3;4;5;6;7;8;9;10;11;12},1))*(INT(MID("543298765432",{1;2;3;4;5;6;7;8;9;10;11;12},1))))*10,11))=INT(MID(U162,13,1)),IF(MOD(SUM(INT(MID(U162,{1;2;3;4;5;6;7;8;9;10;11;12;13},1))*(INT(MID("6543298765432",{1;2;3;4;5;6;7;8;9;10;11;12;13},1))))*10,11)=10,0,MOD(SUM(INT(MID(U162,{1;2;3;4;5;6;7;8;9;10;11;12;13},1))*(INT(MID("6543298765432",{1;2;3;4;5;6;7;8;9;10;11;12;13},1))))*10,11))=INT(MID(U162,14,1))),FALSE) -> FALSE | W162: =IF(V162=TRUE,"CERTO","") ->  | X162: =(IF(ExtraiNumeros(DK!X13)="","",ExtraiNumeros(DK!X13))) ->  | Y162: =IF(AND(LEN(X162)=14,SUM(IF(ISNUMBER(VALUE(MID(X162,{1;2;3;4;5;6;7;8;9;10;11;12;13;14},1))),0,1))=0),AND(IF(MOD(SUM(INT(MID(X162,{1;2;3;4;5;6;7;8;9;10;11;12},1))*(INT(MID("543298765432",{1;2;3;4;5;6;7;8;9;10;11;12},1))))*10,11)=10,0,MOD(SUM(INT(MID(X162,{1;2;3;4;5;6;7;8;9;10;11;12},1))*(INT(MID("543298765432",{1;2;3;4;5;6;7;8;9;10;11;12},1))))*10,11))=INT(MID(X162,13,1)),IF(MOD(SUM(INT(MID(X162,{1;2;3;4;5;6;7;8;9;10;11;12;13},1))*(INT(MID("6543298765432",{1;2;3;4;5;6;7;8;9;10;11;12;13},1))))*10,11)=10,0,MOD(SUM(INT(MID(X162,{1;2;3;4;5;6;7;8;9;10;11;12;13},1))*(INT(MID("6543298765432",{1;2;3;4;5;6;7;8;9;10;11;12;13},1))))*10,11))=INT(MID(X162,14,1))),FALSE) -> FALSE | Z162: =IF(Y162=TRUE,"CERTO","") ->  | AA162: 14034669000109 | AB162: PERCENTUAL MÁXIMO | AC162: 100 | AD162: =M106 -> 25 | AE162: MENU RÁPIDO - REFERÊNCIAS
H163: =AA168 -> SISTEMA | AE163: EXIBIR | AG163: TRUE
S164: EMAIL DO CONTATO PARA ENVIO PELA WEB | U164: DADOS | X164: ENVIO DE E-MAIL GERAL | AB164: SENHA E-MAIL GERAL | AH164: AVISO ENCONTRAR E MENU RÁPIDO | AI164: AVISO ENCONTRAR CATÁLOGOS
S165: fernandoklein@hotmail.com | T165: FERNANDO | U165: FONTE | X165: MÉTODO | Z165: PADRAO | AA165: SISTEMA | AH165: FALSE | AI165: FALSE
AE166: RESOLUÇÃO NATIVA MONITOR | AH166: 8
H167: =AD168 ->  | S167: ENVIO E-MAIL CLIENTE LOJA SOLICITAÇÃO | U167: NÚMEROS DE LOGIN | X167: ENVIO DE E-MAIL COMPRAS | AB167: SENHA E-MAIL COMPRAS | AE167: LARG/ALT | AF167: 2560 | AG167: 1440 | AH167: 0 | AI167: 0
H168: 2 | S168: =IF('Solicitação Assistência'!L21="",0,1) -> 0 | T168: =IF('Solicitação Assistência'!L29="",0,1) -> 0 | U168: LOGIN | V168: 0 | W168: 0 | X168: MÉTODO | Z168: FALSE | AA168: SISTEMA | AE168: SELECIONADA | AF168: 2560 | AG168: 1440 | AH168: BAIXA CATÁLOGOS | AI168: LINHA CLIENTE
